Workbook

Sheet Zał.1_WPF_bazowy
N1: n | O1: Załącznik Nr 1 do Zarządzenia Nr 181/2016 Wójta Gminy Widuchowa z dnia 3 marca 2016 r.
J2: Wieloletnia prognoza finansowa Gminy Widuchowa na lata 2016 - 2025
E3: Wykonanie | G3: Plan 3 kw. | H3: Wykonanie
A4: X | B4: Lp. | C4: Nazwy serii (rysunki) | D4: Wyszczególnienie | E4: =+F4-1 -> 2013 | F4: =+G4-1 -> 2014 | G4: =+H4 -> 2015 | H4: =+I4-1 -> 2015 | I4: =+DaneZrodlowe!$N$1 -> 2016 | J4: =+I4+1 -> 2017 | K4: =+J4+1 -> 2018 | L4: 2019 | M4: 2020 | N4: 2021 | O4: 2022 | P4: 2023 | Q4: 2024 | R4: 2025 | S4: 2026 | T4: 2027 | U4: 2028 | V4: 2029 | W4: 2030 | X4: 2031 | Y4: 2032 | Z4: 2033 | AA4: 2034 | AB4: 2035 | AC4: 2036 | AD4: 2037 | AE4: 2038 | AF4: 2039 | AG4: 2040 | AH4: 2041 | AI4: 2042 | AJ4: 2043 | AK4: 2044 | AL4: 2045
A5: x | B5: 1 | C5: Dochody ogółem | D5: Dochody ogółem | E5: =17973113.92 -> 17973113.92 | F5: =17392993.42 -> 17392993.42 | G5: =17678787.15 -> 17678787.15 | H5: =17101682.73 -> 17101682.73 | I5: =19443564.07 -> 19443564.07 | J5: =21094929 -> 21094929 | K5: =20445387 -> 20445387 | L5: =20768748 -> 20768748 | M5: =20707811 -> 20707811 | N5: =20663045 -> 20663045 | O5: =21134936 -> 21134936 | P5: =21523984 -> 21523984 | Q5: =21930704 -> 21930704 | R5: =22555625 -> 22555625 | S5: =0 -> 0 | T5: =0 -> 0 | U5: =0 -> 0 | V5: =0 -> 0 | W5: =0 -> 0 | X5: =0 -> 0 | Y5: =0 -> 0 | Z5: =0 -> 0 | AA5: =0 -> 0 | AB5: =0 -> 0 | AC5: =0 -> 0 | AD5: =0 -> 0 | AE5: =0 -> 0 | AF5: =0 -> 0 | AG5: =0 -> 0 | AH5: =0 -> 0 | AI5: =0 -> 0 | AJ5: =0 -> 0 | AK5: =0 -> 0 | AL5: =0 -> 0
A6: x | B6: 1.1 | C6: Dochody bieżące | D6: Dochody bieżące | E6: =16880945.99 -> 16880945.99 | F6: =17056473.25 -> 17056473.25 | G6: =16787969.73 -> 16787969.73 | H6: =16811380.25 -> 16811380.25 | I6: =18580564.07 -> 18580564.07 | J6: =19522329 -> 19522329 | K6: =20045387 -> 20045387 | L6: =20368748 -> 20368748 | M6: =20307811 -> 20307811 | N6: =20363045 -> 20363045 | O6: =20834936 -> 20834936 | P6: =21223984 -> 21223984 | Q6: =21630704 -> 21630704 | R6: =22255625 -> 22255625 | S6: =0 -> 0 | T6: =0 -> 0 | U6: =0 -> 0 | V6: =0 -> 0 | W6: =0 -> 0 | X6: =0 -> 0 | Y6: =0 -> 0 | Z6: =0 -> 0 | AA6: =0 -> 0 | AB6: =0 -> 0 | AC6: =0 -> 0 | AD6: =0 -> 0 | AE6: =0 -> 0 | AF6: =0 -> 0 | AG6: =0 -> 0 | AH6: =0 -> 0 | AI6: =0 -> 0 | AJ6: =0 -> 0 | AK6: =0 -> 0 | AL6: =0 -> 0
B7: 1.1.1 | C7: dochody z tytułu udziału we wpływach z podatku dochodowego od osób fizycznych | D7: dochody z tytułu udziału we wpływach z podatku dochodowego od osób fizycznych | E7: =1411221 -> 1411221 | F7: =1673051 -> 1673051 | G7: =1903237 -> 1903237 | H7: =1919798 -> 1919798 | I7: =1930520 -> 1930520 | J7: =2000000 -> 2000000 | K7: =2100000 -> 2100000 | L7: =2100000 -> 2100000 | M7: =2100000 -> 2100000 | N7: =2200000 -> 2200000 | O7: =2250000 -> 2250000 | P7: =2300000 -> 2300000 | Q7: =2350000 -> 2350000 | R7: =2400000 -> 2400000 | S7: =0 -> 0 | T7: =0 -> 0 | U7: =0 -> 0 | V7: =0 -> 0 | W7: =0 -> 0 | X7: =0 -> 0 | Y7: =0 -> 0 | Z7: =0 -> 0 | AA7: =0 -> 0 | AB7: =0 -> 0 | AC7: =0 -> 0 | AD7: =0 -> 0 | AE7: =0 -> 0 | AF7: =0 -> 0 | AG7: =0 -> 0 | AH7: =0 -> 0 | AI7: =0 -> 0 | AJ7: =0 -> 0 | AK7: =0 -> 0 | AL7: =0 -> 0
B8: 1.1.2 | C8: dochody z tytułu udziału we wpływach z podatku dochodowego od osób prawnych | D8: dochody z tytułu udziału we wpływach z podatku dochodowego od osób prawnych | E8: =16121.53 -> 16121.53 | F8: =8401.41 -> 8401.41 | G8: =13000 -> 13000 | H8: =3238.59 -> 3238.59 | I8: =3000 -> 3000 | J8: =8000 -> 8000 | K8: =9000 -> 9000 | L8: =10000 -> 10000 | M8: =11000 -> 11000 | N8: =12000 -> 12000 | O8: =13000 -> 13000 | P8: =14000 -> 14000 | Q8: =15000 -> 15000 | R8: =16000 -> 16000 | S8: =0 -> 0 | T8: =0 -> 0 | U8: =0 -> 0 | V8: =0 -> 0 | W8: =0 -> 0 | X8: =0 -> 0 | Y8: =0 -> 0 | Z8: =0 -> 0 | AA8: =0 -> 0 | AB8: =0 -> 0 | AC8: =0 -> 0 | AD8: =0 -> 0 | AE8: =0 -> 0 | AF8: =0 -> 0 | AG8: =0 -> 0 | AH8: =0 -> 0 | AI8: =0 -> 0 | AJ8: =0 -> 0 | AK8: =0 -> 0 | AL8: =0 -> 0
B9: 1.1.3 | C9: podatki i opłaty | D9: podatki i opłaty | E9: =4978057.92 -> 4978057.92 | F9: =4929544.81 -> 4929544.81 | G9: =5065013 -> 5065013 | H9: =5000956.35 -> 5000956.35 | I9: =3971378 -> 3971378 | J9: =4083000 -> 4083000 | K9: =4242000 -> 4242000 | L9: =4405000 -> 4405000 | M9: =4573000 -> 4573000 | N9: =4900000 -> 4900000 | O9: =5000000 -> 5000000 | P9: =5180000 -> 5180000 | Q9: =5298000 -> 5298000 | R9: =5493000 -> 5493000 | S9: =0 -> 0 | T9: =0 -> 0 | U9: =0 -> 0 | V9: =0 -> 0 | W9: =0 -> 0 | X9: =0 -> 0 | Y9: =0 -> 0 | Z9: =0 -> 0 | AA9: =0 -> 0 | AB9: =0 -> 0 | AC9: =0 -> 0 | AD9: =0 -> 0 | AE9: =0 -> 0 | AF9: =0 -> 0 | AG9: =0 -> 0 | AH9: =0 -> 0 | AI9: =0 -> 0 | AJ9: =0 -> 0 | AK9: =0 -> 0 | AL9: =0 -> 0
B10: 1.1.3.1 | C10: z podatku od nieruchomości | D10: z podatku od nieruchomości | E10: =2987844.55 -> 2987844.55 | F10: =2990336.23 -> 2990336.23 | G10: =3016000 -> 3016000 | H10: =3054437.86 -> 3054437.86 | I10: =1920000 -> 1920000 | J10: =1930000 -> 1930000 | K10: =2013000 -> 2013000 | L10: =2109000 -> 2109000 | M10: =2209000 -> 2209000 | N10: =2311000 -> 2311000 | O10: =2416000 -> 2416000 | P10: =2525000 -> 2525000 | Q10: =2636000 -> 2636000 | R10: =2752000 -> 2752000 | S10: =0 -> 0 | T10: =0 -> 0 | U10: =0 -> 0 | V10: =0 -> 0 | W10: =0 -> 0 | X10: =0 -> 0 | Y10: =0 -> 0 | Z10: =0 -> 0 | AA10: =0 -> 0 | AB10: =0 -> 0 | AC10: =0 -> 0 | AD10: =0 -> 0 | AE10: =0 -> 0 | AF10: =0 -> 0 | AG10: =0 -> 0 | AH10: =0 -> 0 | AI10: =0 -> 0 | AJ10: =0 -> 0 | AK10: =0 -> 0 | AL10: =0 -> 0
B11: 1.1.4 | C11: z subwencji ogólnej | D11: z subwencji ogólnej | E11: =6023919 -> 6023919 | F11: =5676996 -> 5676996 | G11: =5458757 -> 5458757 | H11: =5458757 -> 5458757 | I11: =5855736 -> 5855736 | J11: =5800000 -> 5800000 | K11: =5900000 -> 5900000 | L11: =6000000 -> 6000000 | M11: =6022000 -> 6022000 | N11: =6133000 -> 6133000 | O11: =6250000 -> 6250000 | P11: =6400000 -> 6400000 | Q11: =6450000 -> 6450000 | R11: =6500000 -> 6500000 | S11: =0 -> 0 | T11: =0 -> 0 | U11: =0 -> 0 | V11: =0 -> 0 | W11: =0 -> 0 | X11: =0 -> 0 | Y11: =0 -> 0 | Z11: =0 -> 0 | AA11: =0 -> 0 | AB11: =0 -> 0 | AC11: =0 -> 0 | AD11: =0 -> 0 | AE11: =0 -> 0 | AF11: =0 -> 0 | AG11: =0 -> 0 | AH11: =0 -> 0 | AI11: =0 -> 0 | AJ11: =0 -> 0 | AK11: =0 -> 0 | AL11: =0 -> 0
B12: 1.1.5 | C12: z tytułu dotacji i środków przeznaczonych na cele bieżące | D12: z tytułu dotacji i środków przeznaczonych na cele bieżące | E12: =3962405.56 -> 3962405.56 | F12: =4287663.44 -> 4287663.44 | G12: =3889573.73 -> 3889573.73 | H12: =4019037.08 -> 4019037.08 | I12: =5259568.07 -> 5259568.07 | J12: =7500000 -> 7500000 | K12: =7550000 -> 7550000 | L12: =7350000 -> 7350000 | M12: =6900000 -> 6900000 | N12: =7090000 -> 7090000 | O12: =7200000 -> 7200000 | P12: =7250000 -> 7250000 | Q12: =7450000 -> 7450000 | R12: =7600000 -> 7600000 | S12: =0 -> 0 | T12: =0 -> 0 | U12: =0 -> 0 | V12: =0 -> 0 | W12: =0 -> 0 | X12: =0 -> 0 | Y12: =0 -> 0 | Z12: =0 -> 0 | AA12: =0 -> 0 | AB12: =0 -> 0 | AC12: =0 -> 0 | AD12: =0 -> 0 | AE12: =0 -> 0 | AF12: =0 -> 0 | AG12: =0 -> 0 | AH12: =0 -> 0 | AI12: =0 -> 0 | AJ12: =0 -> 0 | AK12: =0 -> 0 | AL12: =0 -> 0
A13: x | B13: 1.2 | C13: Dochody majątkowe | D13: Dochody majątkowe, w tym | E13: =1092167.93 -> 1092167.93 | F13: =336520.17 -> 336520.17 | G13: =890817.42 -> 890817.42 | H13: =290302.48 -> 290302.48 | I13: =863000 -> 863000 | J13: =1572600 -> 1572600 | K13: =400000 -> 400000 | L13: 400000 | M13: 400000 | N13: =300000 -> 300000 | O13: 300000 | P13: 300000 | Q13: 300000 | R13: 300000 | S13: =0 -> 0 | T13: =0 -> 0 | U13: =0 -> 0 | V13: =0 -> 0 | W13: =0 -> 0 | X13: =0 -> 0 | Y13: =0 -> 0 | Z13: =0 -> 0 | AA13: =0 -> 0 | AB13: =0 -> 0 | AC13: =0 -> 0 | AD13: =0 -> 0 | AE13: =0 -> 0 | AF13: =0 -> 0 | AG13: =0 -> 0 | AH13: =0 -> 0 | AI13: =0 -> 0 | AJ13: =0 -> 0 | AK13: =0 -> 0 | AL13: =0 -> 0
A14: x | B14: 1.2.1 | C14: ze sprzedaży majątku | D14: ze sprzedaży majątku | E14: =138368.5 -> 138368.5 | F14: =179740.6 -> 179740.6 | G14: =596000 -> 596000 | H14: =222848.13 -> 222848.13 | I14: =391378 -> 391378 | J14: =300000 -> 300000 | K14: 400000 | L14: 400000 | M14: 400000 | N14: 300000 | O14: 300000 | P14: 300000 | Q14: 300000 | R14: 300000 | S14: =0 -> 0 | T14: =0 -> 0 | U14: =0 -> 0 | V14: =0 -> 0 | W14: =0 -> 0 | X14: =0 -> 0 | Y14: =0 -> 0 | Z14: =0 -> 0 | AA14: =0 -> 0 | AB14: =0 -> 0 | AC14: =0 -> 0 | AD14: =0 -> 0 | AE14: =0 -> 0 | AF14: =0 -> 0 | AG14: =0 -> 0 | AH14: =0 -> 0 | AI14: =0 -> 0 | AJ14: =0 -> 0 | AK14: =0 -> 0 | AL14: =0 -> 0
B15: 1.2.2 | C15: z tytułu dotacji oraz środków przeznaczonych na inwestycje | D15: z tytułu dotacji oraz środków przeznaczonych na inwestycje | E15: =941977.06 -> 941977.06 | F15: =148162.3 -> 148162.3 | G15: =286278.42 -> 286278.42 | H15: =55441.71 -> 55441.71 | I15: =462622 -> 462622 | J15: =1272600 -> 1272600 | K15: =0 -> 0 | L15: =0 -> 0 | M15: =0 -> 0 | N15: =0 -> 0 | O15: =0 -> 0 | P15: =0 -> 0 | Q15: =0 -> 0 | R15: =0 -> 0 | S15: =0 -> 0 | T15: =0 -> 0 | U15: =0 -> 0 | V15: =0 -> 0 | W15: =0 -> 0 | X15: =0 -> 0 | Y15: =0 -> 0 | Z15: =0 -> 0 | AA15: =0 -> 0 | AB15: =0 -> 0 | AC15: =0 -> 0 | AD15: =0 -> 0 | AE15: =0 -> 0 | AF15: =0 -> 0 | AG15: =0 -> 0 | AH15: =0 -> 0 | AI15: =0 -> 0 | AJ15: =0 -> 0 | AK15: =0 -> 0 | AL15: =0 -> 0
A16: x | B16: 2 | C16: Wydatki ogółem | D16: Wydatki ogółem | E16: =17877352.15 -> 17877352.15 | F16: =17186267.02 -> 17186267.02 | G16: =17646787.15 -> 17646787.15 | H16: =16884782.78 -> 16884782.78 | I16: =19043564.07 -> 19043564.07 | J16: =20494929 -> 20494929 | K16: =19845387 -> 19845387 | L16: =19568748 -> 19568748 | M16: =19407811 -> 19407811 | N16: =19463045 -> 19463045 | O16: =19804936 -> 19804936 | P16: =20013984 -> 20013984 | Q16: =20382704 -> 20382704 | R16: =21812625 -> 21812625 | S16: =0 -> 0 | T16: =0 -> 0 | U16: =0 -> 0 | V16: =0 -> 0 | W16: =0 -> 0 | X16: =0 -> 0 | Y16: =0 -> 0 | Z16: =0 -> 0 | AA16: =0 -> 0 | AB16: =0 -> 0 | AC16: =0 -> 0 | AD16: =0 -> 0 | AE16: =0 -> 0 | AF16: =0 -> 0 | AG16: =0 -> 0 | AH16: =0 -> 0 | AI16: =0 -> 0 | AJ16: =0 -> 0 | AK16: =0 -> 0 | AL16: =0 -> 0
A17: x | B17: 2.1 | C17: Wydatki bieżące | D17: Wydatki bieżące, w tym: | E17: =16184466.65 -> 16184466.65 | F17: =16441428.08 -> 16441428.08 | G17: =16609410.73 -> 16609410.73 | H17: =16307675.05 -> 16307675.05 | I17: =17135413.07 -> 17135413.07 | J17: =18333929 -> 18333929 | K17: =18841237 -> 18841237 | L17: =19161844 -> 19161844 | M17: =19060149 -> 19060149 | N17: =18966564 -> 18966564 | O17: =19193510 -> 19193510 | P17: =19627425 -> 19627425 | Q17: =20066759 -> 20066759 | R17: =20518971 -> 20518971 | S17: =0 -> 0 | T17: =0 -> 0 | U17: =0 -> 0 | V17: =0 -> 0 | W17: =0 -> 0 | X17: =0 -> 0 | Y17: =0 -> 0 | Z17: =0 -> 0 | AA17: =0 -> 0 | AB17: =0 -> 0 | AC17: =0 -> 0 | AD17: =0 -> 0 | AE17: =0 -> 0 | AF17: =0 -> 0 | AG17: =0 -> 0 | AH17: =0 -> 0 | AI17: =0 -> 0 | AJ17: =0 -> 0 | AK17: =0 -> 0 | AL17: =0 -> 0
A18: x | B18: 2.1.1 | C18: z tytułu poręczeń i gwarancji | D18: z tytułu poręczeń i gwarancji | E18: =0 -> 0 | F18: =0 -> 0 | G18: =0 -> 0 | H18: =0 -> 0 | I18: =0 -> 0 | J18: =0 -> 0 | K18: =0 -> 0 | L18: =0 -> 0 | M18: =0 -> 0 | N18: =0 -> 0 | O18: =0 -> 0 | P18: =0 -> 0 | Q18: =0 -> 0 | R18: =0 -> 0 | S18: =0 -> 0 | T18: =0 -> 0 | U18: =0 -> 0 | V18: =0 -> 0 | W18: =0 -> 0 | X18: =0 -> 0 | Y18: =0 -> 0 | Z18: =0 -> 0 | AA18: =0 -> 0 | AB18: =0 -> 0 | AC18: =0 -> 0 | AD18: =0 -> 0 | AE18: =0 -> 0 | AF18: =0 -> 0 | AG18: =0 -> 0 | AH18: =0 -> 0 | AI18: =0 -> 0 | AJ18: =0 -> 0 | AK18: =0 -> 0 | AL18: =0 -> 0
A19: x | B19: 2.1.1.1 | C19: w tym: gwarancje i poręczenia podlegające wyłączeniu z limitu spłaty zobowiązań, o którym mowa w art. 243 ustawy | D19: w tym: gwarancje i poręczenia podlegające wyłączeniu z limitu spłaty zobowiązań, o którym mowa w art. 243 ustawy | E19: =0 -> 0 | F19: =0 -> 0 | G19: =0 -> 0 | H19: =0 -> 0 | I19: =0 -> 0 | J19: =0 -> 0 | K19: =0 -> 0 | L19: =0 -> 0 | M19: =0 -> 0 | N19: =0 -> 0 | O19: =0 -> 0 | P19: =0 -> 0 | Q19: =0 -> 0 | R19: =0 -> 0 | S19: =0 -> 0 | T19: =0 -> 0 | U19: =0 -> 0 | V19: =0 -> 0 | W19: =0 -> 0 | X19: =0 -> 0 | Y19: =0 -> 0 | Z19: =0 -> 0 | AA19: =0 -> 0 | AB19: =0 -> 0 | AC19: =0 -> 0 | AD19: =0 -> 0 | AE19: =0 -> 0 | AF19: =0 -> 0 | AG19: =0 -> 0 | AH19: =0 -> 0 | AI19: =0 -> 0 | AJ19: =0 -> 0 | AK19: =0 -> 0 | AL19: =0 -> 0
B20: 2.1.2 | C20: na spłatę przejętych zobowiązań samodzielnego publicznego zakładu opieki zdrowotnej przekształconego na zasadach określonych w przepisach o działalności leczniczej, w wysokości w jakiej nie podlegają sfinansowaniu dotacją z budżetu państwa | D20: na spłatę przejętych zobowiązań samodzielnego publicznego zakładu opieki zdrowotnej przekształconego na zasadach określonych w przepisach o działalności leczniczej, w wysokości w jakiej nie podlegają sfinansowaniu dotacją z budżetu państwa | E20: =0 -> 0 | F20: =0 -> 0 | G20: =0 -> 0 | H20: =0 -> 0 | I20: =0 -> 0 | J20: =0 -> 0 | K20: =0 -> 0 | L20: =0 -> 0 | M20: =0 -> 0 | N20: =0 -> 0 | O20: =0 -> 0 | P20: =0 -> 0 | Q20: =0 -> 0 | R20: =0 -> 0 | S20: =0 -> 0 | T20: =0 -> 0 | U20: =0 -> 0 | V20: =0 -> 0 | W20: =0 -> 0 | X20: =0 -> 0 | Y20: =0 -> 0 | Z20: =0 -> 0 | AA20: =0 -> 0 | AB20: =0 -> 0 | AC20: =0 -> 0 | AD20: =0 -> 0 | AE20: =0 -> 0 | AF20: =0 -> 0 | AG20: =0 -> 0 | AH20: =0 -> 0 | AI20: =0 -> 0 | AJ20: =0 -> 0 | AK20: =0 -> 0 | AL20: =0 -> 0
A21: x | B21: 2.1.3 | C21: wydatki na obsługę długu, w tym: | D21: wydatki na obsługę długu, w tym: | E21: =572021.53 -> 572021.53 | F21: =430171.93 -> 430171.93 | G21: =360000 -> 360000 | H21: =352254.63 -> 352254.63 | I21: =340000 -> 340000 | J21: =340000 -> 340000 | K21: =320000 -> 320000 | L21: =300000 -> 300000 | M21: =260000 -> 260000 | N21: =215000 -> 215000 | O21: =175000 -> 175000 | P21: =130000 -> 130000 | Q21: =79000 -> 79000 | R21: =26000 -> 26000 | S21: =0 -> 0 | T21: =0 -> 0 | U21: =0 -> 0 | V21: =0 -> 0 | W21: =0 -> 0 | X21: =0 -> 0 | Y21: =0 -> 0 | Z21: =0 -> 0 | AA21: =0 -> 0 | AB21: =0 -> 0 | AC21: =0 -> 0 | AD21: =0 -> 0 | AE21: =0 -> 0 | AF21: =0 -> 0 | AG21: =0 -> 0 | AH21: =0 -> 0 | AI21: =0 -> 0 | AJ21: =0 -> 0 | AK21: =0 -> 0 | AL21: =0 -> 0
A22: x | B22: 2.1.3.1 | C22: odsetki i dyskonto określone w art. 243 ust. 1 ustawy, w tym: | D22: odsetki i dyskonto określone w art. 243 ust. 1 ustawy, w tym: | E22: =567021.53 -> 567021.53 | F22: =430171.93 -> 430171.93 | G22: =360000 -> 360000 | H22: =352254.63 -> 352254.63 | I22: =340000 -> 340000 | J22: =340000 -> 340000 | K22: =320000 -> 320000 | L22: =300000 -> 300000 | M22: =260000 -> 260000 | N22: =215000 -> 215000 | O22: =175000 -> 175000 | P22: =130000 -> 130000 | Q22: =79000 -> 79000 | R22: =26000 -> 26000 | S22: =0 -> 0 | T22: =0 -> 0 | U22: =0 -> 0 | V22: =0 -> 0 | W22: =0 -> 0 | X22: =0 -> 0 | Y22: =0 -> 0 | Z22: =0 -> 0 | AA22: =0 -> 0 | AB22: =0 -> 0 | AC22: =0 -> 0 | AD22: =0 -> 0 | AE22: =0 -> 0 | AF22: =0 -> 0 | AG22: =0 -> 0 | AH22: =0 -> 0 | AI22: =0 -> 0 | AJ22: =0 -> 0 | AK22: =0 -> 0 | AL22: =0 -> 0
A23: x | B23: 2.1.3.1.1 | C23: odsetki i dyskonto podlegające wyłączeniu z limitu spłaty zobowiązań, o którym mowa w art. 243 ustawy, w terminie nie dłuższym niż 90 dni po zakończeniu programu, projektu lub zadania i otrzymaniu refundacji z tych środków (bez odsetek i dyskonta od zobowiązań na wkład krajowy) | D23: odsetki i dyskonto podlegające wyłączeniu z limitu spłaty zobowiązań, o którym mowa w art. 243 ustawy, w terminie nie dłuższym niż 90 dni po zakończeniu programu, projektu lub zadania i otrzymaniu refundacji z tych środków (bez odsetek i dyskonta od zobowiązań na wkład krajowy) | E23: =0 -> 0 | F23: =40000 -> 40000 | G23: =0 -> 0 | H23: =0 -> 0 | I23: =0 -> 0 | J23: =0 -> 0 | K23: =0 -> 0 | L23: =0 -> 0 | M23: =0 -> 0 | N23: =0 -> 0 | O23: =0 -> 0 | P23: =0 -> 0 | Q23: =0 -> 0 | R23: =0 -> 0 | S23: =0 -> 0 | T23: =0 -> 0 | U23: =0 -> 0 | V23: =0 -> 0 | W23: =0 -> 0 | X23: =0 -> 0 | Y23: =0 -> 0 | Z23: =0 -> 0 | AA23: =0 -> 0 | AB23: =0 -> 0 | AC23: =0 -> 0 | AD23: =0 -> 0 | AE23: =0 -> 0 | AF23: =0 -> 0 | AG23: =0 -> 0 | AH23: =0 -> 0 | AI23: =0 -> 0 | AJ23: =0 -> 0 | AK23: =0 -> 0 | AL23: =0 -> 0
A24: x | B24: 2.1.3.1.2 | C24: odsetki i dyskonto podlegające wyłączeniu z limitu spłaty zobowiązań, o którym mowa w art. 243 ustawy, z tytułu zobowiązań zaciągniętych na wkład krajowy | D24: odsetki i dyskonto podlegające wyłączeniu z limitu spłaty zobowiązań, o którym mowa w art. 243 ustawy, z tytułu zobowiązań zaciągniętych na wkład krajowy | E24: =0 -> 0 | F24: =130000 -> 130000 | G24: =0 -> 0 | H24: =107230.61 -> 107230.61 | I24: =105951.71 -> 105951.71 | J24: =93200 -> 93200 | K24: =74000 -> 74000 | L24: =63000 -> 63000 | M24: =44000 -> 44000 | N24: =24000 -> 24000 | O24: =20000 -> 20000 | P24: =14000 -> 14000 | Q24: =13000 -> 13000 | R24: =13000 -> 13000 | S24: =0 -> 0 | T24: =0 -> 0 | U24: =0 -> 0 | V24: =0 -> 0 | W24: =0 -> 0 | X24: =0 -> 0 | Y24: =0 -> 0 | Z24: =0 -> 0 | AA24: =0 -> 0 | AB24: =0 -> 0 | AC24: =0 -> 0 | AD24: =0 -> 0 | AE24: =0 -> 0 | AF24: =0 -> 0 | AG24: =0 -> 0 | AH24: =0 -> 0 | AI24: =0 -> 0 | AJ24: =0 -> 0 | AK24: =0 -> 0 | AL24: =0 -> 0
A25: x | B25: 2.2 | C25: Wydatki majątkowe | D25: Wydatki majątkowe | E25: =1692885.5 -> 1692885.5 | F25: =744838.94 -> 744838.94 | G25: =1037376.42 -> 1037376.42 | H25: =577107.73 -> 577107.73 | I25: =1908151 -> 1908151 | J25: =2161000 -> 2161000 | K25: =1004150 -> 1004150 | L25: =406904 -> 406904 | M25: =347662 -> 347662 | N25: =496481 -> 496481 | O25: =611426 -> 611426 | P25: =386559 -> 386559 | Q25: =315945 -> 315945 | R25: =1293654 -> 1293654 | S25: =0 -> 0 | T25: =0 -> 0 | U25: =0 -> 0 | V25: =0 -> 0 | W25: =0 -> 0 | X25: =0 -> 0 | Y25: =0 -> 0 | Z25: =0 -> 0 | AA25: =0 -> 0 | AB25: =0 -> 0 | AC25: =0 -> 0 | AD25: =0 -> 0 | AE25: =0 -> 0 | AF25: =0 -> 0 | AG25: =0 -> 0 | AH25: =0 -> 0 | AI25: =0 -> 0 | AJ25: =0 -> 0 | AK25: =0 -> 0 | AL25: =0 -> 0
A26: x | B26: 3 | C26: Wynik budżetu | D26: Wynik budżetu | E26: =95761.77 -> 95761.77 | F26: =206726.4 -> 206726.4 | G26: =32000 -> 32000 | H26: =216899.95 -> 216899.95 | I26: =400000 -> 400000 | J26: =600000 -> 600000 | K26: =600000 -> 600000 | L26: =1200000 -> 1200000 | M26: =1300000 -> 1300000 | N26: =1200000 -> 1200000 | O26: =1330000 -> 1330000 | P26: =1510000 -> 1510000 | Q26: =1548000 -> 1548000 | R26: =743000 -> 743000 | S26: =0 -> 0 | T26: =0 -> 0 | U26: =0 -> 0 | V26: =0 -> 0 | W26: =0 -> 0 | X26: =0 -> 0 | Y26: =0 -> 0 | Z26: =0 -> 0 | AA26: =0 -> 0 | AB26: =0 -> 0 | AC26: =0 -> 0 | AD26: =0 -> 0 | AE26: =0 -> 0 | AF26: =0 -> 0 | AG26: =0 -> 0 | AH26: =0 -> 0 | AI26: =0 -> 0 | AJ26: =0 -> 0 | AK26: =0 -> 0 | AL26: =0 -> 0
A27: x | B27: 4 | C27: Przychody budżetu | D27: Przychody budżetu | E27: =3413397.21 -> 3413397.21 | F27: =1405350.74 -> 1405350.74 | G27: =68000 -> 68000 | H27: =555077.14 -> 555077.14 | I27: =0 -> 0 | J27: =0 -> 0 | K27: =0 -> 0 | L27: =0 -> 0 | M27: =0 -> 0 | N27: =0 -> 0 | O27: =0 -> 0 | P27: =0 -> 0 | Q27: =0 -> 0 | R27: =0 -> 0 | S27: =0 -> 0 | T27: =0 -> 0 | U27: =0 -> 0 | V27: =0 -> 0 | W27: =0 -> 0 | X27: =0 -> 0 | Y27: =0 -> 0 | Z27: =0 -> 0 | AA27: =0 -> 0 | AB27: =0 -> 0 | AC27: =0 -> 0 | AD27: =0 -> 0 | AE27: =0 -> 0 | AF27: =0 -> 0 | AG27: =0 -> 0 | AH27: =0 -> 0 | AI27: =0 -> 0 | AJ27: =0 -> 0 | AK27: =0 -> 0 | AL27: =0 -> 0
A28: x | B28: 4.1 | C28: Nadwyżka budżetowa z lat ubiegłych | D28: Nadwyżka budżetowa z lat ubiegłych | E28: =0 -> 0 | F28: =0 -> 0 | G28: =0 -> 0 | H28: =0 -> 0 | I28: =0 -> 0 | J28: =0 -> 0 | K28: =0 -> 0 | L28: =0 -> 0 | M28: =0 -> 0 | N28: =0 -> 0 | O28: =0 -> 0 | P28: =0 -> 0 | Q28: =0 -> 0 | R28: =0 -> 0 | S28: =0 -> 0 | T28: =0 -> 0 | U28: =0 -> 0 | V28: =0 -> 0 | W28: =0 -> 0 | X28: =0 -> 0 | Y28: =0 -> 0 | Z28: =0 -> 0 | AA28: =0 -> 0 | AB28: =0 -> 0 | AC28: =0 -> 0 | AD28: =0 -> 0 | AE28: =0 -> 0 | AF28: =0 -> 0 | AG28: =0 -> 0 | AH28: =0 -> 0 | AI28: =0 -> 0 | AJ28: =0 -> 0 | AK28: =0 -> 0 | AL28: =0 -> 0
A29: x | B29: 4.1.1 | C29: w tym na pokrycie deficytu budżetu | D29: w tym na pokrycie deficytu budżetu | E29: =0 -> 0 | F29: =0 -> 0 | G29: =0 -> 0 | H29: =0 -> 0 | I29: =0 -> 0 | J29: =0 -> 0 | K29: =0 -> 0 | L29: =0 -> 0 | M29: =0 -> 0 | N29: =0 -> 0 | O29: =0 -> 0 | P29: =0 -> 0 | Q29: =0 -> 0 | R29: =0 -> 0 | S29: =0 -> 0 | T29: =0 -> 0 | U29: =0 -> 0 | V29: =0 -> 0 | W29: =0 -> 0 | X29: =0 -> 0 | Y29: =0 -> 0 | Z29: =0 -> 0 | AA29: =0 -> 0 | AB29: =0 -> 0 | AC29: =0 -> 0 | AD29: =0 -> 0 | AE29: =0 -> 0 | AF29: =0 -> 0 | AG29: =0 -> 0 | AH29: =0 -> 0 | AI29: =0 -> 0 | AJ29: =0 -> 0 | AK29: =0 -> 0 | AL29: =0 -> 0
A30: x | B30: 4.2 | C30: Wolne środki, o których mowa w art. 217 ust.2 pkt 6 ustawy | D30: Wolne środki, o których mowa w art. 217 ust.2 pkt 6 ustawy | E30: =2113397.21 -> 2113397.21 | F30: =1405350.74 -> 1405350.74 | G30: =68000 -> 68000 | H30: =555077.14 -> 555077.14 | I30: =0 -> 0 | J30: =0 -> 0 | K30: =0 -> 0 | L30: =0 -> 0 | M30: =0 -> 0 | N30: =0 -> 0 | O30: =0 -> 0 | P30: =0 -> 0 | Q30: =0 -> 0 | R30: =0 -> 0 | S30: =0 -> 0 | T30: =0 -> 0 | U30: =0 -> 0 | V30: =0 -> 0 | W30: =0 -> 0 | X30: =0 -> 0 | Y30: =0 -> 0 | Z30: =0 -> 0 | AA30: =0 -> 0 | AB30: =0 -> 0 | AC30: =0 -> 0 | AD30: =0 -> 0 | AE30: =0 -> 0 | AF30: =0 -> 0 | AG30: =0 -> 0 | AH30: =0 -> 0 | AI30: =0 -> 0 | AJ30: =0 -> 0 | AK30: =0 -> 0 | AL30: =0 -> 0
A31: x | B31: 4.2.1 | C31: w tym na pokrycie deficytu budżetu | D31: w tym na pokrycie deficytu budżetu | E31: =0 -> 0 | F31: =0 -> 0 | G31: =0 -> 0 | H31: =0 -> 0 | I31: =0 -> 0 | J31: =0 -> 0 | K31: =0 -> 0 | L31: =0 -> 0 | M31: =0 -> 0 | N31: =0 -> 0 | O31: =0 -> 0 | P31: =0 -> 0 | Q31: =0 -> 0 | R31: =0 -> 0 | S31: =0 -> 0 | T31: =0 -> 0 | U31: =0 -> 0 | V31: =0 -> 0 | W31: =0 -> 0 | X31: =0 -> 0 | Y31: =0 -> 0 | Z31: =0 -> 0 | AA31: =0 -> 0 | AB31: =0 -> 0 | AC31: =0 -> 0 | AD31: =0 -> 0 | AE31: =0 -> 0 | AF31: =0 -> 0 | AG31: =0 -> 0 | AH31: =0 -> 0 | AI31: =0 -> 0 | AJ31: =0 -> 0 | AK31: =0 -> 0 | AL31: =0 -> 0
A32: x | B32: 4.3 | C32: Kredyty, pożyczki, emisja papierów wartościowych | D32: Kredyty, pożyczki, emisja papierów wartościowych | E32: =1300000 -> 1300000 | F32: =0 -> 0 | G32: =0 -> 0 | H32: =0 -> 0 | I32: =0 -> 0 | J32: =0 -> 0 | K32: =0 -> 0 | L32: =0 -> 0 | M32: =0 -> 0 | N32: =0 -> 0 | O32: =0 -> 0 | P32: =0 -> 0 | Q32: =0 -> 0 | R32: =0 -> 0 | S32: =0 -> 0 | T32: =0 -> 0 | U32: =0 -> 0 | V32: =0 -> 0 | W32: =0 -> 0 | X32: =0 -> 0 | Y32: =0 -> 0 | Z32: =0 -> 0 | AA32: =0 -> 0 | AB32: =0 -> 0 | AC32: =0 -> 0 | AD32: =0 -> 0 | AE32: =0 -> 0 | AF32: =0 -> 0 | AG32: =0 -> 0 | AH32: =0 -> 0 | AI32: =0 -> 0 | AJ32: =0 -> 0 | AK32: =0 -> 0 | AL32: =0 -> 0
A33: x | B33: 4.3.1 | C33: w tym na pokrycie deficytu budżetu | D33: w tym na pokrycie deficytu budżetu | E33: =0 -> 0 | F33: =0 -> 0 | G33: =0 -> 0 | H33: =0 -> 0 | I33: =0 -> 0 | J33: =0 -> 0 | K33: =0 -> 0 | L33: =0 -> 0 | M33: =0 -> 0 | N33: =0 -> 0 | O33: =0 -> 0 | P33: =0 -> 0 | Q33: =0 -> 0 | R33: =0 -> 0 | S33: =0 -> 0 | T33: =0 -> 0 | U33: =0 -> 0 | V33: =0 -> 0 | W33: =0 -> 0 | X33: =0 -> 0 | Y33: =0 -> 0 | Z33: =0 -> 0 | AA33: =0 -> 0 | AB33: =0 -> 0 | AC33: =0 -> 0 | AD33: =0 -> 0 | AE33: =0 -> 0 | AF33: =0 -> 0 | AG33: =0 -> 0 | AH33: =0 -> 0 | AI33: =0 -> 0 | AJ33: =0 -> 0 | AK33: =0 -> 0 | AL33: =0 -> 0
A34: x | B34: 4.4 | C34: Inne przychody niezwiązane z zaciągnięciem długu | D34: Inne przychody niezwiązane z zaciągnięciem długu | E34: =0 -> 0 | F34: =0 -> 0 | G34: =0 -> 0 | H34: =0 -> 0 | I34: =0 -> 0 | J34: =0 -> 0 | K34: =0 -> 0 | L34: =0 -> 0 | M34: =0 -> 0 | N34: =0 -> 0 | O34: =0 -> 0 | P34: =0 -> 0 | Q34: =0 -> 0 | R34: =0 -> 0 | S34: =0 -> 0 | T34: =0 -> 0 | U34: =0 -> 0 | V34: =0 -> 0 | W34: =0 -> 0 | X34: =0 -> 0 | Y34: =0 -> 0 | Z34: =0 -> 0 | AA34: =0 -> 0 | AB34: =0 -> 0 | AC34: =0 -> 0 | AD34: =0 -> 0 | AE34: =0 -> 0 | AF34: =0 -> 0 | AG34: =0 -> 0 | AH34: =0 -> 0 | AI34: =0 -> 0 | AJ34: =0 -> 0 | AK34: =0 -> 0 | AL34: =0 -> 0
A35: x | B35: 4.4.1 | C35: w tym na pokrycie deficytu budżetu | D35: w tym na pokrycie deficytu budżetu | E35: =0 -> 0 | F35: =0 -> 0 | G35: =0 -> 0 | H35: =0 -> 0 | I35: =0 -> 0 | J35: =0 -> 0 | K35: =0 -> 0 | L35: =0 -> 0 | M35: =0 -> 0 | N35: =0 -> 0 | O35: =0 -> 0 | P35: =0 -> 0 | Q35: =0 -> 0 | R35: =0 -> 0 | S35: =0 -> 0 | T35: =0 -> 0 | U35: =0 -> 0 | V35: =0 -> 0 | W35: =0 -> 0 | X35: =0 -> 0 | Y35: =0 -> 0 | Z35: =0 -> 0 | AA35: =0 -> 0 | AB35: =0 -> 0 | AC35: =0 -> 0 | AD35: =0 -> 0 | AE35: =0 -> 0 | AF35: =0 -> 0 | AG35: =0 -> 0 | AH35: =0 -> 0 | AI35: =0 -> 0 | AJ35: =0 -> 0 | AK35: =0 -> 0 | AL35: =0 -> 0
A36: x | B36: 5 | C36: Rozchody budżetu | D36: Rozchody budżetu | E36: =2103808.24 -> 2103808.24 | F36: =1057000 -> 1057000 | G36: =100000 -> 100000 | H36: =100000 -> 100000 | I36: =400000 -> 400000 | J36: =600000 -> 600000 | K36: =600000 -> 600000 | L36: =1200000 -> 1200000 | M36: =1300000 -> 1300000 | N36: =1200000 -> 1200000 | O36: =1330000 -> 1330000 | P36: =1510000 -> 1510000 | Q36: =1548000 -> 1548000 | R36: =743000 -> 743000 | S36: =0 -> 0 | T36: =0 -> 0 | U36: =0 -> 0 | V36: =0 -> 0 | W36: =0 -> 0 | X36: =0 -> 0 | Y36: =0 -> 0 | Z36: =0 -> 0 | AA36: =0 -> 0 | AB36: =0 -> 0 | AC36: =0 -> 0 | AD36: =0 -> 0 | AE36: =0 -> 0 | AF36: =0 -> 0 | AG36: =0 -> 0 | AH36: =0 -> 0 | AI36: =0 -> 0 | AJ36: =0 -> 0 | AK36: =0 -> 0 | AL36: =0 -> 0
A37: x | B37: 5.1 | C37: Spłaty rat kapitałowych kredytów i pożyczek oraz wykup papierów wartościowych | D37: Spłaty rat kapitałowych kredytów i pożyczek oraz wykup papierów wartościowych | E37: =2103808.24 -> 2103808.24 | F37: =1057000 -> 1057000 | G37: =100000 -> 100000 | H37: =100000 -> 100000 | I37: =400000 -> 400000 | J37: =600000 -> 600000 | K37: =600000 -> 600000 | L37: =1200000 -> 1200000 | M37: =1300000 -> 1300000 | N37: =1200000 -> 1200000 | O37: =1330000 -> 1330000 | P37: =1510000 -> 1510000 | Q37: =1548000 -> 1548000 | R37: =743000 -> 743000 | S37: =0 -> 0 | T37: =0 -> 0 | U37: =0 -> 0 | V37: =0 -> 0 | W37: =0 -> 0 | X37: =0 -> 0 | Y37: =0 -> 0 | Z37: =0 -> 0 | AA37: =0 -> 0 | AB37: =0 -> 0 | AC37: =0 -> 0 | AD37: =0 -> 0 | AE37: =0 -> 0 | AF37: =0 -> 0 | AG37: =0 -> 0 | AH37: =0 -> 0 | AI37: =0 -> 0 | AJ37: =0 -> 0 | AK37: =0 -> 0 | AL37: =0 -> 0
A38: x | B38: 5.1.1 | C38: w tym łączna kwota przypadających na dany rok kwot ustawowych wyłączeń z limitu spłaty zobowiązań, o którym mowa w art. 243 ustawy, z tego: | D38: w tym łączna kwota przypadających na dany rok kwot ustawowych wyłączeń z limitu spłaty zobowiązań, o którym mowa w art. 243 ustawy, z tego: | E38: =0 -> 0 | F38: =1057000 -> 1057000 | G38: =100000 -> 100000 | H38: =0 -> 0 | I38: =0 -> 0 | J38: =0 -> 0 | K38: =0 -> 0 | L38: =0 -> 0 | M38: =0 -> 0 | N38: =0 -> 0 | O38: =0 -> 0 | P38: =0 -> 0 | Q38: =0 -> 0 | R38: =0 -> 0 | S38: =0 -> 0 | T38: =0 -> 0 | U38: =0 -> 0 | V38: =0 -> 0 | W38: =0 -> 0 | X38: =0 -> 0 | Y38: =0 -> 0 | Z38: =0 -> 0 | AA38: =0 -> 0 | AB38: =0 -> 0 | AC38: =0 -> 0 | AD38: =0 -> 0 | AE38: =0 -> 0 | AF38: =0 -> 0 | AG38: =0 -> 0 | AH38: =0 -> 0 | AI38: =0 -> 0 | AJ38: =0 -> 0 | AK38: =0 -> 0 | AL38: =0 -> 0
A39: x | B39: 5.1.1.1 | C39: kwota przypadających na dany rok kwot ustawowych wyłączeń określonych w art. 243 ust. 3 ustawy | D39: kwota przypadających na dany rok kwot ustawowych wyłączeń określonych w art. 243 ust. 3 ustawy | E39: =0 -> 0 | F39: =1057000 -> 1057000 | G39: =0 -> 0 | H39: =0 -> 0 | I39: =0 -> 0 | J39: =0 -> 0 | K39: =0 -> 0 | L39: =0 -> 0 | M39: =0 -> 0 | N39: =0 -> 0 | O39: =0 -> 0 | P39: =0 -> 0 | Q39: =0 -> 0 | R39: =0 -> 0 | S39: =0 -> 0 | T39: =0 -> 0 | U39: =0 -> 0 | V39: =0 -> 0 | W39: =0 -> 0 | X39: =0 -> 0 | Y39: =0 -> 0 | Z39: =0 -> 0 | AA39: =0 -> 0 | AB39: =0 -> 0 | AC39: =0 -> 0 | AD39: =0 -> 0 | AE39: =0 -> 0 | AF39: =0 -> 0 | AG39: =0 -> 0 | AH39: =0 -> 0 | AI39: =0 -> 0 | AJ39: =0 -> 0 | AK39: =0 -> 0 | AL39: =0 -> 0
A40: x | B40: 5.1.1.2 | C40: kwota przypadających na dany rok kwot ustawowych wyłączeń określonych w art. 243 ust. 3a ustawy | D40: kwota przypadających na dany rok kwot ustawowych wyłączeń określonych w art. 243 ust. 3a ustawy | E40: =0 -> 0 | F40: =0 -> 0 | G40: =100000 -> 100000 | H40: =0 -> 0 | I40: =0 -> 0 | J40: =0 -> 0 | K40: =0 -> 0 | L40: =0 -> 0 | M40: =0 -> 0 | N40: =0 -> 0 | O40: =0 -> 0 | P40: =0 -> 0 | Q40: =0 -> 0 | R40: =0 -> 0 | S40: =0 -> 0 | T40: =0 -> 0 | U40: =0 -> 0 | V40: =0 -> 0 | W40: =0 -> 0 | X40: =0 -> 0 | Y40: =0 -> 0 | Z40: =0 -> 0 | AA40: =0 -> 0 | AB40: =0 -> 0 | AC40: =0 -> 0 | AD40: =0 -> 0 | AE40: =0 -> 0 | AF40: =0 -> 0 | AG40: =0 -> 0 | AH40: =0 -> 0 | AI40: =0 -> 0 | AJ40: =0 -> 0 | AK40: =0 -> 0 | AL40: =0 -> 0
A41: x | B41: 5.1.1.3 | C41: kwota przypadających na dany rok kwot ustawowych wyłączeń innych niż określone w art. 243 ustawy | D41: kwota przypadających na dany rok kwot ustawowych wyłączeń innych niż określone w art. 243 ustawy | E41: =0 -> 0 | F41: =0 -> 0 | G41: =0 -> 0 | H41: =0 -> 0 | I41: =0 -> 0 | J41: =0 -> 0 | K41: =0 -> 0 | L41: =0 -> 0 | M41: =0 -> 0 | N41: =0 -> 0 | O41: =0 -> 0 | P41: =0 -> 0 | Q41: =0 -> 0 | R41: =0 -> 0 | S41: =0 -> 0 | T41: =0 -> 0 | U41: =0 -> 0 | V41: =0 -> 0 | W41: =0 -> 0 | X41: =0 -> 0 | Y41: =0 -> 0 | Z41: =0 -> 0 | AA41: =0 -> 0 | AB41: =0 -> 0 | AC41: =0 -> 0 | AD41: =0 -> 0 | AE41: =0 -> 0 | AF41: =0 -> 0 | AG41: =0 -> 0 | AH41: =0 -> 0 | AI41: =0 -> 0 | AJ41: =0 -> 0 | AK41: =0 -> 0 | AL41: =0 -> 0
B42: 5.2 | C42: Inne rozchody niezwiązane ze spłatą długu | D42: Inne rozchody niezwiązane ze spłatą długu | E42: =0 -> 0 | F42: =0 -> 0 | G42: =0 -> 0 | H42: =0 -> 0 | I42: =0 -> 0 | J42: =0 -> 0 | K42: =0 -> 0 | L42: =0 -> 0 | M42: =0 -> 0 | N42: =0 -> 0 | O42: =0 -> 0 | P42: =0 -> 0 | Q42: =0 -> 0 | R42: =0 -> 0 | S42: =0 -> 0 | T42: =0 -> 0 | U42: =0 -> 0 | V42: =0 -> 0 | W42: =0 -> 0 | X42: =0 -> 0 | Y42: =0 -> 0 | Z42: =0 -> 0 | AA42: =0 -> 0 | AB42: =0 -> 0 | AC42: =0 -> 0 | AD42: =0 -> 0 | AE42: =0 -> 0 | AF42: =0 -> 0 | AG42: =0 -> 0 | AH42: =0 -> 0 | AI42: =0 -> 0 | AJ42: =0 -> 0 | AK42: =0 -> 0 | AL42: =0 -> 0
A43: x | B43: 6 | C43: Kwota długu | D43: Kwota długu | E43: =11617700 -> 11617700 | F43: =10540850 -> 10540850 | G43: =10431000 -> 10431000 | H43: =10431000 -> 10431000 | I43: =10719000 -> 10719000 | J43: =9995000 -> 9995000 | K43: =9275000 -> 9275000 | L43: =7958000 -> 7958000 | M43: =6545000 -> 6545000 | N43: =5236000 -> 5236000 | O43: =3801000 -> 3801000 | P43: =2291000 -> 2291000 | Q43: =743000 -> 743000 | R43: =0 -> 0 | S43: =0 -> 0 | T43: =0 -> 0 | U43: =0 -> 0 | V43: =0 -> 0 | W43: =0 -> 0 | X43: =0 -> 0 | Y43: =0 -> 0 | Z43: =0 -> 0 | AA43: =0 -> 0 | AB43: =0 -> 0 | AC43: =0 -> 0 | AD43: =0 -> 0 | AE43: =0 -> 0 | AF43: =0 -> 0 | AG43: =0 -> 0 | AH43: =0 -> 0 | AI43: =0 -> 0 | AJ43: =0 -> 0 | AK43: =0 -> 0 | AL43: =0 -> 0
B44: 7 | C44: Kwota zobowiązań wynikających z przejęcia przez jednostkę samorządu terytorialnego zobowiązań po likwidowanych i przekształcanych jednostkach zaliczanych do sektora finansów publicznych | D44: Kwota zobowiązań wynikających z przejęcia przez jednostkę samorządu terytorialnego zobowiązań po likwidowanych i przekształcanych jednostkach zaliczanych do sektora finansów publicznych | E44: =0 -> 0 | F44: =0 -> 0 | G44: =0 -> 0 | H44: =0 -> 0 | I44: =0 -> 0 | J44: =0 -> 0 | K44: =0 -> 0 | L44: =0 -> 0 | M44: =0 -> 0 | N44: =0 -> 0 | O44: =0 -> 0 | P44: =0 -> 0 | Q44: =0 -> 0 | R44: =0 -> 0 | S44: =0 -> 0 | T44: =0 -> 0 | U44: =0 -> 0 | V44: =0 -> 0 | W44: =0 -> 0 | X44: =0 -> 0 | Y44: =0 -> 0 | Z44: =0 -> 0 | AA44: =0 -> 0 | AB44: =0 -> 0 | AC44: =0 -> 0 | AD44: =0 -> 0 | AE44: =0 -> 0 | AF44: =0 -> 0 | AG44: =0 -> 0 | AH44: =0 -> 0 | AI44: =0 -> 0 | AJ44: =0 -> 0 | AK44: =0 -> 0 | AL44: =0 -> 0
B45: 8 | C45: Relacja zrównoważenia wydatków bieżących, o której mowa w art. 242 ustawy | D45: Relacja zrównoważenia wydatków bieżących, o której mowa w art. 242 ustawy | E45: x | F45: x | G45: x | H45: x | I45: x | J45: x | K45: x | L45: x | M45: x | N45: x | O45: x | P45: x | Q45: x | R45: x | S45: x | T45: x | U45: x | V45: x | W45: x | X45: x | Y45: x | Z45: x | AA45: x | AB45: x | AC45: x | AD45: x | AE45: x | AF45: x | AG45: x | AH45: x | AI45: x | AJ45: x | AK45: x | AL45: x
B46: 8.1 | C46: Różnica między dochodami bieżącymi a wydatkami bieżącymi | D46: Różnica między dochodami bieżącymi a wydatkami bieżącymi | E46: =696479.34 -> 696479.34 | F46: =615045.17 -> 615045.17 | G46: =178559 -> 178559 | H46: =503705.2 -> 503705.2 | I46: =1445151 -> 1445151 | J46: =1188400 -> 1188400 | K46: =1204150 -> 1204150 | L46: =1206904 -> 1206904 | M46: =1247662 -> 1247662 | N46: =1396481 -> 1396481 | O46: =1641426 -> 1641426 | P46: =1596559 -> 1596559 | Q46: =1563945 -> 1563945 | R46: =1736654 -> 1736654 | S46: =0 -> 0 | T46: =0 -> 0 | U46: =0 -> 0 | V46: =0 -> 0 | W46: =0 -> 0 | X46: =0 -> 0 | Y46: =0 -> 0 | Z46: =0 -> 0 | AA46: =0 -> 0 | AB46: =0 -> 0 | AC46: =0 -> 0 | AD46: =0 -> 0 | AE46: =0 -> 0 | AF46: =0 -> 0 | AG46: =0 -> 0 | AH46: =0 -> 0 | AI46: =0 -> 0 | AJ46: =0 -> 0 | AK46: =0 -> 0 | AL46: =0 -> 0
B47: 8.2 | C47: Różnica między dochodami bieżącymi, skorygowanymi o środki a wydatkami bieżącymi, pomniejszonymi o wydatki | D47: Różnica między dochodami bieżącymi, skorygowanymi o środki a wydatkami bieżącymi, pomniejszonymi o wydatki | E47: =2809876.55 -> 2809876.55 | F47: =2020395.91 -> 2020395.91 | G47: =246559 -> 246559 | H47: =1058782.34 -> 1058782.34 | I47: =1445151 -> 1445151 | J47: =1188400 -> 1188400 | K47: =1204150 -> 1204150 | L47: =1206904 -> 1206904 | M47: =1247662 -> 1247662 | N47: =1396481 -> 1396481 | O47: =1641426 -> 1641426 | P47: =1596559 -> 1596559 | Q47: =1563945 -> 1563945 | R47: =1736654 -> 1736654 | S47: =0 -> 0 | T47: =0 -> 0 | U47: =0 -> 0 | V47: =0 -> 0 | W47: =0 -> 0 | X47: =0 -> 0 | Y47: =0 -> 0 | Z47: =0 -> 0 | AA47: =0 -> 0 | AB47: =0 -> 0 | AC47: =0 -> 0 | AD47: =0 -> 0 | AE47: =0 -> 0 | AF47: =0 -> 0 | AG47: =0 -> 0 | AH47: =0 -> 0 | AI47: =0 -> 0 | AJ47: =0 -> 0 | AK47: =0 -> 0 | AL47: =0 -> 0
A48: x | B48: 9 | C48: Wskaźnik spłaty zobowiązań | D48: Wskaźnik spłaty zobowiązań | E48: x | F48: x | G48: x | H48: x | I48: x | J48: x | K48: x | L48: x | M48: x | N48: x | O48: x | P48: x | Q48: x | R48: x | S48: x | T48: x | U48: x | V48: x | W48: x | X48: x | Y48: x | Z48: x | AA48: x | AB48: x | AC48: x | AD48: x | AE48: x | AF48: x | AG48: x | AH48: x | AI48: x | AJ48: x | AK48: x | AL48: x
A49: x | B49: 9.1 | C49: (R+O) / D (bez wyłączeń) | D49: Wskaźnik planowanej łącznej kwoty spłaty zobowiązań, o której mowa w art. 243 ust. 1 ustawy do dochodów, bez uwzględnienia zobowiązań związku współtworzonego przez jednostkę samorządu terytorialnego i bez uwzględnienia ustawowych wyłączeń przypadających na dany rok. | E49: =0.1486 -> 0.1486 | F49: =0.0855 -> 0.0855 | G49: =0.026 -> 0.026 | H49: =0.0264 -> 0.0264 | I49: =0.0381 -> 0.0381 | J49: =0.0446 -> 0.0446 | K49: =0.045 -> 0.045 | L49: =0.0722 -> 0.0722 | M49: =0.0753 -> 0.0753 | N49: =0.0685 -> 0.0685 | O49: =0.0712 -> 0.0712 | P49: =0.0762 -> 0.0762 | Q49: =0.0742 -> 0.0742 | R49: =0.0341 -> 0.0341 | S49: =0 -> 0 | T49: =0 -> 0 | U49: =0 -> 0 | V49: =0 -> 0 | W49: =0 -> 0 | X49: =0 -> 0 | Y49: =0 -> 0 | Z49: =0 -> 0 | AA49: =0 -> 0 | AB49: =0 -> 0 | AC49: =0 -> 0 | AD49: =0 -> 0 | AE49: =0 -> 0 | AF49: =0 -> 0 | AG49: =0 -> 0 | AH49: =0 -> 0 | AI49: =0 -> 0 | AJ49: =0 -> 0 | AK49: =0 -> 0 | AL49: =0 -> 0
A50: x | B50: 9.2 | C50: (R+O) / D (z wyłączeniami) | D50: Wskaźnik planowanej łącznej kwoty spłaty zobowiązań, o której mowa w art. 243 ust. 1 ustawy do dochodów, bez uwzględnienia zobowiązań związku współtworzonego przez jednostkę samorządu terytorialnego, po uwzględnieniu ustawowych wyłączeń przypadających na dany rok. | E50: =0.1486 -> 0.1486 | F50: =0.015 -> 0.015 | G50: =0.0204 -> 0.0204 | H50: =0.0202 -> 0.0202 | I50: =0.0326 -> 0.0326 | J50: =0.0401 -> 0.0401 | K50: =0.0414 -> 0.0414 | L50: =0.0692 -> 0.0692 | M50: =0.0732 -> 0.0732 | N50: =0.0673 -> 0.0673 | O50: =0.0703 -> 0.0703 | P50: =0.0755 -> 0.0755 | Q50: =0.0736 -> 0.0736 | R50: =0.0335 -> 0.0335 | S50: =0 -> 0 | T50: =0 -> 0 | U50: =0 -> 0 | V50: =0 -> 0 | W50: =0 -> 0 | X50: =0 -> 0 | Y50: =0 -> 0 | Z50: =0 -> 0 | AA50: =0 -> 0 | AB50: =0 -> 0 | AC50: =0 -> 0 | AD50: =0 -> 0 | AE50: =0 -> 0 | AF50: =0 -> 0 | AG50: =0 -> 0 | AH50: =0 -> 0 | AI50: =0 -> 0 | AJ50: =0 -> 0 | AK50: =0 -> 0 | AL50: =0 -> 0
A51: x | B51: 9.3 | C51: Kwota zobowiązań związku współtworzonego przez jednostkę samorządu terytorialnego przypadających do spłaty w danym roku budżetowym, podlegająca doliczeniu zgodnie z art. 244 ustawy | D51: Kwota zobowiązań związku współtworzonego przez jednostkę samorządu terytorialnego przypadających do spłaty w danym roku budżetowym, podlegająca doliczeniu zgodnie z art. 244 ustawy | E51: =0 -> 0 | F51: =0 -> 0 | G51: =0 -> 0 | H51: =0 -> 0 | I51: =0 -> 0 | J51: =0 -> 0 | K51: =0 -> 0 | L51: =0 -> 0 | M51: =0 -> 0 | N51: =0 -> 0 | O51: =0 -> 0 | P51: =0 -> 0 | Q51: =0 -> 0 | R51: =0 -> 0 | S51: =0 -> 0 | T51: =0 -> 0 | U51: =0 -> 0 | V51: =0 -> 0 | W51: =0 -> 0 | X51: =0 -> 0 | Y51: =0 -> 0 | Z51: =0 -> 0 | AA51: =0 -> 0 | AB51: =0 -> 0 | AC51: =0 -> 0 | AD51: =0 -> 0 | AE51: =0 -> 0 | AF51: =0 -> 0 | AG51: =0 -> 0 | AH51: =0 -> 0 | AI51: =0 -> 0 | AJ51: =0 -> 0 | AK51: =0 -> 0 | AL51: =0 -> 0
A52: x | B52: 9.4 | C52: (R+O) / D (z wyłączeniami i zobowiązaniami związków) | D52: Wskaźnik planowanej łącznej kwoty spłaty zobowiązań, o której mowa w art. 243 ust. 1 ustawy do dochodów, po uwzględnieniu zobowiązań związku współtworzonego przez jednostkę samorządu terytorialnego oraz po uwzględnieniu ustawowych wyłączeń przypadających na dany rok | E52: =0.1486 -> 0.1486 | F52: =0.015 -> 0.015 | G52: =0.0204 -> 0.0204 | H52: =0.0202 -> 0.0202 | I52: =0.0326 -> 0.0326 | J52: =0.0401 -> 0.0401 | K52: =0.0414 -> 0.0414 | L52: =0.0692 -> 0.0692 | M52: =0.0732 -> 0.0732 | N52: =0.0673 -> 0.0673 | O52: =0.0703 -> 0.0703 | P52: =0.0755 -> 0.0755 | Q52: =0.0736 -> 0.0736 | R52: =0.0335 -> 0.0335 | S52: =0 -> 0 | T52: =0 -> 0 | U52: =0 -> 0 | V52: =0 -> 0 | W52: =0 -> 0 | X52: =0 -> 0 | Y52: =0 -> 0 | Z52: =0 -> 0 | AA52: =0 -> 0 | AB52: =0 -> 0 | AC52: =0 -> 0 | AD52: =0 -> 0 | AE52: =0 -> 0 | AF52: =0 -> 0 | AG52: =0 -> 0 | AH52: =0 -> 0 | AI52: =0 -> 0 | AJ52: =0 -> 0 | AK52: =0 -> 0 | AL52: =0 -> 0
A53: x | B53: 9.5 | C53: Wskaźnik dochodów bieżących powiększonych o dochody ze sprzedaży majątku oraz pomniejszonych o wydatki bieżące, do dochodów budżetu, ustalony dla danego roku (wskaźnik jednoroczny) | D53: Wskaźnik dochodów bieżących powiększonych o dochody ze sprzedaży majątku oraz pomniejszonych o wydatki bieżące, do dochodów budżetu, ustalony dla danego roku (wskaźnik jednoroczny) | E53: =+IF(AND(E4>=2013,E4<=2018),IF(E5<>0,(E6+E14-E17+E20)/E5,0),IF(E5<>0,(E6+E14-E17)/E5,0)) -> 0.0464498163 | F53: 0.04569574373 | G53: 0.04381290376 | H53: 0.04248431815 | I53: 0.09445433941 | J53: 0.07055724151 | K53: 0.07846024142 | L53: 0.0773712503 | M53: 0.07956717395 | N53: 0.08210217807 | O53: 0.09185861741 | P53: 0.08811375255 | Q53: 0.0849924836 | R53: 0.09029472693 | S53: 0 | T53: 0 | U53: 0 | V53: 0 | W53: 0 | X53: 0 | Y53: 0 | Z53: 0 | AA53: 0 | AB53: 0 | AC53: 0 | AD53: 0 | AE53: 0 | AF53: 0 | AG53: 0 | AH53: 0 | AI53: 0 | AJ53: 0 | AK53: 0 | AL53: 0
A54: x | B54: 9.6 | C54: Dopuszczalny wskaźnik spłaty zobowiązań z art. 243 ustawy, po uwzględnieniu ustawowych wyłączeń (planistyczny) | D54: Dopuszczalny wskaźnik spłaty zobowiązań określony w art. 243 ustawy, po uwzględnieniu ustawowych wyłączeń , obliczony w oparciu o plan 3 kwartału roku poprzedzającego pierwszy rok prognozy (wskaźnik ustalony w oparciu o średnią arytmetyczną z 3 poprzednich lat) | E54: x | F54: x | G54: x | H54: x | I54: =0.0453 -> 0.0453 | J54: =0.0613 -> 0.0613 | K54: =0.0696 -> 0.0696 | L54: =0.0812 -> 0.0812 | M54: =0.0755 -> 0.0755 | N54: =0.0785 -> 0.0785 | O54: =0.0797 -> 0.0797 | P54: =0.0845 -> 0.0845 | Q54: =0.0874 -> 0.0874 | R54: =0.0883 -> 0.0883 | S54: =0 -> 0 | T54: =0 -> 0 | U54: =0 -> 0 | V54: =0 -> 0 | W54: =0 -> 0 | X54: =0 -> 0 | Y54: =0 -> 0 | Z54: =0 -> 0 | AA54: =0 -> 0 | AB54: =0 -> 0 | AC54: =0 -> 0 | AD54: =0 -> 0 | AE54: =0 -> 0 | AF54: =0 -> 0 | AG54: =0 -> 0 | AH54: =0 -> 0 | AI54: =0 -> 0 | AJ54: =0 -> 0 | AK54: =0 -> 0 | AL54: =0 -> 0
A55: x | B55: 9.6.1 | C55: Dopuszczalny wskaźnik spłaty zobowiązań z art. 243 ustawy, po uwzględnieniu ustawowych wyłączeń (wykonanie) | D55: Dopuszczalny wskaźnik spłaty zobowiązań określony w art. 243 ustawy, po uwzględnieniu ustawowych wyłączeń, obliczony w oparciu o wykonanie roku poprzedzającego pierwszy rok prognozy (wskaźnik ustalony w oparciu o średnią arytmetyczną z 3 poprzednich lat) | E55: x | F55: x | G55: x | H55: x | I55: =0.0449 -> 0.0449 | J55: =0.0609 -> 0.0609 | K55: =0.0692 -> 0.0692 | L55: =0.0812 -> 0.0812 | M55: =0.0755 -> 0.0755 | N55: =0.0785 -> 0.0785 | O55: =0.0797 -> 0.0797 | P55: =0.0845 -> 0.0845 | Q55: =0.0874 -> 0.0874 | R55: =0.0883 -> 0.0883 | S55: =0 -> 0 | T55: =0 -> 0 | U55: =0 -> 0 | V55: =0 -> 0 | W55: =0 -> 0 | X55: =0 -> 0 | Y55: =0 -> 0 | Z55: =0 -> 0 | AA55: =0 -> 0 | AB55: =0 -> 0 | AC55: =0 -> 0 | AD55: =0 -> 0 | AE55: =0 -> 0 | AF55: =0 -> 0 | AG55: =0 -> 0 | AH55: =0 -> 0 | AI55: =0 -> 0 | AJ55: =0 -> 0 | AK55: =0 -> 0 | AL55: =0 -> 0
A56: x | B56: 9.7 | C56: Informacja o spełnieniu wskaźnika spłaty zobowiązań określonego w art. 243 ustawy, po uwzględnieniu zobowiązań związku współtworzonego przez jednostkę samorządu terytorialnego oraz po uwzględnieniu ustawowych wyłączeń, obliczonego w oparciu o plan 3 kwartałów roku poprzedzającego rok budżetowy | D56: Informacja o spełnieniu wskaźnika spłaty zobowiązań określonego w art. 243 ustawy, po uwzględnieniu zobowiązań związku współtworzonego przez jednostkę samorządu terytorialnego oraz po uwzględnieniu ustawowych wyłączeń, obliczonego w oparciu o plan 3 kwartałów roku poprzedzającego rok budżetowy | E56: x | F56: x | G56: x | H56: x | I56: =IF(I52<=I54,"Spełniona","Nie spełniona") -> Spełniona | J56: =IF(J52<=J54,"Spełniona","Nie spełniona") -> Spełniona | K56: Spełniona | L56: Spełniona | M56: Spełniona | N56: Spełniona | O56: Spełniona | P56: Spełniona | Q56: Spełniona | R56: Spełniona | S56: Spełniona | T56: Spełniona | U56: Spełniona | V56: Spełniona | W56: Spełniona | X56: Spełniona | Y56: Spełniona | Z56: Spełniona | AA56: Spełniona | AB56: Spełniona | AC56: Spełniona | AD56: Spełniona | AE56: Spełniona | AF56: Spełniona | AG56: Spełniona | AH56: Spełniona | AI56: Spełniona | AJ56: Spełniona | AK56: Spełniona | AL56: Spełniona
A57: x | B57: 9.7.1 | C57: Informacja o spełnieniu wskaźnika spłaty zobowiązań określonego w art. 243 ustawy, po uwzględnieniu zobowiązań związku współtworzonego przez jednostkę samorządu terytorialnego oraz po uwzględnieniu ustawowych wyłączeń, obliczonego w oparciu o wykonanie roku poprzedzającego rok budżetowy | D57: Informacja o spełnieniu wskaźnika spłaty zobowiązań określonego w art. 243 ustawy, po uwzględnieniu zobowiązań związku współtworzonego przez jednostkę samorządu terytorialnego oraz po uwzględnieniu ustawowych wyłączeń, obliczonego w oparciu o wykonanie roku poprzedzającego rok budżetowy | E57: x | F57: x | G57: x | H57: x | I57: =IF(I52<=I55,"Spełniona","Nie spełniona") -> Spełniona | J57: =IF(J52<=J55,"Spełniona","Nie spełniona") -> Spełniona | K57: Spełniona | L57: Spełniona | M57: Spełniona | N57: Spełniona | O57: Spełniona | P57: Spełniona | Q57: Spełniona | R57: Spełniona | S57: Spełniona | T57: Spełniona | U57: Spełniona | V57: Spełniona | W57: Spełniona | X57: Spełniona | Y57: Spełniona | Z57: Spełniona | AA57: Spełniona | AB57: Spełniona | AC57: Spełniona | AD57: Spełniona | AE57: Spełniona | AF57: Spełniona | AG57: Spełniona | AH57: Spełniona | AI57: Spełniona | AJ57: Spełniona | AK57: Spełniona | AL57: Spełniona
B58: 10 | C58: Przeznaczenie prognozowanej nadwyżki budżetowej, w tym na: | D58: Przeznaczenie prognozowanej nadwyżki budżetowej, w tym na: | E58: =0 -> 0 | F58: =0 -> 0 | G58: =0 -> 0 | H58: =0 -> 0 | I58: =400000 -> 400000 | J58: =600000 -> 600000 | K58: =600000 -> 600000 | L58: =1200000 -> 1200000 | M58: =1300000 -> 1300000 | N58: =1200000 -> 1200000 | O58: =1330000 -> 1330000 | P58: =1510000 -> 1510000 | Q58: =1548000 -> 1548000 | R58: =743000 -> 743000 | S58: =0 -> 0 | T58: =0 -> 0 | U58: =0 -> 0 | V58: =0 -> 0 | W58: =0 -> 0 | X58: =0 -> 0 | Y58: =0 -> 0 | Z58: =0 -> 0 | AA58: =0 -> 0 | AB58: =0 -> 0 | AC58: =0 -> 0 | AD58: =0 -> 0 | AE58: =0 -> 0 | AF58: =0 -> 0 | AG58: =0 -> 0 | AH58: =0 -> 0 | AI58: =0 -> 0 | AJ58: =0 -> 0 | AK58: =0 -> 0 | AL58: =0 -> 0
B59: 10.1 | C59: Spłaty kredytów, pożyczek i wykup papierów wartościowych | D59: Spłaty kredytów, pożyczek i wykup papierów wartościowych | E59: =0 -> 0 | F59: =406000 -> 406000 | G59: =100000 -> 100000 | H59: =100000 -> 100000 | I59: =400000 -> 400000 | J59: =600000 -> 600000 | K59: =600000 -> 600000 | L59: =1200000 -> 1200000 | M59: =1300000 -> 1300000 | N59: =1200000 -> 1200000 | O59: =1330000 -> 1330000 | P59: =1510000 -> 1510000 | Q59: =1548000 -> 1548000 | R59: =743000 -> 743000 | S59: =0 -> 0 | T59: =0 -> 0 | U59: =0 -> 0 | V59: =0 -> 0 | W59: =0 -> 0 | X59: =0 -> 0 | Y59: =0 -> 0 | Z59: =0 -> 0 | AA59: =0 -> 0 | AB59: =0 -> 0 | AC59: =0 -> 0 | AD59: =0 -> 0 | AE59: =0 -> 0 | AF59: =0 -> 0 | AG59: =0 -> 0 | AH59: =0 -> 0 | AI59: =0 -> 0 | AJ59: =0 -> 0 | AK59: =0 -> 0 | AL59: =0 -> 0
B60: 11 | C60: Informacje uzupełniające o wybranych rodzajach wydatków budżetowych | D60: Informacje uzupełniające o wybranych rodzajach wydatków budżetowych | E60: x | F60: x | G60: x | H60: x | I60: x | J60: x | K60: x | L60: x | M60: x | N60: x | O60: x | P60: x | Q60: x | R60: x | S60: x | T60: x | U60: x | V60: x | W60: x | X60: x | Y60: x | Z60: x | AA60: x | AB60: x | AC60: x | AD60: x | AE60: x | AF60: x | AG60: x | AH60: x | AI60: x | AJ60: x | AK60: x | AL60: x
B61: 11.1 | C61: Wydatki bieżące na wynagrodzenia i składki od nich naliczane | D61: Wydatki bieżące na wynagrodzenia i składki od nich naliczane | E61: =6833507.94 -> 6833507.94 | F61: =6698815.09 -> 6698815.09 | G61: =7165654.94 -> 7165654.94 | H61: =7091945.11 -> 7091945.11 | I61: =7238062.44 -> 7238062.44 | J61: =7385532 -> 7385532 | K61: =7607098 -> 7607098 | L61: =7835311 -> 7835311 | M61: =8070371 -> 8070371 | N61: =8312482 -> 8312482 | O61: =8561856 -> 8561856 | P61: =8818712 -> 8818712 | Q61: =9083273 -> 9083273 | R61: =9355771 -> 9355771 | S61: =0 -> 0 | T61: =0 -> 0 | U61: =0 -> 0 | V61: =0 -> 0 | W61: =0 -> 0 | X61: =0 -> 0 | Y61: =0 -> 0 | Z61: =0 -> 0 | AA61: =0 -> 0 | AB61: =0 -> 0 | AC61: =0 -> 0 | AD61: =0 -> 0 | AE61: =0 -> 0 | AF61: =0 -> 0 | AG61: =0 -> 0 | AH61: =0 -> 0 | AI61: =0 -> 0 | AJ61: =0 -> 0 | AK61: =0 -> 0 | AL61: =0 -> 0
B62: 11.2 | C62: Wydatki związane z funkcjonowaniem organów jednostki samorządu terytorialnego | D62: Wydatki związane z funkcjonowaniem organów jednostki samorządu terytorialnego | E62: =2900368.74 -> 2900368.74 | F62: =2100000 -> 2100000 | G62: =2347855.59 -> 2347855.59 | H62: =2269710.14 -> 2269710.14 | I62: =2448925 -> 2448925 | J62: =2400000 -> 2400000 | K62: =2500000 -> 2500000 | L62: =2600000 -> 2600000 | M62: =2700000 -> 2700000 | N62: =2800000 -> 2800000 | O62: =2900000 -> 2900000 | P62: =3000000 -> 3000000 | Q62: =3100000 -> 3100000 | R62: =3200000 -> 3200000 | S62: =0 -> 0 | T62: =0 -> 0 | U62: =0 -> 0 | V62: =0 -> 0 | W62: =0 -> 0 | X62: =0 -> 0 | Y62: =0 -> 0 | Z62: =0 -> 0 | AA62: =0 -> 0 | AB62: =0 -> 0 | AC62: =0 -> 0 | AD62: =0 -> 0 | AE62: =0 -> 0 | AF62: =0 -> 0 | AG62: =0 -> 0 | AH62: =0 -> 0 | AI62: =0 -> 0 | AJ62: =0 -> 0 | AK62: =0 -> 0 | AL62: =0 -> 0
B63: 11.3 | C63: Wydatki objęte limitem, o którym mowa w art. 226 ust. 3 pkt 4 ustawy | D63: Wydatki objęte limitem, o którym mowa w art. 226 ust. 3 pkt 4 ustawy | E63: =1434026.7 -> 1434026.7 | F63: =315833.26 -> 315833.26 | G63: =0 -> 0 | H63: =0 -> 0 | I63: =1315050 -> 1315050 | J63: =2431100 -> 2431100 | K63: =157000 -> 157000 | L63: =153000 -> 153000 | M63: =149000 -> 149000 | N63: =183000 -> 183000 | O63: =179000 -> 179000 | P63: =0 -> 0 | Q63: =0 -> 0 | R63: =0 -> 0 | S63: =0 -> 0 | T63: =0 -> 0 | U63: =0 -> 0 | V63: =0 -> 0 | W63: =0 -> 0 | X63: =0 -> 0 | Y63: =0 -> 0 | Z63: =0 -> 0 | AA63: =0 -> 0 | AB63: =0 -> 0 | AC63: =0 -> 0 | AD63: =0 -> 0 | AE63: =0 -> 0 | AF63: =0 -> 0 | AG63: =0 -> 0 | AH63: =0 -> 0 | AI63: =0 -> 0 | AJ63: =0 -> 0 | AK63: =0 -> 0 | AL63: =0 -> 0
B64: 11.3.1 | C64: Wydatki bieżące na przedsięwzięcia | D64: bieżące | E64: =193481.61 -> 193481.61 | F64: =116605.57 -> 116605.57 | G64: =0 -> 0 | H64: =0 -> 0 | I64: =418000 -> 418000 | J64: =270100 -> 270100 | K64: =0 -> 0 | L64: =0 -> 0 | M64: =0 -> 0 | N64: =0 -> 0 | O64: =0 -> 0 | P64: =0 -> 0 | Q64: =0 -> 0 | R64: =0 -> 0 | S64: =0 -> 0 | T64: =0 -> 0 | U64: =0 -> 0 | V64: =0 -> 0 | W64: =0 -> 0 | X64: =0 -> 0 | Y64: =0 -> 0 | Z64: =0 -> 0 | AA64: =0 -> 0 | AB64: =0 -> 0 | AC64: =0 -> 0 | AD64: =0 -> 0 | AE64: =0 -> 0 | AF64: =0 -> 0 | AG64: =0 -> 0 | AH64: =0 -> 0 | AI64: =0 -> 0 | AJ64: =0 -> 0 | AK64: =0 -> 0 | AL64: =0 -> 0
B65: 11.3.2 | C65: Wydatki majątkowe na przedsięwzięcia | D65: majątkowe | E65: =1240545.09 -> 1240545.09 | F65: =199227.69 -> 199227.69 | G65: =0 -> 0 | H65: =0 -> 0 | I65: =897050 -> 897050 | J65: =2161000 -> 2161000 | K65: =157000 -> 157000 | L65: =153000 -> 153000 | M65: =149000 -> 149000 | N65: =183000 -> 183000 | O65: =179000 -> 179000 | P65: =0 -> 0 | Q65: =0 -> 0 | R65: =0 -> 0 | S65: =0 -> 0 | T65: =0 -> 0 | U65: =0 -> 0 | V65: =0 -> 0 | W65: =0 -> 0 | X65: =0 -> 0 | Y65: =0 -> 0 | Z65: =0 -> 0 | AA65: =0 -> 0 | AB65: =0 -> 0 | AC65: =0 -> 0 | AD65: =0 -> 0 | AE65: =0 -> 0 | AF65: =0 -> 0 | AG65: =0 -> 0 | AH65: =0 -> 0 | AI65: =0 -> 0 | AJ65: =0 -> 0 | AK65: =0 -> 0 | AL65: =0 -> 0
B66: 11.4 | C66: Wydatki inwestycyjne kontynuowane | D66: Wydatki inwestycyjne kontynuowane | E66: =1056960.55 -> 1056960.55 | F66: =261062 -> 261062 | G66: =0 -> 0 | H66: =0 -> 0 | I66: =0 -> 0 | J66: =0 -> 0 | K66: =0 -> 0 | L66: =0 -> 0 | M66: =0 -> 0 | N66: =0 -> 0 | O66: =0 -> 0 | P66: =0 -> 0 | Q66: =0 -> 0 | R66: =0 -> 0 | S66: =0 -> 0 | T66: =0 -> 0 | U66: =0 -> 0 | V66: =0 -> 0 | W66: =0 -> 0 | X66: =0 -> 0 | Y66: =0 -> 0 | Z66: =0 -> 0 | AA66: =0 -> 0 | AB66: =0 -> 0 | AC66: =0 -> 0 | AD66: =0 -> 0 | AE66: =0 -> 0 | AF66: =0 -> 0 | AG66: =0 -> 0 | AH66: =0 -> 0 | AI66: =0 -> 0 | AJ66: =0 -> 0 | AK66: =0 -> 0 | AL66: =0 -> 0
B67: 11.5 | C67: Nowe wydatki inwestycyjne | D67: Nowe wydatki inwestycyjne | E67: =570924.95 -> 570924.95 | F67: =383938 -> 383938 | G67: =0 -> 0 | H67: =512107.73 -> 512107.73 | I67: =1256151 -> 1256151 | J67: =2000000 -> 2000000 | K67: =0 -> 0 | L67: =0 -> 0 | M67: =0 -> 0 | N67: =0 -> 0 | O67: =0 -> 0 | P67: =0 -> 0 | Q67: =0 -> 0 | R67: =0 -> 0 | S67: =0 -> 0 | T67: =0 -> 0 | U67: =0 -> 0 | V67: =0 -> 0 | W67: =0 -> 0 | X67: =0 -> 0 | Y67: =0 -> 0 | Z67: =0 -> 0 | AA67: =0 -> 0 | AB67: =0 -> 0 | AC67: =0 -> 0 | AD67: =0 -> 0 | AE67: =0 -> 0 | AF67: =0 -> 0 | AG67: =0 -> 0 | AH67: =0 -> 0 | AI67: =0 -> 0 | AJ67: =0 -> 0 | AK67: =0 -> 0 | AL67: =0 -> 0
B68: 11.6 | C68: Wydatki majątkowe w formie dotacji | D68: Wydatki majątkowe w formie dotacji | E68: =65000 -> 65000 | F68: =55000 -> 55000 | G68: =105000 -> 105000 | H68: =65000 -> 65000 | I68: =50000 -> 50000 | J68: =0 -> 0 | K68: =0 -> 0 | L68: =0 -> 0 | M68: =0 -> 0 | N68: =0 -> 0 | O68: =0 -> 0 | P68: =0 -> 0 | Q68: =0 -> 0 | R68: =0 -> 0 | S68: =0 -> 0 | T68: =0 -> 0 | U68: =0 -> 0 | V68: =0 -> 0 | W68: =0 -> 0 | X68: =0 -> 0 | Y68: =0 -> 0 | Z68: =0 -> 0 | AA68: =0 -> 0 | AB68: =0 -> 0 | AC68: =0 -> 0 | AD68: =0 -> 0 | AE68: =0 -> 0 | AF68: =0 -> 0 | AG68: =0 -> 0 | AH68: =0 -> 0 | AI68: =0 -> 0 | AJ68: =0 -> 0 | AK68: =0 -> 0 | AL68: =0 -> 0
B69: 12 | C69: Finansowanie programów, projektów lub zadań realizowanych z udziałem środków, o których mowa w art. 5 ust. 1 pkt 2 i 3 ustawy | D69: Finansowanie programów, projektów lub zadań realizowanych z udziałem środków, o których mowa w art. 5 ust. 1 pkt 2 i 3 ustawy | E69: x | F69: x | G69: x | H69: x | I69: x | J69: x | K69: x | L69: x | M69: x | N69: x | O69: x | P69: x | Q69: x | R69: x | S69: x | T69: x | U69: x | V69: x | W69: x | X69: x | Y69: x | Z69: x | AA69: x | AB69: x | AC69: x | AD69: x | AE69: x | AF69: x | AG69: x | AH69: x | AI69: x | AJ69: x | AK69: x | AL69: x
B70: 12.1 | C70: Dochody bieżące na programy, projekty lub zadania finansowane z udziałem środków, o których mowa w art. 5 ust. 1 pkt 2 i 3 ustawy | D70: Dochody bieżące na programy, projekty lub zadania finansowane z udziałem środków, o których mowa w art. 5 ust. 1 pkt 2 i 3 ustawy | E70: =229514.4 -> 229514.4 | F70: =0 -> 0 | G70: =0 -> 0 | H70: =0 -> 0 | I70: =0 -> 0 | J70: =0 -> 0 | K70: =0 -> 0 | L70: =0 -> 0 | M70: =0 -> 0 | N70: =0 -> 0 | O70: =0 -> 0 | P70: =0 -> 0 | Q70: =0 -> 0 | R70: =0 -> 0 | S70: =0 -> 0 | T70: =0 -> 0 | U70: =0 -> 0 | V70: =0 -> 0 | W70: =0 -> 0 | X70: =0 -> 0 | Y70: =0 -> 0 | Z70: =0 -> 0 | AA70: =0 -> 0 | AB70: =0 -> 0 | AC70: =0 -> 0 | AD70: =0 -> 0 | AE70: =0 -> 0 | AF70: =0 -> 0 | AG70: =0 -> 0 | AH70: =0 -> 0 | AI70: =0 -> 0 | AJ70: =0 -> 0 | AK70: =0 -> 0 | AL70: =0 -> 0
B71: 12.1.1 | C71: - w tym środki określone w art. 5 ust. 1 pkt 2 ustawy | D71: - w tym środki określone w art. 5 ust. 1 pkt 2 ustawy | E71: =208926.15 -> 208926.15 | F71: =0 -> 0 | G71: =0 -> 0 | H71: =0 -> 0 | I71: =0 -> 0 | J71: =0 -> 0 | K71: =0 -> 0 | L71: =0 -> 0 | M71: =0 -> 0 | N71: =0 -> 0 | O71: =0 -> 0 | P71: =0 -> 0 | Q71: =0 -> 0 | R71: =0 -> 0 | S71: =0 -> 0 | T71: =0 -> 0 | U71: =0 -> 0 | V71: =0 -> 0 | W71: =0 -> 0 | X71: =0 -> 0 | Y71: =0 -> 0 | Z71: =0 -> 0 | AA71: =0 -> 0 | AB71: =0 -> 0 | AC71: =0 -> 0 | AD71: =0 -> 0 | AE71: =0 -> 0 | AF71: =0 -> 0 | AG71: =0 -> 0 | AH71: =0 -> 0 | AI71: =0 -> 0 | AJ71: =0 -> 0 | AK71: =0 -> 0 | AL71: =0 -> 0
B72: 12.1.1.1 | C72: - w tym środki określone w art. 5 ust. 1 pkt 2 ustawy wynikające wyłącznie z zawartych umów na realizację programu, projektu lub zadania | D72: - w tym środki określone w art. 5 ust. 1 pkt 2 ustawy wynikające wyłącznie z zawartych umów na realizację programu, projektu lub zadania | E72: =208926.15 -> 208926.15 | F72: =0 -> 0 | G72: =0 -> 0 | H72: =0 -> 0 | I72: =0 -> 0 | J72: =0 -> 0 | K72: =0 -> 0 | L72: =0 -> 0 | M72: =0 -> 0 | N72: =0 -> 0 | O72: =0 -> 0 | P72: =0 -> 0 | Q72: =0 -> 0 | R72: =0 -> 0 | S72: =0 -> 0 | T72: =0 -> 0 | U72: =0 -> 0 | V72: =0 -> 0 | W72: =0 -> 0 | X72: =0 -> 0 | Y72: =0 -> 0 | Z72: =0 -> 0 | AA72: =0 -> 0 | AB72: =0 -> 0 | AC72: =0 -> 0 | AD72: =0 -> 0 | AE72: =0 -> 0 | AF72: =0 -> 0 | AG72: =0 -> 0 | AH72: =0 -> 0 | AI72: =0 -> 0 | AJ72: =0 -> 0 | AK72: =0 -> 0 | AL72: =0 -> 0
B73: 12.2 | C73: Dochody majątkowe na programy, projekty lub zadania finansowane z udziałem środków, o których mowa w art. 5 ust. 1 pkt 2 i 3 ustawy | D73: Dochody majątkowe na programy, projekty lub zadania finansowane z udziałem środków, o których mowa w art. 5 ust. 1 pkt 2 i 3 ustawy | E73: =936216.81 -> 936216.81 | F73: =0 -> 0 | G73: =0 -> 0 | H73: =0 -> 0 | I73: =462622 -> 462622 | J73: =1272600 -> 1272600 | K73: =0 -> 0 | L73: =0 -> 0 | M73: =0 -> 0 | N73: =0 -> 0 | O73: =0 -> 0 | P73: =0 -> 0 | Q73: =0 -> 0 | R73: =0 -> 0 | S73: =0 -> 0 | T73: =0 -> 0 | U73: =0 -> 0 | V73: =0 -> 0 | W73: =0 -> 0 | X73: =0 -> 0 | Y73: =0 -> 0 | Z73: =0 -> 0 | AA73: =0 -> 0 | AB73: =0 -> 0 | AC73: =0 -> 0 | AD73: =0 -> 0 | AE73: =0 -> 0 | AF73: =0 -> 0 | AG73: =0 -> 0 | AH73: =0 -> 0 | AI73: =0 -> 0 | AJ73: =0 -> 0 | AK73: =0 -> 0 | AL73: =0 -> 0
B74: 12.2.1 | C74: - w tym środki określone w art. 5 ust. 1 pkt 2 ustawy | D74: - w tym środki określone w art. 5 ust. 1 pkt 2 ustawy | E74: =936216.81 -> 936216.81 | F74: =0 -> 0 | G74: =0 -> 0 | H74: =0 -> 0 | I74: =462622 -> 462622 | J74: =1272600 -> 1272600 | K74: =0 -> 0 | L74: =0 -> 0 | M74: =0 -> 0 | N74: =0 -> 0 | O74: =0 -> 0 | P74: =0 -> 0 | Q74: =0 -> 0 | R74: =0 -> 0 | S74: =0 -> 0 | T74: =0 -> 0 | U74: =0 -> 0 | V74: =0 -> 0 | W74: =0 -> 0 | X74: =0 -> 0 | Y74: =0 -> 0 | Z74: =0 -> 0 | AA74: =0 -> 0 | AB74: =0 -> 0 | AC74: =0 -> 0 | AD74: =0 -> 0 | AE74: =0 -> 0 | AF74: =0 -> 0 | AG74: =0 -> 0 | AH74: =0 -> 0 | AI74: =0 -> 0 | AJ74: =0 -> 0 | AK74: =0 -> 0 | AL74: =0 -> 0
B75: 12.2.1.1 | C75: - w tym środki określone w art. 5 ust. 1 pkt 2 ustawy wynikające wyłącznie z zawartych umów na realizację programu, projektu lub zadania | D75: - w tym środki określone w art. 5 ust. 1 pkt 2 ustawy wynikające wyłącznie z zawartych umów na realizację programu, projektu lub zadania | E75: =936216.81 -> 936216.81 | F75: =0 -> 0 | G75: =0 -> 0 | H75: =0 -> 0 | I75: =0 -> 0 | J75: =0 -> 0 | K75: =0 -> 0 | L75: =0 -> 0 | M75: =0 -> 0 | N75: =0 -> 0 | O75: =0 -> 0 | P75: =0 -> 0 | Q75: =0 -> 0 | R75: =0 -> 0 | S75: =0 -> 0 | T75: =0 -> 0 | U75: =0 -> 0 | V75: =0 -> 0 | W75: =0 -> 0 | X75: =0 -> 0 | Y75: =0 -> 0 | Z75: =0 -> 0 | AA75: =0 -> 0 | AB75: =0 -> 0 | AC75: =0 -> 0 | AD75: =0 -> 0 | AE75: =0 -> 0 | AF75: =0 -> 0 | AG75: =0 -> 0 | AH75: =0 -> 0 | AI75: =0 -> 0 | AJ75: =0 -> 0 | AK75: =0 -> 0 | AL75: =0 -> 0
B76: 12.3 | C76: Wydatki bieżące na programy, projekty lub zadania finansowane z udziałem środków, o których mowa w art. 5 ust. 1 pkt 2 i 3 ustawy | D76: Wydatki bieżące na programy, projekty lub zadania finansowane z udziałem środków, o których mowa w art. 5 ust. 1 pkt 2 i 3 ustawy | E76: =363661.35 -> 363661.35 | F76: =0 -> 0 | G76: =0 -> 0 | H76: =0 -> 0 | I76: =0 -> 0 | J76: =0 -> 0 | K76: =0 -> 0 | L76: =0 -> 0 | M76: =0 -> 0 | N76: =0 -> 0 | O76: =0 -> 0 | P76: =0 -> 0 | Q76: =0 -> 0 | R76: =0 -> 0 | S76: =0 -> 0 | T76: =0 -> 0 | U76: =0 -> 0 | V76: =0 -> 0 | W76: =0 -> 0 | X76: =0 -> 0 | Y76: =0 -> 0 | Z76: =0 -> 0 | AA76: =0 -> 0 | AB76: =0 -> 0 | AC76: =0 -> 0 | AD76: =0 -> 0 | AE76: =0 -> 0 | AF76: =0 -> 0 | AG76: =0 -> 0 | AH76: =0 -> 0 | AI76: =0 -> 0 | AJ76: =0 -> 0 | AK76: =0 -> 0 | AL76: =0 -> 0
B77: 12.3.1 | C77: - w tym finansowane środkami określonymi w art. 5 ust. 1 pkt 2 ustawy | D77: - w tym finansowane środkami określonymi w art. 5 ust. 1 pkt 2 ustawy | E77: =293435.14 -> 293435.14 | F77: =0 -> 0 | G77: =0 -> 0 | H77: =0 -> 0 | I77: =0 -> 0 | J77: =0 -> 0 | K77: =0 -> 0 | L77: =0 -> 0 | M77: =0 -> 0 | N77: =0 -> 0 | O77: =0 -> 0 | P77: =0 -> 0 | Q77: =0 -> 0 | R77: =0 -> 0 | S77: =0 -> 0 | T77: =0 -> 0 | U77: =0 -> 0 | V77: =0 -> 0 | W77: =0 -> 0 | X77: =0 -> 0 | Y77: =0 -> 0 | Z77: =0 -> 0 | AA77: =0 -> 0 | AB77: =0 -> 0 | AC77: =0 -> 0 | AD77: =0 -> 0 | AE77: =0 -> 0 | AF77: =0 -> 0 | AG77: =0 -> 0 | AH77: =0 -> 0 | AI77: =0 -> 0 | AJ77: =0 -> 0 | AK77: =0 -> 0 | AL77: =0 -> 0
B78: 12.3.2 | C78: Wydatki bieżące na realizację programu, projektu lub zadania wynikające wyłącznie z zawartych umów z podmiotem dysponującym środkami, o których mowa w art. 5 ust. 1 pkt 2 ustawy | D78: Wydatki bieżące na realizację programu, projektu lub zadania wynikające wyłącznie z zawartych umów z podmiotem dysponującym środkami, o których mowa w art. 5 ust. 1 pkt 2 ustawy | E78: =363661.35 -> 363661.35 | F78: =0 -> 0 | G78: =0 -> 0 | H78: =0 -> 0 | I78: =0 -> 0 | J78: =0 -> 0 | K78: =0 -> 0 | L78: =0 -> 0 | M78: =0 -> 0 | N78: =0 -> 0 | O78: =0 -> 0 | P78: =0 -> 0 | Q78: =0 -> 0 | R78: =0 -> 0 | S78: =0 -> 0 | T78: =0 -> 0 | U78: =0 -> 0 | V78: =0 -> 0 | W78: =0 -> 0 | X78: =0 -> 0 | Y78: =0 -> 0 | Z78: =0 -> 0 | AA78: =0 -> 0 | AB78: =0 -> 0 | AC78: =0 -> 0 | AD78: =0 -> 0 | AE78: =0 -> 0 | AF78: =0 -> 0 | AG78: =0 -> 0 | AH78: =0 -> 0 | AI78: =0 -> 0 | AJ78: =0 -> 0 | AK78: =0 -> 0 | AL78: =0 -> 0
B79: 12.4 | C79: Wydatki majątkowe na programy, projekty lub zadania finansowane z udziałem środków, o których mowa w art. 5 ust. 1 pkt 2 i 3 ustawy | D79: Wydatki majątkowe na programy, projekty lub zadania finansowane z udziałem środków, o których mowa w art. 5 ust. 1 pkt 2 i 3 ustawy | E79: =847834.76 -> 847834.76 | F79: =0 -> 0 | G79: =0 -> 0 | H79: =0 -> 0 | I79: =727050 -> 727050 | J79: =2000000 -> 2000000 | K79: =0 -> 0 | L79: =0 -> 0 | M79: =0 -> 0 | N79: =0 -> 0 | O79: =0 -> 0 | P79: =0 -> 0 | Q79: =0 -> 0 | R79: =0 -> 0 | S79: =0 -> 0 | T79: =0 -> 0 | U79: =0 -> 0 | V79: =0 -> 0 | W79: =0 -> 0 | X79: =0 -> 0 | Y79: =0 -> 0 | Z79: =0 -> 0 | AA79: =0 -> 0 | AB79: =0 -> 0 | AC79: =0 -> 0 | AD79: =0 -> 0 | AE79: =0 -> 0 | AF79: =0 -> 0 | AG79: =0 -> 0 | AH79: =0 -> 0 | AI79: =0 -> 0 | AJ79: =0 -> 0 | AK79: =0 -> 0 | AL79: =0 -> 0
B80: 12.4.1 | C80: - w tym finansowane środkami określonymi w art. 5 ust. 1 pkt 2 ustawy | D80: - w tym finansowane środkami określonymi w art. 5 ust. 1 pkt 2 ustawy | E80: =545174.4 -> 545174.4 | F80: =0 -> 0 | G80: =0 -> 0 | H80: =0 -> 0 | I80: =462622 -> 462622 | J80: =1272600 -> 1272600 | K80: =0 -> 0 | L80: =0 -> 0 | M80: =0 -> 0 | N80: =0 -> 0 | O80: =0 -> 0 | P80: =0 -> 0 | Q80: =0 -> 0 | R80: =0 -> 0 | S80: =0 -> 0 | T80: =0 -> 0 | U80: =0 -> 0 | V80: =0 -> 0 | W80: =0 -> 0 | X80: =0 -> 0 | Y80: =0 -> 0 | Z80: =0 -> 0 | AA80: =0 -> 0 | AB80: =0 -> 0 | AC80: =0 -> 0 | AD80: =0 -> 0 | AE80: =0 -> 0 | AF80: =0 -> 0 | AG80: =0 -> 0 | AH80: =0 -> 0 | AI80: =0 -> 0 | AJ80: =0 -> 0 | AK80: =0 -> 0 | AL80: =0 -> 0
B81: 12.4.2 | C81: Wydatki majątkowe na realizację programu, projektu lub zadania wynikające wyłącznie z zawartych umów z podmiotem dysponującym środkami, o których mowa w art. 5 ust. 1 pkt 2 ustawy | D81: Wydatki majątkowe na realizację programu, projektu lub zadania wynikające wyłącznie z zawartych umów z podmiotem dysponującym środkami, o których mowa w art. 5 ust. 1 pkt 2 ustawy | E81: =847834.76 -> 847834.76 | F81: =0 -> 0 | G81: =0 -> 0 | H81: =0 -> 0 | I81: =0 -> 0 | J81: =0 -> 0 | K81: =0 -> 0 | L81: =0 -> 0 | M81: =0 -> 0 | N81: =0 -> 0 | O81: =0 -> 0 | P81: =0 -> 0 | Q81: =0 -> 0 | R81: =0 -> 0 | S81: =0 -> 0 | T81: =0 -> 0 | U81: =0 -> 0 | V81: =0 -> 0 | W81: =0 -> 0 | X81: =0 -> 0 | Y81: =0 -> 0 | Z81: =0 -> 0 | AA81: =0 -> 0 | AB81: =0 -> 0 | AC81: =0 -> 0 | AD81: =0 -> 0 | AE81: =0 -> 0 | AF81: =0 -> 0 | AG81: =0 -> 0 | AH81: =0 -> 0 | AI81: =0 -> 0 | AJ81: =0 -> 0 | AK81: =0 -> 0 | AL81: =0 -> 0
B82: 12.5 | C82: Wydatki na wkład krajowy w związku z umową na realizację programu, projektu lub zadania finansowanego z udziałem środków, o których mowa w art. 5 ust. 1 pkt 2 ustawy bez względu na stopień finansowania tymi środkami | D82: Wydatki na wkład krajowy w związku z umową na realizację programu, projektu lub zadania finansowanego z udziałem środków, o których mowa w art. 5 ust. 1 pkt 2 ustawy bez względu na stopień finansowania tymi środkami | E82: =0 -> 0 | F82: =0 -> 0 | G82: =0 -> 0 | H82: =0 -> 0 | I82: =264428 -> 264428 | J82: =727400 -> 727400 | K82: =0 -> 0 | L82: =0 -> 0 | M82: =0 -> 0 | N82: =0 -> 0 | O82: =0 -> 0 | P82: =0 -> 0 | Q82: =0 -> 0 | R82: =0 -> 0 | S82: =0 -> 0 | T82: =0 -> 0 | U82: =0 -> 0 | V82: =0 -> 0 | W82: =0 -> 0 | X82: =0 -> 0 | Y82: =0 -> 0 | Z82: =0 -> 0 | AA82: =0 -> 0 | AB82: =0 -> 0 | AC82: =0 -> 0 | AD82: =0 -> 0 | AE82: =0 -> 0 | AF82: =0 -> 0 | AG82: =0 -> 0 | AH82: =0 -> 0 | AI82: =0 -> 0 | AJ82: =0 -> 0 | AK82: =0 -> 0 | AL82: =0 -> 0
B83: 12.5.1 | C83: w tym w związku z już zawartą umową na realizację programu, projektu lub zadania | D83: w tym w związku z już zawartą umową na realizację programu, projektu lub zadania | E83: =0 -> 0 | F83: =0 -> 0 | G83: =0 -> 0 | H83: =0 -> 0 | I83: =0 -> 0 | J83: =0 -> 0 | K83: =0 -> 0 | L83: =0 -> 0 | M83: =0 -> 0 | N83: =0 -> 0 | O83: =0 -> 0 | P83: =0 -> 0 | Q83: =0 -> 0 | R83: =0 -> 0 | S83: =0 -> 0 | T83: =0 -> 0 | U83: =0 -> 0 | V83: =0 -> 0 | W83: =0 -> 0 | X83: =0 -> 0 | Y83: =0 -> 0 | Z83: =0 -> 0 | AA83: =0 -> 0 | AB83: =0 -> 0 | AC83: =0 -> 0 | AD83: =0 -> 0 | AE83: =0 -> 0 | AF83: =0 -> 0 | AG83: =0 -> 0 | AH83: =0 -> 0 | AI83: =0 -> 0 | AJ83: =0 -> 0 | AK83: =0 -> 0 | AL83: =0 -> 0
B84: 12.6 | C84: Wydatki na wkład krajowy w związku z zawartą po dniu 1 stycznia 2013 r. umową na realizację programu, projektu lub zadania finansowanego w co najmniej 60% środkami, o których mowa w art. 5 ust. 1 pkt 2 ustawy | D84: Wydatki na wkład krajowy w związku z zawartą po dniu 1 stycznia 2013 r. umową na realizację programu, projektu lub zadania finansowanego w co najmniej 60% środkami, o których mowa w art. 5 ust. 1 pkt 2 ustawy | E84: =0 -> 0 | F84: =0 -> 0 | G84: =0 -> 0 | H84: =0 -> 0 | I84: =264428 -> 264428 | J84: =727400 -> 727400 | K84: =0 -> 0 | L84: =0 -> 0 | M84: =0 -> 0 | N84: =0 -> 0 | O84: =0 -> 0 | P84: =0 -> 0 | Q84: =0 -> 0 | R84: =0 -> 0 | S84: =0 -> 0 | T84: =0 -> 0 | U84: =0 -> 0 | V84: =0 -> 0 | W84: =0 -> 0 | X84: =0 -> 0 | Y84: =0 -> 0 | Z84: =0 -> 0 | AA84: =0 -> 0 | AB84: =0 -> 0 | AC84: =0 -> 0 | AD84: =0 -> 0 | AE84: =0 -> 0 | AF84: =0 -> 0 | AG84: =0 -> 0 | AH84: =0 -> 0 | AI84: =0 -> 0 | AJ84: =0 -> 0 | AK84: =0 -> 0 | AL84: =0 -> 0
B85: 12.6.1 | C85: w tym w związku z już zawartą umową na realizację programu, projektu lub zadania | D85: w tym w związku z już zawartą umową na realizację programu, projektu lub zadania | E85: =0 -> 0 | F85: =0 -> 0 | G85: =0 -> 0 | H85: =0 -> 0 | I85: =0 -> 0 | J85: =0 -> 0 | K85: =0 -> 0 | L85: =0 -> 0 | M85: =0 -> 0 | N85: =0 -> 0 | O85: =0 -> 0 | P85: =0 -> 0 | Q85: =0 -> 0 | R85: =0 -> 0 | S85: =0 -> 0 | T85: =0 -> 0 | U85: =0 -> 0 | V85: =0 -> 0 | W85: =0 -> 0 | X85: =0 -> 0 | Y85: =0 -> 0 | Z85: =0 -> 0 | AA85: =0 -> 0 | AB85: =0 -> 0 | AC85: =0 -> 0 | AD85: =0 -> 0 | AE85: =0 -> 0 | AF85: =0 -> 0 | AG85: =0 -> 0 | AH85: =0 -> 0 | AI85: =0 -> 0 | AJ85: =0 -> 0 | AK85: =0 -> 0 | AL85: =0 -> 0
B86: 12.7 | C86: Przychody z tytułu kredytów, pożyczek, emisji papierów wartościowych powstające w związku z umową na realizację programu, projektu lub zadania finansowanego z udziałem środków, o których mowa w art. 5 ust. 1 pkt 2 ustawy bez względu na stopień finansowania tymi środkami | D86: Przychody z tytułu kredytów, pożyczek, emisji papierów wartościowych powstające w związku z umową na realizację programu, projektu lub zadania finansowanego z udziałem środków, o których mowa w art. 5 ust. 1 pkt 2 ustawy bez względu na stopień finansowania tymi środkami | E86: =0 -> 0 | F86: =0 -> 0 | G86: =0 -> 0 | H86: =0 -> 0 | I86: =0 -> 0 | J86: =0 -> 0 | K86: =0 -> 0 | L86: =0 -> 0 | M86: =0 -> 0 | N86: =0 -> 0 | O86: =0 -> 0 | P86: =0 -> 0 | Q86: =0 -> 0 | R86: =0 -> 0 | S86: =0 -> 0 | T86: =0 -> 0 | U86: =0 -> 0 | V86: =0 -> 0 | W86: =0 -> 0 | X86: =0 -> 0 | Y86: =0 -> 0 | Z86: =0 -> 0 | AA86: =0 -> 0 | AB86: =0 -> 0 | AC86: =0 -> 0 | AD86: =0 -> 0 | AE86: =0 -> 0 | AF86: =0 -> 0 | AG86: =0 -> 0 | AH86: =0 -> 0 | AI86: =0 -> 0 | AJ86: =0 -> 0 | AK86: =0 -> 0 | AL86: =0 -> 0
B87: 12.7.1 | C87: w tym w związku z już zawartą umową na realizację programu, projektu lub zadania | D87: w tym w związku z już zawartą umową na realizację programu, projektu lub zadania | E87: =0 -> 0 | F87: =0 -> 0 | G87: =0 -> 0 | H87: =0 -> 0 | I87: =0 -> 0 | J87: =0 -> 0 | K87: =0 -> 0 | L87: =0 -> 0 | M87: =0 -> 0 | N87: =0 -> 0 | O87: =0 -> 0 | P87: =0 -> 0 | Q87: =0 -> 0 | R87: =0 -> 0 | S87: =0 -> 0 | T87: =0 -> 0 | U87: =0 -> 0 | V87: =0 -> 0 | W87: =0 -> 0 | X87: =0 -> 0 | Y87: =0 -> 0 | Z87: =0 -> 0 | AA87: =0 -> 0 | AB87: =0 -> 0 | AC87: =0 -> 0 | AD87: =0 -> 0 | AE87: =0 -> 0 | AF87: =0 -> 0 | AG87: =0 -> 0 | AH87: =0 -> 0 | AI87: =0 -> 0 | AJ87: =0 -> 0 | AK87: =0 -> 0 | AL87: =0 -> 0
B88: 12.8 | C88: Przychody z tytułu kredytów, pożyczek, emisji papierów wartościowych powstające w związku z zawartą po dniu 1 stycznia 2013 r. umową na realizację programu, projektu lub zadania finansowanego w co najmniej 60% środkami, o których mowa w art. 5 ust. 1 pkt 2 ustawy | D88: Przychody z tytułu kredytów, pożyczek, emisji papierów wartościowych powstające w związku z zawartą po dniu 1 stycznia 2013 r. umową na realizację programu, projektu lub zadania finansowanego w co najmniej 60% środkami, o których mowa w art. 5 ust. 1 pkt 2 ustawy | E88: =0 -> 0 | F88: =0 -> 0 | G88: =0 -> 0 | H88: =0 -> 0 | I88: =0 -> 0 | J88: =0 -> 0 | K88: =0 -> 0 | L88: =0 -> 0 | M88: =0 -> 0 | N88: =0 -> 0 | O88: =0 -> 0 | P88: =0 -> 0 | Q88: =0 -> 0 | R88: =0 -> 0 | S88: =0 -> 0 | T88: =0 -> 0 | U88: =0 -> 0 | V88: =0 -> 0 | W88: =0 -> 0 | X88: =0 -> 0 | Y88: =0 -> 0 | Z88: =0 -> 0 | AA88: =0 -> 0 | AB88: =0 -> 0 | AC88: =0 -> 0 | AD88: =0 -> 0 | AE88: =0 -> 0 | AF88: =0 -> 0 | AG88: =0 -> 0 | AH88: =0 -> 0 | AI88: =0 -> 0 | AJ88: =0 -> 0 | AK88: =0 -> 0 | AL88: =0 -> 0
B89: 12.8.1 | C89: w tym w związku z już zawartą umową na realizację programu, projektu lub zadania | D89: w tym w związku z już zawartą umową na realizację programu, projektu lub zadania | E89: =0 -> 0 | F89: =0 -> 0 | G89: =0 -> 0 | H89: =0 -> 0 | I89: =0 -> 0 | J89: =0 -> 0 | K89: =0 -> 0 | L89: =0 -> 0 | M89: =0 -> 0 | N89: =0 -> 0 | O89: =0 -> 0 | P89: =0 -> 0 | Q89: =0 -> 0 | R89: =0 -> 0 | S89: =0 -> 0 | T89: =0 -> 0 | U89: =0 -> 0 | V89: =0 -> 0 | W89: =0 -> 0 | X89: =0 -> 0 | Y89: =0 -> 0 | Z89: =0 -> 0 | AA89: =0 -> 0 | AB89: =0 -> 0 | AC89: =0 -> 0 | AD89: =0 -> 0 | AE89: =0 -> 0 | AF89: =0 -> 0 | AG89: =0 -> 0 | AH89: =0 -> 0 | AI89: =0 -> 0 | AJ89: =0 -> 0 | AK89: =0 -> 0 | AL89: =0 -> 0
B90: 13 | C90: Kwoty dotyczące przejęcia i spłaty zobowiązań po samodzielnych publicznych zakładach opieki zdrowotnej oraz pokrycia ujemnego wyniku | D90: Kwoty dotyczące przejęcia i spłaty zobowiązań po samodzielnych publicznych zakładach opieki zdrowotnej oraz pokrycia ujemnego wyniku | E90: x | F90: x | G90: x | H90: x | I90: x | J90: x | K90: x | L90: x | M90: x | N90: x | O90: x | P90: x | Q90: x | R90: x | S90: x | T90: x | U90: x | V90: x | W90: x | X90: x | Y90: x | Z90: x | AA90: x | AB90: x | AC90: x | AD90: x | AE90: x | AF90: x | AG90: x | AH90: x | AI90: x | AJ90: x | AK90: x | AL90: x
B91: 13.1 | C91: Kwota zobowiązań wynikających z przejęcia przez jednostkę samorządu terytorialnego zobowiązań po likwidowanych i przekształcanych samodzielnych zakładach opieki zdrowotnej | D91: Kwota zobowiązań wynikających z przejęcia przez jednostkę samorządu terytorialnego zobowiązań po likwidowanych i przekształcanych samodzielnych zakładach opieki zdrowotnej | E91: =0 -> 0 | F91: =0 -> 0 | G91: =0 -> 0 | H91: =0 -> 0 | I91: =0 -> 0 | J91: =0 -> 0 | K91: =0 -> 0 | L91: =0 -> 0 | M91: =0 -> 0 | N91: =0 -> 0 | O91: =0 -> 0 | P91: =0 -> 0 | Q91: =0 -> 0 | R91: =0 -> 0 | S91: =0 -> 0 | T91: =0 -> 0 | U91: =0 -> 0 | V91: =0 -> 0 | W91: =0 -> 0 | X91: =0 -> 0 | Y91: =0 -> 0 | Z91: =0 -> 0 | AA91: =0 -> 0 | AB91: =0 -> 0 | AC91: =0 -> 0 | AD91: =0 -> 0 | AE91: =0 -> 0 | AF91: =0 -> 0 | AG91: =0 -> 0 | AH91: =0 -> 0 | AI91: =0 -> 0 | AJ91: =0 -> 0 | AK91: =0 -> 0 | AL91: =0 -> 0
B92: 13.2 | C92: Dochody budżetowe z tytułu dotacji celowej z budżetu państwa, o której mowa w art. 196 ustawy z dnia 15 kwietnia 2011 r. o działalności leczniczej (Dz.U. Nr 112, poz. 654, z późn. zm.) | D92: Dochody budżetowe z tytułu dotacji celowej z budżetu państwa, o której mowa w art. 196 ustawy z dnia 15 kwietnia 2011 r. o działalności leczniczej (Dz.U. Nr 112, poz. 654, z późn. zm.) | E92: =0 -> 0 | F92: =0 -> 0 | G92: =0 -> 0 | H92: =0 -> 0 | I92: =0 -> 0 | J92: =0 -> 0 | K92: =0 -> 0 | L92: =0 -> 0 | M92: =0 -> 0 | N92: =0 -> 0 | O92: =0 -> 0 | P92: =0 -> 0 | Q92: =0 -> 0 | R92: =0 -> 0 | S92: =0 -> 0 | T92: =0 -> 0 | U92: =0 -> 0 | V92: =0 -> 0 | W92: =0 -> 0 | X92: =0 -> 0 | Y92: =0 -> 0 | Z92: =0 -> 0 | AA92: =0 -> 0 | AB92: =0 -> 0 | AC92: =0 -> 0 | AD92: =0 -> 0 | AE92: =0 -> 0 | AF92: =0 -> 0 | AG92: =0 -> 0 | AH92: =0 -> 0 | AI92: =0 -> 0 | AJ92: =0 -> 0 | AK92: =0 -> 0 | AL92: =0 -> 0
B93: 13.3 | C93: Wysokość zobowiązań podlegających umorzeniu, o którym mowa w art. 190 ustawy o działalności leczniczej | D93: Wysokość zobowiązań podlegających umorzeniu, o którym mowa w art. 190 ustawy o działalności leczniczej | E93: =0 -> 0 | F93: =0 -> 0 | G93: =0 -> 0 | H93: =0 -> 0 | I93: =0 -> 0 | J93: =0 -> 0 | K93: =0 -> 0 | L93: =0 -> 0 | M93: =0 -> 0 | N93: =0 -> 0 | O93: =0 -> 0 | P93: =0 -> 0 | Q93: =0 -> 0 | R93: =0 -> 0 | S93: =0 -> 0 | T93: =0 -> 0 | U93: =0 -> 0 | V93: =0 -> 0 | W93: =0 -> 0 | X93: =0 -> 0 | Y93: =0 -> 0 | Z93: =0 -> 0 | AA93: =0 -> 0 | AB93: =0 -> 0 | AC93: =0 -> 0 | AD93: =0 -> 0 | AE93: =0 -> 0 | AF93: =0 -> 0 | AG93: =0 -> 0 | AH93: =0 -> 0 | AI93: =0 -> 0 | AJ93: =0 -> 0 | AK93: =0 -> 0 | AL93: =0 -> 0
B94: 13.4 | C94: Wydatki na spłatę przejętych zobowiązań samodzielnego publicznego zakładu opieki zdrowotnej przekształconego na zasadach określonych w przepisach o działalności leczniczej | D94: Wydatki na spłatę przejętych zobowiązań samodzielnego publicznego zakładu opieki zdrowotnej przekształconego na zasadach określonych w przepisach o działalności leczniczej | E94: =0 -> 0 | F94: =0 -> 0 | G94: =0 -> 0 | H94: =0 -> 0 | I94: =0 -> 0 | J94: =0 -> 0 | K94: =0 -> 0 | L94: =0 -> 0 | M94: =0 -> 0 | N94: =0 -> 0 | O94: =0 -> 0 | P94: =0 -> 0 | Q94: =0 -> 0 | R94: =0 -> 0 | S94: =0 -> 0 | T94: =0 -> 0 | U94: =0 -> 0 | V94: =0 -> 0 | W94: =0 -> 0 | X94: =0 -> 0 | Y94: =0 -> 0 | Z94: =0 -> 0 | AA94: =0 -> 0 | AB94: =0 -> 0 | AC94: =0 -> 0 | AD94: =0 -> 0 | AE94: =0 -> 0 | AF94: =0 -> 0 | AG94: =0 -> 0 | AH94: =0 -> 0 | AI94: =0 -> 0 | AJ94: =0 -> 0 | AK94: =0 -> 0 | AL94: =0 -> 0
B95: 13.5 | C95: Wydatki na spłatę przejętych zobowiązań samodzielnego publicznego zakładu opieki zdrowotnej likwidowanego na zasadach określonych w przepisach o działalności leczniczej | D95: Wydatki na spłatę przejętych zobowiązań samodzielnego publicznego zakładu opieki zdrowotnej likwidowanego na zasadach określonych w przepisach o działalności leczniczej | E95: =0 -> 0 | F95: =0 -> 0 | G95: =0 -> 0 | H95: =0 -> 0 | I95: =0 -> 0 | J95: =0 -> 0 | K95: =0 -> 0 | L95: =0 -> 0 | M95: =0 -> 0 | N95: =0 -> 0 | O95: =0 -> 0 | P95: =0 -> 0 | Q95: =0 -> 0 | R95: =0 -> 0 | S95: =0 -> 0 | T95: =0 -> 0 | U95: =0 -> 0 | V95: =0 -> 0 | W95: =0 -> 0 | X95: =0 -> 0 | Y95: =0 -> 0 | Z95: =0 -> 0 | AA95: =0 -> 0 | AB95: =0 -> 0 | AC95: =0 -> 0 | AD95: =0 -> 0 | AE95: =0 -> 0 | AF95: =0 -> 0 | AG95: =0 -> 0 | AH95: =0 -> 0 | AI95: =0 -> 0 | AJ95: =0 -> 0 | AK95: =0 -> 0 | AL95: =0 -> 0
B96: 13.6 | C96: Wydatki na spłatę zobowiązań samodzielnego publicznego zakładu opieki zdrowotnej przejętych do końca 2011 r. na podstawie przepisów o zakładach opieki zdrowotnej | D96: Wydatki na spłatę zobowiązań samodzielnego publicznego zakładu opieki zdrowotnej przejętych do końca 2011 r. na podstawie przepisów o zakładach opieki zdrowotnej | E96: =0 -> 0 | F96: =0 -> 0 | G96: =0 -> 0 | H96: =0 -> 0 | I96: =0 -> 0 | J96: =0 -> 0 | K96: =0 -> 0 | L96: =0 -> 0 | M96: =0 -> 0 | N96: =0 -> 0 | O96: =0 -> 0 | P96: =0 -> 0 | Q96: =0 -> 0 | R96: =0 -> 0 | S96: =0 -> 0 | T96: =0 -> 0 | U96: =0 -> 0 | V96: =0 -> 0 | W96: =0 -> 0 | X96: =0 -> 0 | Y96: =0 -> 0 | Z96: =0 -> 0 | AA96: =0 -> 0 | AB96: =0 -> 0 | AC96: =0 -> 0 | AD96: =0 -> 0 | AE96: =0 -> 0 | AF96: =0 -> 0 | AG96: =0 -> 0 | AH96: =0 -> 0 | AI96: =0 -> 0 | AJ96: =0 -> 0 | AK96: =0 -> 0 | AL96: =0 -> 0
B97: 13.7 | C97: Wydatki bieżące na pokrycie ujemnego wyniku finansowego samodzielnego publicznego zakładu opieki zdrowotnej | D97: Wydatki bieżące na pokrycie ujemnego wyniku finansowego samodzielnego publicznego zakładu opieki zdrowotnej | E97: =0 -> 0 | F97: =0 -> 0 | G97: =0 -> 0 | H97: =0 -> 0 | I97: =0 -> 0 | J97: =0 -> 0 | K97: =0 -> 0 | L97: =0 -> 0 | M97: =0 -> 0 | N97: =0 -> 0 | O97: =0 -> 0 | P97: =0 -> 0 | Q97: =0 -> 0 | R97: =0 -> 0 | S97: =0 -> 0 | T97: =0 -> 0 | U97: =0 -> 0 | V97: =0 -> 0 | W97: =0 -> 0 | X97: =0 -> 0 | Y97: =0 -> 0 | Z97: =0 -> 0 | AA97: =0 -> 0 | AB97: =0 -> 0 | AC97: =0 -> 0 | AD97: =0 -> 0 | AE97: =0 -> 0 | AF97: =0 -> 0 | AG97: =0 -> 0 | AH97: =0 -> 0 | AI97: =0 -> 0 | AJ97: =0 -> 0 | AK97: =0 -> 0 | AL97: =0 -> 0
A98: x | B98: 14 | C98: Dane uzupełniające o długu i jego spłacie | D98: Dane uzupełniające o długu i jego spłacie | E98: x | F98: x | G98: x | H98: x | I98: x | J98: x | K98: x | L98: x | M98: x | N98: x | O98: x | P98: x | Q98: x | R98: x | S98: x | T98: x | U98: x | V98: x | W98: x | X98: x | Y98: x | Z98: x | AA98: x | AB98: x | AC98: x | AD98: x | AE98: x | AF98: x | AG98: x | AH98: x | AI98: x | AJ98: x | AK98: x | AL98: x
A99: x | B99: 14.1 | C99: Spłaty rat kapitałowych oraz wykup papierów wartościowych, o których mowa w pkt. 5.1., wynikające wyłącznie z tytułu zobowiązań już zaciągniętych | D99: Spłaty rat kapitałowych oraz wykup papierów wartościowych, o których mowa w pkt. 5.1., wynikające wyłącznie z tytułu zobowiązań już zaciągniętych | E99: =2105000 -> 2105000 | F99: =1057000 -> 1057000 | G99: =100000 -> 100000 | H99: =100000 -> 100000 | I99: =400000 -> 400000 | J99: =600000 -> 600000 | K99: =600000 -> 600000 | L99: =1200000 -> 1200000 | M99: =1300000 -> 1300000 | N99: =1200000 -> 1200000 | O99: =1330000 -> 1330000 | P99: =1510000 -> 1510000 | Q99: =1548000 -> 1548000 | R99: =743000 -> 743000 | S99: =0 -> 0 | T99: =0 -> 0 | U99: =0 -> 0 | V99: =0 -> 0 | W99: =0 -> 0 | X99: =0 -> 0 | Y99: =0 -> 0 | Z99: =0 -> 0 | AA99: =0 -> 0 | AB99: =0 -> 0 | AC99: =0 -> 0 | AD99: =0 -> 0 | AE99: =0 -> 0 | AF99: =0 -> 0 | AG99: =0 -> 0 | AH99: =0 -> 0 | AI99: =0 -> 0 | AJ99: =0 -> 0 | AK99: =0 -> 0 | AL99: =0 -> 0
A100: x | B100: 14.2 | C100: Kwota długu, którego planowana spłata dokona się z wydatków budżetu | D100: Kwota długu, którego planowana spłata dokona się z wydatków budżetu | E100: =29700 -> 29700 | F100: =9850 -> 9850 | G100: =0 -> 0 | H100: =0 -> 0 | I100: =688000 -> 688000 | J100: =564000 -> 564000 | K100: =444000 -> 444000 | L100: =327000 -> 327000 | M100: =214000 -> 214000 | N100: =105000 -> 105000 | O100: =0 -> 0 | P100: =0 -> 0 | Q100: =0 -> 0 | R100: =0 -> 0 | S100: =0 -> 0 | T100: =0 -> 0 | U100: =0 -> 0 | V100: =0 -> 0 | W100: =0 -> 0 | X100: =0 -> 0 | Y100: =0 -> 0 | Z100: =0 -> 0 | AA100: =0 -> 0 | AB100: =0 -> 0 | AC100: =0 -> 0 | AD100: =0 -> 0 | AE100: =0 -> 0 | AF100: =0 -> 0 | AG100: =0 -> 0 | AH100: =0 -> 0 | AI100: =0 -> 0 | AJ100: =0 -> 0 | AK100: =0 -> 0 | AL100: =0 -> 0
A101: x | B101: 14.3 | C101: Wydatki zmniejszające dług, w tym | D101: Wydatki zmniejszające dług, w tym | E101: =29850 -> 29850 | F101: =19850 -> 19850 | G101: =9850 -> 9850 | H101: =9850 -> 9850 | I101: =130000 -> 130000 | J101: =124000 -> 124000 | K101: =120000 -> 120000 | L101: =117000 -> 117000 | M101: =113000 -> 113000 | N101: =109000 -> 109000 | O101: =105000 -> 105000 | P101: =0 -> 0 | Q101: =0 -> 0 | R101: =0 -> 0 | S101: =0 -> 0 | T101: =0 -> 0 | U101: =0 -> 0 | V101: =0 -> 0 | W101: =0 -> 0 | X101: =0 -> 0 | Y101: =0 -> 0 | Z101: =0 -> 0 | AA101: =0 -> 0 | AB101: =0 -> 0 | AC101: =0 -> 0 | AD101: =0 -> 0 | AE101: =0 -> 0 | AF101: =0 -> 0 | AG101: =0 -> 0 | AH101: =0 -> 0 | AI101: =0 -> 0 | AJ101: =0 -> 0 | AK101: =0 -> 0 | AL101: =0 -> 0
A102: x | B102: 14.3.1 | C102: spłata zobowiązań wymagalnych z lat poprzednich, innych niż w pkt 14.3.3 | D102: spłata zobowiązań wymagalnych z lat poprzednich, innych niż w pkt 14.3.3 | E102: =20000 -> 20000 | F102: =10000 -> 10000 | G102: =0 -> 0 | H102: =0 -> 0 | I102: =0 -> 0 | J102: =0 -> 0 | K102: =0 -> 0 | L102: =0 -> 0 | M102: =0 -> 0 | N102: =0 -> 0 | O102: =0 -> 0 | P102: =0 -> 0 | Q102: =0 -> 0 | R102: =0 -> 0 | S102: =0 -> 0 | T102: =0 -> 0 | U102: =0 -> 0 | V102: =0 -> 0 | W102: =0 -> 0 | X102: =0 -> 0 | Y102: =0 -> 0 | Z102: =0 -> 0 | AA102: =0 -> 0 | AB102: =0 -> 0 | AC102: =0 -> 0 | AD102: =0 -> 0 | AE102: =0 -> 0 | AF102: =0 -> 0 | AG102: =0 -> 0 | AH102: =0 -> 0 | AI102: =0 -> 0 | AJ102: =0 -> 0 | AK102: =0 -> 0 | AL102: =0 -> 0
A103: x | B103: 14.3.2 | C103: związane z umowami zaliczanymi do tytułów dłużnych wliczanych do państwowego długu publicznego | D103: związane z umowami zaliczanymi do tytułów dłużnych wliczanych do państwowego długu publicznego | E103: =9850 -> 9850 | F103: =9850 -> 9850 | G103: =9850 -> 9850 | H103: =9850 -> 9850 | I103: =130000 -> 130000 | J103: =124000 -> 124000 | K103: =120000 -> 120000 | L103: =117000 -> 117000 | M103: =113000 -> 113000 | N103: =109000 -> 109000 | O103: =105000 -> 105000 | P103: =0 -> 0 | Q103: =0 -> 0 | R103: =0 -> 0 | S103: =0 -> 0 | T103: =0 -> 0 | U103: =0 -> 0 | V103: =0 -> 0 | W103: =0 -> 0 | X103: =0 -> 0 | Y103: =0 -> 0 | Z103: =0 -> 0 | AA103: =0 -> 0 | AB103: =0 -> 0 | AC103: =0 -> 0 | AD103: =0 -> 0 | AE103: =0 -> 0 | AF103: =0 -> 0 | AG103: =0 -> 0 | AH103: =0 -> 0 | AI103: =0 -> 0 | AJ103: =0 -> 0 | AK103: =0 -> 0 | AL103: =0 -> 0
A104: x | B104: 14.3.3 | C104: wypłaty z tytułu wymagalnych poręczeń i gwarancji | D104: wypłaty z tytułu wymagalnych poręczeń i gwarancji | E104: =0 -> 0 | F104: =0 -> 0 | G104: =0 -> 0 | H104: =0 -> 0 | I104: =0 -> 0 | J104: =0 -> 0 | K104: =0 -> 0 | L104: =0 -> 0 | M104: =0 -> 0 | N104: =0 -> 0 | O104: =0 -> 0 | P104: =0 -> 0 | Q104: =0 -> 0 | R104: =0 -> 0 | S104: =0 -> 0 | T104: =0 -> 0 | U104: =0 -> 0 | V104: =0 -> 0 | W104: =0 -> 0 | X104: =0 -> 0 | Y104: =0 -> 0 | Z104: =0 -> 0 | AA104: =0 -> 0 | AB104: =0 -> 0 | AC104: =0 -> 0 | AD104: =0 -> 0 | AE104: =0 -> 0 | AF104: =0 -> 0 | AG104: =0 -> 0 | AH104: =0 -> 0 | AI104: =0 -> 0 | AJ104: =0 -> 0 | AK104: =0 -> 0 | AL104: =0 -> 0
A105: x | B105: 14.4 | C105: Wynik operacji niekasowych wpływających na kwotę długu ( m.in. umorzenia, różnice kursowe) | D105: Wynik operacji niekasowych wpływających na kwotę długu ( m.in. umorzenia, różnice kursowe) | E105: =5558.79 -> 5558.79 | F105: =0 -> 0 | G105: =0 -> 0 | H105: =0 -> 0 | I105: =0 -> 0 | J105: =0 -> 0 | K105: =0 -> 0 | L105: =0 -> 0 | M105: =0 -> 0 | N105: =0 -> 0 | O105: =0 -> 0 | P105: =0 -> 0 | Q105: =0 -> 0 | R105: =0 -> 0 | S105: =0 -> 0 | T105: =0 -> 0 | U105: =0 -> 0 | V105: =0 -> 0 | W105: =0 -> 0 | X105: =0 -> 0 | Y105: =0 -> 0 | Z105: =0 -> 0 | AA105: =0 -> 0 | AB105: =0 -> 0 | AC105: =0 -> 0 | AD105: =0 -> 0 | AE105: =0 -> 0 | AF105: =0 -> 0 | AG105: =0 -> 0 | AH105: =0 -> 0 | AI105: =0 -> 0 | AJ105: =0 -> 0 | AK105: =0 -> 0 | AL105: =0 -> 0
B106: 15 | C106: Dane dotyczące emitowanych obligacji przychodowych | D106: Dane dotyczące emitowanych obligacji przychodowych | E106: x | F106: x | G106: x | H106: x | I106: x | J106: x | K106: x | L106: x | M106: x | N106: x | O106: x | P106: x | Q106: x | R106: x | S106: x | T106: x | U106: x | V106: x | W106: x | X106: x | Y106: x | Z106: x | AA106: x | AB106: x | AC106: x | AD106: x | AE106: x | AF106: x | AG106: x | AH106: x | AI106: x | AJ106: x | AK106: x | AL106: x
B107: 15.1 | C107: Środki z przedsięwzięcia gromadzone na rachunku bankowym, w tym: | D107: Środki z przedsięwzięcia gromadzone na rachunku bankowym, w tym: | E107: =0 -> 0 | F107: =0 -> 0 | G107: =0 -> 0 | H107: =0 -> 0 | I107: =0 -> 0 | J107: =0 -> 0 | K107: =0 -> 0 | L107: =0 -> 0 | M107: =0 -> 0 | N107: =0 -> 0 | O107: =0 -> 0 | P107: =0 -> 0 | Q107: =0 -> 0 | R107: =0 -> 0 | S107: =0 -> 0 | T107: =0 -> 0 | U107: =0 -> 0 | V107: =0 -> 0 | W107: =0 -> 0 | X107: =0 -> 0 | Y107: =0 -> 0 | Z107: =0 -> 0 | AA107: =0 -> 0 | AB107: =0 -> 0 | AC107: =0 -> 0 | AD107: =0 -> 0 | AE107: =0 -> 0 | AF107: =0 -> 0 | AG107: =0 -> 0 | AH107: =0 -> 0 | AI107: =0 -> 0 | AJ107: =0 -> 0 | AK107: =0 -> 0 | AL107: =0 -> 0
A108: x | B108: 15.1.1 | C108: środki na zaspokojenie roszczeń obligatariuszy | D108: środki na zaspokojenie roszczeń obligatariuszy | E108: =0 -> 0 | F108: =0 -> 0 | G108: =0 -> 0 | H108: =0 -> 0 | I108: =0 -> 0 | J108: =0 -> 0 | K108: =0 -> 0 | L108: =0 -> 0 | M108: =0 -> 0 | N108: =0 -> 0 | O108: =0 -> 0 | P108: =0 -> 0 | Q108: =0 -> 0 | R108: =0 -> 0 | S108: =0 -> 0 | T108: =0 -> 0 | U108: =0 -> 0 | V108: =0 -> 0 | W108: =0 -> 0 | X108: =0 -> 0 | Y108: =0 -> 0 | Z108: =0 -> 0 | AA108: =0 -> 0 | AB108: =0 -> 0 | AC108: =0 -> 0 | AD108: =0 -> 0 | AE108: =0 -> 0 | AF108: =0 -> 0 | AG108: =0 -> 0 | AH108: =0 -> 0 | AI108: =0 -> 0 | AJ108: =0 -> 0 | AK108: =0 -> 0 | AL108: =0 -> 0
A109: x | B109: 15.2 | C109: Wydatki bieżące z tytułu świadczenia emitenta należnego obligatariuszom, nieuwzględniane w limicie spłaty zobowiązań, o którym mowa w art. 243 ustawy | D109: Wydatki bieżące z tytułu świadczenia emitenta należnego obligatariuszom, nieuwzględniane w limicie spłaty zobowiązań, o którym mowa w art. 243 ustawy | E109: =0 -> 0 | F109: =0 -> 0 | G109: =0 -> 0 | H109: =0 -> 0 | I109: =0 -> 0 | J109: =0 -> 0 | K109: =0 -> 0 | L109: =0 -> 0 | M109: =0 -> 0 | N109: =0 -> 0 | O109: =0 -> 0 | P109: =0 -> 0 | Q109: =0 -> 0 | R109: =0 -> 0 | S109: =0 -> 0 | T109: =0 -> 0 | U109: =0 -> 0 | V109: =0 -> 0 | W109: =0 -> 0 | X109: =0 -> 0 | Y109: =0 -> 0 | Z109: =0 -> 0 | AA109: =0 -> 0 | AB109: =0 -> 0 | AC109: =0 -> 0 | AD109: =0 -> 0 | AE109: =0 -> 0 | AF109: =0 -> 0 | AG109: =0 -> 0 | AH109: =0 -> 0 | AI109: =0 -> 0 | AJ109: =0 -> 0 | AK109: =0 -> 0 | AL109: =0 -> 0
B110: 16 | D110: Stopień niezachowania relacji określonych w art. 242-244 ustawy (dotyczy tylko JST objętych procedurą z art. 240a lub 240b) | E110: x | F110: x | G110: x | H110: x | I110: x | J110: x | K110: x | L110: x | M110: x | N110: x | O110: x | P110: x | Q110: x | R110: x | S110: x | T110: x | U110: x | V110: x | W110: x | X110: x | Y110: x | Z110: x | AA110: x | AB110: x | AC110: x | AD110: x | AE110: x | AF110: x | AG110: x | AH110: x | AI110: x | AJ110: x | AK110: x | AL110: x
B111: 16.1 | D111: Stopień niezachowania relacji zrównoważenia wydatków bieżących, o której mowa w poz. 8.2 | E111: x | F111: x | G111: x | H111: x | I111: =+IF(I47<0,I47,"") ->  | J111: =+IF(J47<0,J47,"") -> 
A112: x | B112: 16.2 | D112: Stopień niezachowania wskaźnika spłaty zobowiązań, o którym mowa w poz. 9.7 | E112: x | F112: x | G112: x | H112: x | I112: =IF(I52<=I54,"",I54- I52) ->  | J112: =IF(J52<=J54,"",J54- J52) -> 
A113: x | B113: 16.3 | D113: Stopień niezachowania wskaźnika spłaty zobowiązań, o którym mowa w poz. 9.7.1 | E113: x | F113: x | G113: x | H113: x | I113: =IF(I52<=I55,"",I55-I52) ->  | J113: =IF(J52<=J55,"",J55-J52) -> 
B115: UWAGA!
B116: Do symulacji prognozy i obserwacji zmian relacji z art. 242-243 na podstawie danych wprowadzanych ręcznie służy arkusz "WPF_AnalizaWsk_Projektowanie"
B119: Weryfikacja wybranych danych wykazanych w tabeli Wieloletnia Prognoza Finansowa
D120: Reguła formalna
D121: Reguła rachunkowa
D122: Reguła logiczna
D123: Reguły kontrolne
B124: [1.1] + [4.1] + [4.2] >= ([2.1] - [2.1.2]) | C124: [1.1] + [4.1] + [4.2] >= ([2.1] - [2.1.2]) | D124: Spełnienie wskaźnika z art. 242 | E124: x | F124: x | G124: x | H124: x | I124: =IF(ROUND(I6+I28+I30,2)>=ROUND(I17-I20,2),"TAK","NIE") -> TAK | J124: TAK | K124: TAK | L124: TAK | M124: TAK | N124: TAK | O124: TAK | P124: TAK | Q124: TAK | R124: TAK | S124: TAK | T124: TAK | U124: TAK | V124: TAK | W124: TAK | X124: TAK | Y124: TAK | Z124: TAK | AA124: TAK | AB124: TAK | AC124: TAK | AD124: TAK | AE124: TAK | AF124: TAK | AG124: TAK | AH124: TAK | AI124: TAK | AJ124: TAK | AK124: TAK | AL124: TAK
B125: [13.3] = 0 (dla lat 2014 i wyższych) | C125: [13.3] = 0 (dla lat 2014 i wyższych) | D125: Umorzenie zobowiązań, o którym mowa w art. 190 ustawy o działalności leczniczej nie wykracza poza ustawowy okres | E125: x | F125: x | G125: x | H125: x | I125: x | J125: x | K125: =IF(K93=0,"TAK","BŁĄD") -> TAK | L125: TAK | M125: TAK | N125: TAK | O125: TAK | P125: TAK | Q125: TAK | R125: TAK | S125: TAK | T125: TAK | U125: TAK | V125: TAK | W125: TAK | X125: TAK | Y125: TAK | Z125: TAK | AA125: TAK | AB125: TAK | AC125: TAK | AD125: TAK | AE125: TAK | AF125: TAK | AG125: TAK | AH125: TAK | AI125: TAK | AJ125: TAK | AK125: TAK | AL125: TAK
B126: [1] + [4] - [2] - [5] = 0 | C126: [1] + [4] - [2] - [5] = 0 | D126: Kontrola poprawności zbilansowania budżetu | E126: x | F126: x | G126: x | H126: x | I126: =IF(ROUND(I5+I27-I16-I36,2)=0,"OK",ROUND(I5+I27-I16-I36,2)) -> OK | J126: OK | K126: OK | L126: OK | M126: OK | N126: OK | O126: OK | P126: OK | Q126: OK | R126: OK | S126: OK | T126: OK | U126: OK | V126: OK | W126: OK | X126: OK | Y126: OK | Z126: OK | AA126: OK | AB126: OK | AC126: OK | AD126: OK | AE126: OK | AF126: OK | AG126: OK | AH126: OK | AI126: OK | AJ126: OK | AK126: OK | AL126: OK
B127: [6]"n" = [6]"n-1" + [4.3]"n" - [5.1]"n" + ([14.2]"n"-[14.2]"n-1") + [14.4] | C127: [6]"n" = [6]"n-1" + [4.3]"n" - [5.1]"n" + ([14.2]"n"-[14.2]"n-1") + [14.4] | D127: Kontrola poprawności wyliczenia kwoty długu | E127: x | F127: x | G127: x | H127: x | I127: =+IF(ROUND(H43+I32-I37+(I100-H100)+I105-I43,2)=0,"OK",ROUND(H43+I32-I37+(I100-H100)+I105-I43,2)) -> OK | J127: OK | K127: OK | L127: OK | M127: OK | N127: OK | O127: OK | P127: OK | Q127: OK | R127: OK | S127: OK | T127: OK | U127: OK | V127: OK | W127: OK | X127: OK | Y127: OK | Z127: OK | AA127: OK | AB127: OK | AC127: OK | AD127: OK | AE127: OK | AF127: OK | AG127: OK | AH127: OK | AI127: OK | AJ127: OK | AK127: OK | AL127: OK
B128: [14.2] "n" = ( [14.2] "n-1" - [14.3] "n" ) | C128: [14.2] "n" = ( [14.2] "n-1" - [14.3] "n" ) | D128: Analiza zmiany kwoty długu spłacanego wydatkami budżetu - wartości różne od zera wymagają objaśnienia - wartości większe od zera wskazują na powstanie w roku prognozy nowego długu tego typu - wartości mniejsze od zera co do zasady nie powinny wystąpić | E128: x | F128: x | G128: x | H128: x | I128: =+IF(H100=0,"N/D",IF(ROUND(I100+I101-H100,2)=0,"OK",ROUND(I100+I101-H100,2))) -> N/D | J128: OK | K128: OK | L128: OK | M128: OK | N128: OK | O128: OK | P128: N/D | Q128: N/D | R128: N/D | S128: N/D | T128: N/D | U128: N/D | V128: N/D | W128: N/D | X128: N/D | Y128: N/D | Z128: N/D | AA128: N/D | AB128: N/D | AC128: N/D | AD128: N/D | AE128: N/D | AF128: N/D | AG128: N/D | AH128: N/D | AI128: N/D | AJ128: N/D | AK128: N/D | AL128: N/D
B129: [13.1] "n" - ( [13.3] + [13.4] + [13.5] + [13.6] ) "n" = [13.1] "n-1" | C129: [13.1] "n" - ( [13.3] + [13.4] + [13.5] + [13.6] ) "n" = [13.1] "n-1" | D129: Porównanie na koniec roku prognozy stanu zobowiązań przejętych przez jst po likwidowanych i przekształcanych SP ZOZ z wydatkami i umorzeniami poniesionymi na ten cel ze stanem zobowiązań z okresu N-1 | E129: x | F129: x | G129: x | H129: x | I129: =+IF(H91=0,"N/D",IF(ROUND(I91+(I93+I94+I95+I96)-H91,2)=0,"OK",ROUND(I91+(I93+I94+I95+I96)-H91,2))) -> N/D | J129: N/D | K129: N/D | L129: N/D | M129: N/D | N129: N/D | O129: N/D | P129: N/D | Q129: N/D | R129: N/D | S129: N/D | T129: N/D | U129: N/D | V129: N/D | W129: N/D | X129: N/D | Y129: N/D | Z129: N/D | AA129: N/D | AB129: N/D | AC129: N/D | AD129: N/D | AE129: N/D | AF129: N/D | AG129: N/D | AH129: N/D | AI129: N/D | AJ129: N/D | AK129: N/D | AL129: N/D
B130: jeśli [3] < 0 to sprawdź czy [4.1.1] + [4.2.1] + [4.3.1] + [4.4.1] + [3] = 0 | C130: jeśli [3] < 0 to sprawdź czy [4.1.1] + [4.2.1] + [4.3.1] + [4.4.1] + [3] = 0 | D130: Kontrola poprawności wykazania źródeł pokrycia deficytu | E130: x | F130: x | G130: x | H130: x | I130: =IF(I26<0,IF(ROUND(I29+I31+I33+I35+I26,2)=0,"OK",ROUND(I29+I31+I33+I35+I26,2)),"N/D") -> N/D | J130: N/D | K130: N/D | L130: N/D | M130: N/D | N130: N/D | O130: N/D | P130: N/D | Q130: N/D | R130: N/D | S130: N/D | T130: N/D | U130: N/D | V130: N/D | W130: N/D | X130: N/D | Y130: N/D | Z130: N/D | AA130: N/D | AB130: N/D | AC130: N/D | AD130: N/D | AE130: N/D | AF130: N/D | AG130: N/D | AH130: N/D | AI130: N/D | AJ130: N/D | AK130: N/D | AL130: N/D
B131: jeśli [3] >= 0 to sprawdź czy [4.1.1]=0 i [4.2.1]=0 i [4.3.1]=0 i [4.4.1] = 0 | C131: jeśli [3] >= 0 to sprawdź czy [4.1.1]=0 i [4.2.1]=0 i [4.3.1]=0 i [4.4.1] = 0 | D131: Kontrola poprawności niewykazania źródeł pokrycia deficytu przy nadwyżce budżetu | E131: x | F131: x | G131: x | H131: x | I131: =IF(I26>=0,IF(ROUND(I29+I31+I33+I35,2)=0,"OK",ROUND(I29+I31+I33+I35,2)),"N/D") -> OK | J131: OK | K131: OK | L131: OK | M131: OK | N131: OK | O131: OK | P131: OK | Q131: OK | R131: OK | S131: OK | T131: OK | U131: OK | V131: OK | W131: OK | X131: OK | Y131: OK | Z131: OK | AA131: OK | AB131: OK | AC131: OK | AD131: OK | AE131: OK | AF131: OK | AG131: OK | AH131: OK | AI131: OK | AJ131: OK | AK131: OK | AL131: OK
B132: [1.1.3] >= [1.1.3.1] | C132: [1.1.3] >= [1.1.3.1] | D132: Reguła logiczna: [1.1.3] >= [1.1.3.1] | E132: x | F132: x | G132: x | H132: x | I132: =IF(I9>=I10,"OK","BŁĄD") -> OK | J132: OK | K132: OK | L132: OK | M132: OK | N132: OK | O132: OK | P132: OK | Q132: OK | R132: OK | S132: OK | T132: OK | U132: OK | V132: OK | W132: OK | X132: OK | Y132: OK | Z132: OK | AA132: OK | AB132: OK | AC132: OK | AD132: OK | AE132: OK | AF132: OK | AG132: OK | AH132: OK | AI132: OK | AJ132: OK | AK132: OK | AL132: OK
B133: [1.1.5] >= [13.2] | C133: [1.1.5] >= [13.2] | D133: Reguła logiczna: [1.1.5] >= [13.2] | E133: x | F133: x | G133: x | H133: x | I133: =IF(I12>=I92,"OK","BŁĄD") -> OK | J133: OK | K133: OK | L133: OK | M133: OK | N133: OK | O133: OK | P133: OK | Q133: OK | R133: OK | S133: OK | T133: OK | U133: OK | V133: OK | W133: OK | X133: OK | Y133: OK | Z133: OK | AA133: OK | AB133: OK | AC133: OK | AD133: OK | AE133: OK | AF133: OK | AG133: OK | AH133: OK | AI133: OK | AJ133: OK | AK133: OK | AL133: OK
B134: [1.1] >= ([1.1.1] + [1.1.2] + [1.1.3] + [1.1.4] + [1.1.5]) | C134: [1.1] >= ([1.1.1] + [1.1.2] + [1.1.3] + [1.1.4] + [1.1.5]) | D134: Reguła logiczna: [1.1] >= ([1.1.1] + [1.1.2] + [1.1.3] + [1.1.4] + [1.1.5]) | E134: x | F134: x | G134: x | H134: x | I134: =IF(I6>=I7+I8+I9+I11+I12,"OK","BŁĄD") -> OK | J134: OK | K134: OK | L134: OK | M134: OK | N134: OK | O134: OK | P134: OK | Q134: OK | R134: OK | S134: OK | T134: OK | U134: OK | V134: OK | W134: OK | X134: OK | Y134: OK | Z134: OK | AA134: OK | AB134: OK | AC134: OK | AD134: OK | AE134: OK | AF134: OK | AG134: OK | AH134: OK | AI134: OK | AJ134: OK | AK134: OK | AL134: OK
B135: [1.1] >= [12.1] | C135: [1.1] >= [12.1] | D135: Reguła logiczna: [1.1] >= [12.1] | E135: x | F135: x | G135: x | H135: x | I135: =IF(I6>=I70,"OK","BŁĄD") -> OK | J135: OK | K135: OK | L135: OK | M135: OK | N135: OK | O135: OK | P135: OK | Q135: OK | R135: OK | S135: OK | T135: OK | U135: OK | V135: OK | W135: OK | X135: OK | Y135: OK | Z135: OK | AA135: OK | AB135: OK | AC135: OK | AD135: OK | AE135: OK | AF135: OK | AG135: OK | AH135: OK | AI135: OK | AJ135: OK | AK135: OK | AL135: OK
B136: [1.2] >= [1.2.1] | C136: [1.2] >= [1.2.1] | D136: Reguła logiczna: [1.2] >= [1.2.1] | E136: x | F136: x | G136: x | H136: x | I136: =IF(I13>=I14,"OK","BŁĄD") -> OK | J136: OK | K136: OK | L136: OK | M136: OK | N136: OK | O136: OK | P136: OK | Q136: OK | R136: OK | S136: OK | T136: OK | U136: OK | V136: OK | W136: OK | X136: OK | Y136: OK | Z136: OK | AA136: OK | AB136: OK | AC136: OK | AD136: OK | AE136: OK | AF136: OK | AG136: OK | AH136: OK | AI136: OK | AJ136: OK | AK136: OK | AL136: OK
B137: [1.2] >= [1.2.2] | C137: [1.2] >= [1.2.2] | D137: Reguła logiczna: [1.2] >= [1.2.2] | E137: x | F137: x | G137: x | H137: x | I137: =IF(I13>=I15,"OK","BŁĄD") -> OK | J137: OK | K137: OK | L137: OK | M137: OK | N137: OK | O137: OK | P137: OK | Q137: OK | R137: OK | S137: OK | T137: OK | U137: OK | V137: OK | W137: OK | X137: OK | Y137: OK | Z137: OK | AA137: OK | AB137: OK | AC137: OK | AD137: OK | AE137: OK | AF137: OK | AG137: OK | AH137: OK | AI137: OK | AJ137: OK | AK137: OK | AL137: OK
B138: [1.2] >= [12.2] | C138: [1.2] >= [12.2] | D138: Reguła logiczna: [1.2] >= [12.2] | E138: x | F138: x | G138: x | H138: x | I138: =IF(I13>=I73,"OK","BŁĄD") -> OK | J138: OK | K138: OK | L138: OK | M138: OK | N138: OK | O138: OK | P138: OK | Q138: OK | R138: OK | S138: OK | T138: OK | U138: OK | V138: OK | W138: OK | X138: OK | Y138: OK | Z138: OK | AA138: OK | AB138: OK | AC138: OK | AD138: OK | AE138: OK | AF138: OK | AG138: OK | AH138: OK | AI138: OK | AJ138: OK | AK138: OK | AL138: OK
D139: Reguła logiczna: jeżeli [3] >0 to [10] = [3] | E139: x | F139: x | G139: x | H139: x | I139: =+IF(I26>0,IF(I26=I58,"OK","Błąd"),"N/D") -> OK | J139: OK | K139: OK | L139: OK | M139: OK | N139: OK | O139: OK | P139: OK | Q139: OK | R139: OK | S139: N/D | T139: N/D | U139: N/D | V139: N/D | W139: N/D | X139: N/D | Y139: N/D | Z139: N/D | AA139: N/D | AB139: N/D | AC139: N/D | AD139: N/D | AE139: N/D | AF139: N/D | AG139: N/D | AH139: N/D | AI139: N/D | AJ139: N/D | AK139: N/D | AL139: N/D
B140: [10] >= [10.1] | C140: [10] >= [10.1] | D140: Reguła logiczna: [10] >= [10.1] | E140: x | F140: x | G140: x | H140: x | I140: =IF(I58>=I59,"OK","BŁĄD") -> OK | J140: OK | K140: OK | L140: OK | M140: OK | N140: OK | O140: OK | P140: OK | Q140: OK | R140: OK | S140: OK | T140: OK | U140: OK | V140: OK | W140: OK | X140: OK | Y140: OK | Z140: OK | AA140: OK | AB140: OK | AC140: OK | AD140: OK | AE140: OK | AF140: OK | AG140: OK | AH140: OK | AI140: OK | AJ140: OK | AK140: OK | AL140: OK
C141: jeśli [10] > 0 to powinno być [10.1] > 0 | D141: Reguła logiczna: jeżeli [10] > 0 to [10.1] >0 | E141: x | F141: x | G141: x | H141: x | I141: =IF(I58>0,IF(I59>0,"OK","BŁĄD"),"N/D") -> OK | J141: OK | K141: OK | L141: OK | M141: OK | N141: OK | O141: OK | P141: OK | Q141: OK | R141: OK | S141: N/D | T141: N/D | U141: N/D | V141: N/D | W141: N/D | X141: N/D | Y141: N/D | Z141: N/D | AA141: N/D | AB141: N/D | AC141: N/D | AD141: N/D | AE141: N/D | AF141: N/D | AG141: N/D | AH141: N/D | AI141: N/D | AJ141: N/D | AK141: N/D | AL141: N/D
B142: [12.1] >= [12.1.1] | C142: [12.1] >= [12.1.1] | D142: Reguła logiczna: [12.1] >= [12.1.1] | E142: x | F142: x | G142: x | H142: x | I142: =IF(I70>=I71,"OK","BŁĄD") -> OK | J142: OK | K142: OK | L142: OK | M142: OK | N142: OK | O142: OK | P142: OK | Q142: OK | R142: OK | S142: OK | T142: OK | U142: OK | V142: OK | W142: OK | X142: OK | Y142: OK | Z142: OK | AA142: OK | AB142: OK | AC142: OK | AD142: OK | AE142: OK | AF142: OK | AG142: OK | AH142: OK | AI142: OK | AJ142: OK | AK142: OK | AL142: OK
B143: [12.1.1] >= [12.1.1.1] | C143: [12.1.1] >= [12.1.1.1] | D143: Reguła logiczna: [12.1.1] >= [12.1.1.1] | E143: x | F143: x | G143: x | H143: x | I143: =IF(I71>=I72,"OK","BŁĄD") -> OK | J143: OK | K143: OK | L143: OK | M143: OK | N143: OK | O143: OK | P143: OK | Q143: OK | R143: OK | S143: OK | T143: OK | U143: OK | V143: OK | W143: OK | X143: OK | Y143: OK | Z143: OK | AA143: OK | AB143: OK | AC143: OK | AD143: OK | AE143: OK | AF143: OK | AG143: OK | AH143: OK | AI143: OK | AJ143: OK | AK143: OK | AL143: OK
B144: [12.2] >= [12.2.1] | C144: [12.2] >= [12.2.1] | D144: Reguła logiczna: [12.2] >= [12.2.1] | E144: x | F144: x | G144: x | H144: x | I144: =IF(I73>=I74,"OK","BŁĄD") -> OK | J144: OK | K144: OK | L144: OK | M144: OK | N144: OK | O144: OK | P144: OK | Q144: OK | R144: OK | S144: OK | T144: OK | U144: OK | V144: OK | W144: OK | X144: OK | Y144: OK | Z144: OK | AA144: OK | AB144: OK | AC144: OK | AD144: OK | AE144: OK | AF144: OK | AG144: OK | AH144: OK | AI144: OK | AJ144: OK | AK144: OK | AL144: OK
B145: [12.2.1] >= [12.2.1.1] | C145: [12.2.1] >= [12.2.1.1] | D145: Reguła logiczna: [12.2.1] >= [12.2.1.1] | E145: x | F145: x | G145: x | H145: x | I145: =IF(I74>=I75,"OK","BŁĄD") -> OK | J145: OK | K145: OK | L145: OK | M145: OK | N145: OK | O145: OK | P145: OK | Q145: OK | R145: OK | S145: OK | T145: OK | U145: OK | V145: OK | W145: OK | X145: OK | Y145: OK | Z145: OK | AA145: OK | AB145: OK | AC145: OK | AD145: OK | AE145: OK | AF145: OK | AG145: OK | AH145: OK | AI145: OK | AJ145: OK | AK145: OK | AL145: OK
B146: [12.3] >= [12.3.1] | C146: [12.3] >= [12.3.1] | D146: Reguła logiczna: [12.3] >= [12.3.1] | E146: x | F146: x | G146: x | H146: x | I146: =IF(I76>=I77,"OK","BŁĄD") -> OK | J146: OK | K146: OK | L146: OK | M146: OK | N146: OK | O146: OK | P146: OK | Q146: OK | R146: OK | S146: OK | T146: OK | U146: OK | V146: OK | W146: OK | X146: OK | Y146: OK | Z146: OK | AA146: OK | AB146: OK | AC146: OK | AD146: OK | AE146: OK | AF146: OK | AG146: OK | AH146: OK | AI146: OK | AJ146: OK | AK146: OK | AL146: OK
B147: [12.3] >= [12.3.2] | C147: [12.3] >= [12.3.2] | D147: Reguła logiczna: [12.3] >= [12.3.2] | E147: x | F147: x | G147: x | H147: x | I147: =IF(I76>=I78,"OK","BŁĄD") -> OK | J147: OK | K147: OK | L147: OK | M147: OK | N147: OK | O147: OK | P147: OK | Q147: OK | R147: OK | S147: OK | T147: OK | U147: OK | V147: OK | W147: OK | X147: OK | Y147: OK | Z147: OK | AA147: OK | AB147: OK | AC147: OK | AD147: OK | AE147: OK | AF147: OK | AG147: OK | AH147: OK | AI147: OK | AJ147: OK | AK147: OK | AL147: OK
B148: [12.4] >= [12.4.1] | C148: [12.4] >= [12.4.1] | D148: Reguła logiczna: [12.4] >= [12.4.1] | E148: x | F148: x | G148: x | H148: x | I148: =IF(I79>=I80,"OK","BŁĄD") -> OK | J148: OK | K148: OK | L148: OK | M148: OK | N148: OK | O148: OK | P148: OK | Q148: OK | R148: OK | S148: OK | T148: OK | U148: OK | V148: OK | W148: OK | X148: OK | Y148: OK | Z148: OK | AA148: OK | AB148: OK | AC148: OK | AD148: OK | AE148: OK | AF148: OK | AG148: OK | AH148: OK | AI148: OK | AJ148: OK | AK148: OK | AL148: OK
B149: [12.4] >= [12.4.2] | C149: [12.4] >= [12.4.2] | D149: Reguła logiczna: [12.4] >= [12.4.2] | E149: x | F149: x | G149: x | H149: x | I149: =IF(I79>=I81,"OK","BŁĄD") -> OK | J149: OK | K149: OK | L149: OK | M149: OK | N149: OK | O149: OK | P149: OK | Q149: OK | R149: OK | S149: OK | T149: OK | U149: OK | V149: OK | W149: OK | X149: OK | Y149: OK | Z149: OK | AA149: OK | AB149: OK | AC149: OK | AD149: OK | AE149: OK | AF149: OK | AG149: OK | AH149: OK | AI149: OK | AJ149: OK | AK149: OK | AL149: OK
B150: [12.4] >= [12.4.1] | C150: [12.4] >= [12.4.1] | D150: Reguła logiczna: [12.5] >= [12.5.1] | E150: x | F150: x | G150: x | H150: x | I150: =IF(I82>=I83,"OK","BŁĄD") -> OK | J150: =IF(J82>=J83,"OK","BŁĄD") -> OK | K150: OK | L150: OK | M150: OK | N150: OK | O150: OK | P150: OK | Q150: OK | R150: OK | S150: OK | T150: OK | U150: OK | V150: OK | W150: OK | X150: OK | Y150: OK | Z150: OK | AA150: OK | AB150: OK | AC150: OK | AD150: OK | AE150: OK | AF150: OK | AG150: OK | AH150: OK | AI150: OK | AJ150: OK | AK150: OK | AL150: OK
B151: [12.4] >= [12.4.1] | C151: [12.4] >= [12.4.1] | D151: Reguła logiczna: [12.6] >= [12.6.1] | E151: x | F151: x | G151: x | H151: x | I151: =IF(I84>=I85,"OK","BŁĄD") -> OK | J151: =IF(J84>=J85,"OK","BŁĄD") -> OK | K151: OK | L151: OK | M151: OK | N151: OK | O151: OK | P151: OK | Q151: OK | R151: OK | S151: OK | T151: OK | U151: OK | V151: OK | W151: OK | X151: OK | Y151: OK | Z151: OK | AA151: OK | AB151: OK | AC151: OK | AD151: OK | AE151: OK | AF151: OK | AG151: OK | AH151: OK | AI151: OK | AJ151: OK | AK151: OK | AL151: OK
B152: [12.4] >= [12.4.1] | C152: [12.4] >= [12.4.1] | D152: Reguła logiczna: [12.7] >= [12.7.1] | E152: x | F152: x | G152: x | H152: x | I152: =IF(I86>=I87,"OK","BŁĄD") -> OK | J152: =IF(J86>=J87,"OK","BŁĄD") -> OK | K152: OK | L152: OK | M152: OK | N152: OK | O152: OK | P152: OK | Q152: OK | R152: OK | S152: OK | T152: OK | U152: OK | V152: OK | W152: OK | X152: OK | Y152: OK | Z152: OK | AA152: OK | AB152: OK | AC152: OK | AD152: OK | AE152: OK | AF152: OK | AG152: OK | AH152: OK | AI152: OK | AJ152: OK | AK152: OK | AL152: OK
B153: [12.4] >= [12.4.1] | C153: [12.4] >= [12.4.1] | D153: Reguła logiczna: [12.8] >= [12.8.1] | E153: x | F153: x | G153: x | H153: x | I153: =IF(I88>=I89,"OK","BŁĄD") -> OK | J153: =IF(J88>=J89,"OK","BŁĄD") -> OK | K153: OK | L153: OK | M153: OK | N153: OK | O153: OK | P153: OK | Q153: OK | R153: OK | S153: OK | T153: OK | U153: OK | V153: OK | W153: OK | X153: OK | Y153: OK | Z153: OK | AA153: OK | AB153: OK | AC153: OK | AD153: OK | AE153: OK | AF153: OK | AG153: OK | AH153: OK | AI153: OK | AJ153: OK | AK153: OK | AL153: OK
B154: [13.1] >= [13.3] | C154: [13.1] >= [13.3] | D154: Reguła logiczna: [13.1] >= [13.3] | E154: x | F154: x | G154: x | H154: x | I154: =IF(I91>=I93,"OK","BŁĄD") -> OK | J154: OK | K154: OK | L154: OK | M154: OK | N154: OK | O154: OK | P154: OK | Q154: OK | R154: OK | S154: OK | T154: OK | U154: OK | V154: OK | W154: OK | X154: OK | Y154: OK | Z154: OK | AA154: OK | AB154: OK | AC154: OK | AD154: OK | AE154: OK | AF154: OK | AG154: OK | AH154: OK | AI154: OK | AJ154: OK | AK154: OK | AL154: OK
B155: [13.4] >= [2.1.2] | C155: [13.4] >= [2.1.2] | D155: Reguła logiczna: [13.4] >= [2.1.2] | E155: x | F155: x | G155: x | H155: x | I155: =IF(I94>=I20,"OK","BŁĄD") -> OK | J155: OK | K155: OK | L155: OK | M155: OK | N155: OK | O155: OK | P155: OK | Q155: OK | R155: OK | S155: OK | T155: OK | U155: OK | V155: OK | W155: OK | X155: OK | Y155: OK | Z155: OK | AA155: OK | AB155: OK | AC155: OK | AD155: OK | AE155: OK | AF155: OK | AG155: OK | AH155: OK | AI155: OK | AJ155: OK | AK155: OK | AL155: OK
B156: [14.3] >= [14.3.1] + [14.3.2] + [14.3.3] | C156: [14.3] >= [14.3.1] + [14.3.2] + [14.3.3] | D156: Reguła logiczna: [14.3] >= [14.3.1] + [14.3.2] + [14.3.3] | E156: x | F156: x | G156: x | H156: x | I156: =IF(I101>=(I102+I103+I104),"OK","BŁĄD") -> OK | J156: OK | K156: OK | L156: OK | M156: OK | N156: OK | O156: OK | P156: OK | Q156: OK | R156: OK | S156: OK | T156: OK | U156: OK | V156: OK | W156: OK | X156: OK | Y156: OK | Z156: OK | AA156: OK | AB156: OK | AC156: OK | AD156: OK | AE156: OK | AF156: OK | AG156: OK | AH156: OK | AI156: OK | AJ156: OK | AK156: OK | AL156: OK
B157: [13.1] >= [13.3] | C157: [13.1] >= [13.3] | D157: Reguła logiczna: [15.1] >= [15.1.1] | E157: x | F157: x | G157: x | H157: x | I157: =IF(I107>=I108,"OK","BŁĄD") -> OK | J157: =IF(J107>=J108,"OK","BŁĄD") -> OK | K157: OK | L157: OK | M157: OK | N157: OK | O157: OK | P157: OK | Q157: OK | R157: OK | S157: OK | T157: OK | U157: OK | V157: OK | W157: OK | X157: OK | Y157: OK | Z157: OK | AA157: OK | AB157: OK | AC157: OK | AD157: OK | AE157: OK | AF157: OK | AG157: OK | AH157: OK | AI157: OK | AJ157: OK | AK157: OK | AL157: OK
B158: [2.1.1] >= [2.1.1.1] | C158: [2.1.1] >= [2.1.1.1] | D158: Reguła logiczna: [2.1.1] >= [2.1.1.1] | E158: x | F158: x | G158: x | H158: x | I158: =IF(I18>=I19,"OK","BŁĄD") -> OK | J158: OK | K158: OK | L158: OK | M158: OK | N158: OK | O158: OK | P158: OK | Q158: OK | R158: OK | S158: OK | T158: OK | U158: OK | V158: OK | W158: OK | X158: OK | Y158: OK | Z158: OK | AA158: OK | AB158: OK | AC158: OK | AD158: OK | AE158: OK | AF158: OK | AG158: OK | AH158: OK | AI158: OK | AJ158: OK | AK158: OK | AL158: OK
B159: [2.1.1] >= [14.3.3] | C159: [2.1.1] >= [14.3.3] | D159: Reguła logiczna: [2.1.1] >= [14.3.3] | E159: x | F159: x | G159: x | H159: x | I159: =IF(I18>=I104,"OK","BŁĄD") -> OK | J159: OK | K159: OK | L159: OK | M159: OK | N159: OK | O159: OK | P159: OK | Q159: OK | R159: OK | S159: OK | T159: OK | U159: OK | V159: OK | W159: OK | X159: OK | Y159: OK | Z159: OK | AA159: OK | AB159: OK | AC159: OK | AD159: OK | AE159: OK | AF159: OK | AG159: OK | AH159: OK | AI159: OK | AJ159: OK | AK159: OK | AL159: OK
B160: [2.1.3] >= [2.1.3.1] | C160: [2.1.3] >= [2.1.3.1] | D160: Reguła logiczna: [2.1.3] >= [2.1.3.1] | E160: x | F160: x | G160: x | H160: x | I160: =IF(I21>=I22,"OK","BŁĄD") -> OK | J160: OK | K160: OK | L160: OK | M160: OK | N160: OK | O160: OK | P160: OK | Q160: OK | R160: OK | S160: OK | T160: OK | U160: OK | V160: OK | W160: OK | X160: OK | Y160: OK | Z160: OK | AA160: OK | AB160: OK | AC160: OK | AD160: OK | AE160: OK | AF160: OK | AG160: OK | AH160: OK | AI160: OK | AJ160: OK | AK160: OK | AL160: OK
B161: [2.1.3] >= [2.1.3.1] | C161: [2.1.3] >= [2.1.3.1] | D161: Reguła logiczna: [2.1.3.1] >= [2.1.3.1.1]+[2.1.3.1.2] | E161: x | F161: x | G161: x | H161: x | I161: =IF(I22>=(I23+I24),"OK","BŁĄD") -> OK | J161: =IF(J22>=J23,"OK","BŁĄD") -> OK | K161: OK | L161: OK | M161: OK | N161: OK | O161: OK | P161: OK | Q161: OK | R161: OK | S161: OK | T161: OK | U161: OK | V161: OK | W161: OK | X161: OK | Y161: OK | Z161: OK | AA161: OK | AB161: OK | AC161: OK | AD161: OK | AE161: OK | AF161: OK | AG161: OK | AH161: OK | AI161: OK | AJ161: OK | AK161: OK | AL161: OK
B162: [2.1] >= ([2.1.1] + [2.1.2] + [2.1.3]) | C162: [2.1] >= ([2.1.1] + [2.1.2] + [2.1.3]) | D162: Reguła logiczna: [2.1] >= ([2.1.1] + [2.1.2] + [2.1.3]) | E162: x | F162: x | G162: x | H162: x | I162: =IF(I17>=(I18+I20+I21),"OK","BŁĄD") -> OK | J162: OK | K162: OK | L162: OK | M162: OK | N162: OK | O162: OK | P162: OK | Q162: OK | R162: OK | S162: OK | T162: OK | U162: OK | V162: OK | W162: OK | X162: OK | Y162: OK | Z162: OK | AA162: OK | AB162: OK | AC162: OK | AD162: OK | AE162: OK | AF162: OK | AG162: OK | AH162: OK | AI162: OK | AJ162: OK | AK162: OK | AL162: OK
B163: [2.1] >= [11.1] | C163: [2.1] >= [11.1] | D163: Reguła logiczna: [2.1] >= [11.1] | E163: x | F163: x | G163: x | H163: x | I163: =IF(I17>=I61,"OK","BŁĄD") -> OK | J163: OK | K163: OK | L163: OK | M163: OK | N163: OK | O163: OK | P163: OK | Q163: OK | R163: OK | S163: OK | T163: OK | U163: OK | V163: OK | W163: OK | X163: OK | Y163: OK | Z163: OK | AA163: OK | AB163: OK | AC163: OK | AD163: OK | AE163: OK | AF163: OK | AG163: OK | AH163: OK | AI163: OK | AJ163: OK | AK163: OK | AL163: OK
B164: [2.1] >= [11.3.1] | C164: [2.1] >= [11.3.1] | D164: Reguła logiczna: [2.1] >= [11.3.1] | E164: x | F164: x | G164: x | H164: x | I164: =IF(I17>=I64,"OK","BŁĄD") -> OK | J164: OK | K164: OK | L164: OK | M164: OK | N164: OK | O164: OK | P164: OK | Q164: OK | R164: OK | S164: OK | T164: OK | U164: OK | V164: OK | W164: OK | X164: OK | Y164: OK | Z164: OK | AA164: OK | AB164: OK | AC164: OK | AD164: OK | AE164: OK | AF164: OK | AG164: OK | AH164: OK | AI164: OK | AJ164: OK | AK164: OK | AL164: OK
B165: [2.1] >= [12.3] | C165: [2.1] >= [12.3] | D165: Reguła logiczna: [2.1] >= [12.3] | E165: x | F165: x | G165: x | H165: x | I165: =IF(I17>=I76,"OK","BŁĄD") -> OK | J165: OK | K165: OK | L165: OK | M165: OK | N165: OK | O165: OK | P165: OK | Q165: OK | R165: OK | S165: OK | T165: OK | U165: OK | V165: OK | W165: OK | X165: OK | Y165: OK | Z165: OK | AA165: OK | AB165: OK | AC165: OK | AD165: OK | AE165: OK | AF165: OK | AG165: OK | AH165: OK | AI165: OK | AJ165: OK | AK165: OK | AL165: OK
B166: [2.1] >= [13.7] | C166: [2.1] >= [13.7] | D166: Reguła logiczna: [2.1] >= [13.7] | E166: x | F166: x | G166: x | H166: x | I166: =IF(I17>=I97,"OK","BŁĄD") -> OK | J166: OK | K166: OK | L166: OK | M166: OK | N166: OK | O166: OK | P166: OK | Q166: OK | R166: OK | S166: OK | T166: OK | U166: OK | V166: OK | W166: OK | X166: OK | Y166: OK | Z166: OK | AA166: OK | AB166: OK | AC166: OK | AD166: OK | AE166: OK | AF166: OK | AG166: OK | AH166: OK | AI166: OK | AJ166: OK | AK166: OK | AL166: OK
B167: [2.2] >= [11.3.2] | C167: [2.2] >= [11.3.2] | D167: Reguła logiczna: [2.2] >= [11.3.2] | E167: x | F167: x | G167: x | H167: x | I167: =IF(I25>=I65,"OK","BŁĄD") -> OK | J167: OK | K167: OK | L167: OK | M167: OK | N167: OK | O167: OK | P167: OK | Q167: OK | R167: OK | S167: OK | T167: OK | U167: OK | V167: OK | W167: OK | X167: OK | Y167: OK | Z167: OK | AA167: OK | AB167: OK | AC167: OK | AD167: OK | AE167: OK | AF167: OK | AG167: OK | AH167: OK | AI167: OK | AJ167: OK | AK167: OK | AL167: OK
B168: [2.2] >= [11.4] + [11.5] | C168: [2.2] >= [11.4] + [11.5] | D168: Reguła logiczna: [2.2] >= [11.4] + [11.5] | E168: x | F168: x | G168: x | H168: x | I168: =IF(I25>=I66+I67,"OK","BŁĄD") -> OK | J168: OK | K168: OK | L168: OK | M168: OK | N168: OK | O168: OK | P168: OK | Q168: OK | R168: OK | S168: OK | T168: OK | U168: OK | V168: OK | W168: OK | X168: OK | Y168: OK | Z168: OK | AA168: OK | AB168: OK | AC168: OK | AD168: OK | AE168: OK | AF168: OK | AG168: OK | AH168: OK | AI168: OK | AJ168: OK | AK168: OK | AL168: OK
B169: [2.2] >= [11.6] | C169: [2.2] >= [11.6] | D169: Reguła logiczna: [2.2] >= [11.6] | E169: x | F169: x | G169: x | H169: x | I169: =IF(I25>=I68,"OK","BŁĄD") -> OK | J169: OK | K169: OK | L169: OK | M169: OK | N169: OK | O169: OK | P169: OK | Q169: OK | R169: OK | S169: OK | T169: OK | U169: OK | V169: OK | W169: OK | X169: OK | Y169: OK | Z169: OK | AA169: OK | AB169: OK | AC169: OK | AD169: OK | AE169: OK | AF169: OK | AG169: OK | AH169: OK | AI169: OK | AJ169: OK | AK169: OK | AL169: OK
B170: [2.2] >= [12.4] | C170: [2.2] >= [12.4] | D170: Reguła logiczna: [2.2] >= [12.4] | E170: x | F170: x | G170: x | H170: x | I170: =IF(I25>=I79,"OK","BŁĄD") -> OK | J170: OK | K170: OK | L170: OK | M170: OK | N170: OK | O170: OK | P170: OK | Q170: OK | R170: OK | S170: OK | T170: OK | U170: OK | V170: OK | W170: OK | X170: OK | Y170: OK | Z170: OK | AA170: OK | AB170: OK | AC170: OK | AD170: OK | AE170: OK | AF170: OK | AG170: OK | AH170: OK | AI170: OK | AJ170: OK | AK170: OK | AL170: OK
B171: [4.1] >= [4.1.1] | C171: [4.1] >= [4.1.1] | D171: Reguła logiczna: [4.1] >= [4.1.1] | E171: x | F171: x | G171: x | H171: x | I171: =IF(I28>=I29,"OK","BŁĄD") -> OK | J171: OK | K171: OK | L171: OK | M171: OK | N171: OK | O171: OK | P171: OK | Q171: OK | R171: OK | S171: OK | T171: OK | U171: OK | V171: OK | W171: OK | X171: OK | Y171: OK | Z171: OK | AA171: OK | AB171: OK | AC171: OK | AD171: OK | AE171: OK | AF171: OK | AG171: OK | AH171: OK | AI171: OK | AJ171: OK | AK171: OK | AL171: OK
B172: [4.2] >= [4.2.1] | C172: [4.2] >= [4.2.1] | D172: Reguła logiczna: [4.2] >= [4.2.1] | E172: x | F172: x | G172: x | H172: x | I172: =IF(I30>=I31,"OK","BŁĄD") -> OK | J172: OK | K172: OK | L172: OK | M172: OK | N172: OK | O172: OK | P172: OK | Q172: OK | R172: OK | S172: OK | T172: OK | U172: OK | V172: OK | W172: OK | X172: OK | Y172: OK | Z172: OK | AA172: OK | AB172: OK | AC172: OK | AD172: OK | AE172: OK | AF172: OK | AG172: OK | AH172: OK | AI172: OK | AJ172: OK | AK172: OK | AL172: OK
B173: [4.3] >= [4.3.1] | C173: [4.3] >= [4.3.1] | D173: Reguła logiczna: [4.3] >= [4.3.1] | E173: x | F173: x | G173: x | H173: x | I173: =IF(I32>=I33,"OK","BŁĄD") -> OK | J173: OK | K173: OK | L173: OK | M173: OK | N173: OK | O173: OK | P173: OK | Q173: OK | R173: OK | S173: OK | T173: OK | U173: OK | V173: OK | W173: OK | X173: OK | Y173: OK | Z173: OK | AA173: OK | AB173: OK | AC173: OK | AD173: OK | AE173: OK | AF173: OK | AG173: OK | AH173: OK | AI173: OK | AJ173: OK | AK173: OK | AL173: OK
B174: [4.4] >= [4.4.1] | C174: [4.4] >= [4.4.1] | D174: Reguła logiczna: [4.4] >= [4.4.1] | E174: x | F174: x | G174: x | H174: x | I174: =IF(I34>=I35,"OK","BŁĄD") -> OK | J174: OK | K174: OK | L174: OK | M174: OK | N174: OK | O174: OK | P174: OK | Q174: OK | R174: OK | S174: OK | T174: OK | U174: OK | V174: OK | W174: OK | X174: OK | Y174: OK | Z174: OK | AA174: OK | AB174: OK | AC174: OK | AD174: OK | AE174: OK | AF174: OK | AG174: OK | AH174: OK | AI174: OK | AJ174: OK | AK174: OK | AL174: OK
B175: [5.1] >= [5.1.1] | C175: [5.1] >= [5.1.1] | D175: Reguła logiczna: [5.1] >= [5.1.1] | E175: x | F175: x | G175: x | H175: x | I175: =IF(I37>=I38,"OK","BŁĄD") -> OK | J175: OK | K175: OK | L175: OK | M175: OK | N175: OK | O175: OK | P175: OK | Q175: OK | R175: OK | S175: OK | T175: OK | U175: OK | V175: OK | W175: OK | X175: OK | Y175: OK | Z175: OK | AA175: OK | AB175: OK | AC175: OK | AD175: OK | AE175: OK | AF175: OK | AG175: OK | AH175: OK | AI175: OK | AJ175: OK | AK175: OK | AL175: OK
B176: [5.1] >= [10.1] | C176: [5.1] >= [10.1] | D176: Reguła logiczna: [5.1] >= [10.1] | E176: x | F176: x | G176: x | H176: x | I176: =IF(I37>=I59,"OK","BŁĄD") -> OK | J176: OK | K176: OK | L176: OK | M176: OK | N176: OK | O176: OK | P176: OK | Q176: OK | R176: OK | S176: OK | T176: OK | U176: OK | V176: OK | W176: OK | X176: OK | Y176: OK | Z176: OK | AA176: OK | AB176: OK | AC176: OK | AD176: OK | AE176: OK | AF176: OK | AG176: OK | AH176: OK | AI176: OK | AJ176: OK | AK176: OK | AL176: OK
B177: [5.1] >= [14.1] | C177: [5.1] >= [14.1] | D177: Reguła logiczna: [5.1] >= [14.1] | E177: x | F177: x | G177: x | H177: x | I177: =IF(I37>=I99,"OK","BŁĄD") -> OK | J177: OK | K177: OK | L177: OK | M177: OK | N177: OK | O177: OK | P177: OK | Q177: OK | R177: OK | S177: OK | T177: OK | U177: OK | V177: OK | W177: OK | X177: OK | Y177: OK | Z177: OK | AA177: OK | AB177: OK | AC177: OK | AD177: OK | AE177: OK | AF177: OK | AG177: OK | AH177: OK | AI177: OK | AJ177: OK | AK177: OK | AL177: OK
B178: [6] >=[7] | C178: [6] >=[7] | D178: Reguła logiczna: [6] >=[7] | E178: x | F178: x | G178: x | H178: x | I178: =IF(I43>=I44,"OK","BŁĄD") -> OK | J178: OK | K178: OK | L178: OK | M178: OK | N178: OK | O178: OK | P178: OK | Q178: OK | R178: OK | S178: OK | T178: OK | U178: OK | V178: OK | W178: OK | X178: OK | Y178: OK | Z178: OK | AA178: OK | AB178: OK | AC178: OK | AD178: OK | AE178: OK | AF178: OK | AG178: OK | AH178: OK | AI178: OK | AJ178: OK | AK178: OK | AL178: OK
B179: [6] >= [14.2] | C179: [6] >= [14.2] | D179: Reguła logiczna: [6] >= [14.2] | E179: x | F179: x | G179: x | H179: x | I179: =IF(I43>=I100,"OK","BŁĄD") -> OK | J179: OK | K179: OK | L179: OK | M179: OK | N179: OK | O179: OK | P179: OK | Q179: OK | R179: OK | S179: OK | T179: OK | U179: OK | V179: OK | W179: OK | X179: OK | Y179: OK | Z179: OK | AA179: OK | AB179: OK | AC179: OK | AD179: OK | AE179: OK | AF179: OK | AG179: OK | AH179: OK | AI179: OK | AJ179: OK | AK179: OK | AL179: OK
B180: 7>=13.1 | C180: 7>=13.1 | D180: Reguła logiczna: 7>=13.1 | E180: x | F180: x | G180: x | H180: x | I180: =IF(I44>=I91,"OK","BŁĄD") -> OK | J180: OK | K180: OK | L180: OK | M180: OK | N180: OK | O180: OK | P180: OK | Q180: OK | R180: OK | S180: OK | T180: OK | U180: OK | V180: OK | W180: OK | X180: OK | Y180: OK | Z180: OK | AA180: OK | AB180: OK | AC180: OK | AD180: OK | AE180: OK | AF180: OK | AG180: OK | AH180: OK | AI180: OK | AJ180: OK | AK180: OK | AL180: OK
B181: jeżeli [2.1.3] <> 0 to [2.1.3.1] <> 0 | C181: jeżeli [2.1.3] <> 0 to [2.1.3.1] <> 0 | D181: Reguła logiczna: jeżeli [2.1.3] <> 0 to [2.1.3.1] <> 0 | E181: x | F181: x | G181: x | H181: x | I181: =IF(I21<>0,IF(I22<>0,"OK","BŁĄD"),"N/D") -> OK | J181: OK | K181: OK | L181: OK | M181: OK | N181: OK | O181: OK | P181: OK | Q181: OK | R181: OK | S181: N/D | T181: N/D | U181: N/D | V181: N/D | W181: N/D | X181: N/D | Y181: N/D | Z181: N/D | AA181: N/D | AB181: N/D | AC181: N/D | AD181: N/D | AE181: N/D | AF181: N/D | AG181: N/D | AH181: N/D | AI181: N/D | AJ181: N/D | AK181: N/D | AL181: N/D
D183: Kontrola poprawności podstawowych kwot
D184: Dochody ogółem = bieżące + majątkowe | E184: =E6+E13 -> 17973113.92 | F184: 17392993.42 | G184: 17678787.15 | H184: 17101682.73 | I184: 19443564.07 | J184: 21094929 | K184: 20445387 | L184: 20768748 | M184: 20707811 | N184: 20663045 | O184: 21134936 | P184: 21523984 | Q184: 21930704 | R184: 22555625 | S184: 0 | T184: 0 | U184: 0 | V184: 0 | W184: 0 | X184: 0 | Y184: 0 | Z184: 0 | AA184: 0 | AB184: 0 | AC184: 0 | AD184: 0 | AE184: 0 | AF184: 0 | AG184: 0 | AH184: 0 | AI184: 0 | AJ184: 0 | AK184: 0 | AL184: 0
D185: Wydatki ogółem = bieżące + majątkowe | E185: =E17+E25 -> 17877352.15 | F185: 17186267.02 | G185: 17646787.15 | H185: 16884782.78 | I185: 19043564.07 | J185: 20494929 | K185: 19845387 | L185: 19568748 | M185: 19407811 | N185: 19463045 | O185: 19804936 | P185: 20013984 | Q185: 20382704 | R185: 21812625 | S185: 0 | T185: 0 | U185: 0 | V185: 0 | W185: 0 | X185: 0 | Y185: 0 | Z185: 0 | AA185: 0 | AB185: 0 | AC185: 0 | AD185: 0 | AE185: 0 | AF185: 0 | AG185: 0 | AH185: 0 | AI185: 0 | AJ185: 0 | AK185: 0 | AL185: 0
D186: Wynik budżetu = dochody ogółem - wydatki ogółem | E186: =E5-E16 -> 95761.77 | F186: 206726.4 | G186: 32000 | H186: 216899.95 | I186: 400000 | J186: 600000 | K186: 600000 | L186: 1200000 | M186: 1300000 | N186: 1200000 | O186: 1330000 | P186: 1510000 | Q186: 1548000 | R186: 743000 | S186: 0 | T186: 0 | U186: 0 | V186: 0 | W186: 0 | X186: 0 | Y186: 0 | Z186: 0 | AA186: 0 | AB186: 0 | AC186: 0 | AD186: 0 | AE186: 0 | AF186: 0 | AG186: 0 | AH186: 0 | AI186: 0 | AJ186: 0 | AK186: 0 | AL186: 0
D187: Wyliczenie kwoty długu | E187: x | F187: =E43+F32-F37+(F100-E100)+F105 -> 10540850 | G187: x | H187: =F43+H32-H37+(H100-F100)+H105 -> 10431000 | I187: =H43+I32-I37+(I100-H100)+I105 -> 10719000 | J187: 9995000 | K187: 9275000 | L187: 7958000 | M187: 6545000 | N187: 5236000 | O187: 3801000 | P187: 2291000 | Q187: 743000 | R187: 0 | S187: 0 | T187: 0 | U187: 0 | V187: 0 | W187: 0 | X187: 0 | Y187: 0 | Z187: 0 | AA187: 0 | AB187: 0 | AC187: 0 | AD187: 0 | AE187: 0 | AF187: 0 | AG187: 0 | AH187: 0 | AI187: 0 | AJ187: 0 | AK187: 0 | AL187: 0
D188: Wyliczenie zobowiązań wynikających z przejęcia przez jst zobowiązań po likwidowanych i przekształcanych SZOZ | E188: x | F188: =E91-(F93+F94+F95+F96) -> 0 | G188: x | H188: =F91-(H93+H94+H95+H96) -> 0 | I188: =H91-(I93+I94+I95+I96) -> 0 | J188: 0 | K188: 0 | L188: 0 | M188: 0 | N188: 0 | O188: 0 | P188: 0 | Q188: 0 | R188: 0 | S188: 0 | T188: 0 | U188: 0 | V188: 0 | W188: 0 | X188: 0 | Y188: 0 | Z188: 0 | AA188: 0 | AB188: 0 | AC188: 0 | AD188: 0 | AE188: 0 | AF188: 0 | AG188: 0 | AH188: 0 | AI188: 0 | AJ188: 0 | AK188: 0 | AL188: 0
D190: Analiza ryzyka niespełnienia wskaźnika z art. 243
D191: Analiza składowych wzoru wskaźnika z art. 243
D192: 0 | E192: =+"różnica mniejsza od "&TEXT(D192*100,"0,0")&"%" -> różnica mniejsza od 0,0%
D193: 0.005 | E193: =+"różnica mniejsza od "&TEXT(D193*100,"0,0")&"%" -> różnica mniejsza od 0,5%
D194: 0.01 | E194: =+"różnica mniejsza od "&TEXT(D194*100,"0,0")&"%" -> różnica mniejsza od 1,0%
D195: max. limit spłat (planistyczny) - (R+O)/D (bez wyłączeń) | E195: x | F195: x | G195: x | H195: x | I195: =+IF(I5=0,"",I54-I49) -> 0.0072 | J195: 0.0167 | K195: 0.0246 | L195: 0.009 | M195: 0.0002 | N195: 0.01 | O195: 0.0085 | P195: 0.0083 | Q195: 0.0132 | R195: 0.0542
D196: max. limit spłat (planistyczny) - (R+O)/D (z wyłączeniami) | E196: x | F196: x | G196: x | H196: x | I196: =+IF(I5=0,"",I54-I50) -> 0.0127 | J196: 0.0212 | K196: 0.0282 | L196: 0.012 | M196: 0.0023 | N196: 0.0112 | O196: 0.0094 | P196: 0.009 | Q196: 0.0138 | R196: 0.0548
D197: max. limit spłat (wg wykonania) - (R+O)/D (bez wyłączeń) | E197: x | F197: x | G197: x | H197: x | I197: =+IF(I5=0,"",I55-I49) -> 0.0068 | J197: 0.0163 | K197: 0.0242 | L197: 0.009 | M197: 0.0002 | N197: 0.01 | O197: 0.0085 | P197: 0.0083 | Q197: 0.0132 | R197: 0.0542
D198: max. limit spłat (wg wykonania) - (R+O)/D (z wyłączeniami) | E198: x | F198: x | G198: x | H198: x | I198: =+IF(I5=0,"",I55-I50) -> 0.0123 | J198: 0.0208 | K198: 0.0278 | L198: 0.012 | M198: 0.0023 | N198: 0.0112 | O198: 0.0094 | P198: 0.009 | Q198: 0.0138 | R198: 0.0548

Sheet WPF_AnalizaWsk_ProjektowanieJST
B1: Raport z systemu BeSTi@ - narzędzie opracowane przez Zespół ds. rozwoju technologii IT przy KR RIO | F1: Pola z tłem tego koloru są obliczane automatycznie i nie powinny być nadpisywane w celu ochrony formuł
B2: Niniejsze zestawienie można samodzielnie formatować i modyfikować wartości | F2: Pola z tłem tego koloru są obliczane automatycznie
B3: Układ WPF wg Rozporządzenia Min.Fin. z 10.01.2013 po zmianie z DzU.2013.1736 oraz DzU.2014.1127 | F3: Pola z tłem tego koloru można edytowac wprowadzając nowe wartości (projektowanie WPF i obliczanie wskaźników)
B5: Nr Uchwały: | D5: =DaneZrodlowe!B4 -> test | I5: =D6&" - "&"WPF za lata "&D7&" - Nr Uchwały JST: "&D5 -> WIDUCHOWA - WPF za lata 2016 - 2025 - Nr Uchwały JST: test
B6: Nazwa JST: | D6: =DaneZrodlowe!C4 -> WIDUCHOWA
B7: WPF za lata: | D7: =CONCATENATE(DaneZrodlowe!N1," - ",DaneZrodlowe!Q1) -> 2016 - 2025 | J7: zaokrąglaj wskaźniki procentowe do liczby miejsc po przecinku: | K7: 2
E8: Wykonanie | G8: Plan 3 kw. | H8: Wykonanie | I8: ="" -> 
A9: X | B9: Lp. | C9: Formuła | D9: Wyszczególnienie | E9: =+F9-1 -> 2013 | F9: =+G9-1 -> 2014 | G9: =+H9 -> 2015 | H9: =+I9-1 -> 2015 | I9: =+DaneZrodlowe!$N$1 -> 2016 | J9: =+I9+1 -> 2017 | K9: =+J9+1 -> 2018 | L9: 2019 | M9: 2020 | N9: 2021 | O9: 2022 | P9: 2023 | Q9: 2024 | R9: 2025 | S9: 2026 | T9: 2027 | U9: 2028 | V9: 2029 | W9: 2030 | X9: 2031 | Y9: 2032 | Z9: 2033 | AA9: 2034 | AB9: 2035 | AC9: 2036 | AD9: 2037 | AE9: 2038 | AF9: 2039 | AG9: 2040 | AH9: 2041 | AI9: 2042 | AJ9: 2043 | AK9: 2044 | AL9: 2045
A10: x | B10: 1 | C10: [1.1]+[1.2] | D10: Dochody ogółem | E10: =Zał.1_WPF_bazowy!E5 -> 17973113.92 | F10: =Zał.1_WPF_bazowy!F5 -> 17392993.42 | G10: =Zał.1_WPF_bazowy!G5 -> 17678787.15 | H10: =+H11+H18 -> 17101682.73 | I10: =+I11+I18 -> 19443564.07 | J10: =+J11+J18 -> 21094929 | K10: 20445387 | L10: 20768748 | M10: 20707811 | N10: 20663045 | O10: 21134936 | P10: 21523984 | Q10: 21930704 | R10: 22555625 | S10: 0 | T10: 0 | U10: 0 | V10: 0 | W10: 0 | X10: 0 | Y10: 0 | Z10: 0 | AA10: 0 | AB10: 0 | AC10: 0 | AD10: 0 | AE10: 0 | AF10: 0 | AG10: 0 | AH10: 0 | AI10: 0 | AJ10: 0 | AK10: 0 | AL10: 0
A11: x | B11: 1.1 | D11: Dochody bieżące | E11: =Zał.1_WPF_bazowy!E6 -> 16880945.99 | F11: =Zał.1_WPF_bazowy!F6 -> 17056473.25 | G11: =Zał.1_WPF_bazowy!G6 -> 16787969.73 | H11: =Zał.1_WPF_bazowy!H6 -> 16811380.25 | I11: =+Zał.1_WPF_bazowy!I6 -> 18580564.07 | J11: =+Zał.1_WPF_bazowy!J6 -> 19522329 | K11: =+Zał.1_WPF_bazowy!K6 -> 20045387 | L11: =+Zał.1_WPF_bazowy!L6 -> 20368748 | M11: =+Zał.1_WPF_bazowy!M6 -> 20307811 | N11: =+Zał.1_WPF_bazowy!N6 -> 20363045 | O11: =+Zał.1_WPF_bazowy!O6 -> 20834936 | P11: =+Zał.1_WPF_bazowy!P6 -> 21223984 | Q11: =+Zał.1_WPF_bazowy!Q6 -> 21630704 | R11: =+Zał.1_WPF_bazowy!R6 -> 22255625 | S11: =+Zał.1_WPF_bazowy!S6 -> 0 | T11: =+Zał.1_WPF_bazowy!T6 -> 0 | U11: =+Zał.1_WPF_bazowy!U6 -> 0 | V11: =+Zał.1_WPF_bazowy!V6 -> 0 | W11: =+Zał.1_WPF_bazowy!W6 -> 0 | X11: =+Zał.1_WPF_bazowy!X6 -> 0 | Y11: =+Zał.1_WPF_bazowy!Y6 -> 0 | Z11: =+Zał.1_WPF_bazowy!Z6 -> 0 | AA11: =+Zał.1_WPF_bazowy!AA6 -> 0 | AB11: =+Zał.1_WPF_bazowy!AB6 -> 0 | AC11: =+Zał.1_WPF_bazowy!AC6 -> 0 | AD11: =+Zał.1_WPF_bazowy!AD6 -> 0 | AE11: =+Zał.1_WPF_bazowy!AE6 -> 0 | AF11: =+Zał.1_WPF_bazowy!AF6 -> 0 | AG11: =+Zał.1_WPF_bazowy!AG6 -> 0 | AH11: =+Zał.1_WPF_bazowy!AH6 -> 0 | AI11: =+Zał.1_WPF_bazowy!AI6 -> 0 | AJ11: =+Zał.1_WPF_bazowy!AJ6 -> 0 | AK11: =+Zał.1_WPF_bazowy!AK6 -> 0 | AL11: =+Zał.1_WPF_bazowy!AL6 -> 0
B12: 1.1.1 | D12: dochody z tytułu udziału we wpływach z podatku dochodowego od osób fizycznych | E12: =Zał.1_WPF_bazowy!E7 -> 1411221 | F12: =Zał.1_WPF_bazowy!F7 -> 1673051 | G12: =Zał.1_WPF_bazowy!G7 -> 1903237 | H12: =Zał.1_WPF_bazowy!H7 -> 1919798 | I12: =+Zał.1_WPF_bazowy!I7 -> 1930520 | J12: =+Zał.1_WPF_bazowy!J7 -> 2000000 | K12: =+Zał.1_WPF_bazowy!K7 -> 2100000 | L12: =+Zał.1_WPF_bazowy!L7 -> 2100000 | M12: =+Zał.1_WPF_bazowy!M7 -> 2100000 | N12: =+Zał.1_WPF_bazowy!N7 -> 2200000 | O12: =+Zał.1_WPF_bazowy!O7 -> 2250000 | P12: =+Zał.1_WPF_bazowy!P7 -> 2300000 | Q12: =+Zał.1_WPF_bazowy!Q7 -> 2350000 | R12: =+Zał.1_WPF_bazowy!R7 -> 2400000 | S12: =+Zał.1_WPF_bazowy!S7 -> 0 | T12: =+Zał.1_WPF_bazowy!T7 -> 0 | U12: =+Zał.1_WPF_bazowy!U7 -> 0 | V12: =+Zał.1_WPF_bazowy!V7 -> 0 | W12: =+Zał.1_WPF_bazowy!W7 -> 0 | X12: =+Zał.1_WPF_bazowy!X7 -> 0 | Y12: =+Zał.1_WPF_bazowy!Y7 -> 0 | Z12: =+Zał.1_WPF_bazowy!Z7 -> 0 | AA12: =+Zał.1_WPF_bazowy!AA7 -> 0 | AB12: =+Zał.1_WPF_bazowy!AB7 -> 0 | AC12: =+Zał.1_WPF_bazowy!AC7 -> 0 | AD12: =+Zał.1_WPF_bazowy!AD7 -> 0 | AE12: =+Zał.1_WPF_bazowy!AE7 -> 0 | AF12: =+Zał.1_WPF_bazowy!AF7 -> 0 | AG12: =+Zał.1_WPF_bazowy!AG7 -> 0 | AH12: =+Zał.1_WPF_bazowy!AH7 -> 0 | AI12: =+Zał.1_WPF_bazowy!AI7 -> 0 | AJ12: =+Zał.1_WPF_bazowy!AJ7 -> 0 | AK12: =+Zał.1_WPF_bazowy!AK7 -> 0 | AL12: =+Zał.1_WPF_bazowy!AL7 -> 0
B13: 1.1.2 | D13: dochody z tytułu udziału we wpływach z podatku dochodowego od osób prawnych | E13: =Zał.1_WPF_bazowy!E8 -> 16121.53 | F13: =Zał.1_WPF_bazowy!F8 -> 8401.41 | G13: =Zał.1_WPF_bazowy!G8 -> 13000 | H13: =Zał.1_WPF_bazowy!H8 -> 3238.59 | I13: =+Zał.1_WPF_bazowy!I8 -> 3000 | J13: =+Zał.1_WPF_bazowy!J8 -> 8000 | K13: =+Zał.1_WPF_bazowy!K8 -> 9000 | L13: =+Zał.1_WPF_bazowy!L8 -> 10000 | M13: =+Zał.1_WPF_bazowy!M8 -> 11000 | N13: =+Zał.1_WPF_bazowy!N8 -> 12000 | O13: =+Zał.1_WPF_bazowy!O8 -> 13000 | P13: =+Zał.1_WPF_bazowy!P8 -> 14000 | Q13: =+Zał.1_WPF_bazowy!Q8 -> 15000 | R13: =+Zał.1_WPF_bazowy!R8 -> 16000 | S13: =+Zał.1_WPF_bazowy!S8 -> 0 | T13: =+Zał.1_WPF_bazowy!T8 -> 0 | U13: =+Zał.1_WPF_bazowy!U8 -> 0 | V13: =+Zał.1_WPF_bazowy!V8 -> 0 | W13: =+Zał.1_WPF_bazowy!W8 -> 0 | X13: =+Zał.1_WPF_bazowy!X8 -> 0 | Y13: =+Zał.1_WPF_bazowy!Y8 -> 0 | Z13: =+Zał.1_WPF_bazowy!Z8 -> 0 | AA13: =+Zał.1_WPF_bazowy!AA8 -> 0 | AB13: =+Zał.1_WPF_bazowy!AB8 -> 0 | AC13: =+Zał.1_WPF_bazowy!AC8 -> 0 | AD13: =+Zał.1_WPF_bazowy!AD8 -> 0 | AE13: =+Zał.1_WPF_bazowy!AE8 -> 0 | AF13: =+Zał.1_WPF_bazowy!AF8 -> 0 | AG13: =+Zał.1_WPF_bazowy!AG8 -> 0 | AH13: =+Zał.1_WPF_bazowy!AH8 -> 0 | AI13: =+Zał.1_WPF_bazowy!AI8 -> 0 | AJ13: =+Zał.1_WPF_bazowy!AJ8 -> 0 | AK13: =+Zał.1_WPF_bazowy!AK8 -> 0 | AL13: =+Zał.1_WPF_bazowy!AL8 -> 0
B14: 1.1.3 | D14: podatki i opłaty | E14: =Zał.1_WPF_bazowy!E9 -> 4978057.92 | F14: =Zał.1_WPF_bazowy!F9 -> 4929544.81 | G14: =Zał.1_WPF_bazowy!G9 -> 5065013 | H14: =Zał.1_WPF_bazowy!H9 -> 5000956.35 | I14: =+Zał.1_WPF_bazowy!I9 -> 3971378 | J14: =+Zał.1_WPF_bazowy!J9 -> 4083000 | K14: =+Zał.1_WPF_bazowy!K9 -> 4242000 | L14: =+Zał.1_WPF_bazowy!L9 -> 4405000 | M14: =+Zał.1_WPF_bazowy!M9 -> 4573000 | N14: =+Zał.1_WPF_bazowy!N9 -> 4900000 | O14: =+Zał.1_WPF_bazowy!O9 -> 5000000 | P14: =+Zał.1_WPF_bazowy!P9 -> 5180000 | Q14: =+Zał.1_WPF_bazowy!Q9 -> 5298000 | R14: =+Zał.1_WPF_bazowy!R9 -> 5493000 | S14: =+Zał.1_WPF_bazowy!S9 -> 0 | T14: =+Zał.1_WPF_bazowy!T9 -> 0 | U14: =+Zał.1_WPF_bazowy!U9 -> 0 | V14: =+Zał.1_WPF_bazowy!V9 -> 0 | W14: =+Zał.1_WPF_bazowy!W9 -> 0 | X14: =+Zał.1_WPF_bazowy!X9 -> 0 | Y14: =+Zał.1_WPF_bazowy!Y9 -> 0 | Z14: =+Zał.1_WPF_bazowy!Z9 -> 0 | AA14: =+Zał.1_WPF_bazowy!AA9 -> 0 | AB14: =+Zał.1_WPF_bazowy!AB9 -> 0 | AC14: =+Zał.1_WPF_bazowy!AC9 -> 0 | AD14: =+Zał.1_WPF_bazowy!AD9 -> 0 | AE14: =+Zał.1_WPF_bazowy!AE9 -> 0 | AF14: =+Zał.1_WPF_bazowy!AF9 -> 0 | AG14: =+Zał.1_WPF_bazowy!AG9 -> 0 | AH14: =+Zał.1_WPF_bazowy!AH9 -> 0 | AI14: =+Zał.1_WPF_bazowy!AI9 -> 0 | AJ14: =+Zał.1_WPF_bazowy!AJ9 -> 0 | AK14: =+Zał.1_WPF_bazowy!AK9 -> 0 | AL14: =+Zał.1_WPF_bazowy!AL9 -> 0
B15: 1.1.3.1 | D15: z podatku od nieruchomości | E15: =Zał.1_WPF_bazowy!E10 -> 2987844.55 | F15: =Zał.1_WPF_bazowy!F10 -> 2990336.23 | G15: =Zał.1_WPF_bazowy!G10 -> 3016000 | H15: =Zał.1_WPF_bazowy!H10 -> 3054437.86 | I15: =+Zał.1_WPF_bazowy!I10 -> 1920000 | J15: =+Zał.1_WPF_bazowy!J10 -> 1930000 | K15: =+Zał.1_WPF_bazowy!K10 -> 2013000 | L15: =+Zał.1_WPF_bazowy!L10 -> 2109000 | M15: =+Zał.1_WPF_bazowy!M10 -> 2209000 | N15: =+Zał.1_WPF_bazowy!N10 -> 2311000 | O15: =+Zał.1_WPF_bazowy!O10 -> 2416000 | P15: =+Zał.1_WPF_bazowy!P10 -> 2525000 | Q15: =+Zał.1_WPF_bazowy!Q10 -> 2636000 | R15: =+Zał.1_WPF_bazowy!R10 -> 2752000 | S15: =+Zał.1_WPF_bazowy!S10 -> 0 | T15: =+Zał.1_WPF_bazowy!T10 -> 0 | U15: =+Zał.1_WPF_bazowy!U10 -> 0 | V15: =+Zał.1_WPF_bazowy!V10 -> 0 | W15: =+Zał.1_WPF_bazowy!W10 -> 0 | X15: =+Zał.1_WPF_bazowy!X10 -> 0 | Y15: =+Zał.1_WPF_bazowy!Y10 -> 0 | Z15: =+Zał.1_WPF_bazowy!Z10 -> 0 | AA15: =+Zał.1_WPF_bazowy!AA10 -> 0 | AB15: =+Zał.1_WPF_bazowy!AB10 -> 0 | AC15: =+Zał.1_WPF_bazowy!AC10 -> 0 | AD15: =+Zał.1_WPF_bazowy!AD10 -> 0 | AE15: =+Zał.1_WPF_bazowy!AE10 -> 0 | AF15: =+Zał.1_WPF_bazowy!AF10 -> 0 | AG15: =+Zał.1_WPF_bazowy!AG10 -> 0 | AH15: =+Zał.1_WPF_bazowy!AH10 -> 0 | AI15: =+Zał.1_WPF_bazowy!AI10 -> 0 | AJ15: =+Zał.1_WPF_bazowy!AJ10 -> 0 | AK15: =+Zał.1_WPF_bazowy!AK10 -> 0 | AL15: =+Zał.1_WPF_bazowy!AL10 -> 0
B16: 1.1.4 | D16: z subwencji ogólnej | E16: =Zał.1_WPF_bazowy!E11 -> 6023919 | F16: =Zał.1_WPF_bazowy!F11 -> 5676996 | G16: =Zał.1_WPF_bazowy!G11 -> 5458757 | H16: =Zał.1_WPF_bazowy!H11 -> 5458757 | I16: =+Zał.1_WPF_bazowy!I11 -> 5855736 | J16: =+Zał.1_WPF_bazowy!J11 -> 5800000 | K16: =+Zał.1_WPF_bazowy!K11 -> 5900000 | L16: =+Zał.1_WPF_bazowy!L11 -> 6000000 | M16: =+Zał.1_WPF_bazowy!M11 -> 6022000 | N16: =+Zał.1_WPF_bazowy!N11 -> 6133000 | O16: =+Zał.1_WPF_bazowy!O11 -> 6250000 | P16: =+Zał.1_WPF_bazowy!P11 -> 6400000 | Q16: =+Zał.1_WPF_bazowy!Q11 -> 6450000 | R16: =+Zał.1_WPF_bazowy!R11 -> 6500000 | S16: =+Zał.1_WPF_bazowy!S11 -> 0 | T16: =+Zał.1_WPF_bazowy!T11 -> 0 | U16: =+Zał.1_WPF_bazowy!U11 -> 0 | V16: =+Zał.1_WPF_bazowy!V11 -> 0 | W16: =+Zał.1_WPF_bazowy!W11 -> 0 | X16: =+Zał.1_WPF_bazowy!X11 -> 0 | Y16: =+Zał.1_WPF_bazowy!Y11 -> 0 | Z16: =+Zał.1_WPF_bazowy!Z11 -> 0 | AA16: =+Zał.1_WPF_bazowy!AA11 -> 0 | AB16: =+Zał.1_WPF_bazowy!AB11 -> 0 | AC16: =+Zał.1_WPF_bazowy!AC11 -> 0 | AD16: =+Zał.1_WPF_bazowy!AD11 -> 0 | AE16: =+Zał.1_WPF_bazowy!AE11 -> 0 | AF16: =+Zał.1_WPF_bazowy!AF11 -> 0 | AG16: =+Zał.1_WPF_bazowy!AG11 -> 0 | AH16: =+Zał.1_WPF_bazowy!AH11 -> 0 | AI16: =+Zał.1_WPF_bazowy!AI11 -> 0 | AJ16: =+Zał.1_WPF_bazowy!AJ11 -> 0 | AK16: =+Zał.1_WPF_bazowy!AK11 -> 0 | AL16: =+Zał.1_WPF_bazowy!AL11 -> 0
B17: 1.1.5 | D17: z tytułu dotacji i środków przeznaczonych na cele bieżące | E17: =Zał.1_WPF_bazowy!E12 -> 3962405.56 | F17: =Zał.1_WPF_bazowy!F12 -> 4287663.44 | G17: =Zał.1_WPF_bazowy!G12 -> 3889573.73 | H17: =Zał.1_WPF_bazowy!H12 -> 4019037.08 | I17: =+Zał.1_WPF_bazowy!I12 -> 5259568.07 | J17: =+Zał.1_WPF_bazowy!J12 -> 7500000 | K17: =+Zał.1_WPF_bazowy!K12 -> 7550000 | L17: =+Zał.1_WPF_bazowy!L12 -> 7350000 | M17: =+Zał.1_WPF_bazowy!M12 -> 6900000 | N17: =+Zał.1_WPF_bazowy!N12 -> 7090000 | O17: =+Zał.1_WPF_bazowy!O12 -> 7200000 | P17: =+Zał.1_WPF_bazowy!P12 -> 7250000 | Q17: =+Zał.1_WPF_bazowy!Q12 -> 7450000 | R17: =+Zał.1_WPF_bazowy!R12 -> 7600000 | S17: =+Zał.1_WPF_bazowy!S12 -> 0 | T17: =+Zał.1_WPF_bazowy!T12 -> 0 | U17: =+Zał.1_WPF_bazowy!U12 -> 0 | V17: =+Zał.1_WPF_bazowy!V12 -> 0 | W17: =+Zał.1_WPF_bazowy!W12 -> 0 | X17: =+Zał.1_WPF_bazowy!X12 -> 0 | Y17: =+Zał.1_WPF_bazowy!Y12 -> 0 | Z17: =+Zał.1_WPF_bazowy!Z12 -> 0 | AA17: =+Zał.1_WPF_bazowy!AA12 -> 0 | AB17: =+Zał.1_WPF_bazowy!AB12 -> 0 | AC17: =+Zał.1_WPF_bazowy!AC12 -> 0 | AD17: =+Zał.1_WPF_bazowy!AD12 -> 0 | AE17: =+Zał.1_WPF_bazowy!AE12 -> 0 | AF17: =+Zał.1_WPF_bazowy!AF12 -> 0 | AG17: =+Zał.1_WPF_bazowy!AG12 -> 0 | AH17: =+Zał.1_WPF_bazowy!AH12 -> 0 | AI17: =+Zał.1_WPF_bazowy!AI12 -> 0 | AJ17: =+Zał.1_WPF_bazowy!AJ12 -> 0 | AK17: =+Zał.1_WPF_bazowy!AK12 -> 0 | AL17: =+Zał.1_WPF_bazowy!AL12 -> 0
A18: x | B18: 1.2 | D18: Dochody majątkowe, w tym | E18: =Zał.1_WPF_bazowy!E13 -> 1092167.93 | F18: =Zał.1_WPF_bazowy!F13 -> 336520.17 | G18: =Zał.1_WPF_bazowy!G13 -> 890817.42 | H18: =Zał.1_WPF_bazowy!H13 -> 290302.48 | I18: =+Zał.1_WPF_bazowy!I13 -> 863000 | J18: =+Zał.1_WPF_bazowy!J13 -> 1572600 | K18: =+Zał.1_WPF_bazowy!K13 -> 400000 | L18: =+Zał.1_WPF_bazowy!L13 -> 400000 | M18: =+Zał.1_WPF_bazowy!M13 -> 400000 | N18: =+Zał.1_WPF_bazowy!N13 -> 300000 | O18: =+Zał.1_WPF_bazowy!O13 -> 300000 | P18: =+Zał.1_WPF_bazowy!P13 -> 300000 | Q18: =+Zał.1_WPF_bazowy!Q13 -> 300000 | R18: =+Zał.1_WPF_bazowy!R13 -> 300000 | S18: =+Zał.1_WPF_bazowy!S13 -> 0 | T18: =+Zał.1_WPF_bazowy!T13 -> 0 | U18: =+Zał.1_WPF_bazowy!U13 -> 0 | V18: =+Zał.1_WPF_bazowy!V13 -> 0 | W18: =+Zał.1_WPF_bazowy!W13 -> 0 | X18: =+Zał.1_WPF_bazowy!X13 -> 0 | Y18: =+Zał.1_WPF_bazowy!Y13 -> 0 | Z18: =+Zał.1_WPF_bazowy!Z13 -> 0 | AA18: =+Zał.1_WPF_bazowy!AA13 -> 0 | AB18: =+Zał.1_WPF_bazowy!AB13 -> 0 | AC18: =+Zał.1_WPF_bazowy!AC13 -> 0 | AD18: =+Zał.1_WPF_bazowy!AD13 -> 0 | AE18: =+Zał.1_WPF_bazowy!AE13 -> 0 | AF18: =+Zał.1_WPF_bazowy!AF13 -> 0 | AG18: =+Zał.1_WPF_bazowy!AG13 -> 0 | AH18: =+Zał.1_WPF_bazowy!AH13 -> 0 | AI18: =+Zał.1_WPF_bazowy!AI13 -> 0 | AJ18: =+Zał.1_WPF_bazowy!AJ13 -> 0 | AK18: =+Zał.1_WPF_bazowy!AK13 -> 0 | AL18: =+Zał.1_WPF_bazowy!AL13 -> 0
A19: x | B19: 1.2.1 | D19: ze sprzedaży majątku | E19: =Zał.1_WPF_bazowy!E14 -> 138368.5 | F19: =Zał.1_WPF_bazowy!F14 -> 179740.6 | G19: =Zał.1_WPF_bazowy!G14 -> 596000 | H19: =Zał.1_WPF_bazowy!H14 -> 222848.13 | I19: =+Zał.1_WPF_bazowy!I14 -> 391378 | J19: =+Zał.1_WPF_bazowy!J14 -> 300000 | K19: =+Zał.1_WPF_bazowy!K14 -> 400000 | L19: =+Zał.1_WPF_bazowy!L14 -> 400000 | M19: =+Zał.1_WPF_bazowy!M14 -> 400000 | N19: =+Zał.1_WPF_bazowy!N14 -> 300000 | O19: =+Zał.1_WPF_bazowy!O14 -> 300000 | P19: =+Zał.1_WPF_bazowy!P14 -> 300000 | Q19: =+Zał.1_WPF_bazowy!Q14 -> 300000 | R19: =+Zał.1_WPF_bazowy!R14 -> 300000 | S19: =+Zał.1_WPF_bazowy!S14 -> 0 | T19: =+Zał.1_WPF_bazowy!T14 -> 0 | U19: =+Zał.1_WPF_bazowy!U14 -> 0 | V19: =+Zał.1_WPF_bazowy!V14 -> 0 | W19: =+Zał.1_WPF_bazowy!W14 -> 0 | X19: =+Zał.1_WPF_bazowy!X14 -> 0 | Y19: =+Zał.1_WPF_bazowy!Y14 -> 0 | Z19: =+Zał.1_WPF_bazowy!Z14 -> 0 | AA19: =+Zał.1_WPF_bazowy!AA14 -> 0 | AB19: =+Zał.1_WPF_bazowy!AB14 -> 0 | AC19: =+Zał.1_WPF_bazowy!AC14 -> 0 | AD19: =+Zał.1_WPF_bazowy!AD14 -> 0 | AE19: =+Zał.1_WPF_bazowy!AE14 -> 0 | AF19: =+Zał.1_WPF_bazowy!AF14 -> 0 | AG19: =+Zał.1_WPF_bazowy!AG14 -> 0 | AH19: =+Zał.1_WPF_bazowy!AH14 -> 0 | AI19: =+Zał.1_WPF_bazowy!AI14 -> 0 | AJ19: =+Zał.1_WPF_bazowy!AJ14 -> 0 | AK19: =+Zał.1_WPF_bazowy!AK14 -> 0 | AL19: =+Zał.1_WPF_bazowy!AL14 -> 0
B20: 1.2.2 | D20: z tytułu dotacji oraz środków przeznaczonych na inwestycje | E20: =Zał.1_WPF_bazowy!E15 -> 941977.06 | F20: =Zał.1_WPF_bazowy!F15 -> 148162.3 | G20: =Zał.1_WPF_bazowy!G15 -> 286278.42 | H20: =Zał.1_WPF_bazowy!H15 -> 55441.71 | I20: =+Zał.1_WPF_bazowy!I15 -> 462622 | J20: =+Zał.1_WPF_bazowy!J15 -> 1272600 | K20: =+Zał.1_WPF_bazowy!K15 -> 0 | L20: =+Zał.1_WPF_bazowy!L15 -> 0 | M20: =+Zał.1_WPF_bazowy!M15 -> 0 | N20: =+Zał.1_WPF_bazowy!N15 -> 0 | O20: =+Zał.1_WPF_bazowy!O15 -> 0 | P20: =+Zał.1_WPF_bazowy!P15 -> 0 | Q20: =+Zał.1_WPF_bazowy!Q15 -> 0 | R20: =+Zał.1_WPF_bazowy!R15 -> 0 | S20: =+Zał.1_WPF_bazowy!S15 -> 0 | T20: =+Zał.1_WPF_bazowy!T15 -> 0 | U20: =+Zał.1_WPF_bazowy!U15 -> 0 | V20: =+Zał.1_WPF_bazowy!V15 -> 0 | W20: =+Zał.1_WPF_bazowy!W15 -> 0 | X20: =+Zał.1_WPF_bazowy!X15 -> 0 | Y20: =+Zał.1_WPF_bazowy!Y15 -> 0 | Z20: =+Zał.1_WPF_bazowy!Z15 -> 0 | AA20: =+Zał.1_WPF_bazowy!AA15 -> 0 | AB20: =+Zał.1_WPF_bazowy!AB15 -> 0 | AC20: =+Zał.1_WPF_bazowy!AC15 -> 0 | AD20: =+Zał.1_WPF_bazowy!AD15 -> 0 | AE20: =+Zał.1_WPF_bazowy!AE15 -> 0 | AF20: =+Zał.1_WPF_bazowy!AF15 -> 0 | AG20: =+Zał.1_WPF_bazowy!AG15 -> 0 | AH20: =+Zał.1_WPF_bazowy!AH15 -> 0 | AI20: =+Zał.1_WPF_bazowy!AI15 -> 0 | AJ20: =+Zał.1_WPF_bazowy!AJ15 -> 0 | AK20: =+Zał.1_WPF_bazowy!AK15 -> 0 | AL20: =+Zał.1_WPF_bazowy!AL15 -> 0
A21: x | B21: 2 | C21: [2.1]+[2.2] | D21: Wydatki ogółem | E21: =Zał.1_WPF_bazowy!E16 -> 17877352.15 | F21: =Zał.1_WPF_bazowy!F16 -> 17186267.02 | G21: =Zał.1_WPF_bazowy!G16 -> 17646787.15 | H21: =+H22+H30 -> 16884782.78 | I21: =+I22+I30 -> 19043564.07 | J21: =+J22+J30 -> 20494929 | K21: 19845387 | L21: 19568748 | M21: 19407811 | N21: 19463045 | O21: 19804936 | P21: 20013984 | Q21: 20382704 | R21: 21812625 | S21: 0 | T21: 0 | U21: 0 | V21: 0 | W21: 0 | X21: 0 | Y21: 0 | Z21: 0 | AA21: 0 | AB21: 0 | AC21: 0 | AD21: 0 | AE21: 0 | AF21: 0 | AG21: 0 | AH21: 0 | AI21: 0 | AJ21: 0 | AK21: 0 | AL21: 0
A22: x | B22: 2.1 | D22: Wydatki bieżące, w tym: | E22: =Zał.1_WPF_bazowy!E17 -> 16184466.65 | F22: =Zał.1_WPF_bazowy!F17 -> 16441428.08 | G22: =Zał.1_WPF_bazowy!G17 -> 16609410.73 | H22: =Zał.1_WPF_bazowy!H17 -> 16307675.05 | I22: =+Zał.1_WPF_bazowy!I17 -> 17135413.07 | J22: =+Zał.1_WPF_bazowy!J17 -> 18333929 | K22: =+Zał.1_WPF_bazowy!K17 -> 18841237 | L22: =+Zał.1_WPF_bazowy!L17 -> 19161844 | M22: =+Zał.1_WPF_bazowy!M17 -> 19060149 | N22: =+Zał.1_WPF_bazowy!N17 -> 18966564 | O22: =+Zał.1_WPF_bazowy!O17 -> 19193510 | P22: =+Zał.1_WPF_bazowy!P17 -> 19627425 | Q22: =+Zał.1_WPF_bazowy!Q17 -> 20066759 | R22: =+Zał.1_WPF_bazowy!R17 -> 20518971 | S22: =+Zał.1_WPF_bazowy!S17 -> 0 | T22: =+Zał.1_WPF_bazowy!T17 -> 0 | U22: =+Zał.1_WPF_bazowy!U17 -> 0 | V22: =+Zał.1_WPF_bazowy!V17 -> 0 | W22: =+Zał.1_WPF_bazowy!W17 -> 0 | X22: =+Zał.1_WPF_bazowy!X17 -> 0 | Y22: =+Zał.1_WPF_bazowy!Y17 -> 0 | Z22: =+Zał.1_WPF_bazowy!Z17 -> 0 | AA22: =+Zał.1_WPF_bazowy!AA17 -> 0 | AB22: =+Zał.1_WPF_bazowy!AB17 -> 0 | AC22: =+Zał.1_WPF_bazowy!AC17 -> 0 | AD22: =+Zał.1_WPF_bazowy!AD17 -> 0 | AE22: =+Zał.1_WPF_bazowy!AE17 -> 0 | AF22: =+Zał.1_WPF_bazowy!AF17 -> 0 | AG22: =+Zał.1_WPF_bazowy!AG17 -> 0 | AH22: =+Zał.1_WPF_bazowy!AH17 -> 0 | AI22: =+Zał.1_WPF_bazowy!AI17 -> 0 | AJ22: =+Zał.1_WPF_bazowy!AJ17 -> 0 | AK22: =+Zał.1_WPF_bazowy!AK17 -> 0 | AL22: =+Zał.1_WPF_bazowy!AL17 -> 0
A23: x | B23: 2.1.1 | D23: z tytułu poręczeń i gwarancji | E23: =Zał.1_WPF_bazowy!E18 -> 0 | F23: =Zał.1_WPF_bazowy!F18 -> 0 | G23: =Zał.1_WPF_bazowy!G18 -> 0 | H23: =Zał.1_WPF_bazowy!H18 -> 0 | I23: =+Zał.1_WPF_bazowy!I18 -> 0 | J23: =+Zał.1_WPF_bazowy!J18 -> 0 | K23: =+Zał.1_WPF_bazowy!K18 -> 0 | L23: =+Zał.1_WPF_bazowy!L18 -> 0 | M23: =+Zał.1_WPF_bazowy!M18 -> 0 | N23: =+Zał.1_WPF_bazowy!N18 -> 0 | O23: =+Zał.1_WPF_bazowy!O18 -> 0 | P23: =+Zał.1_WPF_bazowy!P18 -> 0 | Q23: =+Zał.1_WPF_bazowy!Q18 -> 0 | R23: =+Zał.1_WPF_bazowy!R18 -> 0 | S23: =+Zał.1_WPF_bazowy!S18 -> 0 | T23: =+Zał.1_WPF_bazowy!T18 -> 0 | U23: =+Zał.1_WPF_bazowy!U18 -> 0 | V23: =+Zał.1_WPF_bazowy!V18 -> 0 | W23: =+Zał.1_WPF_bazowy!W18 -> 0 | X23: =+Zał.1_WPF_bazowy!X18 -> 0 | Y23: =+Zał.1_WPF_bazowy!Y18 -> 0 | Z23: =+Zał.1_WPF_bazowy!Z18 -> 0 | AA23: =+Zał.1_WPF_bazowy!AA18 -> 0 | AB23: =+Zał.1_WPF_bazowy!AB18 -> 0 | AC23: =+Zał.1_WPF_bazowy!AC18 -> 0 | AD23: =+Zał.1_WPF_bazowy!AD18 -> 0 | AE23: =+Zał.1_WPF_bazowy!AE18 -> 0 | AF23: =+Zał.1_WPF_bazowy!AF18 -> 0 | AG23: =+Zał.1_WPF_bazowy!AG18 -> 0 | AH23: =+Zał.1_WPF_bazowy!AH18 -> 0 | AI23: =+Zał.1_WPF_bazowy!AI18 -> 0 | AJ23: =+Zał.1_WPF_bazowy!AJ18 -> 0 | AK23: =+Zał.1_WPF_bazowy!AK18 -> 0 | AL23: =+Zał.1_WPF_bazowy!AL18 -> 0
A24: x | B24: 2.1.1.1 | D24: w tym: gwarancje i poręczenia podlegające wyłączeniu z limitu spłaty zobowiązań, o którym mowa w art. 243 ustawy | E24: =Zał.1_WPF_bazowy!E19 -> 0 | F24: =Zał.1_WPF_bazowy!F19 -> 0 | G24: =Zał.1_WPF_bazowy!G19 -> 0 | H24: =Zał.1_WPF_bazowy!H19 -> 0 | I24: =+Zał.1_WPF_bazowy!I19 -> 0 | J24: =+Zał.1_WPF_bazowy!J19 -> 0 | K24: =+Zał.1_WPF_bazowy!K19 -> 0 | L24: =+Zał.1_WPF_bazowy!L19 -> 0 | M24: =+Zał.1_WPF_bazowy!M19 -> 0 | N24: =+Zał.1_WPF_bazowy!N19 -> 0 | O24: =+Zał.1_WPF_bazowy!O19 -> 0 | P24: =+Zał.1_WPF_bazowy!P19 -> 0 | Q24: =+Zał.1_WPF_bazowy!Q19 -> 0 | R24: =+Zał.1_WPF_bazowy!R19 -> 0 | S24: =+Zał.1_WPF_bazowy!S19 -> 0 | T24: =+Zał.1_WPF_bazowy!T19 -> 0 | U24: =+Zał.1_WPF_bazowy!U19 -> 0 | V24: =+Zał.1_WPF_bazowy!V19 -> 0 | W24: =+Zał.1_WPF_bazowy!W19 -> 0 | X24: =+Zał.1_WPF_bazowy!X19 -> 0 | Y24: =+Zał.1_WPF_bazowy!Y19 -> 0 | Z24: =+Zał.1_WPF_bazowy!Z19 -> 0 | AA24: =+Zał.1_WPF_bazowy!AA19 -> 0 | AB24: =+Zał.1_WPF_bazowy!AB19 -> 0 | AC24: =+Zał.1_WPF_bazowy!AC19 -> 0 | AD24: =+Zał.1_WPF_bazowy!AD19 -> 0 | AE24: =+Zał.1_WPF_bazowy!AE19 -> 0 | AF24: =+Zał.1_WPF_bazowy!AF19 -> 0 | AG24: =+Zał.1_WPF_bazowy!AG19 -> 0 | AH24: =+Zał.1_WPF_bazowy!AH19 -> 0 | AI24: =+Zał.1_WPF_bazowy!AI19 -> 0 | AJ24: =+Zał.1_WPF_bazowy!AJ19 -> 0 | AK24: =+Zał.1_WPF_bazowy!AK19 -> 0 | AL24: =+Zał.1_WPF_bazowy!AL19 -> 0
B25: 2.1.2 | D25: na spłatę przejętych zobowiązań samodzielnego publicznego zakładu opieki zdrowotnej przekształconego na zasadach określonych w przepisach o działalności leczniczej, w wysokości w jakiej nie podlegają sfinansowaniu dotacją z budżetu państwa | E25: =+Zał.1_WPF_bazowy!E20 -> 0 | F25: =+Zał.1_WPF_bazowy!F20 -> 0 | G25: =+Zał.1_WPF_bazowy!G20 -> 0 | H25: =+Zał.1_WPF_bazowy!H20 -> 0 | I25: =+Zał.1_WPF_bazowy!I20 -> 0 | J25: =+Zał.1_WPF_bazowy!J20 -> 0 | K25: =+Zał.1_WPF_bazowy!K20 -> 0 | L25: =+Zał.1_WPF_bazowy!L20 -> 0 | M25: =+Zał.1_WPF_bazowy!M20 -> 0 | N25: =+Zał.1_WPF_bazowy!N20 -> 0 | O25: =+Zał.1_WPF_bazowy!O20 -> 0 | P25: =+Zał.1_WPF_bazowy!P20 -> 0 | Q25: =+Zał.1_WPF_bazowy!Q20 -> 0 | R25: =+Zał.1_WPF_bazowy!R20 -> 0 | S25: =+Zał.1_WPF_bazowy!S20 -> 0 | T25: =+Zał.1_WPF_bazowy!T20 -> 0 | U25: =+Zał.1_WPF_bazowy!U20 -> 0 | V25: =+Zał.1_WPF_bazowy!V20 -> 0 | W25: =+Zał.1_WPF_bazowy!W20 -> 0 | X25: =+Zał.1_WPF_bazowy!X20 -> 0 | Y25: =+Zał.1_WPF_bazowy!Y20 -> 0 | Z25: =+Zał.1_WPF_bazowy!Z20 -> 0 | AA25: =+Zał.1_WPF_bazowy!AA20 -> 0 | AB25: =+Zał.1_WPF_bazowy!AB20 -> 0 | AC25: =+Zał.1_WPF_bazowy!AC20 -> 0 | AD25: =+Zał.1_WPF_bazowy!AD20 -> 0 | AE25: =+Zał.1_WPF_bazowy!AE20 -> 0 | AF25: =+Zał.1_WPF_bazowy!AF20 -> 0 | AG25: =+Zał.1_WPF_bazowy!AG20 -> 0 | AH25: =+Zał.1_WPF_bazowy!AH20 -> 0 | AI25: =+Zał.1_WPF_bazowy!AI20 -> 0 | AJ25: =+Zał.1_WPF_bazowy!AJ20 -> 0 | AK25: =+Zał.1_WPF_bazowy!AK20 -> 0 | AL25: =+Zał.1_WPF_bazowy!AL20 -> 0
A26: x | B26: 2.1.3 | D26: wydatki na obsługę długu, w tym: | E26: =Zał.1_WPF_bazowy!E21 -> 572021.53 | F26: =Zał.1_WPF_bazowy!F21 -> 430171.93 | G26: =Zał.1_WPF_bazowy!G21 -> 360000 | H26: =Zał.1_WPF_bazowy!H21 -> 352254.63 | I26: =+Zał.1_WPF_bazowy!I21 -> 340000 | J26: =+Zał.1_WPF_bazowy!J21 -> 340000 | K26: =+Zał.1_WPF_bazowy!K21 -> 320000 | L26: =+Zał.1_WPF_bazowy!L21 -> 300000 | M26: =+Zał.1_WPF_bazowy!M21 -> 260000 | N26: =+Zał.1_WPF_bazowy!N21 -> 215000 | O26: =+Zał.1_WPF_bazowy!O21 -> 175000 | P26: =+Zał.1_WPF_bazowy!P21 -> 130000 | Q26: =+Zał.1_WPF_bazowy!Q21 -> 79000 | R26: =+Zał.1_WPF_bazowy!R21 -> 26000 | S26: =+Zał.1_WPF_bazowy!S21 -> 0 | T26: =+Zał.1_WPF_bazowy!T21 -> 0 | U26: =+Zał.1_WPF_bazowy!U21 -> 0 | V26: =+Zał.1_WPF_bazowy!V21 -> 0 | W26: =+Zał.1_WPF_bazowy!W21 -> 0 | X26: =+Zał.1_WPF_bazowy!X21 -> 0 | Y26: =+Zał.1_WPF_bazowy!Y21 -> 0 | Z26: =+Zał.1_WPF_bazowy!Z21 -> 0 | AA26: =+Zał.1_WPF_bazowy!AA21 -> 0 | AB26: =+Zał.1_WPF_bazowy!AB21 -> 0 | AC26: =+Zał.1_WPF_bazowy!AC21 -> 0 | AD26: =+Zał.1_WPF_bazowy!AD21 -> 0 | AE26: =+Zał.1_WPF_bazowy!AE21 -> 0 | AF26: =+Zał.1_WPF_bazowy!AF21 -> 0 | AG26: =+Zał.1_WPF_bazowy!AG21 -> 0 | AH26: =+Zał.1_WPF_bazowy!AH21 -> 0 | AI26: =+Zał.1_WPF_bazowy!AI21 -> 0 | AJ26: =+Zał.1_WPF_bazowy!AJ21 -> 0 | AK26: =+Zał.1_WPF_bazowy!AK21 -> 0 | AL26: =+Zał.1_WPF_bazowy!AL21 -> 0
A27: x | B27: 2.1.3.1 | D27: odsetki i dyskonto określone w art. 243 ust. 1 ustawy, w tym: | E27: =Zał.1_WPF_bazowy!E22 -> 567021.53 | F27: =Zał.1_WPF_bazowy!F22 -> 430171.93 | G27: =Zał.1_WPF_bazowy!G22 -> 360000 | H27: =Zał.1_WPF_bazowy!H22 -> 352254.63 | I27: =+Zał.1_WPF_bazowy!I22 -> 340000 | J27: =+Zał.1_WPF_bazowy!J22 -> 340000 | K27: =+Zał.1_WPF_bazowy!K22 -> 320000 | L27: =+Zał.1_WPF_bazowy!L22 -> 300000 | M27: =+Zał.1_WPF_bazowy!M22 -> 260000 | N27: =+Zał.1_WPF_bazowy!N22 -> 215000 | O27: =+Zał.1_WPF_bazowy!O22 -> 175000 | P27: =+Zał.1_WPF_bazowy!P22 -> 130000 | Q27: =+Zał.1_WPF_bazowy!Q22 -> 79000 | R27: =+Zał.1_WPF_bazowy!R22 -> 26000 | S27: =+Zał.1_WPF_bazowy!S22 -> 0 | T27: =+Zał.1_WPF_bazowy!T22 -> 0 | U27: =+Zał.1_WPF_bazowy!U22 -> 0 | V27: =+Zał.1_WPF_bazowy!V22 -> 0 | W27: =+Zał.1_WPF_bazowy!W22 -> 0 | X27: =+Zał.1_WPF_bazowy!X22 -> 0 | Y27: =+Zał.1_WPF_bazowy!Y22 -> 0 | Z27: =+Zał.1_WPF_bazowy!Z22 -> 0 | AA27: =+Zał.1_WPF_bazowy!AA22 -> 0 | AB27: =+Zał.1_WPF_bazowy!AB22 -> 0 | AC27: =+Zał.1_WPF_bazowy!AC22 -> 0 | AD27: =+Zał.1_WPF_bazowy!AD22 -> 0 | AE27: =+Zał.1_WPF_bazowy!AE22 -> 0 | AF27: =+Zał.1_WPF_bazowy!AF22 -> 0 | AG27: =+Zał.1_WPF_bazowy!AG22 -> 0 | AH27: =+Zał.1_WPF_bazowy!AH22 -> 0 | AI27: =+Zał.1_WPF_bazowy!AI22 -> 0 | AJ27: =+Zał.1_WPF_bazowy!AJ22 -> 0 | AK27: =+Zał.1_WPF_bazowy!AK22 -> 0 | AL27: =+Zał.1_WPF_bazowy!AL22 -> 0
A28: x | B28: 2.1.3.1.1 | D28: odsetki i dyskonto podlegające wyłączeniu z limitu spłaty zobowiązań, o którym mowa w art. 243 ustawy, w terminie nie dłuższym niż 90 dni po zakończeniu programu, projektu lub zadania i otrzymaniu refundacji z tych środków (bez odsetek i dyskonta od zobowiązań na wkład krajowy) | E28: =Zał.1_WPF_bazowy!E23 -> 0 | F28: =Zał.1_WPF_bazowy!F23 -> 40000 | G28: =Zał.1_WPF_bazowy!G23 -> 0 | H28: =Zał.1_WPF_bazowy!H23 -> 0 | I28: =+Zał.1_WPF_bazowy!I23 -> 0 | J28: =+Zał.1_WPF_bazowy!J23 -> 0 | K28: =+Zał.1_WPF_bazowy!K23 -> 0 | L28: =+Zał.1_WPF_bazowy!L23 -> 0 | M28: =+Zał.1_WPF_bazowy!M23 -> 0 | N28: =+Zał.1_WPF_bazowy!N23 -> 0 | O28: =+Zał.1_WPF_bazowy!O23 -> 0 | P28: =+Zał.1_WPF_bazowy!P23 -> 0 | Q28: =+Zał.1_WPF_bazowy!Q23 -> 0 | R28: =+Zał.1_WPF_bazowy!R23 -> 0 | S28: =+Zał.1_WPF_bazowy!S23 -> 0 | T28: =+Zał.1_WPF_bazowy!T23 -> 0 | U28: =+Zał.1_WPF_bazowy!U23 -> 0 | V28: =+Zał.1_WPF_bazowy!V23 -> 0 | W28: =+Zał.1_WPF_bazowy!W23 -> 0 | X28: =+Zał.1_WPF_bazowy!X23 -> 0 | Y28: =+Zał.1_WPF_bazowy!Y23 -> 0 | Z28: =+Zał.1_WPF_bazowy!Z23 -> 0 | AA28: =+Zał.1_WPF_bazowy!AA23 -> 0 | AB28: =+Zał.1_WPF_bazowy!AB23 -> 0 | AC28: =+Zał.1_WPF_bazowy!AC23 -> 0 | AD28: =+Zał.1_WPF_bazowy!AD23 -> 0 | AE28: =+Zał.1_WPF_bazowy!AE23 -> 0 | AF28: =+Zał.1_WPF_bazowy!AF23 -> 0 | AG28: =+Zał.1_WPF_bazowy!AG23 -> 0 | AH28: =+Zał.1_WPF_bazowy!AH23 -> 0 | AI28: =+Zał.1_WPF_bazowy!AI23 -> 0 | AJ28: =+Zał.1_WPF_bazowy!AJ23 -> 0 | AK28: =+Zał.1_WPF_bazowy!AK23 -> 0 | AL28: =+Zał.1_WPF_bazowy!AL23 -> 0
A29: x | B29: 2.1.3.1.2 | D29: odsetki i dyskonto podlegające wyłączeniu z limitu spłaty zobowiązań, o którym mowa w art. 243 ustawy, z tytułu zobowiązań zaciągniętych na wkład krajowy | E29: =Zał.1_WPF_bazowy!E24 -> 0 | F29: =Zał.1_WPF_bazowy!F24 -> 130000 | G29: =Zał.1_WPF_bazowy!G24 -> 0 | H29: =Zał.1_WPF_bazowy!H24 -> 107230.61 | I29: =+Zał.1_WPF_bazowy!I24 -> 105951.71 | J29: =+Zał.1_WPF_bazowy!J24 -> 93200 | K29: =+Zał.1_WPF_bazowy!K24 -> 74000 | L29: =+Zał.1_WPF_bazowy!L24 -> 63000 | M29: =+Zał.1_WPF_bazowy!M24 -> 44000 | N29: =+Zał.1_WPF_bazowy!N24 -> 24000 | O29: =+Zał.1_WPF_bazowy!O24 -> 20000 | P29: =+Zał.1_WPF_bazowy!P24 -> 14000 | Q29: =+Zał.1_WPF_bazowy!Q24 -> 13000 | R29: =+Zał.1_WPF_bazowy!R24 -> 13000 | S29: =+Zał.1_WPF_bazowy!S24 -> 0 | T29: =+Zał.1_WPF_bazowy!T24 -> 0 | U29: =+Zał.1_WPF_bazowy!U24 -> 0 | V29: =+Zał.1_WPF_bazowy!V24 -> 0 | W29: =+Zał.1_WPF_bazowy!W24 -> 0 | X29: =+Zał.1_WPF_bazowy!X24 -> 0 | Y29: =+Zał.1_WPF_bazowy!Y24 -> 0 | Z29: =+Zał.1_WPF_bazowy!Z24 -> 0 | AA29: =+Zał.1_WPF_bazowy!AA24 -> 0 | AB29: =+Zał.1_WPF_bazowy!AB24 -> 0 | AC29: =+Zał.1_WPF_bazowy!AC24 -> 0 | AD29: =+Zał.1_WPF_bazowy!AD24 -> 0 | AE29: =+Zał.1_WPF_bazowy!AE24 -> 0 | AF29: =+Zał.1_WPF_bazowy!AF24 -> 0 | AG29: =+Zał.1_WPF_bazowy!AG24 -> 0 | AH29: =+Zał.1_WPF_bazowy!AH24 -> 0 | AI29: =+Zał.1_WPF_bazowy!AI24 -> 0 | AJ29: =+Zał.1_WPF_bazowy!AJ24 -> 0 | AK29: =+Zał.1_WPF_bazowy!AK24 -> 0 | AL29: =+Zał.1_WPF_bazowy!AL24 -> 0
A30: x | B30: 2.2 | D30: Wydatki majątkowe | E30: =Zał.1_WPF_bazowy!E25 -> 1692885.5 | F30: =Zał.1_WPF_bazowy!F25 -> 744838.94 | G30: =Zał.1_WPF_bazowy!G25 -> 1037376.42 | H30: =Zał.1_WPF_bazowy!H25 -> 577107.73 | I30: =+Zał.1_WPF_bazowy!I25 -> 1908151 | J30: =+Zał.1_WPF_bazowy!J25 -> 2161000 | K30: =+Zał.1_WPF_bazowy!K25 -> 1004150 | L30: =+Zał.1_WPF_bazowy!L25 -> 406904 | M30: =+Zał.1_WPF_bazowy!M25 -> 347662 | N30: =+Zał.1_WPF_bazowy!N25 -> 496481 | O30: =+Zał.1_WPF_bazowy!O25 -> 611426 | P30: =+Zał.1_WPF_bazowy!P25 -> 386559 | Q30: =+Zał.1_WPF_bazowy!Q25 -> 315945 | R30: =+Zał.1_WPF_bazowy!R25 -> 1293654 | S30: =+Zał.1_WPF_bazowy!S25 -> 0 | T30: =+Zał.1_WPF_bazowy!T25 -> 0 | U30: =+Zał.1_WPF_bazowy!U25 -> 0 | V30: =+Zał.1_WPF_bazowy!V25 -> 0 | W30: =+Zał.1_WPF_bazowy!W25 -> 0 | X30: =+Zał.1_WPF_bazowy!X25 -> 0 | Y30: =+Zał.1_WPF_bazowy!Y25 -> 0 | Z30: =+Zał.1_WPF_bazowy!Z25 -> 0 | AA30: =+Zał.1_WPF_bazowy!AA25 -> 0 | AB30: =+Zał.1_WPF_bazowy!AB25 -> 0 | AC30: =+Zał.1_WPF_bazowy!AC25 -> 0 | AD30: =+Zał.1_WPF_bazowy!AD25 -> 0 | AE30: =+Zał.1_WPF_bazowy!AE25 -> 0 | AF30: =+Zał.1_WPF_bazowy!AF25 -> 0 | AG30: =+Zał.1_WPF_bazowy!AG25 -> 0 | AH30: =+Zał.1_WPF_bazowy!AH25 -> 0 | AI30: =+Zał.1_WPF_bazowy!AI25 -> 0 | AJ30: =+Zał.1_WPF_bazowy!AJ25 -> 0 | AK30: =+Zał.1_WPF_bazowy!AK25 -> 0 | AL30: =+Zał.1_WPF_bazowy!AL25 -> 0
A31: x | B31: 3 | C31: [1] -[2] | D31: Wynik budżetu | E31: =Zał.1_WPF_bazowy!E26 -> 95761.77 | F31: =Zał.1_WPF_bazowy!F26 -> 206726.4 | G31: =Zał.1_WPF_bazowy!G26 -> 32000 | H31: =+H10-H21 -> 216899.95 | I31: =+I10-I21 -> 400000 | J31: =+J10-J21 -> 600000 | K31: 600000 | L31: 1200000 | M31: 1300000 | N31: 1200000 | O31: 1330000 | P31: 1510000 | Q31: 1548000 | R31: 743000 | S31: 0 | T31: 0 | U31: 0 | V31: 0 | W31: 0 | X31: 0 | Y31: 0 | Z31: 0 | AA31: 0 | AB31: 0 | AC31: 0 | AD31: 0 | AE31: 0 | AF31: 0 | AG31: 0 | AH31: 0 | AI31: 0 | AJ31: 0 | AK31: 0 | AL31: 0
A32: x | B32: 4 | C32: [4.1] + [4.2] + [4.3] + [4.4] | D32: Przychody budżetu | E32: =Zał.1_WPF_bazowy!E27 -> 3413397.21 | F32: =Zał.1_WPF_bazowy!F27 -> 1405350.74 | G32: =Zał.1_WPF_bazowy!G27 -> 68000 | H32: =+H33+H35+H37+H39 -> 555077.14 | I32: =+I33+I35+I37+I39 -> 0 | J32: =+J33+J35+J37+J39 -> 0 | K32: 0 | L32: 0 | M32: 0 | N32: 0 | O32: 0 | P32: 0 | Q32: 0 | R32: 0 | S32: 0 | T32: 0 | U32: 0 | V32: 0 | W32: 0 | X32: 0 | Y32: 0 | Z32: 0 | AA32: 0 | AB32: 0 | AC32: 0 | AD32: 0 | AE32: 0 | AF32: 0 | AG32: 0 | AH32: 0 | AI32: 0 | AJ32: 0 | AK32: 0 | AL32: 0
A33: x | B33: 4.1 | D33: Nadwyżka budżetowa z lat ubiegłych | E33: =Zał.1_WPF_bazowy!E28 -> 0 | F33: =Zał.1_WPF_bazowy!F28 -> 0 | G33: =Zał.1_WPF_bazowy!G28 -> 0 | H33: =Zał.1_WPF_bazowy!H28 -> 0 | I33: =+Zał.1_WPF_bazowy!I28 -> 0 | J33: =+Zał.1_WPF_bazowy!J28 -> 0 | K33: =+Zał.1_WPF_bazowy!K28 -> 0 | L33: =+Zał.1_WPF_bazowy!L28 -> 0 | M33: =+Zał.1_WPF_bazowy!M28 -> 0 | N33: =+Zał.1_WPF_bazowy!N28 -> 0 | O33: =+Zał.1_WPF_bazowy!O28 -> 0 | P33: =+Zał.1_WPF_bazowy!P28 -> 0 | Q33: =+Zał.1_WPF_bazowy!Q28 -> 0 | R33: =+Zał.1_WPF_bazowy!R28 -> 0 | S33: =+Zał.1_WPF_bazowy!S28 -> 0 | T33: =+Zał.1_WPF_bazowy!T28 -> 0 | U33: =+Zał.1_WPF_bazowy!U28 -> 0 | V33: =+Zał.1_WPF_bazowy!V28 -> 0 | W33: =+Zał.1_WPF_bazowy!W28 -> 0 | X33: =+Zał.1_WPF_bazowy!X28 -> 0 | Y33: =+Zał.1_WPF_bazowy!Y28 -> 0 | Z33: =+Zał.1_WPF_bazowy!Z28 -> 0 | AA33: =+Zał.1_WPF_bazowy!AA28 -> 0 | AB33: =+Zał.1_WPF_bazowy!AB28 -> 0 | AC33: =+Zał.1_WPF_bazowy!AC28 -> 0 | AD33: =+Zał.1_WPF_bazowy!AD28 -> 0 | AE33: =+Zał.1_WPF_bazowy!AE28 -> 0 | AF33: =+Zał.1_WPF_bazowy!AF28 -> 0 | AG33: =+Zał.1_WPF_bazowy!AG28 -> 0 | AH33: =+Zał.1_WPF_bazowy!AH28 -> 0 | AI33: =+Zał.1_WPF_bazowy!AI28 -> 0 | AJ33: =+Zał.1_WPF_bazowy!AJ28 -> 0 | AK33: =+Zał.1_WPF_bazowy!AK28 -> 0 | AL33: =+Zał.1_WPF_bazowy!AL28 -> 0
A34: x | B34: 4.1.1 | D34: w tym na pokrycie deficytu budżetu | E34: =Zał.1_WPF_bazowy!E29 -> 0 | F34: =Zał.1_WPF_bazowy!F29 -> 0 | G34: =Zał.1_WPF_bazowy!G29 -> 0 | H34: =Zał.1_WPF_bazowy!H29 -> 0 | I34: =+Zał.1_WPF_bazowy!I29 -> 0 | J34: =+Zał.1_WPF_bazowy!J29 -> 0 | K34: =+Zał.1_WPF_bazowy!K29 -> 0 | L34: =+Zał.1_WPF_bazowy!L29 -> 0 | M34: =+Zał.1_WPF_bazowy!M29 -> 0 | N34: =+Zał.1_WPF_bazowy!N29 -> 0 | O34: =+Zał.1_WPF_bazowy!O29 -> 0 | P34: =+Zał.1_WPF_bazowy!P29 -> 0 | Q34: =+Zał.1_WPF_bazowy!Q29 -> 0 | R34: =+Zał.1_WPF_bazowy!R29 -> 0 | S34: =+Zał.1_WPF_bazowy!S29 -> 0 | T34: =+Zał.1_WPF_bazowy!T29 -> 0 | U34: =+Zał.1_WPF_bazowy!U29 -> 0 | V34: =+Zał.1_WPF_bazowy!V29 -> 0 | W34: =+Zał.1_WPF_bazowy!W29 -> 0 | X34: =+Zał.1_WPF_bazowy!X29 -> 0 | Y34: =+Zał.1_WPF_bazowy!Y29 -> 0 | Z34: =+Zał.1_WPF_bazowy!Z29 -> 0 | AA34: =+Zał.1_WPF_bazowy!AA29 -> 0 | AB34: =+Zał.1_WPF_bazowy!AB29 -> 0 | AC34: =+Zał.1_WPF_bazowy!AC29 -> 0 | AD34: =+Zał.1_WPF_bazowy!AD29 -> 0 | AE34: =+Zał.1_WPF_bazowy!AE29 -> 0 | AF34: =+Zał.1_WPF_bazowy!AF29 -> 0 | AG34: =+Zał.1_WPF_bazowy!AG29 -> 0 | AH34: =+Zał.1_WPF_bazowy!AH29 -> 0 | AI34: =+Zał.1_WPF_bazowy!AI29 -> 0 | AJ34: =+Zał.1_WPF_bazowy!AJ29 -> 0 | AK34: =+Zał.1_WPF_bazowy!AK29 -> 0 | AL34: =+Zał.1_WPF_bazowy!AL29 -> 0
A35: x | B35: 4.2 | D35: Wolne środki, o których mowa w art. 217 ust.2 pkt 6 ustawy | E35: =Zał.1_WPF_bazowy!E30 -> 2113397.21 | F35: =Zał.1_WPF_bazowy!F30 -> 1405350.74 | G35: =Zał.1_WPF_bazowy!G30 -> 68000 | H35: =Zał.1_WPF_bazowy!H30 -> 555077.14 | I35: =+Zał.1_WPF_bazowy!I30 -> 0 | J35: =+Zał.1_WPF_bazowy!J30 -> 0 | K35: =+Zał.1_WPF_bazowy!K30 -> 0 | L35: =+Zał.1_WPF_bazowy!L30 -> 0 | M35: =+Zał.1_WPF_bazowy!M30 -> 0 | N35: =+Zał.1_WPF_bazowy!N30 -> 0 | O35: =+Zał.1_WPF_bazowy!O30 -> 0 | P35: =+Zał.1_WPF_bazowy!P30 -> 0 | Q35: =+Zał.1_WPF_bazowy!Q30 -> 0 | R35: =+Zał.1_WPF_bazowy!R30 -> 0 | S35: =+Zał.1_WPF_bazowy!S30 -> 0 | T35: =+Zał.1_WPF_bazowy!T30 -> 0 | U35: =+Zał.1_WPF_bazowy!U30 -> 0 | V35: =+Zał.1_WPF_bazowy!V30 -> 0 | W35: =+Zał.1_WPF_bazowy!W30 -> 0 | X35: =+Zał.1_WPF_bazowy!X30 -> 0 | Y35: =+Zał.1_WPF_bazowy!Y30 -> 0 | Z35: =+Zał.1_WPF_bazowy!Z30 -> 0 | AA35: =+Zał.1_WPF_bazowy!AA30 -> 0 | AB35: =+Zał.1_WPF_bazowy!AB30 -> 0 | AC35: =+Zał.1_WPF_bazowy!AC30 -> 0 | AD35: =+Zał.1_WPF_bazowy!AD30 -> 0 | AE35: =+Zał.1_WPF_bazowy!AE30 -> 0 | AF35: =+Zał.1_WPF_bazowy!AF30 -> 0 | AG35: =+Zał.1_WPF_bazowy!AG30 -> 0 | AH35: =+Zał.1_WPF_bazowy!AH30 -> 0 | AI35: =+Zał.1_WPF_bazowy!AI30 -> 0 | AJ35: =+Zał.1_WPF_bazowy!AJ30 -> 0 | AK35: =+Zał.1_WPF_bazowy!AK30 -> 0 | AL35: =+Zał.1_WPF_bazowy!AL30 -> 0
A36: x | B36: 4.2.1 | D36: w tym na pokrycie deficytu budżetu | E36: =Zał.1_WPF_bazowy!E31 -> 0 | F36: =Zał.1_WPF_bazowy!F31 -> 0 | G36: =Zał.1_WPF_bazowy!G31 -> 0 | H36: =Zał.1_WPF_bazowy!H31 -> 0 | I36: =+Zał.1_WPF_bazowy!I31 -> 0 | J36: =+Zał.1_WPF_bazowy!J31 -> 0 | K36: =+Zał.1_WPF_bazowy!K31 -> 0 | L36: =+Zał.1_WPF_bazowy!L31 -> 0 | M36: =+Zał.1_WPF_bazowy!M31 -> 0 | N36: =+Zał.1_WPF_bazowy!N31 -> 0 | O36: =+Zał.1_WPF_bazowy!O31 -> 0 | P36: =+Zał.1_WPF_bazowy!P31 -> 0 | Q36: =+Zał.1_WPF_bazowy!Q31 -> 0 | R36: =+Zał.1_WPF_bazowy!R31 -> 0 | S36: =+Zał.1_WPF_bazowy!S31 -> 0 | T36: =+Zał.1_WPF_bazowy!T31 -> 0 | U36: =+Zał.1_WPF_bazowy!U31 -> 0 | V36: =+Zał.1_WPF_bazowy!V31 -> 0 | W36: =+Zał.1_WPF_bazowy!W31 -> 0 | X36: =+Zał.1_WPF_bazowy!X31 -> 0 | Y36: =+Zał.1_WPF_bazowy!Y31 -> 0 | Z36: =+Zał.1_WPF_bazowy!Z31 -> 0 | AA36: =+Zał.1_WPF_bazowy!AA31 -> 0 | AB36: =+Zał.1_WPF_bazowy!AB31 -> 0 | AC36: =+Zał.1_WPF_bazowy!AC31 -> 0 | AD36: =+Zał.1_WPF_bazowy!AD31 -> 0 | AE36: =+Zał.1_WPF_bazowy!AE31 -> 0 | AF36: =+Zał.1_WPF_bazowy!AF31 -> 0 | AG36: =+Zał.1_WPF_bazowy!AG31 -> 0 | AH36: =+Zał.1_WPF_bazowy!AH31 -> 0 | AI36: =+Zał.1_WPF_bazowy!AI31 -> 0 | AJ36: =+Zał.1_WPF_bazowy!AJ31 -> 0 | AK36: =+Zał.1_WPF_bazowy!AK31 -> 0 | AL36: =+Zał.1_WPF_bazowy!AL31 -> 0
A37: x | B37: 4.3 | D37: Kredyty, pożyczki, emisja papierów wartościowych | E37: =Zał.1_WPF_bazowy!E32 -> 1300000 | F37: =Zał.1_WPF_bazowy!F32 -> 0 | G37: =Zał.1_WPF_bazowy!G32 -> 0 | H37: =Zał.1_WPF_bazowy!H32 -> 0 | I37: =+Zał.1_WPF_bazowy!I32 -> 0 | J37: =+Zał.1_WPF_bazowy!J32 -> 0 | K37: =+Zał.1_WPF_bazowy!K32 -> 0 | L37: =+Zał.1_WPF_bazowy!L32 -> 0 | M37: =+Zał.1_WPF_bazowy!M32 -> 0 | N37: =+Zał.1_WPF_bazowy!N32 -> 0 | O37: =+Zał.1_WPF_bazowy!O32 -> 0 | P37: =+Zał.1_WPF_bazowy!P32 -> 0 | Q37: =+Zał.1_WPF_bazowy!Q32 -> 0 | R37: =+Zał.1_WPF_bazowy!R32 -> 0 | S37: =+Zał.1_WPF_bazowy!S32 -> 0 | T37: =+Zał.1_WPF_bazowy!T32 -> 0 | U37: =+Zał.1_WPF_bazowy!U32 -> 0 | V37: =+Zał.1_WPF_bazowy!V32 -> 0 | W37: =+Zał.1_WPF_bazowy!W32 -> 0 | X37: =+Zał.1_WPF_bazowy!X32 -> 0 | Y37: =+Zał.1_WPF_bazowy!Y32 -> 0 | Z37: =+Zał.1_WPF_bazowy!Z32 -> 0 | AA37: =+Zał.1_WPF_bazowy!AA32 -> 0 | AB37: =+Zał.1_WPF_bazowy!AB32 -> 0 | AC37: =+Zał.1_WPF_bazowy!AC32 -> 0 | AD37: =+Zał.1_WPF_bazowy!AD32 -> 0 | AE37: =+Zał.1_WPF_bazowy!AE32 -> 0 | AF37: =+Zał.1_WPF_bazowy!AF32 -> 0 | AG37: =+Zał.1_WPF_bazowy!AG32 -> 0 | AH37: =+Zał.1_WPF_bazowy!AH32 -> 0 | AI37: =+Zał.1_WPF_bazowy!AI32 -> 0 | AJ37: =+Zał.1_WPF_bazowy!AJ32 -> 0 | AK37: =+Zał.1_WPF_bazowy!AK32 -> 0 | AL37: =+Zał.1_WPF_bazowy!AL32 -> 0
A38: x | B38: 4.3.1 | D38: w tym na pokrycie deficytu budżetu | E38: =Zał.1_WPF_bazowy!E33 -> 0 | F38: =Zał.1_WPF_bazowy!F33 -> 0 | G38: =Zał.1_WPF_bazowy!G33 -> 0 | H38: =Zał.1_WPF_bazowy!H33 -> 0 | I38: =+Zał.1_WPF_bazowy!I33 -> 0 | J38: =+Zał.1_WPF_bazowy!J33 -> 0 | K38: =+Zał.1_WPF_bazowy!K33 -> 0 | L38: =+Zał.1_WPF_bazowy!L33 -> 0 | M38: =+Zał.1_WPF_bazowy!M33 -> 0 | N38: =+Zał.1_WPF_bazowy!N33 -> 0 | O38: =+Zał.1_WPF_bazowy!O33 -> 0 | P38: =+Zał.1_WPF_bazowy!P33 -> 0 | Q38: =+Zał.1_WPF_bazowy!Q33 -> 0 | R38: =+Zał.1_WPF_bazowy!R33 -> 0 | S38: =+Zał.1_WPF_bazowy!S33 -> 0 | T38: =+Zał.1_WPF_bazowy!T33 -> 0 | U38: =+Zał.1_WPF_bazowy!U33 -> 0 | V38: =+Zał.1_WPF_bazowy!V33 -> 0 | W38: =+Zał.1_WPF_bazowy!W33 -> 0 | X38: =+Zał.1_WPF_bazowy!X33 -> 0 | Y38: =+Zał.1_WPF_bazowy!Y33 -> 0 | Z38: =+Zał.1_WPF_bazowy!Z33 -> 0 | AA38: =+Zał.1_WPF_bazowy!AA33 -> 0 | AB38: =+Zał.1_WPF_bazowy!AB33 -> 0 | AC38: =+Zał.1_WPF_bazowy!AC33 -> 0 | AD38: =+Zał.1_WPF_bazowy!AD33 -> 0 | AE38: =+Zał.1_WPF_bazowy!AE33 -> 0 | AF38: =+Zał.1_WPF_bazowy!AF33 -> 0 | AG38: =+Zał.1_WPF_bazowy!AG33 -> 0 | AH38: =+Zał.1_WPF_bazowy!AH33 -> 0 | AI38: =+Zał.1_WPF_bazowy!AI33 -> 0 | AJ38: =+Zał.1_WPF_bazowy!AJ33 -> 0 | AK38: =+Zał.1_WPF_bazowy!AK33 -> 0 | AL38: =+Zał.1_WPF_bazowy!AL33 -> 0
A39: x | B39: 4.4 | D39: Inne przychody niezwiązane z zaciągnięciem długu | E39: =Zał.1_WPF_bazowy!E34 -> 0 | F39: =Zał.1_WPF_bazowy!F34 -> 0 | G39: =Zał.1_WPF_bazowy!G34 -> 0 | H39: =Zał.1_WPF_bazowy!H34 -> 0 | I39: =+Zał.1_WPF_bazowy!I34 -> 0 | J39: =+Zał.1_WPF_bazowy!J34 -> 0 | K39: =+Zał.1_WPF_bazowy!K34 -> 0 | L39: =+Zał.1_WPF_bazowy!L34 -> 0 | M39: =+Zał.1_WPF_bazowy!M34 -> 0 | N39: =+Zał.1_WPF_bazowy!N34 -> 0 | O39: =+Zał.1_WPF_bazowy!O34 -> 0 | P39: =+Zał.1_WPF_bazowy!P34 -> 0 | Q39: =+Zał.1_WPF_bazowy!Q34 -> 0 | R39: =+Zał.1_WPF_bazowy!R34 -> 0 | S39: =+Zał.1_WPF_bazowy!S34 -> 0 | T39: =+Zał.1_WPF_bazowy!T34 -> 0 | U39: =+Zał.1_WPF_bazowy!U34 -> 0 | V39: =+Zał.1_WPF_bazowy!V34 -> 0 | W39: =+Zał.1_WPF_bazowy!W34 -> 0 | X39: =+Zał.1_WPF_bazowy!X34 -> 0 | Y39: =+Zał.1_WPF_bazowy!Y34 -> 0 | Z39: =+Zał.1_WPF_bazowy!Z34 -> 0 | AA39: =+Zał.1_WPF_bazowy!AA34 -> 0 | AB39: =+Zał.1_WPF_bazowy!AB34 -> 0 | AC39: =+Zał.1_WPF_bazowy!AC34 -> 0 | AD39: =+Zał.1_WPF_bazowy!AD34 -> 0 | AE39: =+Zał.1_WPF_bazowy!AE34 -> 0 | AF39: =+Zał.1_WPF_bazowy!AF34 -> 0 | AG39: =+Zał.1_WPF_bazowy!AG34 -> 0 | AH39: =+Zał.1_WPF_bazowy!AH34 -> 0 | AI39: =+Zał.1_WPF_bazowy!AI34 -> 0 | AJ39: =+Zał.1_WPF_bazowy!AJ34 -> 0 | AK39: =+Zał.1_WPF_bazowy!AK34 -> 0 | AL39: =+Zał.1_WPF_bazowy!AL34 -> 0
A40: x | B40: 4.4.1 | D40: w tym na pokrycie deficytu budżetu | E40: =Zał.1_WPF_bazowy!E35 -> 0 | F40: =Zał.1_WPF_bazowy!F35 -> 0 | G40: =Zał.1_WPF_bazowy!G35 -> 0 | H40: =Zał.1_WPF_bazowy!H35 -> 0 | I40: =+Zał.1_WPF_bazowy!I35 -> 0 | J40: =+Zał.1_WPF_bazowy!J35 -> 0 | K40: =+Zał.1_WPF_bazowy!K35 -> 0 | L40: =+Zał.1_WPF_bazowy!L35 -> 0 | M40: =+Zał.1_WPF_bazowy!M35 -> 0 | N40: =+Zał.1_WPF_bazowy!N35 -> 0 | O40: =+Zał.1_WPF_bazowy!O35 -> 0 | P40: =+Zał.1_WPF_bazowy!P35 -> 0 | Q40: =+Zał.1_WPF_bazowy!Q35 -> 0 | R40: =+Zał.1_WPF_bazowy!R35 -> 0 | S40: =+Zał.1_WPF_bazowy!S35 -> 0 | T40: =+Zał.1_WPF_bazowy!T35 -> 0 | U40: =+Zał.1_WPF_bazowy!U35 -> 0 | V40: =+Zał.1_WPF_bazowy!V35 -> 0 | W40: =+Zał.1_WPF_bazowy!W35 -> 0 | X40: =+Zał.1_WPF_bazowy!X35 -> 0 | Y40: =+Zał.1_WPF_bazowy!Y35 -> 0 | Z40: =+Zał.1_WPF_bazowy!Z35 -> 0 | AA40: =+Zał.1_WPF_bazowy!AA35 -> 0 | AB40: =+Zał.1_WPF_bazowy!AB35 -> 0 | AC40: =+Zał.1_WPF_bazowy!AC35 -> 0 | AD40: =+Zał.1_WPF_bazowy!AD35 -> 0 | AE40: =+Zał.1_WPF_bazowy!AE35 -> 0 | AF40: =+Zał.1_WPF_bazowy!AF35 -> 0 | AG40: =+Zał.1_WPF_bazowy!AG35 -> 0 | AH40: =+Zał.1_WPF_bazowy!AH35 -> 0 | AI40: =+Zał.1_WPF_bazowy!AI35 -> 0 | AJ40: =+Zał.1_WPF_bazowy!AJ35 -> 0 | AK40: =+Zał.1_WPF_bazowy!AK35 -> 0 | AL40: =+Zał.1_WPF_bazowy!AL35 -> 0
A41: x | B41: 5 | C41: [5.1] + [5.2] | D41: Rozchody budżetu | E41: =Zał.1_WPF_bazowy!E36 -> 2103808.24 | F41: =Zał.1_WPF_bazowy!F36 -> 1057000 | G41: =Zał.1_WPF_bazowy!G36 -> 100000 | H41: =+H42+H47 -> 100000 | I41: 400000 | J41: 600000 | K41: 600000 | L41: 1200000 | M41: 1300000 | N41: 1200000 | O41: 1330000 | P41: 1510000 | Q41: 1548000 | R41: 743000 | S41: 0 | T41: 0 | U41: 0 | V41: 0 | W41: 0 | X41: 0 | Y41: 0 | Z41: 0 | AA41: 0 | AB41: 0 | AC41: 0 | AD41: 0 | AE41: 0 | AF41: 0 | AG41: 0 | AH41: 0 | AI41: 0 | AJ41: 0 | AK41: 0 | AL41: 0
A42: x | B42: 5.1 | D42: Spłaty rat kapitałowych kredytów i pożyczek oraz wykup papierów wartościowych | E42: =Zał.1_WPF_bazowy!E37 -> 2103808.24 | F42: =Zał.1_WPF_bazowy!F37 -> 1057000 | G42: =Zał.1_WPF_bazowy!G37 -> 100000 | H42: =Zał.1_WPF_bazowy!H37 -> 100000 | I42: =+Zał.1_WPF_bazowy!I37 -> 400000 | J42: =+Zał.1_WPF_bazowy!J37 -> 600000 | K42: =+Zał.1_WPF_bazowy!K37 -> 600000 | L42: =+Zał.1_WPF_bazowy!L37 -> 1200000 | M42: =+Zał.1_WPF_bazowy!M37 -> 1300000 | N42: =+Zał.1_WPF_bazowy!N37 -> 1200000 | O42: =+Zał.1_WPF_bazowy!O37 -> 1330000 | P42: =+Zał.1_WPF_bazowy!P37 -> 1510000 | Q42: =+Zał.1_WPF_bazowy!Q37 -> 1548000 | R42: =+Zał.1_WPF_bazowy!R37 -> 743000 | S42: =+Zał.1_WPF_bazowy!S37 -> 0 | T42: =+Zał.1_WPF_bazowy!T37 -> 0 | U42: =+Zał.1_WPF_bazowy!U37 -> 0 | V42: =+Zał.1_WPF_bazowy!V37 -> 0 | W42: =+Zał.1_WPF_bazowy!W37 -> 0 | X42: =+Zał.1_WPF_bazowy!X37 -> 0 | Y42: =+Zał.1_WPF_bazowy!Y37 -> 0 | Z42: =+Zał.1_WPF_bazowy!Z37 -> 0 | AA42: =+Zał.1_WPF_bazowy!AA37 -> 0 | AB42: =+Zał.1_WPF_bazowy!AB37 -> 0 | AC42: =+Zał.1_WPF_bazowy!AC37 -> 0 | AD42: =+Zał.1_WPF_bazowy!AD37 -> 0 | AE42: =+Zał.1_WPF_bazowy!AE37 -> 0 | AF42: =+Zał.1_WPF_bazowy!AF37 -> 0 | AG42: =+Zał.1_WPF_bazowy!AG37 -> 0 | AH42: =+Zał.1_WPF_bazowy!AH37 -> 0 | AI42: =+Zał.1_WPF_bazowy!AI37 -> 0 | AJ42: =+Zał.1_WPF_bazowy!AJ37 -> 0 | AK42: =+Zał.1_WPF_bazowy!AK37 -> 0 | AL42: =+Zał.1_WPF_bazowy!AL37 -> 0
A43: x | B43: 5.1.1 | C43: [5.1.1.1] + [5.1.1.2] + [5.1.1.3] | D43: w tym łączna kwota przypadających na dany rok kwot ustawowych wyłączeń z limitu spłaty zobowiązań, o którym mowa w art. 243 ustawy, z tego: | E43: =Zał.1_WPF_bazowy!E38 -> 0 | F43: =Zał.1_WPF_bazowy!F38 -> 1057000 | G43: =Zał.1_WPF_bazowy!G38 -> 100000 | H43: =+H44+H45+H46 -> 0 | I43: =+I44+I45+I46 -> 0 | J43: 0 | K43: 0 | L43: 0 | M43: 0 | N43: 0 | O43: 0 | P43: 0 | Q43: 0 | R43: 0 | S43: 0 | T43: 0 | U43: 0 | V43: 0 | W43: 0 | X43: 0 | Y43: 0 | Z43: 0 | AA43: 0 | AB43: 0 | AC43: 0 | AD43: 0 | AE43: 0 | AF43: 0 | AG43: 0 | AH43: 0 | AI43: 0 | AJ43: 0 | AK43: 0 | AL43: 0
A44: x | B44: 5.1.1.1 | D44: kwota przypadających na dany rok kwot ustawowych wyłączeń określonych w art. 243 ust. 3 ustawy | E44: =Zał.1_WPF_bazowy!E39 -> 0 | F44: =Zał.1_WPF_bazowy!F39 -> 1057000 | G44: =Zał.1_WPF_bazowy!G39 -> 0 | H44: =Zał.1_WPF_bazowy!H39 -> 0 | I44: =+Zał.1_WPF_bazowy!I39 -> 0 | J44: =+Zał.1_WPF_bazowy!J39 -> 0 | K44: =+Zał.1_WPF_bazowy!K39 -> 0 | L44: =+Zał.1_WPF_bazowy!L39 -> 0 | M44: =+Zał.1_WPF_bazowy!M39 -> 0 | N44: =+Zał.1_WPF_bazowy!N39 -> 0 | O44: =+Zał.1_WPF_bazowy!O39 -> 0 | P44: =+Zał.1_WPF_bazowy!P39 -> 0 | Q44: =+Zał.1_WPF_bazowy!Q39 -> 0 | R44: =+Zał.1_WPF_bazowy!R39 -> 0 | S44: =+Zał.1_WPF_bazowy!S39 -> 0 | T44: =+Zał.1_WPF_bazowy!T39 -> 0 | U44: =+Zał.1_WPF_bazowy!U39 -> 0 | V44: =+Zał.1_WPF_bazowy!V39 -> 0 | W44: =+Zał.1_WPF_bazowy!W39 -> 0 | X44: =+Zał.1_WPF_bazowy!X39 -> 0 | Y44: =+Zał.1_WPF_bazowy!Y39 -> 0 | Z44: =+Zał.1_WPF_bazowy!Z39 -> 0 | AA44: =+Zał.1_WPF_bazowy!AA39 -> 0 | AB44: =+Zał.1_WPF_bazowy!AB39 -> 0 | AC44: =+Zał.1_WPF_bazowy!AC39 -> 0 | AD44: =+Zał.1_WPF_bazowy!AD39 -> 0 | AE44: =+Zał.1_WPF_bazowy!AE39 -> 0 | AF44: =+Zał.1_WPF_bazowy!AF39 -> 0 | AG44: =+Zał.1_WPF_bazowy!AG39 -> 0 | AH44: =+Zał.1_WPF_bazowy!AH39 -> 0 | AI44: =+Zał.1_WPF_bazowy!AI39 -> 0 | AJ44: =+Zał.1_WPF_bazowy!AJ39 -> 0 | AK44: =+Zał.1_WPF_bazowy!AK39 -> 0 | AL44: =+Zał.1_WPF_bazowy!AL39 -> 0
A45: x | B45: 5.1.1.2 | D45: kwota przypadających na dany rok kwot ustawowych wyłączeń określonych w art. 243 ust. 3a ustawy | E45: =Zał.1_WPF_bazowy!E40 -> 0 | F45: =Zał.1_WPF_bazowy!F40 -> 0 | G45: =Zał.1_WPF_bazowy!G40 -> 100000 | H45: =Zał.1_WPF_bazowy!H40 -> 0 | I45: =+Zał.1_WPF_bazowy!I40 -> 0 | J45: =+Zał.1_WPF_bazowy!J40 -> 0 | K45: =+Zał.1_WPF_bazowy!K40 -> 0 | L45: =+Zał.1_WPF_bazowy!L40 -> 0 | M45: =+Zał.1_WPF_bazowy!M40 -> 0 | N45: =+Zał.1_WPF_bazowy!N40 -> 0 | O45: =+Zał.1_WPF_bazowy!O40 -> 0 | P45: =+Zał.1_WPF_bazowy!P40 -> 0 | Q45: =+Zał.1_WPF_bazowy!Q40 -> 0 | R45: =+Zał.1_WPF_bazowy!R40 -> 0 | S45: =+Zał.1_WPF_bazowy!S40 -> 0 | T45: =+Zał.1_WPF_bazowy!T40 -> 0 | U45: =+Zał.1_WPF_bazowy!U40 -> 0 | V45: =+Zał.1_WPF_bazowy!V40 -> 0 | W45: =+Zał.1_WPF_bazowy!W40 -> 0 | X45: =+Zał.1_WPF_bazowy!X40 -> 0 | Y45: =+Zał.1_WPF_bazowy!Y40 -> 0 | Z45: =+Zał.1_WPF_bazowy!Z40 -> 0 | AA45: =+Zał.1_WPF_bazowy!AA40 -> 0 | AB45: =+Zał.1_WPF_bazowy!AB40 -> 0 | AC45: =+Zał.1_WPF_bazowy!AC40 -> 0 | AD45: =+Zał.1_WPF_bazowy!AD40 -> 0 | AE45: =+Zał.1_WPF_bazowy!AE40 -> 0 | AF45: =+Zał.1_WPF_bazowy!AF40 -> 0 | AG45: =+Zał.1_WPF_bazowy!AG40 -> 0 | AH45: =+Zał.1_WPF_bazowy!AH40 -> 0 | AI45: =+Zał.1_WPF_bazowy!AI40 -> 0 | AJ45: =+Zał.1_WPF_bazowy!AJ40 -> 0 | AK45: =+Zał.1_WPF_bazowy!AK40 -> 0 | AL45: =+Zał.1_WPF_bazowy!AL40 -> 0
A46: x | B46: 5.1.1.3 | D46: kwota przypadających na dany rok kwot ustawowych wyłączeń innych niż określone w art. 243 ustawy | E46: =Zał.1_WPF_bazowy!E41 -> 0 | F46: =Zał.1_WPF_bazowy!F41 -> 0 | G46: =Zał.1_WPF_bazowy!G41 -> 0 | H46: =Zał.1_WPF_bazowy!H41 -> 0 | I46: =+Zał.1_WPF_bazowy!I41 -> 0 | J46: =+Zał.1_WPF_bazowy!J41 -> 0 | K46: =+Zał.1_WPF_bazowy!K41 -> 0 | L46: =+Zał.1_WPF_bazowy!L41 -> 0 | M46: =+Zał.1_WPF_bazowy!M41 -> 0 | N46: =+Zał.1_WPF_bazowy!N41 -> 0 | O46: =+Zał.1_WPF_bazowy!O41 -> 0 | P46: =+Zał.1_WPF_bazowy!P41 -> 0 | Q46: =+Zał.1_WPF_bazowy!Q41 -> 0 | R46: =+Zał.1_WPF_bazowy!R41 -> 0 | S46: =+Zał.1_WPF_bazowy!S41 -> 0 | T46: =+Zał.1_WPF_bazowy!T41 -> 0 | U46: =+Zał.1_WPF_bazowy!U41 -> 0 | V46: =+Zał.1_WPF_bazowy!V41 -> 0 | W46: =+Zał.1_WPF_bazowy!W41 -> 0 | X46: =+Zał.1_WPF_bazowy!X41 -> 0 | Y46: =+Zał.1_WPF_bazowy!Y41 -> 0 | Z46: =+Zał.1_WPF_bazowy!Z41 -> 0 | AA46: =+Zał.1_WPF_bazowy!AA41 -> 0 | AB46: =+Zał.1_WPF_bazowy!AB41 -> 0 | AC46: =+Zał.1_WPF_bazowy!AC41 -> 0 | AD46: =+Zał.1_WPF_bazowy!AD41 -> 0 | AE46: =+Zał.1_WPF_bazowy!AE41 -> 0 | AF46: =+Zał.1_WPF_bazowy!AF41 -> 0 | AG46: =+Zał.1_WPF_bazowy!AG41 -> 0 | AH46: =+Zał.1_WPF_bazowy!AH41 -> 0 | AI46: =+Zał.1_WPF_bazowy!AI41 -> 0 | AJ46: =+Zał.1_WPF_bazowy!AJ41 -> 0 | AK46: =+Zał.1_WPF_bazowy!AK41 -> 0 | AL46: =+Zał.1_WPF_bazowy!AL41 -> 0
B47: 5.2 | D47: Inne rozchody niezwiązane ze spłatą długu | E47: =Zał.1_WPF_bazowy!E42 -> 0 | F47: =Zał.1_WPF_bazowy!F42 -> 0 | G47: =Zał.1_WPF_bazowy!G42 -> 0 | H47: =Zał.1_WPF_bazowy!H42 -> 0 | I47: =+Zał.1_WPF_bazowy!I42 -> 0 | J47: =+Zał.1_WPF_bazowy!J42 -> 0 | K47: =+Zał.1_WPF_bazowy!K42 -> 0 | L47: =+Zał.1_WPF_bazowy!L42 -> 0 | M47: =+Zał.1_WPF_bazowy!M42 -> 0 | N47: =+Zał.1_WPF_bazowy!N42 -> 0 | O47: =+Zał.1_WPF_bazowy!O42 -> 0 | P47: =+Zał.1_WPF_bazowy!P42 -> 0 | Q47: =+Zał.1_WPF_bazowy!Q42 -> 0 | R47: =+Zał.1_WPF_bazowy!R42 -> 0 | S47: =+Zał.1_WPF_bazowy!S42 -> 0 | T47: =+Zał.1_WPF_bazowy!T42 -> 0 | U47: =+Zał.1_WPF_bazowy!U42 -> 0 | V47: =+Zał.1_WPF_bazowy!V42 -> 0 | W47: =+Zał.1_WPF_bazowy!W42 -> 0 | X47: =+Zał.1_WPF_bazowy!X42 -> 0 | Y47: =+Zał.1_WPF_bazowy!Y42 -> 0 | Z47: =+Zał.1_WPF_bazowy!Z42 -> 0 | AA47: =+Zał.1_WPF_bazowy!AA42 -> 0 | AB47: =+Zał.1_WPF_bazowy!AB42 -> 0 | AC47: =+Zał.1_WPF_bazowy!AC42 -> 0 | AD47: =+Zał.1_WPF_bazowy!AD42 -> 0 | AE47: =+Zał.1_WPF_bazowy!AE42 -> 0 | AF47: =+Zał.1_WPF_bazowy!AF42 -> 0 | AG47: =+Zał.1_WPF_bazowy!AG42 -> 0 | AH47: =+Zał.1_WPF_bazowy!AH42 -> 0 | AI47: =+Zał.1_WPF_bazowy!AI42 -> 0 | AJ47: =+Zał.1_WPF_bazowy!AJ42 -> 0 | AK47: =+Zał.1_WPF_bazowy!AK42 -> 0 | AL47: =+Zał.1_WPF_bazowy!AL42 -> 0
A48: x | B48: 6 | D48: Kwota długu | E48: =Zał.1_WPF_bazowy!E43 -> 11617700 | F48: =Zał.1_WPF_bazowy!F43 -> 10540850 | G48: =Zał.1_WPF_bazowy!G43 -> 10431000 | H48: =Zał.1_WPF_bazowy!H43 -> 10431000 | I48: =+IF(I10<>0,H48+I37-I42+(I105-H105)+I110,0) -> 10719000 | J48: 9995000 | K48: 9275000 | L48: 7958000 | M48: 6545000 | N48: 5236000 | O48: 3801000 | P48: 2291000 | Q48: 743000 | R48: 0 | S48: 0 | T48: 0 | U48: 0 | V48: 0 | W48: 0 | X48: 0 | Y48: 0 | Z48: 0 | AA48: 0 | AB48: 0 | AC48: 0 | AD48: 0 | AE48: 0 | AF48: 0 | AG48: 0 | AH48: 0 | AI48: 0 | AJ48: 0 | AK48: 0 | AL48: 0
B49: 7 | D49: Kwota zobowiązań wynikających z przejęcia przez jednostkę samorządu terytorialnego zobowiązań po likwidowanych i przekształcanych jednostkach zaliczanych do sektora finansów publicznych | E49: =Zał.1_WPF_bazowy!E44 -> 0 | F49: =Zał.1_WPF_bazowy!F44 -> 0 | G49: =Zał.1_WPF_bazowy!G44 -> 0 | H49: =Zał.1_WPF_bazowy!H44 -> 0 | I49: =+Zał.1_WPF_bazowy!I44 -> 0 | J49: =+Zał.1_WPF_bazowy!J44 -> 0 | K49: =+Zał.1_WPF_bazowy!K44 -> 0 | L49: =+Zał.1_WPF_bazowy!L44 -> 0 | M49: =+Zał.1_WPF_bazowy!M44 -> 0 | N49: =+Zał.1_WPF_bazowy!N44 -> 0 | O49: =+Zał.1_WPF_bazowy!O44 -> 0 | P49: =+Zał.1_WPF_bazowy!P44 -> 0 | Q49: =+Zał.1_WPF_bazowy!Q44 -> 0 | R49: =+Zał.1_WPF_bazowy!R44 -> 0 | S49: =+Zał.1_WPF_bazowy!S44 -> 0 | T49: =+Zał.1_WPF_bazowy!T44 -> 0 | U49: =+Zał.1_WPF_bazowy!U44 -> 0 | V49: =+Zał.1_WPF_bazowy!V44 -> 0 | W49: =+Zał.1_WPF_bazowy!W44 -> 0 | X49: =+Zał.1_WPF_bazowy!X44 -> 0 | Y49: =+Zał.1_WPF_bazowy!Y44 -> 0 | Z49: =+Zał.1_WPF_bazowy!Z44 -> 0 | AA49: =+Zał.1_WPF_bazowy!AA44 -> 0 | AB49: =+Zał.1_WPF_bazowy!AB44 -> 0 | AC49: =+Zał.1_WPF_bazowy!AC44 -> 0 | AD49: =+Zał.1_WPF_bazowy!AD44 -> 0 | AE49: =+Zał.1_WPF_bazowy!AE44 -> 0 | AF49: =+Zał.1_WPF_bazowy!AF44 -> 0 | AG49: =+Zał.1_WPF_bazowy!AG44 -> 0 | AH49: =+Zał.1_WPF_bazowy!AH44 -> 0 | AI49: =+Zał.1_WPF_bazowy!AI44 -> 0 | AJ49: =+Zał.1_WPF_bazowy!AJ44 -> 0 | AK49: =+Zał.1_WPF_bazowy!AK44 -> 0 | AL49: =+Zał.1_WPF_bazowy!AL44 -> 0
B50: 8 | D50: Relacja zrównoważenia wydatków bieżących, o której mowa w art. 242 ustawy | E50: x | F50: x | G50: x | H50: x | I50: x | J50: x | K50: x | L50: x | M50: x | N50: x | O50: x | P50: x | Q50: x | R50: x | S50: x | T50: x | U50: x | V50: x | W50: x | X50: x | Y50: x | Z50: x | AA50: x | AB50: x | AC50: x | AD50: x | AE50: x | AF50: x | AG50: x | AH50: x | AI50: x | AJ50: x | AK50: x | AL50: x
B51: 8.1 | C51: [1.1] - [2.1] | D51: Różnica między dochodami bieżącymi a wydatkami bieżącymi | E51: =Zał.1_WPF_bazowy!E46 -> 696479.34 | F51: =Zał.1_WPF_bazowy!F46 -> 615045.17 | G51: =Zał.1_WPF_bazowy!G46 -> 178559 | H51: =+H11-H22 -> 503705.2 | I51: 1445151 | J51: 1188400 | K51: 1204150 | L51: 1206904 | M51: 1247662 | N51: 1396481 | O51: 1641426 | P51: 1596559 | Q51: 1563945 | R51: 1736654 | S51: 0 | T51: 0 | U51: 0 | V51: 0 | W51: 0 | X51: 0 | Y51: 0 | Z51: 0 | AA51: 0 | AB51: 0 | AC51: 0 | AD51: 0 | AE51: 0 | AF51: 0 | AG51: 0 | AH51: 0 | AI51: 0 | AJ51: 0 | AK51: 0 | AL51: 0
B52: 8.2 | C52: [1.1] + [4.1] + [4.2] - ( [2.1] - [2.1.2] ) | D52: Różnica między dochodami bieżącymi, skorygowanymi o środki a wydatkami bieżącymi, pomniejszonymi o wydatki | E52: =+IF(AND(E9>=2013,E9<=2015),+E11+E33+E35-(E22-E25),+E11+E33+E35-E22) -> 2809876.55 | F52: 2020395.91 | G52: 246559 | H52: 1058782.34 | I52: 1445151 | J52: 1188400 | K52: 1204150 | L52: 1206904 | M52: 1247662 | N52: 1396481 | O52: 1641426 | P52: 1596559 | Q52: 1563945 | R52: 1736654 | S52: 0 | T52: 0 | U52: 0 | V52: 0 | W52: 0 | X52: 0 | Y52: 0 | Z52: 0 | AA52: 0 | AB52: 0 | AC52: 0 | AD52: 0 | AE52: 0 | AF52: 0 | AG52: 0 | AH52: 0 | AI52: 0 | AJ52: 0 | AK52: 0 | AL52: 0
A53: x | B53: 9 | D53: Wskaźnik spłaty zobowiązań | E53: x | F53: x | G53: x | H53: x | I53: x | J53: x | K53: x | L53: x | M53: x | N53: x | O53: x | P53: x | Q53: x | R53: x | S53: x | T53: x | U53: x | V53: x | W53: x | X53: x | Y53: x | Z53: x | AA53: x | AB53: x | AC53: x | AD53: x | AE53: x | AF53: x | AG53: x | AH53: x | AI53: x | AJ53: x | AK53: x | AL53: x
A54: x | B54: 9.1 | C54: ([2.1.1] + [2.1.3.1] + [5.1] ) / [1] | D54: Wskaźnik planowanej łącznej kwoty spłaty zobowiązań, o której mowa w art. 243 ust. 1 ustawy do dochodów, bez uwzględnienia zobowiązań związku współtworzonego przez jednostkę samorządu terytorialnego i bez uwzględnienia ustawowych wyłączeń przypadających na dany rok. | E54: =Zał.1_WPF_bazowy!E49 -> 0.1486 | F54: =Zał.1_WPF_bazowy!F49 -> 0.0855 | G54: =Zał.1_WPF_bazowy!G49 -> 0.026 | H54: =+IF(H10<>0,ROUND((H23+H27+H42)/H10,$K$7+2),"-") -> 0.0264 | I54: 0.0381 | J54: 0.0446 | K54: 0.045 | L54: 0.0722 | M54: 0.0753 | N54: 0.0685 | O54: 0.0712 | P54: 0.0762 | Q54: 0.0742 | R54: 0.0341 | S54: - | T54: - | U54: - | V54: - | W54: - | X54: - | Y54: - | Z54: - | AA54: - | AB54: - | AC54: - | AD54: - | AE54: - | AF54: - | AG54: - | AH54: - | AI54: - | AJ54: - | AK54: - | AL54: -
A55: x | B55: 9.2 | C55: ( ([2.1.1]-[2.1.1.1])+([2.1.3.1]-[2.1.3.1.1]-[2.1.3.1.2])+([5.1]-[5.1.1]) )/([1]-[15.1.1]) | D55: Wskaźnik planowanej łącznej kwoty spłaty zobowiązań, o której mowa w art. 243 ust. 1 ustawy do dochodów, bez uwzględnienia zobowiązań związku współtworzonego przez jednostkę samorządu terytorialnego, po uwzględnieniu ustawowych wyłączeń przypadających na dany rok. | E55: =Zał.1_WPF_bazowy!E50 -> 0.1486 | F55: =Zał.1_WPF_bazowy!F50 -> 0.015 | G55: =Zał.1_WPF_bazowy!G50 -> 0.0204 | H55: =+IF(H10<>0,ROUND((H23-H24+H27-H28-H29+H42-H43)/(H10-H113),$K$7+2),"-") -> 0.0202 | I55: =+IF(I10<>0,ROUND((I23-I24+I27-I28-I29+I42-I43)/(I10-I113),$K$7+2),"-") -> 0.0326 | J55: 0.0401 | K55: 0.0414 | L55: 0.0692 | M55: 0.0732 | N55: 0.0673 | O55: 0.0703 | P55: 0.0755 | Q55: 0.0736 | R55: 0.0335 | S55: - | T55: - | U55: - | V55: - | W55: - | X55: - | Y55: - | Z55: - | AA55: - | AB55: - | AC55: - | AD55: - | AE55: - | AF55: - | AG55: - | AH55: - | AI55: - | AJ55: - | AK55: - | AL55: -
A56: x | B56: 9.3 | D56: Kwota zobowiązań związku współtworzonego przez jednostkę samorządu terytorialnego przypadających do spłaty w danym roku budżetowym, podlegająca doliczeniu zgodnie z art. 244 ustawy | E56: =Zał.1_WPF_bazowy!E51 -> 0 | F56: =Zał.1_WPF_bazowy!F51 -> 0 | G56: =Zał.1_WPF_bazowy!G51 -> 0 | H56: =Zał.1_WPF_bazowy!H51 -> 0 | I56: =+Zał.1_WPF_bazowy!I51 -> 0 | J56: =+Zał.1_WPF_bazowy!J51 -> 0 | K56: =+Zał.1_WPF_bazowy!K51 -> 0 | L56: =+Zał.1_WPF_bazowy!L51 -> 0 | M56: =+Zał.1_WPF_bazowy!M51 -> 0 | N56: =+Zał.1_WPF_bazowy!N51 -> 0 | O56: =+Zał.1_WPF_bazowy!O51 -> 0 | P56: =+Zał.1_WPF_bazowy!P51 -> 0 | Q56: =+Zał.1_WPF_bazowy!Q51 -> 0 | R56: =+Zał.1_WPF_bazowy!R51 -> 0 | S56: =+Zał.1_WPF_bazowy!S51 -> 0 | T56: =+Zał.1_WPF_bazowy!T51 -> 0 | U56: =+Zał.1_WPF_bazowy!U51 -> 0 | V56: =+Zał.1_WPF_bazowy!V51 -> 0 | W56: =+Zał.1_WPF_bazowy!W51 -> 0 | X56: =+Zał.1_WPF_bazowy!X51 -> 0 | Y56: =+Zał.1_WPF_bazowy!Y51 -> 0 | Z56: =+Zał.1_WPF_bazowy!Z51 -> 0 | AA56: =+Zał.1_WPF_bazowy!AA51 -> 0 | AB56: =+Zał.1_WPF_bazowy!AB51 -> 0 | AC56: =+Zał.1_WPF_bazowy!AC51 -> 0 | AD56: =+Zał.1_WPF_bazowy!AD51 -> 0 | AE56: =+Zał.1_WPF_bazowy!AE51 -> 0 | AF56: =+Zał.1_WPF_bazowy!AF51 -> 0 | AG56: =+Zał.1_WPF_bazowy!AG51 -> 0 | AH56: =+Zał.1_WPF_bazowy!AH51 -> 0 | AI56: =+Zał.1_WPF_bazowy!AI51 -> 0 | AJ56: =+Zał.1_WPF_bazowy!AJ51 -> 0 | AK56: =+Zał.1_WPF_bazowy!AK51 -> 0 | AL56: =+Zał.1_WPF_bazowy!AL51 -> 0
A57: x | B57: 9.4 | C57: (([2.1.1]-[2.1.1.1]) + ([2.1.3.1]-[2.1.3.1.1]-[2.1.3.1.2])+([5.1]-[5.1.1])+[9.3]) /([1]-[15.1.1]) | D57: Wskaźnik planowanej łącznej kwoty spłaty zobowiązań, o której mowa w art. 243 ust. 1 ustawy do dochodów, po uwzględnieniu zobowiązań związku współtworzonego przez jednostkę samorządu terytorialnego oraz po uwzględnieniu ustawowych wyłączeń przypadających na dany rok | E57: =Zał.1_WPF_bazowy!E52 -> 0.1486 | F57: =Zał.1_WPF_bazowy!F52 -> 0.015 | G57: =Zał.1_WPF_bazowy!G52 -> 0.0204 | H57: =+IF(H10<>0,ROUND((H23-H24+H27-H28-H29+H42-H43+H56)/(H10-H113),$K$7+2),"-") -> 0.0202 | I57: =+IF(I10<>0,ROUND((I23-I24+I27-I28-I29+I42-I43+I56)/(I10-I113),$K$7+2),"-") -> 0.0326 | J57: 0.0401 | K57: 0.0414 | L57: 0.0692 | M57: 0.0732 | N57: 0.0673 | O57: 0.0703 | P57: 0.0755 | Q57: 0.0736 | R57: 0.0335 | S57: - | T57: - | U57: - | V57: - | W57: - | X57: - | Y57: - | Z57: - | AA57: - | AB57: - | AC57: - | AD57: - | AE57: - | AF57: - | AG57: - | AH57: - | AI57: - | AJ57: - | AK57: - | AL57: -
A58: x | B58: 9.5 | C58: (([1.1] - [15.1.1])+[1.2.1] - ([2.1]-[2.1.2]-[15.2]))/ ([1]-[15.1.1]) | D58: Wskaźnik dochodów bieżących powiększonych o dochody ze sprzedaży majątku oraz pomniejszonych o wydatki bieżące, do dochodów budżetu, ustalony dla danego roku (wskaźnik jednoroczny) | E58: =+ROUND(IF(AND(E9>=2013,E9<=2018),IF(E10<>0,(E11-E113+E19-E22+E25+E114)/(E10-E113),0),IF(E10<>0,(E11-E113+E19-E22+E114)/(E10-E113),0)),$K$7+2) -> 0.0464 | F58: =+ROUND(IF(AND(F9>=2013,F9<=2018),IF(F10<>0,(F11-F113+F19-F22+F25+F114)/(F10-F113),0),IF(F10<>0,(F11-F113+F19-F22+F114)/(F10-F113),0)),$K$7+2) -> 0.0457 | G58: 0.0438 | H58: 0.0425 | I58: 0.0945 | J58: 0.0706 | K58: 0.0785 | L58: 0.0774 | M58: 0.0796 | N58: 0.0821 | O58: 0.0919 | P58: 0.0881 | Q58: 0.085 | R58: 0.0903 | S58: 0 | T58: 0 | U58: 0 | V58: 0 | W58: 0 | X58: 0 | Y58: 0 | Z58: 0 | AA58: 0 | AB58: 0 | AC58: 0 | AD58: 0 | AE58: 0 | AF58: 0 | AG58: 0 | AH58: 0 | AI58: 0 | AJ58: 0 | AK58: 0 | AL58: 0
A59: x | B59: 9.6 | C59: średnia z trzech poprzednich lat [9.5] | D59: Dopuszczalny wskaźnik spłaty zobowiązań określony w art. 243 ustawy, po uwzględnieniu ustawowych wyłączeń , obliczony w oparciu o plan 3 kwartału roku poprzedzającego pierwszy rok prognozy (wskaźnik ustalony w oparciu o średnią arytmetyczną z 3 poprzednich lat) | E59: =Zał.1_WPF_bazowy!E54 -> x | F59: =Zał.1_WPF_bazowy!F54 -> x | G59: =Zał.1_WPF_bazowy!G54 -> x | H59: =Zał.1_WPF_bazowy!H54 -> x | I59: =+IF(I10<>0,(G58+F58+E58)/3,"-") -> 0.0453 | J59: =+IF(J10<>0,(I58+G58+F58)/3,"-") -> 0.06133333333 | K59: =+IF(K10<>0,(J58+I58+G58)/3,"-") -> 0.06963333333 | L59: =+IF(L10<>0,(K58+J58+I58)/3,"-") -> 0.0812 | M59: 0.0755 | N59: 0.0785 | O59: 0.0797 | P59: 0.08453333333 | Q59: 0.08736666667 | R59: 0.08833333333 | S59: - | T59: - | U59: - | V59: - | W59: - | X59: - | Y59: - | Z59: - | AA59: - | AB59: - | AC59: - | AD59: - | AE59: - | AF59: - | AG59: - | AH59: - | AI59: - | AJ59: - | AK59: - | AL59: -
A60: x | B60: 9.6.1 | C60: średnia z trzech poprzednich lat [9.5] | D60: Dopuszczalny wskaźnik spłaty zobowiązań określony w art. 243 ustawy, po uwzględnieniu ustawowych wyłączeń, obliczony w oparciu o wykonanie roku poprzedzającego pierwszy rok prognozy (wskaźnik ustalony w oparciu o średnią arytmetyczną z 3 poprzednich lat) | E60: =Zał.1_WPF_bazowy!E55 -> x | F60: =Zał.1_WPF_bazowy!F55 -> x | G60: =Zał.1_WPF_bazowy!G55 -> x | H60: =Zał.1_WPF_bazowy!H55 -> x | I60: =+IF(I10<>0,ROUND((H58+F58+E58)/3,$K$7+2),"-") -> 0.0449 | J60: =+IF(J10<>0,ROUND((I58+H58+F58)/3,$K$7+2),"-") -> 0.0609 | K60: =+IF(K10<>0,ROUND((J58+I58+H58)/3,$K$7+2),"-") -> 0.0692 | L60: 0.0812 | M60: 0.0755 | N60: 0.0785 | O60: 0.0797 | P60: 0.0845 | Q60: 0.0874 | R60: 0.0883 | S60: - | T60: - | U60: - | V60: - | W60: - | X60: - | Y60: - | Z60: - | AA60: - | AB60: - | AC60: - | AD60: - | AE60: - | AF60: - | AG60: - | AH60: - | AI60: - | AJ60: - | AK60: - | AL60: -
A61: x | B61: 9.7 | C61: [9.4]-[9.6] | D61: Informacja o spełnieniu wskaźnika spłaty zobowiązań określonego w art. 243 ustawy, po uwzględnieniu zobowiązań związku współtworzonego przez jednostkę samorządu terytorialnego oraz po uwzględnieniu ustawowych wyłączeń, obliczonego w oparciu o plan 3 kwartałów roku poprzedzającego rok budżetowy | E61: =Zał.1_WPF_bazowy!E56 -> x | F61: =Zał.1_WPF_bazowy!F56 -> x | G61: =Zał.1_WPF_bazowy!G56 -> x | H61: =Zał.1_WPF_bazowy!H56 -> x | I61: =+IF(I10<>0,IF(I59>=I57,"Spełniona","Nie spełniona"),"-") -> Spełniona | J61: Spełniona | K61: Spełniona | L61: Spełniona | M61: Spełniona | N61: Spełniona | O61: Spełniona | P61: Spełniona | Q61: Spełniona | R61: Spełniona | S61: - | T61: - | U61: - | V61: - | W61: - | X61: - | Y61: - | Z61: - | AA61: - | AB61: - | AC61: - | AD61: - | AE61: - | AF61: - | AG61: - | AH61: - | AI61: - | AJ61: - | AK61: - | AL61: -
A62: x | B62: 9.7.1 | C62: [9.4]-[9.6.1] | D62: Informacja o spełnieniu wskaźnika spłaty zobowiązań określonego w art. 243 ustawy, po uwzględnieniu zobowiązań związku współtworzonego przez jednostkę samorządu terytorialnego oraz po uwzględnieniu ustawowych wyłączeń, obliczonego w oparciu o wykonanie roku poprzedzającego rok budżetowy | E62: =Zał.1_WPF_bazowy!E57 -> x | F62: =Zał.1_WPF_bazowy!F57 -> x | G62: =Zał.1_WPF_bazowy!G57 -> x | H62: =Zał.1_WPF_bazowy!H57 -> x | I62: =+IF(I10<>0,IF(I60>=I57,"Spełniona","Nie spełniona"),"-") -> Spełniona | J62: Spełniona | K62: Spełniona | L62: Spełniona | M62: Spełniona | N62: Spełniona | O62: Spełniona | P62: Spełniona | Q62: Spełniona | R62: Spełniona | S62: - | T62: - | U62: - | V62: - | W62: - | X62: - | Y62: - | Z62: - | AA62: - | AB62: - | AC62: - | AD62: - | AE62: - | AF62: - | AG62: - | AH62: - | AI62: - | AJ62: - | AK62: - | AL62: -
B63: 10 | D63: Przeznaczenie prognozowanej nadwyżki budżetowej, w tym na: | E63: =Zał.1_WPF_bazowy!E58 -> 0 | F63: =Zał.1_WPF_bazowy!F58 -> 0 | G63: =Zał.1_WPF_bazowy!G58 -> 0 | H63: =Zał.1_WPF_bazowy!H58 -> 0 | I63: =+Zał.1_WPF_bazowy!I58 -> 400000 | J63: =+Zał.1_WPF_bazowy!J58 -> 600000 | K63: =+Zał.1_WPF_bazowy!K58 -> 600000 | L63: =+Zał.1_WPF_bazowy!L58 -> 1200000 | M63: =+Zał.1_WPF_bazowy!M58 -> 1300000 | N63: =+Zał.1_WPF_bazowy!N58 -> 1200000 | O63: =+Zał.1_WPF_bazowy!O58 -> 1330000 | P63: =+Zał.1_WPF_bazowy!P58 -> 1510000 | Q63: =+Zał.1_WPF_bazowy!Q58 -> 1548000 | R63: =+Zał.1_WPF_bazowy!R58 -> 743000 | S63: =+Zał.1_WPF_bazowy!S58 -> 0 | T63: =+Zał.1_WPF_bazowy!T58 -> 0 | U63: =+Zał.1_WPF_bazowy!U58 -> 0 | V63: =+Zał.1_WPF_bazowy!V58 -> 0 | W63: =+Zał.1_WPF_bazowy!W58 -> 0 | X63: =+Zał.1_WPF_bazowy!X58 -> 0 | Y63: =+Zał.1_WPF_bazowy!Y58 -> 0 | Z63: =+Zał.1_WPF_bazowy!Z58 -> 0 | AA63: =+Zał.1_WPF_bazowy!AA58 -> 0 | AB63: =+Zał.1_WPF_bazowy!AB58 -> 0 | AC63: =+Zał.1_WPF_bazowy!AC58 -> 0 | AD63: =+Zał.1_WPF_bazowy!AD58 -> 0 | AE63: =+Zał.1_WPF_bazowy!AE58 -> 0 | AF63: =+Zał.1_WPF_bazowy!AF58 -> 0 | AG63: =+Zał.1_WPF_bazowy!AG58 -> 0 | AH63: =+Zał.1_WPF_bazowy!AH58 -> 0 | AI63: =+Zał.1_WPF_bazowy!AI58 -> 0 | AJ63: =+Zał.1_WPF_bazowy!AJ58 -> 0 | AK63: =+Zał.1_WPF_bazowy!AK58 -> 0 | AL63: =+Zał.1_WPF_bazowy!AL58 -> 0
B64: 10.1 | D64: Spłaty kredytów, pożyczek i wykup papierów wartościowych | E64: =Zał.1_WPF_bazowy!E59 -> 0 | F64: =Zał.1_WPF_bazowy!F59 -> 406000 | G64: =Zał.1_WPF_bazowy!G59 -> 100000 | H64: =Zał.1_WPF_bazowy!H59 -> 100000 | I64: =+Zał.1_WPF_bazowy!I59 -> 400000 | J64: =+Zał.1_WPF_bazowy!J59 -> 600000 | K64: =+Zał.1_WPF_bazowy!K59 -> 600000 | L64: =+Zał.1_WPF_bazowy!L59 -> 1200000 | M64: =+Zał.1_WPF_bazowy!M59 -> 1300000 | N64: =+Zał.1_WPF_bazowy!N59 -> 1200000 | O64: =+Zał.1_WPF_bazowy!O59 -> 1330000 | P64: =+Zał.1_WPF_bazowy!P59 -> 1510000 | Q64: =+Zał.1_WPF_bazowy!Q59 -> 1548000 | R64: =+Zał.1_WPF_bazowy!R59 -> 743000 | S64: =+Zał.1_WPF_bazowy!S59 -> 0 | T64: =+Zał.1_WPF_bazowy!T59 -> 0 | U64: =+Zał.1_WPF_bazowy!U59 -> 0 | V64: =+Zał.1_WPF_bazowy!V59 -> 0 | W64: =+Zał.1_WPF_bazowy!W59 -> 0 | X64: =+Zał.1_WPF_bazowy!X59 -> 0 | Y64: =+Zał.1_WPF_bazowy!Y59 -> 0 | Z64: =+Zał.1_WPF_bazowy!Z59 -> 0 | AA64: =+Zał.1_WPF_bazowy!AA59 -> 0 | AB64: =+Zał.1_WPF_bazowy!AB59 -> 0 | AC64: =+Zał.1_WPF_bazowy!AC59 -> 0 | AD64: =+Zał.1_WPF_bazowy!AD59 -> 0 | AE64: =+Zał.1_WPF_bazowy!AE59 -> 0 | AF64: =+Zał.1_WPF_bazowy!AF59 -> 0 | AG64: =+Zał.1_WPF_bazowy!AG59 -> 0 | AH64: =+Zał.1_WPF_bazowy!AH59 -> 0 | AI64: =+Zał.1_WPF_bazowy!AI59 -> 0 | AJ64: =+Zał.1_WPF_bazowy!AJ59 -> 0 | AK64: =+Zał.1_WPF_bazowy!AK59 -> 0 | AL64: =+Zał.1_WPF_bazowy!AL59 -> 0
B65: 11 | D65: Informacje uzupełniające o wybranych rodzajach wydatków budżetowych | E65: x | F65: x | G65: x | H65: x | I65: x | J65: x | K65: x | L65: x | M65: x | N65: x | O65: x | P65: x | Q65: x | R65: x | S65: x | T65: x | U65: x | V65: x | W65: x | X65: x | Y65: x | Z65: x | AA65: x | AB65: x | AC65: x | AD65: x | AE65: x | AF65: x | AG65: x | AH65: x | AI65: x | AJ65: x | AK65: x | AL65: x
B66: 11.1 | D66: Wydatki bieżące na wynagrodzenia i składki od nich naliczane | E66: =Zał.1_WPF_bazowy!E61 -> 6833507.94 | F66: =Zał.1_WPF_bazowy!F61 -> 6698815.09 | G66: =Zał.1_WPF_bazowy!G61 -> 7165654.94 | H66: =Zał.1_WPF_bazowy!H61 -> 7091945.11 | I66: =+Zał.1_WPF_bazowy!I61 -> 7238062.44 | J66: =+Zał.1_WPF_bazowy!J61 -> 7385532 | K66: =+Zał.1_WPF_bazowy!K61 -> 7607098 | L66: =+Zał.1_WPF_bazowy!L61 -> 7835311 | M66: =+Zał.1_WPF_bazowy!M61 -> 8070371 | N66: =+Zał.1_WPF_bazowy!N61 -> 8312482 | O66: =+Zał.1_WPF_bazowy!O61 -> 8561856 | P66: =+Zał.1_WPF_bazowy!P61 -> 8818712 | Q66: =+Zał.1_WPF_bazowy!Q61 -> 9083273 | R66: =+Zał.1_WPF_bazowy!R61 -> 9355771 | S66: =+Zał.1_WPF_bazowy!S61 -> 0 | T66: =+Zał.1_WPF_bazowy!T61 -> 0 | U66: =+Zał.1_WPF_bazowy!U61 -> 0 | V66: =+Zał.1_WPF_bazowy!V61 -> 0 | W66: =+Zał.1_WPF_bazowy!W61 -> 0 | X66: =+Zał.1_WPF_bazowy!X61 -> 0 | Y66: =+Zał.1_WPF_bazowy!Y61 -> 0 | Z66: =+Zał.1_WPF_bazowy!Z61 -> 0 | AA66: =+Zał.1_WPF_bazowy!AA61 -> 0 | AB66: =+Zał.1_WPF_bazowy!AB61 -> 0 | AC66: =+Zał.1_WPF_bazowy!AC61 -> 0 | AD66: =+Zał.1_WPF_bazowy!AD61 -> 0 | AE66: =+Zał.1_WPF_bazowy!AE61 -> 0 | AF66: =+Zał.1_WPF_bazowy!AF61 -> 0 | AG66: =+Zał.1_WPF_bazowy!AG61 -> 0 | AH66: =+Zał.1_WPF_bazowy!AH61 -> 0 | AI66: =+Zał.1_WPF_bazowy!AI61 -> 0 | AJ66: =+Zał.1_WPF_bazowy!AJ61 -> 0 | AK66: =+Zał.1_WPF_bazowy!AK61 -> 0 | AL66: =+Zał.1_WPF_bazowy!AL61 -> 0
B67: 11.2 | D67: Wydatki związane z funkcjonowaniem organów jednostki samorządu terytorialnego | E67: =Zał.1_WPF_bazowy!E62 -> 2900368.74 | F67: =Zał.1_WPF_bazowy!F62 -> 2100000 | G67: =Zał.1_WPF_bazowy!G62 -> 2347855.59 | H67: =Zał.1_WPF_bazowy!H62 -> 2269710.14 | I67: =+Zał.1_WPF_bazowy!I62 -> 2448925 | J67: =+Zał.1_WPF_bazowy!J62 -> 2400000 | K67: =+Zał.1_WPF_bazowy!K62 -> 2500000 | L67: =+Zał.1_WPF_bazowy!L62 -> 2600000 | M67: =+Zał.1_WPF_bazowy!M62 -> 2700000 | N67: =+Zał.1_WPF_bazowy!N62 -> 2800000 | O67: =+Zał.1_WPF_bazowy!O62 -> 2900000 | P67: =+Zał.1_WPF_bazowy!P62 -> 3000000 | Q67: =+Zał.1_WPF_bazowy!Q62 -> 3100000 | R67: =+Zał.1_WPF_bazowy!R62 -> 3200000 | S67: =+Zał.1_WPF_bazowy!S62 -> 0 | T67: =+Zał.1_WPF_bazowy!T62 -> 0 | U67: =+Zał.1_WPF_bazowy!U62 -> 0 | V67: =+Zał.1_WPF_bazowy!V62 -> 0 | W67: =+Zał.1_WPF_bazowy!W62 -> 0 | X67: =+Zał.1_WPF_bazowy!X62 -> 0 | Y67: =+Zał.1_WPF_bazowy!Y62 -> 0 | Z67: =+Zał.1_WPF_bazowy!Z62 -> 0 | AA67: =+Zał.1_WPF_bazowy!AA62 -> 0 | AB67: =+Zał.1_WPF_bazowy!AB62 -> 0 | AC67: =+Zał.1_WPF_bazowy!AC62 -> 0 | AD67: =+Zał.1_WPF_bazowy!AD62 -> 0 | AE67: =+Zał.1_WPF_bazowy!AE62 -> 0 | AF67: =+Zał.1_WPF_bazowy!AF62 -> 0 | AG67: =+Zał.1_WPF_bazowy!AG62 -> 0 | AH67: =+Zał.1_WPF_bazowy!AH62 -> 0 | AI67: =+Zał.1_WPF_bazowy!AI62 -> 0 | AJ67: =+Zał.1_WPF_bazowy!AJ62 -> 0 | AK67: =+Zał.1_WPF_bazowy!AK62 -> 0 | AL67: =+Zał.1_WPF_bazowy!AL62 -> 0
B68: 11.3 | C68: [11.3.1] + [11.3.2] | D68: Wydatki objęte limitem, o którym mowa w art. 226 ust. 3 pkt 4 ustawy | E68: =Zał.1_WPF_bazowy!E63 -> 1434026.7 | F68: =Zał.1_WPF_bazowy!F63 -> 315833.26 | G68: =Zał.1_WPF_bazowy!G63 -> 0 | H68: =+H69+H70 -> 0 | I68: =+I69+I70 -> 1315050 | J68: =+J69+J70 -> 2431100 | K68: 157000 | L68: 153000 | M68: 149000 | N68: 183000 | O68: 179000 | P68: 0 | Q68: 0 | R68: 0 | S68: 0 | T68: 0 | U68: 0 | V68: 0 | W68: 0 | X68: 0 | Y68: 0 | Z68: 0 | AA68: 0 | AB68: 0 | AC68: 0 | AD68: 0 | AE68: 0 | AF68: 0 | AG68: 0 | AH68: 0 | AI68: 0 | AJ68: 0 | AK68: 0 | AL68: 0
B69: 11.3.1 | D69: bieżące | E69: =Zał.1_WPF_bazowy!E64 -> 193481.61 | F69: =Zał.1_WPF_bazowy!F64 -> 116605.57 | G69: =Zał.1_WPF_bazowy!G64 -> 0 | H69: =Zał.1_WPF_bazowy!H64 -> 0 | I69: =+Zał.1_WPF_bazowy!I64 -> 418000 | J69: =+Zał.1_WPF_bazowy!J64 -> 270100 | K69: =+Zał.1_WPF_bazowy!K64 -> 0 | L69: =+Zał.1_WPF_bazowy!L64 -> 0 | M69: =+Zał.1_WPF_bazowy!M64 -> 0 | N69: =+Zał.1_WPF_bazowy!N64 -> 0 | O69: =+Zał.1_WPF_bazowy!O64 -> 0 | P69: =+Zał.1_WPF_bazowy!P64 -> 0 | Q69: =+Zał.1_WPF_bazowy!Q64 -> 0 | R69: =+Zał.1_WPF_bazowy!R64 -> 0 | S69: =+Zał.1_WPF_bazowy!S64 -> 0 | T69: =+Zał.1_WPF_bazowy!T64 -> 0 | U69: =+Zał.1_WPF_bazowy!U64 -> 0 | V69: =+Zał.1_WPF_bazowy!V64 -> 0 | W69: =+Zał.1_WPF_bazowy!W64 -> 0 | X69: =+Zał.1_WPF_bazowy!X64 -> 0 | Y69: =+Zał.1_WPF_bazowy!Y64 -> 0 | Z69: =+Zał.1_WPF_bazowy!Z64 -> 0 | AA69: =+Zał.1_WPF_bazowy!AA64 -> 0 | AB69: =+Zał.1_WPF_bazowy!AB64 -> 0 | AC69: =+Zał.1_WPF_bazowy!AC64 -> 0 | AD69: =+Zał.1_WPF_bazowy!AD64 -> 0 | AE69: =+Zał.1_WPF_bazowy!AE64 -> 0 | AF69: =+Zał.1_WPF_bazowy!AF64 -> 0 | AG69: =+Zał.1_WPF_bazowy!AG64 -> 0 | AH69: =+Zał.1_WPF_bazowy!AH64 -> 0 | AI69: =+Zał.1_WPF_bazowy!AI64 -> 0 | AJ69: =+Zał.1_WPF_bazowy!AJ64 -> 0 | AK69: =+Zał.1_WPF_bazowy!AK64 -> 0 | AL69: =+Zał.1_WPF_bazowy!AL64 -> 0
B70: 11.3.2 | D70: majątkowe | E70: =Zał.1_WPF_bazowy!E65 -> 1240545.09 | F70: =Zał.1_WPF_bazowy!F65 -> 199227.69 | G70: =Zał.1_WPF_bazowy!G65 -> 0 | H70: =Zał.1_WPF_bazowy!H65 -> 0 | I70: =+Zał.1_WPF_bazowy!I65 -> 897050 | J70: =+Zał.1_WPF_bazowy!J65 -> 2161000 | K70: =+Zał.1_WPF_bazowy!K65 -> 157000 | L70: =+Zał.1_WPF_bazowy!L65 -> 153000 | M70: =+Zał.1_WPF_bazowy!M65 -> 149000 | N70: =+Zał.1_WPF_bazowy!N65 -> 183000 | O70: =+Zał.1_WPF_bazowy!O65 -> 179000 | P70: =+Zał.1_WPF_bazowy!P65 -> 0 | Q70: =+Zał.1_WPF_bazowy!Q65 -> 0 | R70: =+Zał.1_WPF_bazowy!R65 -> 0 | S70: =+Zał.1_WPF_bazowy!S65 -> 0 | T70: =+Zał.1_WPF_bazowy!T65 -> 0 | U70: =+Zał.1_WPF_bazowy!U65 -> 0 | V70: =+Zał.1_WPF_bazowy!V65 -> 0 | W70: =+Zał.1_WPF_bazowy!W65 -> 0 | X70: =+Zał.1_WPF_bazowy!X65 -> 0 | Y70: =+Zał.1_WPF_bazowy!Y65 -> 0 | Z70: =+Zał.1_WPF_bazowy!Z65 -> 0 | AA70: =+Zał.1_WPF_bazowy!AA65 -> 0 | AB70: =+Zał.1_WPF_bazowy!AB65 -> 0 | AC70: =+Zał.1_WPF_bazowy!AC65 -> 0 | AD70: =+Zał.1_WPF_bazowy!AD65 -> 0 | AE70: =+Zał.1_WPF_bazowy!AE65 -> 0 | AF70: =+Zał.1_WPF_bazowy!AF65 -> 0 | AG70: =+Zał.1_WPF_bazowy!AG65 -> 0 | AH70: =+Zał.1_WPF_bazowy!AH65 -> 0 | AI70: =+Zał.1_WPF_bazowy!AI65 -> 0 | AJ70: =+Zał.1_WPF_bazowy!AJ65 -> 0 | AK70: =+Zał.1_WPF_bazowy!AK65 -> 0 | AL70: =+Zał.1_WPF_bazowy!AL65 -> 0
B71: 11.4 | D71: Wydatki inwestycyjne kontynuowane | E71: =Zał.1_WPF_bazowy!E66 -> 1056960.55 | F71: =Zał.1_WPF_bazowy!F66 -> 261062 | G71: =Zał.1_WPF_bazowy!G66 -> 0 | H71: =Zał.1_WPF_bazowy!H66 -> 0 | I71: =+Zał.1_WPF_bazowy!I66 -> 0 | J71: =+Zał.1_WPF_bazowy!J66 -> 0 | K71: =+Zał.1_WPF_bazowy!K66 -> 0 | L71: =+Zał.1_WPF_bazowy!L66 -> 0 | M71: =+Zał.1_WPF_bazowy!M66 -> 0 | N71: =+Zał.1_WPF_bazowy!N66 -> 0 | O71: =+Zał.1_WPF_bazowy!O66 -> 0 | P71: =+Zał.1_WPF_bazowy!P66 -> 0 | Q71: =+Zał.1_WPF_bazowy!Q66 -> 0 | R71: =+Zał.1_WPF_bazowy!R66 -> 0 | S71: =+Zał.1_WPF_bazowy!S66 -> 0 | T71: =+Zał.1_WPF_bazowy!T66 -> 0 | U71: =+Zał.1_WPF_bazowy!U66 -> 0 | V71: =+Zał.1_WPF_bazowy!V66 -> 0 | W71: =+Zał.1_WPF_bazowy!W66 -> 0 | X71: =+Zał.1_WPF_bazowy!X66 -> 0 | Y71: =+Zał.1_WPF_bazowy!Y66 -> 0 | Z71: =+Zał.1_WPF_bazowy!Z66 -> 0 | AA71: =+Zał.1_WPF_bazowy!AA66 -> 0 | AB71: =+Zał.1_WPF_bazowy!AB66 -> 0 | AC71: =+Zał.1_WPF_bazowy!AC66 -> 0 | AD71: =+Zał.1_WPF_bazowy!AD66 -> 0 | AE71: =+Zał.1_WPF_bazowy!AE66 -> 0 | AF71: =+Zał.1_WPF_bazowy!AF66 -> 0 | AG71: =+Zał.1_WPF_bazowy!AG66 -> 0 | AH71: =+Zał.1_WPF_bazowy!AH66 -> 0 | AI71: =+Zał.1_WPF_bazowy!AI66 -> 0 | AJ71: =+Zał.1_WPF_bazowy!AJ66 -> 0 | AK71: =+Zał.1_WPF_bazowy!AK66 -> 0 | AL71: =+Zał.1_WPF_bazowy!AL66 -> 0
B72: 11.5 | D72: Nowe wydatki inwestycyjne | E72: =Zał.1_WPF_bazowy!E67 -> 570924.95 | F72: =Zał.1_WPF_bazowy!F67 -> 383938 | G72: =Zał.1_WPF_bazowy!G67 -> 0 | H72: =Zał.1_WPF_bazowy!H67 -> 512107.73 | I72: =+Zał.1_WPF_bazowy!I67 -> 1256151 | J72: =+Zał.1_WPF_bazowy!J67 -> 2000000 | K72: =+Zał.1_WPF_bazowy!K67 -> 0 | L72: =+Zał.1_WPF_bazowy!L67 -> 0 | M72: =+Zał.1_WPF_bazowy!M67 -> 0 | N72: =+Zał.1_WPF_bazowy!N67 -> 0 | O72: =+Zał.1_WPF_bazowy!O67 -> 0 | P72: =+Zał.1_WPF_bazowy!P67 -> 0 | Q72: =+Zał.1_WPF_bazowy!Q67 -> 0 | R72: =+Zał.1_WPF_bazowy!R67 -> 0 | S72: =+Zał.1_WPF_bazowy!S67 -> 0 | T72: =+Zał.1_WPF_bazowy!T67 -> 0 | U72: =+Zał.1_WPF_bazowy!U67 -> 0 | V72: =+Zał.1_WPF_bazowy!V67 -> 0 | W72: =+Zał.1_WPF_bazowy!W67 -> 0 | X72: =+Zał.1_WPF_bazowy!X67 -> 0 | Y72: =+Zał.1_WPF_bazowy!Y67 -> 0 | Z72: =+Zał.1_WPF_bazowy!Z67 -> 0 | AA72: =+Zał.1_WPF_bazowy!AA67 -> 0 | AB72: =+Zał.1_WPF_bazowy!AB67 -> 0 | AC72: =+Zał.1_WPF_bazowy!AC67 -> 0 | AD72: =+Zał.1_WPF_bazowy!AD67 -> 0 | AE72: =+Zał.1_WPF_bazowy!AE67 -> 0 | AF72: =+Zał.1_WPF_bazowy!AF67 -> 0 | AG72: =+Zał.1_WPF_bazowy!AG67 -> 0 | AH72: =+Zał.1_WPF_bazowy!AH67 -> 0 | AI72: =+Zał.1_WPF_bazowy!AI67 -> 0 | AJ72: =+Zał.1_WPF_bazowy!AJ67 -> 0 | AK72: =+Zał.1_WPF_bazowy!AK67 -> 0 | AL72: =+Zał.1_WPF_bazowy!AL67 -> 0
B73: 11.6 | D73: Wydatki majątkowe w formie dotacji | E73: =Zał.1_WPF_bazowy!E68 -> 65000 | F73: =Zał.1_WPF_bazowy!F68 -> 55000 | G73: =Zał.1_WPF_bazowy!G68 -> 105000 | H73: =Zał.1_WPF_bazowy!H68 -> 65000 | I73: =+Zał.1_WPF_bazowy!I68 -> 50000 | J73: =+Zał.1_WPF_bazowy!J68 -> 0 | K73: =+Zał.1_WPF_bazowy!K68 -> 0 | L73: =+Zał.1_WPF_bazowy!L68 -> 0 | M73: =+Zał.1_WPF_bazowy!M68 -> 0 | N73: =+Zał.1_WPF_bazowy!N68 -> 0 | O73: =+Zał.1_WPF_bazowy!O68 -> 0 | P73: =+Zał.1_WPF_bazowy!P68 -> 0 | Q73: =+Zał.1_WPF_bazowy!Q68 -> 0 | R73: =+Zał.1_WPF_bazowy!R68 -> 0 | S73: =+Zał.1_WPF_bazowy!S68 -> 0 | T73: =+Zał.1_WPF_bazowy!T68 -> 0 | U73: =+Zał.1_WPF_bazowy!U68 -> 0 | V73: =+Zał.1_WPF_bazowy!V68 -> 0 | W73: =+Zał.1_WPF_bazowy!W68 -> 0 | X73: =+Zał.1_WPF_bazowy!X68 -> 0 | Y73: =+Zał.1_WPF_bazowy!Y68 -> 0 | Z73: =+Zał.1_WPF_bazowy!Z68 -> 0 | AA73: =+Zał.1_WPF_bazowy!AA68 -> 0 | AB73: =+Zał.1_WPF_bazowy!AB68 -> 0 | AC73: =+Zał.1_WPF_bazowy!AC68 -> 0 | AD73: =+Zał.1_WPF_bazowy!AD68 -> 0 | AE73: =+Zał.1_WPF_bazowy!AE68 -> 0 | AF73: =+Zał.1_WPF_bazowy!AF68 -> 0 | AG73: =+Zał.1_WPF_bazowy!AG68 -> 0 | AH73: =+Zał.1_WPF_bazowy!AH68 -> 0 | AI73: =+Zał.1_WPF_bazowy!AI68 -> 0 | AJ73: =+Zał.1_WPF_bazowy!AJ68 -> 0 | AK73: =+Zał.1_WPF_bazowy!AK68 -> 0 | AL73: =+Zał.1_WPF_bazowy!AL68 -> 0
B74: 12 | D74: Finansowanie programów, projektów lub zadań realizowanych z udziałem środków, o których mowa w art. 5 ust. 1 pkt 2 i 3 ustawy | E74: x | F74: x | G74: x | H74: x | I74: x | J74: x | K74: x | L74: x | M74: x | N74: x | O74: x | P74: x | Q74: x | R74: x | S74: x | T74: x | U74: x | V74: x | W74: x | X74: x | Y74: x | Z74: x | AA74: x | AB74: x | AC74: x | AD74: x | AE74: x | AF74: x | AG74: x | AH74: x | AI74: x | AJ74: x | AK74: x | AL74: x
B75: 12.1 | D75: Dochody bieżące na programy, projekty lub zadania finansowane z udziałem środków, o których mowa w art. 5 ust. 1 pkt 2 i 3 ustawy | E75: =Zał.1_WPF_bazowy!E70 -> 229514.4 | F75: =Zał.1_WPF_bazowy!F70 -> 0 | G75: =Zał.1_WPF_bazowy!G70 -> 0 | H75: =Zał.1_WPF_bazowy!H70 -> 0 | I75: =+Zał.1_WPF_bazowy!I70 -> 0 | J75: =+Zał.1_WPF_bazowy!J70 -> 0 | K75: =+Zał.1_WPF_bazowy!K70 -> 0 | L75: =+Zał.1_WPF_bazowy!L70 -> 0 | M75: =+Zał.1_WPF_bazowy!M70 -> 0 | N75: =+Zał.1_WPF_bazowy!N70 -> 0 | O75: =+Zał.1_WPF_bazowy!O70 -> 0 | P75: =+Zał.1_WPF_bazowy!P70 -> 0 | Q75: =+Zał.1_WPF_bazowy!Q70 -> 0 | R75: =+Zał.1_WPF_bazowy!R70 -> 0 | S75: =+Zał.1_WPF_bazowy!S70 -> 0 | T75: =+Zał.1_WPF_bazowy!T70 -> 0 | U75: =+Zał.1_WPF_bazowy!U70 -> 0 | V75: =+Zał.1_WPF_bazowy!V70 -> 0 | W75: =+Zał.1_WPF_bazowy!W70 -> 0 | X75: =+Zał.1_WPF_bazowy!X70 -> 0 | Y75: =+Zał.1_WPF_bazowy!Y70 -> 0 | Z75: =+Zał.1_WPF_bazowy!Z70 -> 0 | AA75: =+Zał.1_WPF_bazowy!AA70 -> 0 | AB75: =+Zał.1_WPF_bazowy!AB70 -> 0 | AC75: =+Zał.1_WPF_bazowy!AC70 -> 0 | AD75: =+Zał.1_WPF_bazowy!AD70 -> 0 | AE75: =+Zał.1_WPF_bazowy!AE70 -> 0 | AF75: =+Zał.1_WPF_bazowy!AF70 -> 0 | AG75: =+Zał.1_WPF_bazowy!AG70 -> 0 | AH75: =+Zał.1_WPF_bazowy!AH70 -> 0 | AI75: =+Zał.1_WPF_bazowy!AI70 -> 0 | AJ75: =+Zał.1_WPF_bazowy!AJ70 -> 0 | AK75: =+Zał.1_WPF_bazowy!AK70 -> 0 | AL75: =+Zał.1_WPF_bazowy!AL70 -> 0
B76: 12.1.1 | D76: - w tym środki określone w art. 5 ust. 1 pkt 2 ustawy | E76: =Zał.1_WPF_bazowy!E71 -> 208926.15 | F76: =Zał.1_WPF_bazowy!F71 -> 0 | G76: =Zał.1_WPF_bazowy!G71 -> 0 | H76: =Zał.1_WPF_bazowy!H71 -> 0 | I76: =+Zał.1_WPF_bazowy!I71 -> 0 | J76: =+Zał.1_WPF_bazowy!J71 -> 0 | K76: =+Zał.1_WPF_bazowy!K71 -> 0 | L76: =+Zał.1_WPF_bazowy!L71 -> 0 | M76: =+Zał.1_WPF_bazowy!M71 -> 0 | N76: =+Zał.1_WPF_bazowy!N71 -> 0 | O76: =+Zał.1_WPF_bazowy!O71 -> 0 | P76: =+Zał.1_WPF_bazowy!P71 -> 0 | Q76: =+Zał.1_WPF_bazowy!Q71 -> 0 | R76: =+Zał.1_WPF_bazowy!R71 -> 0 | S76: =+Zał.1_WPF_bazowy!S71 -> 0 | T76: =+Zał.1_WPF_bazowy!T71 -> 0 | U76: =+Zał.1_WPF_bazowy!U71 -> 0 | V76: =+Zał.1_WPF_bazowy!V71 -> 0 | W76: =+Zał.1_WPF_bazowy!W71 -> 0 | X76: =+Zał.1_WPF_bazowy!X71 -> 0 | Y76: =+Zał.1_WPF_bazowy!Y71 -> 0 | Z76: =+Zał.1_WPF_bazowy!Z71 -> 0 | AA76: =+Zał.1_WPF_bazowy!AA71 -> 0 | AB76: =+Zał.1_WPF_bazowy!AB71 -> 0 | AC76: =+Zał.1_WPF_bazowy!AC71 -> 0 | AD76: =+Zał.1_WPF_bazowy!AD71 -> 0 | AE76: =+Zał.1_WPF_bazowy!AE71 -> 0 | AF76: =+Zał.1_WPF_bazowy!AF71 -> 0 | AG76: =+Zał.1_WPF_bazowy!AG71 -> 0 | AH76: =+Zał.1_WPF_bazowy!AH71 -> 0 | AI76: =+Zał.1_WPF_bazowy!AI71 -> 0 | AJ76: =+Zał.1_WPF_bazowy!AJ71 -> 0 | AK76: =+Zał.1_WPF_bazowy!AK71 -> 0 | AL76: =+Zał.1_WPF_bazowy!AL71 -> 0
B77: 12.1.1.1 | D77: - w tym środki określone w art. 5 ust. 1 pkt 2 ustawy wynikające wyłącznie z zawartych umów na realizację programu, projektu lub zadania | E77: =Zał.1_WPF_bazowy!E72 -> 208926.15 | F77: =Zał.1_WPF_bazowy!F72 -> 0 | G77: =Zał.1_WPF_bazowy!G72 -> 0 | H77: =Zał.1_WPF_bazowy!H72 -> 0 | I77: =+Zał.1_WPF_bazowy!I72 -> 0 | J77: =+Zał.1_WPF_bazowy!J72 -> 0 | K77: =+Zał.1_WPF_bazowy!K72 -> 0 | L77: =+Zał.1_WPF_bazowy!L72 -> 0 | M77: =+Zał.1_WPF_bazowy!M72 -> 0 | N77: =+Zał.1_WPF_bazowy!N72 -> 0 | O77: =+Zał.1_WPF_bazowy!O72 -> 0 | P77: =+Zał.1_WPF_bazowy!P72 -> 0 | Q77: =+Zał.1_WPF_bazowy!Q72 -> 0 | R77: =+Zał.1_WPF_bazowy!R72 -> 0 | S77: =+Zał.1_WPF_bazowy!S72 -> 0 | T77: =+Zał.1_WPF_bazowy!T72 -> 0 | U77: =+Zał.1_WPF_bazowy!U72 -> 0 | V77: =+Zał.1_WPF_bazowy!V72 -> 0 | W77: =+Zał.1_WPF_bazowy!W72 -> 0 | X77: =+Zał.1_WPF_bazowy!X72 -> 0 | Y77: =+Zał.1_WPF_bazowy!Y72 -> 0 | Z77: =+Zał.1_WPF_bazowy!Z72 -> 0 | AA77: =+Zał.1_WPF_bazowy!AA72 -> 0 | AB77: =+Zał.1_WPF_bazowy!AB72 -> 0 | AC77: =+Zał.1_WPF_bazowy!AC72 -> 0 | AD77: =+Zał.1_WPF_bazowy!AD72 -> 0 | AE77: =+Zał.1_WPF_bazowy!AE72 -> 0 | AF77: =+Zał.1_WPF_bazowy!AF72 -> 0 | AG77: =+Zał.1_WPF_bazowy!AG72 -> 0 | AH77: =+Zał.1_WPF_bazowy!AH72 -> 0 | AI77: =+Zał.1_WPF_bazowy!AI72 -> 0 | AJ77: =+Zał.1_WPF_bazowy!AJ72 -> 0 | AK77: =+Zał.1_WPF_bazowy!AK72 -> 0 | AL77: =+Zał.1_WPF_bazowy!AL72 -> 0
B78: 12.2 | D78: Dochody majątkowe na programy, projekty lub zadania finansowane z udziałem środków, o których mowa w art. 5 ust. 1 pkt 2 i 3 ustawy | E78: =Zał.1_WPF_bazowy!E73 -> 936216.81 | F78: =Zał.1_WPF_bazowy!F73 -> 0 | G78: =Zał.1_WPF_bazowy!G73 -> 0 | H78: =Zał.1_WPF_bazowy!H73 -> 0 | I78: =+Zał.1_WPF_bazowy!I73 -> 462622 | J78: =+Zał.1_WPF_bazowy!J73 -> 1272600 | K78: =+Zał.1_WPF_bazowy!K73 -> 0 | L78: =+Zał.1_WPF_bazowy!L73 -> 0 | M78: =+Zał.1_WPF_bazowy!M73 -> 0 | N78: =+Zał.1_WPF_bazowy!N73 -> 0 | O78: =+Zał.1_WPF_bazowy!O73 -> 0 | P78: =+Zał.1_WPF_bazowy!P73 -> 0 | Q78: =+Zał.1_WPF_bazowy!Q73 -> 0 | R78: =+Zał.1_WPF_bazowy!R73 -> 0 | S78: =+Zał.1_WPF_bazowy!S73 -> 0 | T78: =+Zał.1_WPF_bazowy!T73 -> 0 | U78: =+Zał.1_WPF_bazowy!U73 -> 0 | V78: =+Zał.1_WPF_bazowy!V73 -> 0 | W78: =+Zał.1_WPF_bazowy!W73 -> 0 | X78: =+Zał.1_WPF_bazowy!X73 -> 0 | Y78: =+Zał.1_WPF_bazowy!Y73 -> 0 | Z78: =+Zał.1_WPF_bazowy!Z73 -> 0 | AA78: =+Zał.1_WPF_bazowy!AA73 -> 0 | AB78: =+Zał.1_WPF_bazowy!AB73 -> 0 | AC78: =+Zał.1_WPF_bazowy!AC73 -> 0 | AD78: =+Zał.1_WPF_bazowy!AD73 -> 0 | AE78: =+Zał.1_WPF_bazowy!AE73 -> 0 | AF78: =+Zał.1_WPF_bazowy!AF73 -> 0 | AG78: =+Zał.1_WPF_bazowy!AG73 -> 0 | AH78: =+Zał.1_WPF_bazowy!AH73 -> 0 | AI78: =+Zał.1_WPF_bazowy!AI73 -> 0 | AJ78: =+Zał.1_WPF_bazowy!AJ73 -> 0 | AK78: =+Zał.1_WPF_bazowy!AK73 -> 0 | AL78: =+Zał.1_WPF_bazowy!AL73 -> 0
B79: 12.2.1 | D79: - w tym środki określone w art. 5 ust. 1 pkt 2 ustawy | E79: =Zał.1_WPF_bazowy!E74 -> 936216.81 | F79: =Zał.1_WPF_bazowy!F74 -> 0 | G79: =Zał.1_WPF_bazowy!G74 -> 0 | H79: =Zał.1_WPF_bazowy!H74 -> 0 | I79: =+Zał.1_WPF_bazowy!I74 -> 462622 | J79: =+Zał.1_WPF_bazowy!J74 -> 1272600 | K79: =+Zał.1_WPF_bazowy!K74 -> 0 | L79: =+Zał.1_WPF_bazowy!L74 -> 0 | M79: =+Zał.1_WPF_bazowy!M74 -> 0 | N79: =+Zał.1_WPF_bazowy!N74 -> 0 | O79: =+Zał.1_WPF_bazowy!O74 -> 0 | P79: =+Zał.1_WPF_bazowy!P74 -> 0 | Q79: =+Zał.1_WPF_bazowy!Q74 -> 0 | R79: =+Zał.1_WPF_bazowy!R74 -> 0 | S79: =+Zał.1_WPF_bazowy!S74 -> 0 | T79: =+Zał.1_WPF_bazowy!T74 -> 0 | U79: =+Zał.1_WPF_bazowy!U74 -> 0 | V79: =+Zał.1_WPF_bazowy!V74 -> 0 | W79: =+Zał.1_WPF_bazowy!W74 -> 0 | X79: =+Zał.1_WPF_bazowy!X74 -> 0 | Y79: =+Zał.1_WPF_bazowy!Y74 -> 0 | Z79: =+Zał.1_WPF_bazowy!Z74 -> 0 | AA79: =+Zał.1_WPF_bazowy!AA74 -> 0 | AB79: =+Zał.1_WPF_bazowy!AB74 -> 0 | AC79: =+Zał.1_WPF_bazowy!AC74 -> 0 | AD79: =+Zał.1_WPF_bazowy!AD74 -> 0 | AE79: =+Zał.1_WPF_bazowy!AE74 -> 0 | AF79: =+Zał.1_WPF_bazowy!AF74 -> 0 | AG79: =+Zał.1_WPF_bazowy!AG74 -> 0 | AH79: =+Zał.1_WPF_bazowy!AH74 -> 0 | AI79: =+Zał.1_WPF_bazowy!AI74 -> 0 | AJ79: =+Zał.1_WPF_bazowy!AJ74 -> 0 | AK79: =+Zał.1_WPF_bazowy!AK74 -> 0 | AL79: =+Zał.1_WPF_bazowy!AL74 -> 0
B80: 12.2.1.1 | D80: - w tym środki określone w art. 5 ust. 1 pkt 2 ustawy wynikające wyłącznie z zawartych umów na realizację programu, projektu lub zadania | E80: =Zał.1_WPF_bazowy!E75 -> 936216.81 | F80: =Zał.1_WPF_bazowy!F75 -> 0 | G80: =Zał.1_WPF_bazowy!G75 -> 0 | H80: =Zał.1_WPF_bazowy!H75 -> 0 | I80: =+Zał.1_WPF_bazowy!I75 -> 0 | J80: =+Zał.1_WPF_bazowy!J75 -> 0 | K80: =+Zał.1_WPF_bazowy!K75 -> 0 | L80: =+Zał.1_WPF_bazowy!L75 -> 0 | M80: =+Zał.1_WPF_bazowy!M75 -> 0 | N80: =+Zał.1_WPF_bazowy!N75 -> 0 | O80: =+Zał.1_WPF_bazowy!O75 -> 0 | P80: =+Zał.1_WPF_bazowy!P75 -> 0 | Q80: =+Zał.1_WPF_bazowy!Q75 -> 0 | R80: =+Zał.1_WPF_bazowy!R75 -> 0 | S80: =+Zał.1_WPF_bazowy!S75 -> 0 | T80: =+Zał.1_WPF_bazowy!T75 -> 0 | U80: =+Zał.1_WPF_bazowy!U75 -> 0 | V80: =+Zał.1_WPF_bazowy!V75 -> 0 | W80: =+Zał.1_WPF_bazowy!W75 -> 0 | X80: =+Zał.1_WPF_bazowy!X75 -> 0 | Y80: =+Zał.1_WPF_bazowy!Y75 -> 0 | Z80: =+Zał.1_WPF_bazowy!Z75 -> 0 | AA80: =+Zał.1_WPF_bazowy!AA75 -> 0 | AB80: =+Zał.1_WPF_bazowy!AB75 -> 0 | AC80: =+Zał.1_WPF_bazowy!AC75 -> 0 | AD80: =+Zał.1_WPF_bazowy!AD75 -> 0 | AE80: =+Zał.1_WPF_bazowy!AE75 -> 0 | AF80: =+Zał.1_WPF_bazowy!AF75 -> 0 | AG80: =+Zał.1_WPF_bazowy!AG75 -> 0 | AH80: =+Zał.1_WPF_bazowy!AH75 -> 0 | AI80: =+Zał.1_WPF_bazowy!AI75 -> 0 | AJ80: =+Zał.1_WPF_bazowy!AJ75 -> 0 | AK80: =+Zał.1_WPF_bazowy!AK75 -> 0 | AL80: =+Zał.1_WPF_bazowy!AL75 -> 0
B81: 12.3 | D81: Wydatki bieżące na programy, projekty lub zadania finansowane z udziałem środków, o których mowa w art. 5 ust. 1 pkt 2 i 3 ustawy | E81: =Zał.1_WPF_bazowy!E76 -> 363661.35 | F81: =Zał.1_WPF_bazowy!F76 -> 0 | G81: =Zał.1_WPF_bazowy!G76 -> 0 | H81: =Zał.1_WPF_bazowy!H76 -> 0 | I81: =+Zał.1_WPF_bazowy!I76 -> 0 | J81: =+Zał.1_WPF_bazowy!J76 -> 0 | K81: =+Zał.1_WPF_bazowy!K76 -> 0 | L81: =+Zał.1_WPF_bazowy!L76 -> 0 | M81: =+Zał.1_WPF_bazowy!M76 -> 0 | N81: =+Zał.1_WPF_bazowy!N76 -> 0 | O81: =+Zał.1_WPF_bazowy!O76 -> 0 | P81: =+Zał.1_WPF_bazowy!P76 -> 0 | Q81: =+Zał.1_WPF_bazowy!Q76 -> 0 | R81: =+Zał.1_WPF_bazowy!R76 -> 0 | S81: =+Zał.1_WPF_bazowy!S76 -> 0 | T81: =+Zał.1_WPF_bazowy!T76 -> 0 | U81: =+Zał.1_WPF_bazowy!U76 -> 0 | V81: =+Zał.1_WPF_bazowy!V76 -> 0 | W81: =+Zał.1_WPF_bazowy!W76 -> 0 | X81: =+Zał.1_WPF_bazowy!X76 -> 0 | Y81: =+Zał.1_WPF_bazowy!Y76 -> 0 | Z81: =+Zał.1_WPF_bazowy!Z76 -> 0 | AA81: =+Zał.1_WPF_bazowy!AA76 -> 0 | AB81: =+Zał.1_WPF_bazowy!AB76 -> 0 | AC81: =+Zał.1_WPF_bazowy!AC76 -> 0 | AD81: =+Zał.1_WPF_bazowy!AD76 -> 0 | AE81: =+Zał.1_WPF_bazowy!AE76 -> 0 | AF81: =+Zał.1_WPF_bazowy!AF76 -> 0 | AG81: =+Zał.1_WPF_bazowy!AG76 -> 0 | AH81: =+Zał.1_WPF_bazowy!AH76 -> 0 | AI81: =+Zał.1_WPF_bazowy!AI76 -> 0 | AJ81: =+Zał.1_WPF_bazowy!AJ76 -> 0 | AK81: =+Zał.1_WPF_bazowy!AK76 -> 0 | AL81: =+Zał.1_WPF_bazowy!AL76 -> 0
B82: 12.3.1 | D82: - w tym finansowane środkami określonymi w art. 5 ust. 1 pkt 2 ustawy | E82: =Zał.1_WPF_bazowy!E77 -> 293435.14 | F82: =Zał.1_WPF_bazowy!F77 -> 0 | G82: =Zał.1_WPF_bazowy!G77 -> 0 | H82: =Zał.1_WPF_bazowy!H77 -> 0 | I82: =+Zał.1_WPF_bazowy!I77 -> 0 | J82: =+Zał.1_WPF_bazowy!J77 -> 0 | K82: =+Zał.1_WPF_bazowy!K77 -> 0 | L82: =+Zał.1_WPF_bazowy!L77 -> 0 | M82: =+Zał.1_WPF_bazowy!M77 -> 0 | N82: =+Zał.1_WPF_bazowy!N77 -> 0 | O82: =+Zał.1_WPF_bazowy!O77 -> 0 | P82: =+Zał.1_WPF_bazowy!P77 -> 0 | Q82: =+Zał.1_WPF_bazowy!Q77 -> 0 | R82: =+Zał.1_WPF_bazowy!R77 -> 0 | S82: =+Zał.1_WPF_bazowy!S77 -> 0 | T82: =+Zał.1_WPF_bazowy!T77 -> 0 | U82: =+Zał.1_WPF_bazowy!U77 -> 0 | V82: =+Zał.1_WPF_bazowy!V77 -> 0 | W82: =+Zał.1_WPF_bazowy!W77 -> 0 | X82: =+Zał.1_WPF_bazowy!X77 -> 0 | Y82: =+Zał.1_WPF_bazowy!Y77 -> 0 | Z82: =+Zał.1_WPF_bazowy!Z77 -> 0 | AA82: =+Zał.1_WPF_bazowy!AA77 -> 0 | AB82: =+Zał.1_WPF_bazowy!AB77 -> 0 | AC82: =+Zał.1_WPF_bazowy!AC77 -> 0 | AD82: =+Zał.1_WPF_bazowy!AD77 -> 0 | AE82: =+Zał.1_WPF_bazowy!AE77 -> 0 | AF82: =+Zał.1_WPF_bazowy!AF77 -> 0 | AG82: =+Zał.1_WPF_bazowy!AG77 -> 0 | AH82: =+Zał.1_WPF_bazowy!AH77 -> 0 | AI82: =+Zał.1_WPF_bazowy!AI77 -> 0 | AJ82: =+Zał.1_WPF_bazowy!AJ77 -> 0 | AK82: =+Zał.1_WPF_bazowy!AK77 -> 0 | AL82: =+Zał.1_WPF_bazowy!AL77 -> 0
B83: 12.3.2 | D83: Wydatki bieżące na realizację programu, projektu lub zadania wynikające wyłącznie z zawartych umów z podmiotem dysponującym środkami, o których mowa w art. 5 ust. 1 pkt 2 ustawy | E83: =Zał.1_WPF_bazowy!E78 -> 363661.35 | F83: =Zał.1_WPF_bazowy!F78 -> 0 | G83: =Zał.1_WPF_bazowy!G78 -> 0 | H83: =Zał.1_WPF_bazowy!H78 -> 0 | I83: =+Zał.1_WPF_bazowy!I78 -> 0 | J83: =+Zał.1_WPF_bazowy!J78 -> 0 | K83: =+Zał.1_WPF_bazowy!K78 -> 0 | L83: =+Zał.1_WPF_bazowy!L78 -> 0 | M83: =+Zał.1_WPF_bazowy!M78 -> 0 | N83: =+Zał.1_WPF_bazowy!N78 -> 0 | O83: =+Zał.1_WPF_bazowy!O78 -> 0 | P83: =+Zał.1_WPF_bazowy!P78 -> 0 | Q83: =+Zał.1_WPF_bazowy!Q78 -> 0 | R83: =+Zał.1_WPF_bazowy!R78 -> 0 | S83: =+Zał.1_WPF_bazowy!S78 -> 0 | T83: =+Zał.1_WPF_bazowy!T78 -> 0 | U83: =+Zał.1_WPF_bazowy!U78 -> 0 | V83: =+Zał.1_WPF_bazowy!V78 -> 0 | W83: =+Zał.1_WPF_bazowy!W78 -> 0 | X83: =+Zał.1_WPF_bazowy!X78 -> 0 | Y83: =+Zał.1_WPF_bazowy!Y78 -> 0 | Z83: =+Zał.1_WPF_bazowy!Z78 -> 0 | AA83: =+Zał.1_WPF_bazowy!AA78 -> 0 | AB83: =+Zał.1_WPF_bazowy!AB78 -> 0 | AC83: =+Zał.1_WPF_bazowy!AC78 -> 0 | AD83: =+Zał.1_WPF_bazowy!AD78 -> 0 | AE83: =+Zał.1_WPF_bazowy!AE78 -> 0 | AF83: =+Zał.1_WPF_bazowy!AF78 -> 0 | AG83: =+Zał.1_WPF_bazowy!AG78 -> 0 | AH83: =+Zał.1_WPF_bazowy!AH78 -> 0 | AI83: =+Zał.1_WPF_bazowy!AI78 -> 0 | AJ83: =+Zał.1_WPF_bazowy!AJ78 -> 0 | AK83: =+Zał.1_WPF_bazowy!AK78 -> 0 | AL83: =+Zał.1_WPF_bazowy!AL78 -> 0
B84: 12.4 | D84: Wydatki majątkowe na programy, projekty lub zadania finansowane z udziałem środków, o których mowa w art. 5 ust. 1 pkt 2 i 3 ustawy | E84: =Zał.1_WPF_bazowy!E79 -> 847834.76 | F84: =Zał.1_WPF_bazowy!F79 -> 0 | G84: =Zał.1_WPF_bazowy!G79 -> 0 | H84: =Zał.1_WPF_bazowy!H79 -> 0 | I84: =+Zał.1_WPF_bazowy!I79 -> 727050 | J84: =+Zał.1_WPF_bazowy!J79 -> 2000000 | K84: =+Zał.1_WPF_bazowy!K79 -> 0 | L84: =+Zał.1_WPF_bazowy!L79 -> 0 | M84: =+Zał.1_WPF_bazowy!M79 -> 0 | N84: =+Zał.1_WPF_bazowy!N79 -> 0 | O84: =+Zał.1_WPF_bazowy!O79 -> 0 | P84: =+Zał.1_WPF_bazowy!P79 -> 0 | Q84: =+Zał.1_WPF_bazowy!Q79 -> 0 | R84: =+Zał.1_WPF_bazowy!R79 -> 0 | S84: =+Zał.1_WPF_bazowy!S79 -> 0 | T84: =+Zał.1_WPF_bazowy!T79 -> 0 | U84: =+Zał.1_WPF_bazowy!U79 -> 0 | V84: =+Zał.1_WPF_bazowy!V79 -> 0 | W84: =+Zał.1_WPF_bazowy!W79 -> 0 | X84: =+Zał.1_WPF_bazowy!X79 -> 0 | Y84: =+Zał.1_WPF_bazowy!Y79 -> 0 | Z84: =+Zał.1_WPF_bazowy!Z79 -> 0 | AA84: =+Zał.1_WPF_bazowy!AA79 -> 0 | AB84: =+Zał.1_WPF_bazowy!AB79 -> 0 | AC84: =+Zał.1_WPF_bazowy!AC79 -> 0 | AD84: =+Zał.1_WPF_bazowy!AD79 -> 0 | AE84: =+Zał.1_WPF_bazowy!AE79 -> 0 | AF84: =+Zał.1_WPF_bazowy!AF79 -> 0 | AG84: =+Zał.1_WPF_bazowy!AG79 -> 0 | AH84: =+Zał.1_WPF_bazowy!AH79 -> 0 | AI84: =+Zał.1_WPF_bazowy!AI79 -> 0 | AJ84: =+Zał.1_WPF_bazowy!AJ79 -> 0 | AK84: =+Zał.1_WPF_bazowy!AK79 -> 0 | AL84: =+Zał.1_WPF_bazowy!AL79 -> 0
B85: 12.4.1 | D85: - w tym finansowane środkami określonymi w art. 5 ust. 1 pkt 2 ustawy | E85: =Zał.1_WPF_bazowy!E80 -> 545174.4 | F85: =Zał.1_WPF_bazowy!F80 -> 0 | G85: =Zał.1_WPF_bazowy!G80 -> 0 | H85: =Zał.1_WPF_bazowy!H80 -> 0 | I85: =+Zał.1_WPF_bazowy!I80 -> 462622 | J85: =+Zał.1_WPF_bazowy!J80 -> 1272600 | K85: =+Zał.1_WPF_bazowy!K80 -> 0 | L85: =+Zał.1_WPF_bazowy!L80 -> 0 | M85: =+Zał.1_WPF_bazowy!M80 -> 0 | N85: =+Zał.1_WPF_bazowy!N80 -> 0 | O85: =+Zał.1_WPF_bazowy!O80 -> 0 | P85: =+Zał.1_WPF_bazowy!P80 -> 0 | Q85: =+Zał.1_WPF_bazowy!Q80 -> 0 | R85: =+Zał.1_WPF_bazowy!R80 -> 0 | S85: =+Zał.1_WPF_bazowy!S80 -> 0 | T85: =+Zał.1_WPF_bazowy!T80 -> 0 | U85: =+Zał.1_WPF_bazowy!U80 -> 0 | V85: =+Zał.1_WPF_bazowy!V80 -> 0 | W85: =+Zał.1_WPF_bazowy!W80 -> 0 | X85: =+Zał.1_WPF_bazowy!X80 -> 0 | Y85: =+Zał.1_WPF_bazowy!Y80 -> 0 | Z85: =+Zał.1_WPF_bazowy!Z80 -> 0 | AA85: =+Zał.1_WPF_bazowy!AA80 -> 0 | AB85: =+Zał.1_WPF_bazowy!AB80 -> 0 | AC85: =+Zał.1_WPF_bazowy!AC80 -> 0 | AD85: =+Zał.1_WPF_bazowy!AD80 -> 0 | AE85: =+Zał.1_WPF_bazowy!AE80 -> 0 | AF85: =+Zał.1_WPF_bazowy!AF80 -> 0 | AG85: =+Zał.1_WPF_bazowy!AG80 -> 0 | AH85: =+Zał.1_WPF_bazowy!AH80 -> 0 | AI85: =+Zał.1_WPF_bazowy!AI80 -> 0 | AJ85: =+Zał.1_WPF_bazowy!AJ80 -> 0 | AK85: =+Zał.1_WPF_bazowy!AK80 -> 0 | AL85: =+Zał.1_WPF_bazowy!AL80 -> 0
B86: 12.4.2 | D86: Wydatki majątkowe na realizację programu, projektu lub zadania wynikające wyłącznie z zawartych umów z podmiotem dysponującym środkami, o których mowa w art. 5 ust. 1 pkt 2 ustawy | E86: =Zał.1_WPF_bazowy!E81 -> 847834.76 | F86: =Zał.1_WPF_bazowy!F81 -> 0 | G86: =Zał.1_WPF_bazowy!G81 -> 0 | H86: =Zał.1_WPF_bazowy!H81 -> 0 | I86: =+Zał.1_WPF_bazowy!I81 -> 0 | J86: =+Zał.1_WPF_bazowy!J81 -> 0 | K86: =+Zał.1_WPF_bazowy!K81 -> 0 | L86: =+Zał.1_WPF_bazowy!L81 -> 0 | M86: =+Zał.1_WPF_bazowy!M81 -> 0 | N86: =+Zał.1_WPF_bazowy!N81 -> 0 | O86: =+Zał.1_WPF_bazowy!O81 -> 0 | P86: =+Zał.1_WPF_bazowy!P81 -> 0 | Q86: =+Zał.1_WPF_bazowy!Q81 -> 0 | R86: =+Zał.1_WPF_bazowy!R81 -> 0 | S86: =+Zał.1_WPF_bazowy!S81 -> 0 | T86: =+Zał.1_WPF_bazowy!T81 -> 0 | U86: =+Zał.1_WPF_bazowy!U81 -> 0 | V86: =+Zał.1_WPF_bazowy!V81 -> 0 | W86: =+Zał.1_WPF_bazowy!W81 -> 0 | X86: =+Zał.1_WPF_bazowy!X81 -> 0 | Y86: =+Zał.1_WPF_bazowy!Y81 -> 0 | Z86: =+Zał.1_WPF_bazowy!Z81 -> 0 | AA86: =+Zał.1_WPF_bazowy!AA81 -> 0 | AB86: =+Zał.1_WPF_bazowy!AB81 -> 0 | AC86: =+Zał.1_WPF_bazowy!AC81 -> 0 | AD86: =+Zał.1_WPF_bazowy!AD81 -> 0 | AE86: =+Zał.1_WPF_bazowy!AE81 -> 0 | AF86: =+Zał.1_WPF_bazowy!AF81 -> 0 | AG86: =+Zał.1_WPF_bazowy!AG81 -> 0 | AH86: =+Zał.1_WPF_bazowy!AH81 -> 0 | AI86: =+Zał.1_WPF_bazowy!AI81 -> 0 | AJ86: =+Zał.1_WPF_bazowy!AJ81 -> 0 | AK86: =+Zał.1_WPF_bazowy!AK81 -> 0 | AL86: =+Zał.1_WPF_bazowy!AL81 -> 0
B87: 12.5 | D87: Wydatki na wkład krajowy w związku z umową na realizację programu, projektu lub zadania finansowanego z udziałem środków, o których mowa w art. 5 ust. 1 pkt 2 ustawy bez względu na stopień finansowania tymi środkami | E87: =Zał.1_WPF_bazowy!E82 -> 0 | F87: =Zał.1_WPF_bazowy!F82 -> 0 | G87: =Zał.1_WPF_bazowy!G82 -> 0 | H87: =Zał.1_WPF_bazowy!H82 -> 0 | I87: =+Zał.1_WPF_bazowy!I82 -> 264428 | J87: =+Zał.1_WPF_bazowy!J82 -> 727400 | K87: =+Zał.1_WPF_bazowy!K82 -> 0 | L87: =+Zał.1_WPF_bazowy!L82 -> 0 | M87: =+Zał.1_WPF_bazowy!M82 -> 0 | N87: =+Zał.1_WPF_bazowy!N82 -> 0 | O87: =+Zał.1_WPF_bazowy!O82 -> 0 | P87: =+Zał.1_WPF_bazowy!P82 -> 0 | Q87: =+Zał.1_WPF_bazowy!Q82 -> 0 | R87: =+Zał.1_WPF_bazowy!R82 -> 0 | S87: =+Zał.1_WPF_bazowy!S82 -> 0 | T87: =+Zał.1_WPF_bazowy!T82 -> 0 | U87: =+Zał.1_WPF_bazowy!U82 -> 0 | V87: =+Zał.1_WPF_bazowy!V82 -> 0 | W87: =+Zał.1_WPF_bazowy!W82 -> 0 | X87: =+Zał.1_WPF_bazowy!X82 -> 0 | Y87: =+Zał.1_WPF_bazowy!Y82 -> 0 | Z87: =+Zał.1_WPF_bazowy!Z82 -> 0 | AA87: =+Zał.1_WPF_bazowy!AA82 -> 0 | AB87: =+Zał.1_WPF_bazowy!AB82 -> 0 | AC87: =+Zał.1_WPF_bazowy!AC82 -> 0 | AD87: =+Zał.1_WPF_bazowy!AD82 -> 0 | AE87: =+Zał.1_WPF_bazowy!AE82 -> 0 | AF87: =+Zał.1_WPF_bazowy!AF82 -> 0 | AG87: =+Zał.1_WPF_bazowy!AG82 -> 0 | AH87: =+Zał.1_WPF_bazowy!AH82 -> 0 | AI87: =+Zał.1_WPF_bazowy!AI82 -> 0 | AJ87: =+Zał.1_WPF_bazowy!AJ82 -> 0 | AK87: =+Zał.1_WPF_bazowy!AK82 -> 0 | AL87: =+Zał.1_WPF_bazowy!AL82 -> 0
B88: 12.5.1 | D88: w tym w związku z już zawartą umową na realizację programu, projektu lub zadania | E88: =Zał.1_WPF_bazowy!E83 -> 0 | F88: =Zał.1_WPF_bazowy!F83 -> 0 | G88: =Zał.1_WPF_bazowy!G83 -> 0 | H88: =Zał.1_WPF_bazowy!H83 -> 0 | I88: =+Zał.1_WPF_bazowy!I83 -> 0 | J88: =+Zał.1_WPF_bazowy!J83 -> 0 | K88: =+Zał.1_WPF_bazowy!K83 -> 0 | L88: =+Zał.1_WPF_bazowy!L83 -> 0 | M88: =+Zał.1_WPF_bazowy!M83 -> 0 | N88: =+Zał.1_WPF_bazowy!N83 -> 0 | O88: =+Zał.1_WPF_bazowy!O83 -> 0 | P88: =+Zał.1_WPF_bazowy!P83 -> 0 | Q88: =+Zał.1_WPF_bazowy!Q83 -> 0 | R88: =+Zał.1_WPF_bazowy!R83 -> 0 | S88: =+Zał.1_WPF_bazowy!S83 -> 0 | T88: =+Zał.1_WPF_bazowy!T83 -> 0 | U88: =+Zał.1_WPF_bazowy!U83 -> 0 | V88: =+Zał.1_WPF_bazowy!V83 -> 0 | W88: =+Zał.1_WPF_bazowy!W83 -> 0 | X88: =+Zał.1_WPF_bazowy!X83 -> 0 | Y88: =+Zał.1_WPF_bazowy!Y83 -> 0 | Z88: =+Zał.1_WPF_bazowy!Z83 -> 0 | AA88: =+Zał.1_WPF_bazowy!AA83 -> 0 | AB88: =+Zał.1_WPF_bazowy!AB83 -> 0 | AC88: =+Zał.1_WPF_bazowy!AC83 -> 0 | AD88: =+Zał.1_WPF_bazowy!AD83 -> 0 | AE88: =+Zał.1_WPF_bazowy!AE83 -> 0 | AF88: =+Zał.1_WPF_bazowy!AF83 -> 0 | AG88: =+Zał.1_WPF_bazowy!AG83 -> 0 | AH88: =+Zał.1_WPF_bazowy!AH83 -> 0 | AI88: =+Zał.1_WPF_bazowy!AI83 -> 0 | AJ88: =+Zał.1_WPF_bazowy!AJ83 -> 0 | AK88: =+Zał.1_WPF_bazowy!AK83 -> 0 | AL88: =+Zał.1_WPF_bazowy!AL83 -> 0
B89: 12.6 | D89: Wydatki na wkład krajowy w związku z zawartą po dniu 1 stycznia 2013 r. umową na realizację programu, projektu lub zadania finansowanego w co najmniej 60% środkami, o których mowa w art. 5 ust. 1 pkt 2 ustawy | E89: =Zał.1_WPF_bazowy!E84 -> 0 | F89: =Zał.1_WPF_bazowy!F84 -> 0 | G89: =Zał.1_WPF_bazowy!G84 -> 0 | H89: =Zał.1_WPF_bazowy!H84 -> 0 | I89: =+Zał.1_WPF_bazowy!I84 -> 264428 | J89: =+Zał.1_WPF_bazowy!J84 -> 727400 | K89: =+Zał.1_WPF_bazowy!K84 -> 0 | L89: =+Zał.1_WPF_bazowy!L84 -> 0 | M89: =+Zał.1_WPF_bazowy!M84 -> 0 | N89: =+Zał.1_WPF_bazowy!N84 -> 0 | O89: =+Zał.1_WPF_bazowy!O84 -> 0 | P89: =+Zał.1_WPF_bazowy!P84 -> 0 | Q89: =+Zał.1_WPF_bazowy!Q84 -> 0 | R89: =+Zał.1_WPF_bazowy!R84 -> 0 | S89: =+Zał.1_WPF_bazowy!S84 -> 0 | T89: =+Zał.1_WPF_bazowy!T84 -> 0 | U89: =+Zał.1_WPF_bazowy!U84 -> 0 | V89: =+Zał.1_WPF_bazowy!V84 -> 0 | W89: =+Zał.1_WPF_bazowy!W84 -> 0 | X89: =+Zał.1_WPF_bazowy!X84 -> 0 | Y89: =+Zał.1_WPF_bazowy!Y84 -> 0 | Z89: =+Zał.1_WPF_bazowy!Z84 -> 0 | AA89: =+Zał.1_WPF_bazowy!AA84 -> 0 | AB89: =+Zał.1_WPF_bazowy!AB84 -> 0 | AC89: =+Zał.1_WPF_bazowy!AC84 -> 0 | AD89: =+Zał.1_WPF_bazowy!AD84 -> 0 | AE89: =+Zał.1_WPF_bazowy!AE84 -> 0 | AF89: =+Zał.1_WPF_bazowy!AF84 -> 0 | AG89: =+Zał.1_WPF_bazowy!AG84 -> 0 | AH89: =+Zał.1_WPF_bazowy!AH84 -> 0 | AI89: =+Zał.1_WPF_bazowy!AI84 -> 0 | AJ89: =+Zał.1_WPF_bazowy!AJ84 -> 0 | AK89: =+Zał.1_WPF_bazowy!AK84 -> 0 | AL89: =+Zał.1_WPF_bazowy!AL84 -> 0
B90: 12.6.1 | D90: w tym w związku z już zawartą umową na realizację programu, projektu lub zadania | E90: =Zał.1_WPF_bazowy!E85 -> 0 | F90: =Zał.1_WPF_bazowy!F85 -> 0 | G90: =Zał.1_WPF_bazowy!G85 -> 0 | H90: =Zał.1_WPF_bazowy!H85 -> 0 | I90: =+Zał.1_WPF_bazowy!I85 -> 0 | J90: =+Zał.1_WPF_bazowy!J85 -> 0 | K90: =+Zał.1_WPF_bazowy!K85 -> 0 | L90: =+Zał.1_WPF_bazowy!L85 -> 0 | M90: =+Zał.1_WPF_bazowy!M85 -> 0 | N90: =+Zał.1_WPF_bazowy!N85 -> 0 | O90: =+Zał.1_WPF_bazowy!O85 -> 0 | P90: =+Zał.1_WPF_bazowy!P85 -> 0 | Q90: =+Zał.1_WPF_bazowy!Q85 -> 0 | R90: =+Zał.1_WPF_bazowy!R85 -> 0 | S90: =+Zał.1_WPF_bazowy!S85 -> 0 | T90: =+Zał.1_WPF_bazowy!T85 -> 0 | U90: =+Zał.1_WPF_bazowy!U85 -> 0 | V90: =+Zał.1_WPF_bazowy!V85 -> 0 | W90: =+Zał.1_WPF_bazowy!W85 -> 0 | X90: =+Zał.1_WPF_bazowy!X85 -> 0 | Y90: =+Zał.1_WPF_bazowy!Y85 -> 0 | Z90: =+Zał.1_WPF_bazowy!Z85 -> 0 | AA90: =+Zał.1_WPF_bazowy!AA85 -> 0 | AB90: =+Zał.1_WPF_bazowy!AB85 -> 0 | AC90: =+Zał.1_WPF_bazowy!AC85 -> 0 | AD90: =+Zał.1_WPF_bazowy!AD85 -> 0 | AE90: =+Zał.1_WPF_bazowy!AE85 -> 0 | AF90: =+Zał.1_WPF_bazowy!AF85 -> 0 | AG90: =+Zał.1_WPF_bazowy!AG85 -> 0 | AH90: =+Zał.1_WPF_bazowy!AH85 -> 0 | AI90: =+Zał.1_WPF_bazowy!AI85 -> 0 | AJ90: =+Zał.1_WPF_bazowy!AJ85 -> 0 | AK90: =+Zał.1_WPF_bazowy!AK85 -> 0 | AL90: =+Zał.1_WPF_bazowy!AL85 -> 0
B91: 12.7 | D91: Przychody z tytułu kredytów, pożyczek, emisji papierów wartościowych powstające w związku z umową na realizację programu, projektu lub zadania finansowanego z udziałem środków, o których mowa w art. 5 ust. 1 pkt 2 ustawy bez względu na stopień finansowania tymi środkami | E91: =Zał.1_WPF_bazowy!E86 -> 0 | F91: =Zał.1_WPF_bazowy!F86 -> 0 | G91: =Zał.1_WPF_bazowy!G86 -> 0 | H91: =Zał.1_WPF_bazowy!H86 -> 0 | I91: =+Zał.1_WPF_bazowy!I86 -> 0 | J91: =+Zał.1_WPF_bazowy!J86 -> 0 | K91: =+Zał.1_WPF_bazowy!K86 -> 0 | L91: =+Zał.1_WPF_bazowy!L86 -> 0 | M91: =+Zał.1_WPF_bazowy!M86 -> 0 | N91: =+Zał.1_WPF_bazowy!N86 -> 0 | O91: =+Zał.1_WPF_bazowy!O86 -> 0 | P91: =+Zał.1_WPF_bazowy!P86 -> 0 | Q91: =+Zał.1_WPF_bazowy!Q86 -> 0 | R91: =+Zał.1_WPF_bazowy!R86 -> 0 | S91: =+Zał.1_WPF_bazowy!S86 -> 0 | T91: =+Zał.1_WPF_bazowy!T86 -> 0 | U91: =+Zał.1_WPF_bazowy!U86 -> 0 | V91: =+Zał.1_WPF_bazowy!V86 -> 0 | W91: =+Zał.1_WPF_bazowy!W86 -> 0 | X91: =+Zał.1_WPF_bazowy!X86 -> 0 | Y91: =+Zał.1_WPF_bazowy!Y86 -> 0 | Z91: =+Zał.1_WPF_bazowy!Z86 -> 0 | AA91: =+Zał.1_WPF_bazowy!AA86 -> 0 | AB91: =+Zał.1_WPF_bazowy!AB86 -> 0 | AC91: =+Zał.1_WPF_bazowy!AC86 -> 0 | AD91: =+Zał.1_WPF_bazowy!AD86 -> 0 | AE91: =+Zał.1_WPF_bazowy!AE86 -> 0 | AF91: =+Zał.1_WPF_bazowy!AF86 -> 0 | AG91: =+Zał.1_WPF_bazowy!AG86 -> 0 | AH91: =+Zał.1_WPF_bazowy!AH86 -> 0 | AI91: =+Zał.1_WPF_bazowy!AI86 -> 0 | AJ91: =+Zał.1_WPF_bazowy!AJ86 -> 0 | AK91: =+Zał.1_WPF_bazowy!AK86 -> 0 | AL91: =+Zał.1_WPF_bazowy!AL86 -> 0
B92: 12.7.1 | D92: w tym w związku z już zawartą umową na realizację programu, projektu lub zadania | E92: =Zał.1_WPF_bazowy!E87 -> 0 | F92: =Zał.1_WPF_bazowy!F87 -> 0 | G92: =Zał.1_WPF_bazowy!G87 -> 0 | H92: =Zał.1_WPF_bazowy!H87 -> 0 | I92: =+Zał.1_WPF_bazowy!I87 -> 0 | J92: =+Zał.1_WPF_bazowy!J87 -> 0 | K92: =+Zał.1_WPF_bazowy!K87 -> 0 | L92: =+Zał.1_WPF_bazowy!L87 -> 0 | M92: =+Zał.1_WPF_bazowy!M87 -> 0 | N92: =+Zał.1_WPF_bazowy!N87 -> 0 | O92: =+Zał.1_WPF_bazowy!O87 -> 0 | P92: =+Zał.1_WPF_bazowy!P87 -> 0 | Q92: =+Zał.1_WPF_bazowy!Q87 -> 0 | R92: =+Zał.1_WPF_bazowy!R87 -> 0 | S92: =+Zał.1_WPF_bazowy!S87 -> 0 | T92: =+Zał.1_WPF_bazowy!T87 -> 0 | U92: =+Zał.1_WPF_bazowy!U87 -> 0 | V92: =+Zał.1_WPF_bazowy!V87 -> 0 | W92: =+Zał.1_WPF_bazowy!W87 -> 0 | X92: =+Zał.1_WPF_bazowy!X87 -> 0 | Y92: =+Zał.1_WPF_bazowy!Y87 -> 0 | Z92: =+Zał.1_WPF_bazowy!Z87 -> 0 | AA92: =+Zał.1_WPF_bazowy!AA87 -> 0 | AB92: =+Zał.1_WPF_bazowy!AB87 -> 0 | AC92: =+Zał.1_WPF_bazowy!AC87 -> 0 | AD92: =+Zał.1_WPF_bazowy!AD87 -> 0 | AE92: =+Zał.1_WPF_bazowy!AE87 -> 0 | AF92: =+Zał.1_WPF_bazowy!AF87 -> 0 | AG92: =+Zał.1_WPF_bazowy!AG87 -> 0 | AH92: =+Zał.1_WPF_bazowy!AH87 -> 0 | AI92: =+Zał.1_WPF_bazowy!AI87 -> 0 | AJ92: =+Zał.1_WPF_bazowy!AJ87 -> 0 | AK92: =+Zał.1_WPF_bazowy!AK87 -> 0 | AL92: =+Zał.1_WPF_bazowy!AL87 -> 0
B93: 12.8 | D93: Przychody z tytułu kredytów, pożyczek, emisji papierów wartościowych powstające w związku z zawartą po dniu 1 stycznia 2013 r. umową na realizację programu, projektu lub zadania finansowanego w co najmniej 60% środkami, o których mowa w art. 5 ust. 1 pkt 2 ustawy | E93: =Zał.1_WPF_bazowy!E88 -> 0 | F93: =Zał.1_WPF_bazowy!F88 -> 0 | G93: =Zał.1_WPF_bazowy!G88 -> 0 | H93: =Zał.1_WPF_bazowy!H88 -> 0 | I93: =+Zał.1_WPF_bazowy!I88 -> 0 | J93: =+Zał.1_WPF_bazowy!J88 -> 0 | K93: =+Zał.1_WPF_bazowy!K88 -> 0 | L93: =+Zał.1_WPF_bazowy!L88 -> 0 | M93: =+Zał.1_WPF_bazowy!M88 -> 0 | N93: =+Zał.1_WPF_bazowy!N88 -> 0 | O93: =+Zał.1_WPF_bazowy!O88 -> 0 | P93: =+Zał.1_WPF_bazowy!P88 -> 0 | Q93: =+Zał.1_WPF_bazowy!Q88 -> 0 | R93: =+Zał.1_WPF_bazowy!R88 -> 0 | S93: =+Zał.1_WPF_bazowy!S88 -> 0 | T93: =+Zał.1_WPF_bazowy!T88 -> 0 | U93: =+Zał.1_WPF_bazowy!U88 -> 0 | V93: =+Zał.1_WPF_bazowy!V88 -> 0 | W93: =+Zał.1_WPF_bazowy!W88 -> 0 | X93: =+Zał.1_WPF_bazowy!X88 -> 0 | Y93: =+Zał.1_WPF_bazowy!Y88 -> 0 | Z93: =+Zał.1_WPF_bazowy!Z88 -> 0 | AA93: =+Zał.1_WPF_bazowy!AA88 -> 0 | AB93: =+Zał.1_WPF_bazowy!AB88 -> 0 | AC93: =+Zał.1_WPF_bazowy!AC88 -> 0 | AD93: =+Zał.1_WPF_bazowy!AD88 -> 0 | AE93: =+Zał.1_WPF_bazowy!AE88 -> 0 | AF93: =+Zał.1_WPF_bazowy!AF88 -> 0 | AG93: =+Zał.1_WPF_bazowy!AG88 -> 0 | AH93: =+Zał.1_WPF_bazowy!AH88 -> 0 | AI93: =+Zał.1_WPF_bazowy!AI88 -> 0 | AJ93: =+Zał.1_WPF_bazowy!AJ88 -> 0 | AK93: =+Zał.1_WPF_bazowy!AK88 -> 0 | AL93: =+Zał.1_WPF_bazowy!AL88 -> 0
B94: 12.8.1 | D94: w tym w związku z już zawartą umową na realizację programu, projektu lub zadania | E94: =Zał.1_WPF_bazowy!E89 -> 0 | F94: =Zał.1_WPF_bazowy!F89 -> 0 | G94: =Zał.1_WPF_bazowy!G89 -> 0 | H94: =Zał.1_WPF_bazowy!H89 -> 0 | I94: =+Zał.1_WPF_bazowy!I89 -> 0 | J94: =+Zał.1_WPF_bazowy!J89 -> 0 | K94: =+Zał.1_WPF_bazowy!K89 -> 0 | L94: =+Zał.1_WPF_bazowy!L89 -> 0 | M94: =+Zał.1_WPF_bazowy!M89 -> 0 | N94: =+Zał.1_WPF_bazowy!N89 -> 0 | O94: =+Zał.1_WPF_bazowy!O89 -> 0 | P94: =+Zał.1_WPF_bazowy!P89 -> 0 | Q94: =+Zał.1_WPF_bazowy!Q89 -> 0 | R94: =+Zał.1_WPF_bazowy!R89 -> 0 | S94: =+Zał.1_WPF_bazowy!S89 -> 0 | T94: =+Zał.1_WPF_bazowy!T89 -> 0 | U94: =+Zał.1_WPF_bazowy!U89 -> 0 | V94: =+Zał.1_WPF_bazowy!V89 -> 0 | W94: =+Zał.1_WPF_bazowy!W89 -> 0 | X94: =+Zał.1_WPF_bazowy!X89 -> 0 | Y94: =+Zał.1_WPF_bazowy!Y89 -> 0 | Z94: =+Zał.1_WPF_bazowy!Z89 -> 0 | AA94: =+Zał.1_WPF_bazowy!AA89 -> 0 | AB94: =+Zał.1_WPF_bazowy!AB89 -> 0 | AC94: =+Zał.1_WPF_bazowy!AC89 -> 0 | AD94: =+Zał.1_WPF_bazowy!AD89 -> 0 | AE94: =+Zał.1_WPF_bazowy!AE89 -> 0 | AF94: =+Zał.1_WPF_bazowy!AF89 -> 0 | AG94: =+Zał.1_WPF_bazowy!AG89 -> 0 | AH94: =+Zał.1_WPF_bazowy!AH89 -> 0 | AI94: =+Zał.1_WPF_bazowy!AI89 -> 0 | AJ94: =+Zał.1_WPF_bazowy!AJ89 -> 0 | AK94: =+Zał.1_WPF_bazowy!AK89 -> 0 | AL94: =+Zał.1_WPF_bazowy!AL89 -> 0
B95: 13 | D95: Kwoty dotyczące przejęcia i spłaty zobowiązań po samodzielnych publicznych zakładach opieki zdrowotnej oraz pokrycia ujemnego wyniku | E95: x | F95: x | G95: x | H95: x | I95: x | J95: x | K95: x | L95: x | M95: x | N95: x | O95: x | P95: x | Q95: x | R95: x | S95: x | T95: x | U95: x | V95: x | W95: x | X95: x | Y95: x | Z95: x | AA95: x | AB95: x | AC95: x | AD95: x | AE95: x | AF95: x | AG95: x | AH95: x | AI95: x | AJ95: x | AK95: x | AL95: x
B96: 13.1 | D96: Kwota zobowiązań wynikających z przejęcia przez jednostkę samorządu terytorialnego zobowiązań po likwidowanych i przekształcanych samodzielnych zakładach opieki zdrowotnej | E96: =Zał.1_WPF_bazowy!E91 -> 0 | F96: =Zał.1_WPF_bazowy!F91 -> 0 | G96: =Zał.1_WPF_bazowy!G91 -> 0 | H96: =Zał.1_WPF_bazowy!H91 -> 0 | I96: =+IF(I10<>0,H96-(I98+I99+I100+I101),0) -> 0 | J96: 0 | K96: 0 | L96: 0 | M96: 0 | N96: 0 | O96: 0 | P96: 0 | Q96: 0 | R96: 0 | S96: 0 | T96: 0 | U96: 0 | V96: 0 | W96: 0 | X96: 0 | Y96: 0 | Z96: 0 | AA96: 0 | AB96: 0 | AC96: 0 | AD96: 0 | AE96: 0 | AF96: 0 | AG96: 0 | AH96: 0 | AI96: 0 | AJ96: 0 | AK96: 0 | AL96: 0
B97: 13.2 | D97: Dochody budżetowe z tytułu dotacji celowej z budżetu państwa, o której mowa w art. 196 ustawy z dnia 15 kwietnia 2011 r. o działalności leczniczej (Dz.U. Nr 112, poz. 654, z późn. zm.) | E97: =Zał.1_WPF_bazowy!E92 -> 0 | F97: =Zał.1_WPF_bazowy!F92 -> 0 | G97: =Zał.1_WPF_bazowy!G92 -> 0 | H97: =Zał.1_WPF_bazowy!H92 -> 0 | I97: =+Zał.1_WPF_bazowy!I92 -> 0 | J97: =+Zał.1_WPF_bazowy!J92 -> 0 | K97: =+Zał.1_WPF_bazowy!K92 -> 0 | L97: =+Zał.1_WPF_bazowy!L92 -> 0 | M97: =+Zał.1_WPF_bazowy!M92 -> 0 | N97: =+Zał.1_WPF_bazowy!N92 -> 0 | O97: =+Zał.1_WPF_bazowy!O92 -> 0 | P97: =+Zał.1_WPF_bazowy!P92 -> 0 | Q97: =+Zał.1_WPF_bazowy!Q92 -> 0 | R97: =+Zał.1_WPF_bazowy!R92 -> 0 | S97: =+Zał.1_WPF_bazowy!S92 -> 0 | T97: =+Zał.1_WPF_bazowy!T92 -> 0 | U97: =+Zał.1_WPF_bazowy!U92 -> 0 | V97: =+Zał.1_WPF_bazowy!V92 -> 0 | W97: =+Zał.1_WPF_bazowy!W92 -> 0 | X97: =+Zał.1_WPF_bazowy!X92 -> 0 | Y97: =+Zał.1_WPF_bazowy!Y92 -> 0 | Z97: =+Zał.1_WPF_bazowy!Z92 -> 0 | AA97: =+Zał.1_WPF_bazowy!AA92 -> 0 | AB97: =+Zał.1_WPF_bazowy!AB92 -> 0 | AC97: =+Zał.1_WPF_bazowy!AC92 -> 0 | AD97: =+Zał.1_WPF_bazowy!AD92 -> 0 | AE97: =+Zał.1_WPF_bazowy!AE92 -> 0 | AF97: =+Zał.1_WPF_bazowy!AF92 -> 0 | AG97: =+Zał.1_WPF_bazowy!AG92 -> 0 | AH97: =+Zał.1_WPF_bazowy!AH92 -> 0 | AI97: =+Zał.1_WPF_bazowy!AI92 -> 0 | AJ97: =+Zał.1_WPF_bazowy!AJ92 -> 0 | AK97: =+Zał.1_WPF_bazowy!AK92 -> 0 | AL97: =+Zał.1_WPF_bazowy!AL92 -> 0
B98: 13.3 | D98: Wysokość zobowiązań podlegających umorzeniu, o którym mowa w art. 190 ustawy o działalności leczniczej | E98: =Zał.1_WPF_bazowy!E93 -> 0 | F98: =Zał.1_WPF_bazowy!F93 -> 0 | G98: =Zał.1_WPF_bazowy!G93 -> 0 | H98: =Zał.1_WPF_bazowy!H93 -> 0 | I98: =+Zał.1_WPF_bazowy!I93 -> 0 | J98: =+Zał.1_WPF_bazowy!J93 -> 0 | K98: =+Zał.1_WPF_bazowy!K93 -> 0 | L98: =+Zał.1_WPF_bazowy!L93 -> 0 | M98: =+Zał.1_WPF_bazowy!M93 -> 0 | N98: =+Zał.1_WPF_bazowy!N93 -> 0 | O98: =+Zał.1_WPF_bazowy!O93 -> 0 | P98: =+Zał.1_WPF_bazowy!P93 -> 0 | Q98: =+Zał.1_WPF_bazowy!Q93 -> 0 | R98: =+Zał.1_WPF_bazowy!R93 -> 0 | S98: =+Zał.1_WPF_bazowy!S93 -> 0 | T98: =+Zał.1_WPF_bazowy!T93 -> 0 | U98: =+Zał.1_WPF_bazowy!U93 -> 0 | V98: =+Zał.1_WPF_bazowy!V93 -> 0 | W98: =+Zał.1_WPF_bazowy!W93 -> 0 | X98: =+Zał.1_WPF_bazowy!X93 -> 0 | Y98: =+Zał.1_WPF_bazowy!Y93 -> 0 | Z98: =+Zał.1_WPF_bazowy!Z93 -> 0 | AA98: =+Zał.1_WPF_bazowy!AA93 -> 0 | AB98: =+Zał.1_WPF_bazowy!AB93 -> 0 | AC98: =+Zał.1_WPF_bazowy!AC93 -> 0 | AD98: =+Zał.1_WPF_bazowy!AD93 -> 0 | AE98: =+Zał.1_WPF_bazowy!AE93 -> 0 | AF98: =+Zał.1_WPF_bazowy!AF93 -> 0 | AG98: =+Zał.1_WPF_bazowy!AG93 -> 0 | AH98: =+Zał.1_WPF_bazowy!AH93 -> 0 | AI98: =+Zał.1_WPF_bazowy!AI93 -> 0 | AJ98: =+Zał.1_WPF_bazowy!AJ93 -> 0 | AK98: =+Zał.1_WPF_bazowy!AK93 -> 0 | AL98: =+Zał.1_WPF_bazowy!AL93 -> 0
B99: 13.4 | D99: Wydatki na spłatę przejętych zobowiązań samodzielnego publicznego zakładu opieki zdrowotnej przekształconego na zasadach określonych w przepisach o działalności leczniczej | E99: =Zał.1_WPF_bazowy!E94 -> 0 | F99: =Zał.1_WPF_bazowy!F94 -> 0 | G99: =Zał.1_WPF_bazowy!G94 -> 0 | H99: =Zał.1_WPF_bazowy!H94 -> 0 | I99: =+Zał.1_WPF_bazowy!I94 -> 0 | J99: =+Zał.1_WPF_bazowy!J94 -> 0 | K99: =+Zał.1_WPF_bazowy!K94 -> 0 | L99: =+Zał.1_WPF_bazowy!L94 -> 0 | M99: =+Zał.1_WPF_bazowy!M94 -> 0 | N99: =+Zał.1_WPF_bazowy!N94 -> 0 | O99: =+Zał.1_WPF_bazowy!O94 -> 0 | P99: =+Zał.1_WPF_bazowy!P94 -> 0 | Q99: =+Zał.1_WPF_bazowy!Q94 -> 0 | R99: =+Zał.1_WPF_bazowy!R94 -> 0 | S99: =+Zał.1_WPF_bazowy!S94 -> 0 | T99: =+Zał.1_WPF_bazowy!T94 -> 0 | U99: =+Zał.1_WPF_bazowy!U94 -> 0 | V99: =+Zał.1_WPF_bazowy!V94 -> 0 | W99: =+Zał.1_WPF_bazowy!W94 -> 0 | X99: =+Zał.1_WPF_bazowy!X94 -> 0 | Y99: =+Zał.1_WPF_bazowy!Y94 -> 0 | Z99: =+Zał.1_WPF_bazowy!Z94 -> 0 | AA99: =+Zał.1_WPF_bazowy!AA94 -> 0 | AB99: =+Zał.1_WPF_bazowy!AB94 -> 0 | AC99: =+Zał.1_WPF_bazowy!AC94 -> 0 | AD99: =+Zał.1_WPF_bazowy!AD94 -> 0 | AE99: =+Zał.1_WPF_bazowy!AE94 -> 0 | AF99: =+Zał.1_WPF_bazowy!AF94 -> 0 | AG99: =+Zał.1_WPF_bazowy!AG94 -> 0 | AH99: =+Zał.1_WPF_bazowy!AH94 -> 0 | AI99: =+Zał.1_WPF_bazowy!AI94 -> 0 | AJ99: =+Zał.1_WPF_bazowy!AJ94 -> 0 | AK99: =+Zał.1_WPF_bazowy!AK94 -> 0 | AL99: =+Zał.1_WPF_bazowy!AL94 -> 0
B100: 13.5 | D100: Wydatki na spłatę przejętych zobowiązań samodzielnego publicznego zakładu opieki zdrowotnej likwidowanego na zasadach określonych w przepisach o działalności leczniczej | E100: =Zał.1_WPF_bazowy!E95 -> 0 | F100: =Zał.1_WPF_bazowy!F95 -> 0 | G100: =Zał.1_WPF_bazowy!G95 -> 0 | H100: =Zał.1_WPF_bazowy!H95 -> 0 | I100: =+Zał.1_WPF_bazowy!I95 -> 0 | J100: =+Zał.1_WPF_bazowy!J95 -> 0 | K100: =+Zał.1_WPF_bazowy!K95 -> 0 | L100: =+Zał.1_WPF_bazowy!L95 -> 0 | M100: =+Zał.1_WPF_bazowy!M95 -> 0 | N100: =+Zał.1_WPF_bazowy!N95 -> 0 | O100: =+Zał.1_WPF_bazowy!O95 -> 0 | P100: =+Zał.1_WPF_bazowy!P95 -> 0 | Q100: =+Zał.1_WPF_bazowy!Q95 -> 0 | R100: =+Zał.1_WPF_bazowy!R95 -> 0 | S100: =+Zał.1_WPF_bazowy!S95 -> 0 | T100: =+Zał.1_WPF_bazowy!T95 -> 0 | U100: =+Zał.1_WPF_bazowy!U95 -> 0 | V100: =+Zał.1_WPF_bazowy!V95 -> 0 | W100: =+Zał.1_WPF_bazowy!W95 -> 0 | X100: =+Zał.1_WPF_bazowy!X95 -> 0 | Y100: =+Zał.1_WPF_bazowy!Y95 -> 0 | Z100: =+Zał.1_WPF_bazowy!Z95 -> 0 | AA100: =+Zał.1_WPF_bazowy!AA95 -> 0 | AB100: =+Zał.1_WPF_bazowy!AB95 -> 0 | AC100: =+Zał.1_WPF_bazowy!AC95 -> 0 | AD100: =+Zał.1_WPF_bazowy!AD95 -> 0 | AE100: =+Zał.1_WPF_bazowy!AE95 -> 0 | AF100: =+Zał.1_WPF_bazowy!AF95 -> 0 | AG100: =+Zał.1_WPF_bazowy!AG95 -> 0 | AH100: =+Zał.1_WPF_bazowy!AH95 -> 0 | AI100: =+Zał.1_WPF_bazowy!AI95 -> 0 | AJ100: =+Zał.1_WPF_bazowy!AJ95 -> 0 | AK100: =+Zał.1_WPF_bazowy!AK95 -> 0 | AL100: =+Zał.1_WPF_bazowy!AL95 -> 0
B101: 13.6 | D101: Wydatki na spłatę zobowiązań samodzielnego publicznego zakładu opieki zdrowotnej przejętych do końca 2011 r. na podstawie przepisów o zakładach opieki zdrowotnej | E101: =Zał.1_WPF_bazowy!E96 -> 0 | F101: =Zał.1_WPF_bazowy!F96 -> 0 | G101: =Zał.1_WPF_bazowy!G96 -> 0 | H101: =Zał.1_WPF_bazowy!H96 -> 0 | I101: =+Zał.1_WPF_bazowy!I96 -> 0 | J101: =+Zał.1_WPF_bazowy!J96 -> 0 | K101: =+Zał.1_WPF_bazowy!K96 -> 0 | L101: =+Zał.1_WPF_bazowy!L96 -> 0 | M101: =+Zał.1_WPF_bazowy!M96 -> 0 | N101: =+Zał.1_WPF_bazowy!N96 -> 0 | O101: =+Zał.1_WPF_bazowy!O96 -> 0 | P101: =+Zał.1_WPF_bazowy!P96 -> 0 | Q101: =+Zał.1_WPF_bazowy!Q96 -> 0 | R101: =+Zał.1_WPF_bazowy!R96 -> 0 | S101: =+Zał.1_WPF_bazowy!S96 -> 0 | T101: =+Zał.1_WPF_bazowy!T96 -> 0 | U101: =+Zał.1_WPF_bazowy!U96 -> 0 | V101: =+Zał.1_WPF_bazowy!V96 -> 0 | W101: =+Zał.1_WPF_bazowy!W96 -> 0 | X101: =+Zał.1_WPF_bazowy!X96 -> 0 | Y101: =+Zał.1_WPF_bazowy!Y96 -> 0 | Z101: =+Zał.1_WPF_bazowy!Z96 -> 0 | AA101: =+Zał.1_WPF_bazowy!AA96 -> 0 | AB101: =+Zał.1_WPF_bazowy!AB96 -> 0 | AC101: =+Zał.1_WPF_bazowy!AC96 -> 0 | AD101: =+Zał.1_WPF_bazowy!AD96 -> 0 | AE101: =+Zał.1_WPF_bazowy!AE96 -> 0 | AF101: =+Zał.1_WPF_bazowy!AF96 -> 0 | AG101: =+Zał.1_WPF_bazowy!AG96 -> 0 | AH101: =+Zał.1_WPF_bazowy!AH96 -> 0 | AI101: =+Zał.1_WPF_bazowy!AI96 -> 0 | AJ101: =+Zał.1_WPF_bazowy!AJ96 -> 0 | AK101: =+Zał.1_WPF_bazowy!AK96 -> 0 | AL101: =+Zał.1_WPF_bazowy!AL96 -> 0
B102: 13.7 | D102: Wydatki bieżące na pokrycie ujemnego wyniku finansowego samodzielnego publicznego zakładu opieki zdrowotnej | E102: =Zał.1_WPF_bazowy!E97 -> 0 | F102: =Zał.1_WPF_bazowy!F97 -> 0 | G102: =Zał.1_WPF_bazowy!G97 -> 0 | H102: =Zał.1_WPF_bazowy!H97 -> 0 | I102: =+Zał.1_WPF_bazowy!I97 -> 0 | J102: =+Zał.1_WPF_bazowy!J97 -> 0 | K102: =+Zał.1_WPF_bazowy!K97 -> 0 | L102: =+Zał.1_WPF_bazowy!L97 -> 0 | M102: =+Zał.1_WPF_bazowy!M97 -> 0 | N102: =+Zał.1_WPF_bazowy!N97 -> 0 | O102: =+Zał.1_WPF_bazowy!O97 -> 0 | P102: =+Zał.1_WPF_bazowy!P97 -> 0 | Q102: =+Zał.1_WPF_bazowy!Q97 -> 0 | R102: =+Zał.1_WPF_bazowy!R97 -> 0 | S102: =+Zał.1_WPF_bazowy!S97 -> 0 | T102: =+Zał.1_WPF_bazowy!T97 -> 0 | U102: =+Zał.1_WPF_bazowy!U97 -> 0 | V102: =+Zał.1_WPF_bazowy!V97 -> 0 | W102: =+Zał.1_WPF_bazowy!W97 -> 0 | X102: =+Zał.1_WPF_bazowy!X97 -> 0 | Y102: =+Zał.1_WPF_bazowy!Y97 -> 0 | Z102: =+Zał.1_WPF_bazowy!Z97 -> 0 | AA102: =+Zał.1_WPF_bazowy!AA97 -> 0 | AB102: =+Zał.1_WPF_bazowy!AB97 -> 0 | AC102: =+Zał.1_WPF_bazowy!AC97 -> 0 | AD102: =+Zał.1_WPF_bazowy!AD97 -> 0 | AE102: =+Zał.1_WPF_bazowy!AE97 -> 0 | AF102: =+Zał.1_WPF_bazowy!AF97 -> 0 | AG102: =+Zał.1_WPF_bazowy!AG97 -> 0 | AH102: =+Zał.1_WPF_bazowy!AH97 -> 0 | AI102: =+Zał.1_WPF_bazowy!AI97 -> 0 | AJ102: =+Zał.1_WPF_bazowy!AJ97 -> 0 | AK102: =+Zał.1_WPF_bazowy!AK97 -> 0 | AL102: =+Zał.1_WPF_bazowy!AL97 -> 0
A103: x | B103: 14 | D103: Dane uzupełniające o długu i jego spłacie | E103: x | F103: x | G103: x | H103: x | I103: x | J103: x | K103: x | L103: x | M103: x | N103: x | O103: x | P103: x | Q103: x | R103: x | S103: x | T103: x | U103: x | V103: x | W103: x | X103: x | Y103: x | Z103: x | AA103: x | AB103: x | AC103: x | AD103: x | AE103: x | AF103: x | AG103: x | AH103: x | AI103: x | AJ103: x | AK103: x | AL103: x
A104: x | B104: 14.1 | D104: Spłaty rat kapitałowych oraz wykup papierów wartościowych, o których mowa w pkt. 5.1., wynikające wyłącznie z tytułu zobowiązań już zaciągniętych | E104: =Zał.1_WPF_bazowy!E99 -> 2105000 | F104: =Zał.1_WPF_bazowy!F99 -> 1057000 | G104: =Zał.1_WPF_bazowy!G99 -> 100000 | H104: =Zał.1_WPF_bazowy!H99 -> 100000 | I104: =+Zał.1_WPF_bazowy!I99 -> 400000 | J104: =+Zał.1_WPF_bazowy!J99 -> 600000 | K104: =+Zał.1_WPF_bazowy!K99 -> 600000 | L104: =+Zał.1_WPF_bazowy!L99 -> 1200000 | M104: =+Zał.1_WPF_bazowy!M99 -> 1300000 | N104: =+Zał.1_WPF_bazowy!N99 -> 1200000 | O104: =+Zał.1_WPF_bazowy!O99 -> 1330000 | P104: =+Zał.1_WPF_bazowy!P99 -> 1510000 | Q104: =+Zał.1_WPF_bazowy!Q99 -> 1548000 | R104: =+Zał.1_WPF_bazowy!R99 -> 743000 | S104: =+Zał.1_WPF_bazowy!S99 -> 0 | T104: =+Zał.1_WPF_bazowy!T99 -> 0 | U104: =+Zał.1_WPF_bazowy!U99 -> 0 | V104: =+Zał.1_WPF_bazowy!V99 -> 0 | W104: =+Zał.1_WPF_bazowy!W99 -> 0 | X104: =+Zał.1_WPF_bazowy!X99 -> 0 | Y104: =+Zał.1_WPF_bazowy!Y99 -> 0 | Z104: =+Zał.1_WPF_bazowy!Z99 -> 0 | AA104: =+Zał.1_WPF_bazowy!AA99 -> 0 | AB104: =+Zał.1_WPF_bazowy!AB99 -> 0 | AC104: =+Zał.1_WPF_bazowy!AC99 -> 0 | AD104: =+Zał.1_WPF_bazowy!AD99 -> 0 | AE104: =+Zał.1_WPF_bazowy!AE99 -> 0 | AF104: =+Zał.1_WPF_bazowy!AF99 -> 0 | AG104: =+Zał.1_WPF_bazowy!AG99 -> 0 | AH104: =+Zał.1_WPF_bazowy!AH99 -> 0 | AI104: =+Zał.1_WPF_bazowy!AI99 -> 0 | AJ104: =+Zał.1_WPF_bazowy!AJ99 -> 0 | AK104: =+Zał.1_WPF_bazowy!AK99 -> 0 | AL104: =+Zał.1_WPF_bazowy!AL99 -> 0
A105: x | B105: 14.2 | D105: Kwota długu, którego planowana spłata dokona się z wydatków budżetu | E105: =Zał.1_WPF_bazowy!E100 -> 29700 | F105: =Zał.1_WPF_bazowy!F100 -> 9850 | G105: =Zał.1_WPF_bazowy!G100 -> 0 | H105: =Zał.1_WPF_bazowy!H100 -> 0 | I105: =+Zał.1_WPF_bazowy!I100 -> 688000 | J105: =+Zał.1_WPF_bazowy!J100 -> 564000 | K105: =+Zał.1_WPF_bazowy!K100 -> 444000 | L105: =+Zał.1_WPF_bazowy!L100 -> 327000 | M105: =+Zał.1_WPF_bazowy!M100 -> 214000 | N105: =+Zał.1_WPF_bazowy!N100 -> 105000 | O105: =+Zał.1_WPF_bazowy!O100 -> 0 | P105: =+Zał.1_WPF_bazowy!P100 -> 0 | Q105: =+Zał.1_WPF_bazowy!Q100 -> 0 | R105: =+Zał.1_WPF_bazowy!R100 -> 0 | S105: =+Zał.1_WPF_bazowy!S100 -> 0 | T105: =+Zał.1_WPF_bazowy!T100 -> 0 | U105: =+Zał.1_WPF_bazowy!U100 -> 0 | V105: =+Zał.1_WPF_bazowy!V100 -> 0 | W105: =+Zał.1_WPF_bazowy!W100 -> 0 | X105: =+Zał.1_WPF_bazowy!X100 -> 0 | Y105: =+Zał.1_WPF_bazowy!Y100 -> 0 | Z105: =+Zał.1_WPF_bazowy!Z100 -> 0 | AA105: =+Zał.1_WPF_bazowy!AA100 -> 0 | AB105: =+Zał.1_WPF_bazowy!AB100 -> 0 | AC105: =+Zał.1_WPF_bazowy!AC100 -> 0 | AD105: =+Zał.1_WPF_bazowy!AD100 -> 0 | AE105: =+Zał.1_WPF_bazowy!AE100 -> 0 | AF105: =+Zał.1_WPF_bazowy!AF100 -> 0 | AG105: =+Zał.1_WPF_bazowy!AG100 -> 0 | AH105: =+Zał.1_WPF_bazowy!AH100 -> 0 | AI105: =+Zał.1_WPF_bazowy!AI100 -> 0 | AJ105: =+Zał.1_WPF_bazowy!AJ100 -> 0 | AK105: =+Zał.1_WPF_bazowy!AK100 -> 0 | AL105: =+Zał.1_WPF_bazowy!AL100 -> 0
A106: x | B106: 14.3 | D106: Wydatki zmniejszające dług, w tym | E106: =Zał.1_WPF_bazowy!E101 -> 29850 | F106: =Zał.1_WPF_bazowy!F101 -> 19850 | G106: =Zał.1_WPF_bazowy!G101 -> 9850 | H106: =Zał.1_WPF_bazowy!H101 -> 9850 | I106: =+Zał.1_WPF_bazowy!I101 -> 130000 | J106: =+Zał.1_WPF_bazowy!J101 -> 124000 | K106: =+Zał.1_WPF_bazowy!K101 -> 120000 | L106: =+Zał.1_WPF_bazowy!L101 -> 117000 | M106: =+Zał.1_WPF_bazowy!M101 -> 113000 | N106: =+Zał.1_WPF_bazowy!N101 -> 109000 | O106: =+Zał.1_WPF_bazowy!O101 -> 105000 | P106: =+Zał.1_WPF_bazowy!P101 -> 0 | Q106: =+Zał.1_WPF_bazowy!Q101 -> 0 | R106: =+Zał.1_WPF_bazowy!R101 -> 0 | S106: =+Zał.1_WPF_bazowy!S101 -> 0 | T106: =+Zał.1_WPF_bazowy!T101 -> 0 | U106: =+Zał.1_WPF_bazowy!U101 -> 0 | V106: =+Zał.1_WPF_bazowy!V101 -> 0 | W106: =+Zał.1_WPF_bazowy!W101 -> 0 | X106: =+Zał.1_WPF_bazowy!X101 -> 0 | Y106: =+Zał.1_WPF_bazowy!Y101 -> 0 | Z106: =+Zał.1_WPF_bazowy!Z101 -> 0 | AA106: =+Zał.1_WPF_bazowy!AA101 -> 0 | AB106: =+Zał.1_WPF_bazowy!AB101 -> 0 | AC106: =+Zał.1_WPF_bazowy!AC101 -> 0 | AD106: =+Zał.1_WPF_bazowy!AD101 -> 0 | AE106: =+Zał.1_WPF_bazowy!AE101 -> 0 | AF106: =+Zał.1_WPF_bazowy!AF101 -> 0 | AG106: =+Zał.1_WPF_bazowy!AG101 -> 0 | AH106: =+Zał.1_WPF_bazowy!AH101 -> 0 | AI106: =+Zał.1_WPF_bazowy!AI101 -> 0 | AJ106: =+Zał.1_WPF_bazowy!AJ101 -> 0 | AK106: =+Zał.1_WPF_bazowy!AK101 -> 0 | AL106: =+Zał.1_WPF_bazowy!AL101 -> 0
A107: x | B107: 14.3.1 | D107: spłata zobowiązań wymagalnych z lat poprzednich, innych niż w pkt 14.3.3 | E107: =Zał.1_WPF_bazowy!E102 -> 20000 | F107: =Zał.1_WPF_bazowy!F102 -> 10000 | G107: =Zał.1_WPF_bazowy!G102 -> 0 | H107: =Zał.1_WPF_bazowy!H102 -> 0 | I107: =+Zał.1_WPF_bazowy!I102 -> 0 | J107: =+Zał.1_WPF_bazowy!J102 -> 0 | K107: =+Zał.1_WPF_bazowy!K102 -> 0 | L107: =+Zał.1_WPF_bazowy!L102 -> 0 | M107: =+Zał.1_WPF_bazowy!M102 -> 0 | N107: =+Zał.1_WPF_bazowy!N102 -> 0 | O107: =+Zał.1_WPF_bazowy!O102 -> 0 | P107: =+Zał.1_WPF_bazowy!P102 -> 0 | Q107: =+Zał.1_WPF_bazowy!Q102 -> 0 | R107: =+Zał.1_WPF_bazowy!R102 -> 0 | S107: =+Zał.1_WPF_bazowy!S102 -> 0 | T107: =+Zał.1_WPF_bazowy!T102 -> 0 | U107: =+Zał.1_WPF_bazowy!U102 -> 0 | V107: =+Zał.1_WPF_bazowy!V102 -> 0 | W107: =+Zał.1_WPF_bazowy!W102 -> 0 | X107: =+Zał.1_WPF_bazowy!X102 -> 0 | Y107: =+Zał.1_WPF_bazowy!Y102 -> 0 | Z107: =+Zał.1_WPF_bazowy!Z102 -> 0 | AA107: =+Zał.1_WPF_bazowy!AA102 -> 0 | AB107: =+Zał.1_WPF_bazowy!AB102 -> 0 | AC107: =+Zał.1_WPF_bazowy!AC102 -> 0 | AD107: =+Zał.1_WPF_bazowy!AD102 -> 0 | AE107: =+Zał.1_WPF_bazowy!AE102 -> 0 | AF107: =+Zał.1_WPF_bazowy!AF102 -> 0 | AG107: =+Zał.1_WPF_bazowy!AG102 -> 0 | AH107: =+Zał.1_WPF_bazowy!AH102 -> 0 | AI107: =+Zał.1_WPF_bazowy!AI102 -> 0 | AJ107: =+Zał.1_WPF_bazowy!AJ102 -> 0 | AK107: =+Zał.1_WPF_bazowy!AK102 -> 0 | AL107: =+Zał.1_WPF_bazowy!AL102 -> 0
A108: x | B108: 14.3.2 | D108: związane z umowami zaliczanymi do tytułów dłużnych wliczanych do państwowego długu publicznego | E108: =Zał.1_WPF_bazowy!E103 -> 9850 | F108: =Zał.1_WPF_bazowy!F103 -> 9850 | G108: =Zał.1_WPF_bazowy!G103 -> 9850 | H108: =Zał.1_WPF_bazowy!H103 -> 9850 | I108: =+Zał.1_WPF_bazowy!I103 -> 130000 | J108: =+Zał.1_WPF_bazowy!J103 -> 124000 | K108: =+Zał.1_WPF_bazowy!K103 -> 120000 | L108: =+Zał.1_WPF_bazowy!L103 -> 117000 | M108: =+Zał.1_WPF_bazowy!M103 -> 113000 | N108: =+Zał.1_WPF_bazowy!N103 -> 109000 | O108: =+Zał.1_WPF_bazowy!O103 -> 105000 | P108: =+Zał.1_WPF_bazowy!P103 -> 0 | Q108: =+Zał.1_WPF_bazowy!Q103 -> 0 | R108: =+Zał.1_WPF_bazowy!R103 -> 0 | S108: =+Zał.1_WPF_bazowy!S103 -> 0 | T108: =+Zał.1_WPF_bazowy!T103 -> 0 | U108: =+Zał.1_WPF_bazowy!U103 -> 0 | V108: =+Zał.1_WPF_bazowy!V103 -> 0 | W108: =+Zał.1_WPF_bazowy!W103 -> 0 | X108: =+Zał.1_WPF_bazowy!X103 -> 0 | Y108: =+Zał.1_WPF_bazowy!Y103 -> 0 | Z108: =+Zał.1_WPF_bazowy!Z103 -> 0 | AA108: =+Zał.1_WPF_bazowy!AA103 -> 0 | AB108: =+Zał.1_WPF_bazowy!AB103 -> 0 | AC108: =+Zał.1_WPF_bazowy!AC103 -> 0 | AD108: =+Zał.1_WPF_bazowy!AD103 -> 0 | AE108: =+Zał.1_WPF_bazowy!AE103 -> 0 | AF108: =+Zał.1_WPF_bazowy!AF103 -> 0 | AG108: =+Zał.1_WPF_bazowy!AG103 -> 0 | AH108: =+Zał.1_WPF_bazowy!AH103 -> 0 | AI108: =+Zał.1_WPF_bazowy!AI103 -> 0 | AJ108: =+Zał.1_WPF_bazowy!AJ103 -> 0 | AK108: =+Zał.1_WPF_bazowy!AK103 -> 0 | AL108: =+Zał.1_WPF_bazowy!AL103 -> 0
A109: x | B109: 14.3.3 | D109: wypłaty z tytułu wymagalnych poręczeń i gwarancji | E109: =Zał.1_WPF_bazowy!E104 -> 0 | F109: =Zał.1_WPF_bazowy!F104 -> 0 | G109: =Zał.1_WPF_bazowy!G104 -> 0 | H109: =Zał.1_WPF_bazowy!H104 -> 0 | I109: =+Zał.1_WPF_bazowy!I104 -> 0 | J109: =+Zał.1_WPF_bazowy!J104 -> 0 | K109: =+Zał.1_WPF_bazowy!K104 -> 0 | L109: =+Zał.1_WPF_bazowy!L104 -> 0 | M109: =+Zał.1_WPF_bazowy!M104 -> 0 | N109: =+Zał.1_WPF_bazowy!N104 -> 0 | O109: =+Zał.1_WPF_bazowy!O104 -> 0 | P109: =+Zał.1_WPF_bazowy!P104 -> 0 | Q109: =+Zał.1_WPF_bazowy!Q104 -> 0 | R109: =+Zał.1_WPF_bazowy!R104 -> 0 | S109: =+Zał.1_WPF_bazowy!S104 -> 0 | T109: =+Zał.1_WPF_bazowy!T104 -> 0 | U109: =+Zał.1_WPF_bazowy!U104 -> 0 | V109: =+Zał.1_WPF_bazowy!V104 -> 0 | W109: =+Zał.1_WPF_bazowy!W104 -> 0 | X109: =+Zał.1_WPF_bazowy!X104 -> 0 | Y109: =+Zał.1_WPF_bazowy!Y104 -> 0 | Z109: =+Zał.1_WPF_bazowy!Z104 -> 0 | AA109: =+Zał.1_WPF_bazowy!AA104 -> 0 | AB109: =+Zał.1_WPF_bazowy!AB104 -> 0 | AC109: =+Zał.1_WPF_bazowy!AC104 -> 0 | AD109: =+Zał.1_WPF_bazowy!AD104 -> 0 | AE109: =+Zał.1_WPF_bazowy!AE104 -> 0 | AF109: =+Zał.1_WPF_bazowy!AF104 -> 0 | AG109: =+Zał.1_WPF_bazowy!AG104 -> 0 | AH109: =+Zał.1_WPF_bazowy!AH104 -> 0 | AI109: =+Zał.1_WPF_bazowy!AI104 -> 0 | AJ109: =+Zał.1_WPF_bazowy!AJ104 -> 0 | AK109: =+Zał.1_WPF_bazowy!AK104 -> 0 | AL109: =+Zał.1_WPF_bazowy!AL104 -> 0
A110: x | B110: 14.4 | D110: Wynik operacji niekasowych wpływających na kwotę długu ( m.in. umorzenia, różnice kursowe) | E110: =Zał.1_WPF_bazowy!E105 -> 5558.79 | F110: =Zał.1_WPF_bazowy!F105 -> 0 | G110: =Zał.1_WPF_bazowy!G105 -> 0 | H110: =Zał.1_WPF_bazowy!H105 -> 0 | I110: =+Zał.1_WPF_bazowy!I105 -> 0 | J110: =+Zał.1_WPF_bazowy!J105 -> 0 | K110: =+Zał.1_WPF_bazowy!K105 -> 0 | L110: =+Zał.1_WPF_bazowy!L105 -> 0 | M110: =+Zał.1_WPF_bazowy!M105 -> 0 | N110: =+Zał.1_WPF_bazowy!N105 -> 0 | O110: =+Zał.1_WPF_bazowy!O105 -> 0 | P110: =+Zał.1_WPF_bazowy!P105 -> 0 | Q110: =+Zał.1_WPF_bazowy!Q105 -> 0 | R110: =+Zał.1_WPF_bazowy!R105 -> 0 | S110: =+Zał.1_WPF_bazowy!S105 -> 0 | T110: =+Zał.1_WPF_bazowy!T105 -> 0 | U110: =+Zał.1_WPF_bazowy!U105 -> 0 | V110: =+Zał.1_WPF_bazowy!V105 -> 0 | W110: =+Zał.1_WPF_bazowy!W105 -> 0 | X110: =+Zał.1_WPF_bazowy!X105 -> 0 | Y110: =+Zał.1_WPF_bazowy!Y105 -> 0 | Z110: =+Zał.1_WPF_bazowy!Z105 -> 0 | AA110: =+Zał.1_WPF_bazowy!AA105 -> 0 | AB110: =+Zał.1_WPF_bazowy!AB105 -> 0 | AC110: =+Zał.1_WPF_bazowy!AC105 -> 0 | AD110: =+Zał.1_WPF_bazowy!AD105 -> 0 | AE110: =+Zał.1_WPF_bazowy!AE105 -> 0 | AF110: =+Zał.1_WPF_bazowy!AF105 -> 0 | AG110: =+Zał.1_WPF_bazowy!AG105 -> 0 | AH110: =+Zał.1_WPF_bazowy!AH105 -> 0 | AI110: =+Zał.1_WPF_bazowy!AI105 -> 0 | AJ110: =+Zał.1_WPF_bazowy!AJ105 -> 0 | AK110: =+Zał.1_WPF_bazowy!AK105 -> 0 | AL110: =+Zał.1_WPF_bazowy!AL105 -> 0
B111: 15 | D111: Dane dotyczące emitowanych obligacji przychodowych | E111: x | F111: x | G111: x | H111: x | I111: x | J111: x | K111: x | L111: x | M111: x | N111: x | O111: x | P111: x | Q111: x | R111: x | S111: x | T111: x | U111: x | V111: x | W111: x | X111: x | Y111: x | Z111: x | AA111: x | AB111: x | AC111: x | AD111: x | AE111: x | AF111: x | AG111: x | AH111: x | AI111: x | AJ111: x | AK111: x | AL111: x
B112: 15.1 | D112: Środki z przedsięwzięcia gromadzone na rachunku bankowym, w tym: | E112: =Zał.1_WPF_bazowy!E107 -> 0 | F112: =Zał.1_WPF_bazowy!F107 -> 0 | G112: =Zał.1_WPF_bazowy!G107 -> 0 | H112: =Zał.1_WPF_bazowy!H107 -> 0 | I112: =+Zał.1_WPF_bazowy!I107 -> 0 | J112: =+Zał.1_WPF_bazowy!J107 -> 0 | K112: =+Zał.1_WPF_bazowy!K107 -> 0 | L112: =+Zał.1_WPF_bazowy!L107 -> 0 | M112: =+Zał.1_WPF_bazowy!M107 -> 0 | N112: =+Zał.1_WPF_bazowy!N107 -> 0 | O112: =+Zał.1_WPF_bazowy!O107 -> 0 | P112: =+Zał.1_WPF_bazowy!P107 -> 0 | Q112: =+Zał.1_WPF_bazowy!Q107 -> 0 | R112: =+Zał.1_WPF_bazowy!R107 -> 0 | S112: =+Zał.1_WPF_bazowy!S107 -> 0 | T112: =+Zał.1_WPF_bazowy!T107 -> 0 | U112: =+Zał.1_WPF_bazowy!U107 -> 0 | V112: =+Zał.1_WPF_bazowy!V107 -> 0 | W112: =+Zał.1_WPF_bazowy!W107 -> 0 | X112: =+Zał.1_WPF_bazowy!X107 -> 0 | Y112: =+Zał.1_WPF_bazowy!Y107 -> 0 | Z112: =+Zał.1_WPF_bazowy!Z107 -> 0 | AA112: =+Zał.1_WPF_bazowy!AA107 -> 0 | AB112: =+Zał.1_WPF_bazowy!AB107 -> 0 | AC112: =+Zał.1_WPF_bazowy!AC107 -> 0 | AD112: =+Zał.1_WPF_bazowy!AD107 -> 0 | AE112: =+Zał.1_WPF_bazowy!AE107 -> 0 | AF112: =+Zał.1_WPF_bazowy!AF107 -> 0 | AG112: =+Zał.1_WPF_bazowy!AG107 -> 0 | AH112: =+Zał.1_WPF_bazowy!AH107 -> 0 | AI112: =+Zał.1_WPF_bazowy!AI107 -> 0 | AJ112: =+Zał.1_WPF_bazowy!AJ107 -> 0 | AK112: =+Zał.1_WPF_bazowy!AK107 -> 0 | AL112: =+Zał.1_WPF_bazowy!AL107 -> 0
A113: x | B113: 15.1.1 | D113: środki na zaspokojenie roszczeń obligatariuszy | E113: =Zał.1_WPF_bazowy!E108 -> 0 | F113: =Zał.1_WPF_bazowy!F108 -> 0 | G113: =Zał.1_WPF_bazowy!G108 -> 0 | H113: =Zał.1_WPF_bazowy!H108 -> 0 | I113: =+Zał.1_WPF_bazowy!I108 -> 0 | J113: =+Zał.1_WPF_bazowy!J108 -> 0 | K113: =+Zał.1_WPF_bazowy!K108 -> 0 | L113: =+Zał.1_WPF_bazowy!L108 -> 0 | M113: =+Zał.1_WPF_bazowy!M108 -> 0 | N113: =+Zał.1_WPF_bazowy!N108 -> 0 | O113: =+Zał.1_WPF_bazowy!O108 -> 0 | P113: =+Zał.1_WPF_bazowy!P108 -> 0 | Q113: =+Zał.1_WPF_bazowy!Q108 -> 0 | R113: =+Zał.1_WPF_bazowy!R108 -> 0 | S113: =+Zał.1_WPF_bazowy!S108 -> 0 | T113: =+Zał.1_WPF_bazowy!T108 -> 0 | U113: =+Zał.1_WPF_bazowy!U108 -> 0 | V113: =+Zał.1_WPF_bazowy!V108 -> 0 | W113: =+Zał.1_WPF_bazowy!W108 -> 0 | X113: =+Zał.1_WPF_bazowy!X108 -> 0 | Y113: =+Zał.1_WPF_bazowy!Y108 -> 0 | Z113: =+Zał.1_WPF_bazowy!Z108 -> 0 | AA113: =+Zał.1_WPF_bazowy!AA108 -> 0 | AB113: =+Zał.1_WPF_bazowy!AB108 -> 0 | AC113: =+Zał.1_WPF_bazowy!AC108 -> 0 | AD113: =+Zał.1_WPF_bazowy!AD108 -> 0 | AE113: =+Zał.1_WPF_bazowy!AE108 -> 0 | AF113: =+Zał.1_WPF_bazowy!AF108 -> 0 | AG113: =+Zał.1_WPF_bazowy!AG108 -> 0 | AH113: =+Zał.1_WPF_bazowy!AH108 -> 0 | AI113: =+Zał.1_WPF_bazowy!AI108 -> 0 | AJ113: =+Zał.1_WPF_bazowy!AJ108 -> 0 | AK113: =+Zał.1_WPF_bazowy!AK108 -> 0 | AL113: =+Zał.1_WPF_bazowy!AL108 -> 0
A114: x | B114: 15.2 | D114: Wydatki bieżące z tytułu świadczenia emitenta należnego obligatariuszom, nieuwzględniane w limicie spłaty zobowiązań, o którym mowa w art. 243 ustawy | E114: =Zał.1_WPF_bazowy!E109 -> 0 | F114: =Zał.1_WPF_bazowy!F109 -> 0 | G114: =Zał.1_WPF_bazowy!G109 -> 0 | H114: =Zał.1_WPF_bazowy!H109 -> 0 | I114: =+Zał.1_WPF_bazowy!I109 -> 0 | J114: =+Zał.1_WPF_bazowy!J109 -> 0 | K114: =+Zał.1_WPF_bazowy!K109 -> 0 | L114: =+Zał.1_WPF_bazowy!L109 -> 0 | M114: =+Zał.1_WPF_bazowy!M109 -> 0 | N114: =+Zał.1_WPF_bazowy!N109 -> 0 | O114: =+Zał.1_WPF_bazowy!O109 -> 0 | P114: =+Zał.1_WPF_bazowy!P109 -> 0 | Q114: =+Zał.1_WPF_bazowy!Q109 -> 0 | R114: =+Zał.1_WPF_bazowy!R109 -> 0 | S114: =+Zał.1_WPF_bazowy!S109 -> 0 | T114: =+Zał.1_WPF_bazowy!T109 -> 0 | U114: =+Zał.1_WPF_bazowy!U109 -> 0 | V114: =+Zał.1_WPF_bazowy!V109 -> 0 | W114: =+Zał.1_WPF_bazowy!W109 -> 0 | X114: =+Zał.1_WPF_bazowy!X109 -> 0 | Y114: =+Zał.1_WPF_bazowy!Y109 -> 0 | Z114: =+Zał.1_WPF_bazowy!Z109 -> 0 | AA114: =+Zał.1_WPF_bazowy!AA109 -> 0 | AB114: =+Zał.1_WPF_bazowy!AB109 -> 0 | AC114: =+Zał.1_WPF_bazowy!AC109 -> 0 | AD114: =+Zał.1_WPF_bazowy!AD109 -> 0 | AE114: =+Zał.1_WPF_bazowy!AE109 -> 0 | AF114: =+Zał.1_WPF_bazowy!AF109 -> 0 | AG114: =+Zał.1_WPF_bazowy!AG109 -> 0 | AH114: =+Zał.1_WPF_bazowy!AH109 -> 0 | AI114: =+Zał.1_WPF_bazowy!AI109 -> 0 | AJ114: =+Zał.1_WPF_bazowy!AJ109 -> 0 | AK114: =+Zał.1_WPF_bazowy!AK109 -> 0 | AL114: =+Zał.1_WPF_bazowy!AL109 -> 0
B115: 16 | D115: Stopień niezachowania relacji określonych w art. 242-244 ustawy (dotyczy tylko JST objętych procedurą z art. 240a lub 240b) | E115: x | F115: x | G115: x | H115: x | I115: x | J115: x | K115: x | L115: x | M115: x | N115: x | O115: x | P115: x | Q115: x | R115: x | S115: x | T115: x | U115: x | V115: x | W115: x | X115: x | Y115: x | Z115: x | AA115: x | AB115: x | AC115: x | AD115: x | AE115: x | AF115: x | AG115: x | AH115: x | AI115: x | AJ115: x | AK115: x | AL115: x
B116: 16.1 | D116: Stopień niezachowania relacji zrównoważenia wydatków bieżących, o której mowa w poz. 8.2 | E116: x | F116: x | G116: x | H116: x | I116: =+IF(I52<0,I52,"") ->  | J116: =+IF(J52<0,J52,"") -> 
A117: x | B117: 16.2 | D117: Stopień niezachowania wskaźnika spłaty zobowiązań, o którym mowa w poz. 9.7 | E117: x | F117: x | G117: x | H117: x | I117: =IF(I57<=I59,"",I59- I57) ->  | J117: =IF(J57<=J59,"",J59- J57) -> 
A118: x | B118: 16.3 | D118: Stopień niezachowania wskaźnika spłaty zobowiązań, o którym mowa w poz. 9.7.1 | E118: x | F118: x | G118: x | H118: x | I118: =IF(I57<=I60,"",I60-I57) ->  | J118: =IF(J57<=J60,"",J60-J57) -> 
B124: Weryfikacja wybranych danych wykazanych w tabeli Wieloletnia Prognoza Finansowa
D125: Reguła formalna
D126: Reguła rachunkowa
D127: Reguła logiczna
D128: Reguły kontrolne
C129: [1.1] + [4.1] + [4.2] >= ([2.1] - [2.1.2]) | D129: Spełnienie wskaźnika z art. 242 | E129: x | F129: x | G129: x | H129: x | I129: =IF(ROUND(I11+I33+I35,2)>=ROUND(I22-I25,2),"TAK","NIE") -> TAK | J129: TAK | K129: TAK | L129: TAK | M129: TAK | N129: TAK | O129: TAK | P129: TAK | Q129: TAK | R129: TAK | S129: TAK | T129: TAK | U129: TAK | V129: TAK | W129: TAK | X129: TAK | Y129: TAK | Z129: TAK | AA129: TAK | AB129: TAK | AC129: TAK | AD129: TAK | AE129: TAK | AF129: TAK | AG129: TAK | AH129: TAK | AI129: TAK | AJ129: TAK | AK129: TAK | AL129: TAK
C130: [13.3] = 0 (dla lat 2014 i wyższych) | D130: Umorzenie zobowiązań, o którym mowa w art. 190 ustawy o działalności leczniczej nie wykracza poza ustawowy okres | E130: x | F130: x | G130: x | H130: x | I130: x | J130: x | K130: =IF(K98=0,"TAK","BŁĄD") -> TAK | L130: TAK | M130: TAK | N130: TAK | O130: TAK | P130: TAK | Q130: TAK | R130: TAK | S130: TAK | T130: TAK | U130: TAK | V130: TAK | W130: TAK | X130: TAK | Y130: TAK | Z130: TAK | AA130: TAK | AB130: TAK | AC130: TAK | AD130: TAK | AE130: TAK | AF130: TAK | AG130: TAK | AH130: TAK | AI130: TAK | AJ130: TAK | AK130: TAK | AL130: TAK
C131: [1] + [4] - [2] - [5] = 0 | D131: Kontrola poprawności zbilansowania budżetu | E131: x | F131: x | G131: x | H131: x | I131: =IF(ROUND(I10+I32-I21-I41,2)=0,"OK",ROUND(I10+I32-I21-I41,2)) -> OK | J131: OK | K131: OK | L131: OK | M131: OK | N131: OK | O131: OK | P131: OK | Q131: OK | R131: OK | S131: OK | T131: OK | U131: OK | V131: OK | W131: OK | X131: OK | Y131: OK | Z131: OK | AA131: OK | AB131: OK | AC131: OK | AD131: OK | AE131: OK | AF131: OK | AG131: OK | AH131: OK | AI131: OK | AJ131: OK | AK131: OK | AL131: OK
C132: [6]"n" = [6]"n-1" + [4.3]"n" - [5.1]"n" + ([14.2]"n"-[14.2]"n-1") + [14.4] | D132: Kontrola poprawności wyliczenia kwoty długu | E132: x | F132: x | G132: x | H132: x | I132: =+IF(ROUND(H48+I37-I42+(I105-H105)+I110-I48,2)=0,"OK",ROUND(H48+I37-I42+(I105-H105)+I110-I48,2)) -> OK | J132: OK | K132: OK | L132: OK | M132: OK | N132: OK | O132: OK | P132: OK | Q132: OK | R132: OK | S132: OK | T132: OK | U132: OK | V132: OK | W132: OK | X132: OK | Y132: OK | Z132: OK | AA132: OK | AB132: OK | AC132: OK | AD132: OK | AE132: OK | AF132: OK | AG132: OK | AH132: OK | AI132: OK | AJ132: OK | AK132: OK | AL132: OK
C133: [14.2] "n" = ( [14.2] "n-1" - [14.3] "n" ) | D133: Analiza zmiany kwoty długu spłacanego wydatkami budżetu - wartości różne od zera wymagają objaśnienia - wartości większe od zera wskazują na powstanie w roku prognozy nowego długu tego typu - wartości mniejsze od zera co do zasady nie powinny wystąpić | E133: x | F133: x | G133: x | H133: x | I133: =+IF(H105=0,"N/D",IF(ROUND(I105+I106-H105,2)=0,"OK",ROUND(I105+I106-H105,2))) -> N/D | J133: OK | K133: OK | L133: OK | M133: OK | N133: OK | O133: OK | P133: N/D | Q133: N/D | R133: N/D | S133: N/D | T133: N/D | U133: N/D | V133: N/D | W133: N/D | X133: N/D | Y133: N/D | Z133: N/D | AA133: N/D | AB133: N/D | AC133: N/D | AD133: N/D | AE133: N/D | AF133: N/D | AG133: N/D | AH133: N/D | AI133: N/D | AJ133: N/D | AK133: N/D | AL133: N/D
C134: [13.1] "n" - ( [13.3] + [13.4] + [13.5] + [13.6] ) "n" = [13.1] "n-1" | D134: Porównanie na koniec roku prognozy stanu zobowiązań przejętych przez jst po likwidowanych i przekształcanych SP ZOZ z wydatkami i umorzeniami poniesionymi na ten cel ze stanem zobowiązań z okresu N-1 | E134: x | F134: x | G134: x | H134: x | I134: =+IF(H96=0,"N/D",IF(ROUND(I96+(I98+I99+I100+I101)-H96,2)=0,"OK",ROUND(I96+(I98+I99+I100+I101)-H96,2))) -> N/D | J134: N/D | K134: N/D | L134: N/D | M134: N/D | N134: N/D | O134: N/D | P134: N/D | Q134: N/D | R134: N/D | S134: N/D | T134: N/D | U134: N/D | V134: N/D | W134: N/D | X134: N/D | Y134: N/D | Z134: N/D | AA134: N/D | AB134: N/D | AC134: N/D | AD134: N/D | AE134: N/D | AF134: N/D | AG134: N/D | AH134: N/D | AI134: N/D | AJ134: N/D | AK134: N/D | AL134: N/D
C135: jeśli [3] < 0 to sprawdź czy [4.1.1] + [4.2.1] + [4.3.1] + [4.4.1] + [3] = 0 | D135: Kontrola poprawności wykazania źródeł pokrycia deficytu | E135: x | F135: x | G135: x | H135: x | I135: =IF(I31<0,IF(ROUND(I34+I36+I38+I40+I31,2)=0,"OK",ROUND(I34+I36+I38+I40+I31,2)),"N/D") -> N/D | J135: N/D | K135: N/D | L135: N/D | M135: N/D | N135: N/D | O135: N/D | P135: N/D | Q135: N/D | R135: N/D | S135: N/D | T135: N/D | U135: N/D | V135: N/D | W135: N/D | X135: N/D | Y135: N/D | Z135: N/D | AA135: N/D | AB135: N/D | AC135: N/D | AD135: N/D | AE135: N/D | AF135: N/D | AG135: N/D | AH135: N/D | AI135: N/D | AJ135: N/D | AK135: N/D | AL135: N/D
C136: jeśli [3] >= 0 to sprawdź czy [4.1.1]=0 i [4.2.1]=0 i [4.3.1]=0 i [4.4.1] = 0 | D136: Kontrola poprawności niewykazania źródeł pokrycia deficytu przy nadwyżce budżetu | E136: x | F136: x | G136: x | H136: x | I136: =IF(I31>=0,IF(ROUND(I34+I36+I38+I40,2)=0,"OK",ROUND(I34+I36+I38+I40,2)),"N/D") -> OK | J136: OK | K136: OK | L136: OK | M136: OK | N136: OK | O136: OK | P136: OK | Q136: OK | R136: OK | S136: OK | T136: OK | U136: OK | V136: OK | W136: OK | X136: OK | Y136: OK | Z136: OK | AA136: OK | AB136: OK | AC136: OK | AD136: OK | AE136: OK | AF136: OK | AG136: OK | AH136: OK | AI136: OK | AJ136: OK | AK136: OK | AL136: OK
C137: [1.1.3] >= [1.1.3.1] | D137: Reguła logiczna: [1.1.3] >= [1.1.3.1] | E137: x | F137: x | G137: x | H137: x | I137: =IF(I14>=I15,"OK","BŁĄD") -> OK | J137: OK | K137: OK | L137: OK | M137: OK | N137: OK | O137: OK | P137: OK | Q137: OK | R137: OK | S137: OK | T137: OK | U137: OK | V137: OK | W137: OK | X137: OK | Y137: OK | Z137: OK | AA137: OK | AB137: OK | AC137: OK | AD137: OK | AE137: OK | AF137: OK | AG137: OK | AH137: OK | AI137: OK | AJ137: OK | AK137: OK | AL137: OK
C138: [1.1.5] >= [13.2] | D138: Reguła logiczna: [1.1.5] >= [13.2] | E138: x | F138: x | G138: x | H138: x | I138: =IF(I17>=I97,"OK","BŁĄD") -> OK | J138: OK | K138: OK | L138: OK | M138: OK | N138: OK | O138: OK | P138: OK | Q138: OK | R138: OK | S138: OK | T138: OK | U138: OK | V138: OK | W138: OK | X138: OK | Y138: OK | Z138: OK | AA138: OK | AB138: OK | AC138: OK | AD138: OK | AE138: OK | AF138: OK | AG138: OK | AH138: OK | AI138: OK | AJ138: OK | AK138: OK | AL138: OK
C139: [1.1] >= ([1.1.1] + [1.1.2] + [1.1.3] + [1.1.4] + [1.1.5]) | D139: Reguła logiczna: [1.1] >= ([1.1.1] + [1.1.2] + [1.1.3] + [1.1.4] + [1.1.5]) | E139: x | F139: x | G139: x | H139: x | I139: =IF(I11>=I12+I13+I14+I16+I17,"OK","BŁĄD") -> OK | J139: OK | K139: OK | L139: OK | M139: OK | N139: OK | O139: OK | P139: OK | Q139: OK | R139: OK | S139: OK | T139: OK | U139: OK | V139: OK | W139: OK | X139: OK | Y139: OK | Z139: OK | AA139: OK | AB139: OK | AC139: OK | AD139: OK | AE139: OK | AF139: OK | AG139: OK | AH139: OK | AI139: OK | AJ139: OK | AK139: OK | AL139: OK
C140: [1.1] >= [12.1] | D140: Reguła logiczna: [1.1] >= [12.1] | E140: x | F140: x | G140: x | H140: x | I140: =IF(I11>=I75,"OK","BŁĄD") -> OK | J140: OK | K140: OK | L140: OK | M140: OK | N140: OK | O140: OK | P140: OK | Q140: OK | R140: OK | S140: OK | T140: OK | U140: OK | V140: OK | W140: OK | X140: OK | Y140: OK | Z140: OK | AA140: OK | AB140: OK | AC140: OK | AD140: OK | AE140: OK | AF140: OK | AG140: OK | AH140: OK | AI140: OK | AJ140: OK | AK140: OK | AL140: OK
C141: [1.2] >= [1.2.1] | D141: Reguła logiczna: [1.2] >= [1.2.1] | E141: x | F141: x | G141: x | H141: x | I141: =IF(I18>=I19,"OK","BŁĄD") -> OK | J141: OK | K141: OK | L141: OK | M141: OK | N141: OK | O141: OK | P141: OK | Q141: OK | R141: OK | S141: OK | T141: OK | U141: OK | V141: OK | W141: OK | X141: OK | Y141: OK | Z141: OK | AA141: OK | AB141: OK | AC141: OK | AD141: OK | AE141: OK | AF141: OK | AG141: OK | AH141: OK | AI141: OK | AJ141: OK | AK141: OK | AL141: OK
C142: [1.2] >= [1.2.2] | D142: Reguła logiczna: [1.2] >= [1.2.2] | E142: x | F142: x | G142: x | H142: x | I142: =IF(I18>=I20,"OK","BŁĄD") -> OK | J142: OK | K142: OK | L142: OK | M142: OK | N142: OK | O142: OK | P142: OK | Q142: OK | R142: OK | S142: OK | T142: OK | U142: OK | V142: OK | W142: OK | X142: OK | Y142: OK | Z142: OK | AA142: OK | AB142: OK | AC142: OK | AD142: OK | AE142: OK | AF142: OK | AG142: OK | AH142: OK | AI142: OK | AJ142: OK | AK142: OK | AL142: OK
C143: [1.2] >= [12.2] | D143: Reguła logiczna: [1.2] >= [12.2] | E143: x | F143: x | G143: x | H143: x | I143: =IF(I18>=I78,"OK","BŁĄD") -> OK | J143: OK | K143: OK | L143: OK | M143: OK | N143: OK | O143: OK | P143: OK | Q143: OK | R143: OK | S143: OK | T143: OK | U143: OK | V143: OK | W143: OK | X143: OK | Y143: OK | Z143: OK | AA143: OK | AB143: OK | AC143: OK | AD143: OK | AE143: OK | AF143: OK | AG143: OK | AH143: OK | AI143: OK | AJ143: OK | AK143: OK | AL143: OK
D144: Reguła logiczna: jeżeli [3] >0 to [10] = [3] | E144: x | F144: x | G144: x | H144: x | I144: =+IF(I31>0,IF(I31=I63,"OK","Błąd"),"N/D") -> OK | J144: OK | K144: OK | L144: OK | M144: OK | N144: OK | O144: OK | P144: OK | Q144: OK | R144: OK | S144: N/D | T144: N/D | U144: N/D | V144: N/D | W144: N/D | X144: N/D | Y144: N/D | Z144: N/D | AA144: N/D | AB144: N/D | AC144: N/D | AD144: N/D | AE144: N/D | AF144: N/D | AG144: N/D | AH144: N/D | AI144: N/D | AJ144: N/D | AK144: N/D | AL144: N/D
C145: [10] >= [10.1] | D145: Reguła logiczna: [10] >= [10.1] | E145: x | F145: x | G145: x | H145: x | I145: =IF(I63>=I64,"OK","BŁĄD") -> OK | J145: OK | K145: OK | L145: OK | M145: OK | N145: OK | O145: OK | P145: OK | Q145: OK | R145: OK | S145: OK | T145: OK | U145: OK | V145: OK | W145: OK | X145: OK | Y145: OK | Z145: OK | AA145: OK | AB145: OK | AC145: OK | AD145: OK | AE145: OK | AF145: OK | AG145: OK | AH145: OK | AI145: OK | AJ145: OK | AK145: OK | AL145: OK
C146: jeśli [10] > 0 to powinno być [10.1] > 0 | D146: Reguła logiczna: jeżeli [10] > 0 to [10.1] >0 | E146: x | F146: x | G146: x | H146: x | I146: =IF(I63>0,IF(I64>0,"OK","BŁĄD"),"N/D") -> OK | J146: OK | K146: OK | L146: OK | M146: OK | N146: OK | O146: OK | P146: OK | Q146: OK | R146: OK | S146: N/D | T146: N/D | U146: N/D | V146: N/D | W146: N/D | X146: N/D | Y146: N/D | Z146: N/D | AA146: N/D | AB146: N/D | AC146: N/D | AD146: N/D | AE146: N/D | AF146: N/D | AG146: N/D | AH146: N/D | AI146: N/D | AJ146: N/D | AK146: N/D | AL146: N/D
C147: [12.1] >= [12.1.1] | D147: Reguła logiczna: [12.1] >= [12.1.1] | E147: x | F147: x | G147: x | H147: x | I147: =IF(I75>=I76,"OK","BŁĄD") -> OK | J147: OK | K147: OK | L147: OK | M147: OK | N147: OK | O147: OK | P147: OK | Q147: OK | R147: OK | S147: OK | T147: OK | U147: OK | V147: OK | W147: OK | X147: OK | Y147: OK | Z147: OK | AA147: OK | AB147: OK | AC147: OK | AD147: OK | AE147: OK | AF147: OK | AG147: OK | AH147: OK | AI147: OK | AJ147: OK | AK147: OK | AL147: OK
C148: [12.1.1] >= [12.1.1.1] | D148: Reguła logiczna: [12.1.1] >= [12.1.1.1] | E148: x | F148: x | G148: x | H148: x | I148: =IF(I76>=I77,"OK","BŁĄD") -> OK | J148: OK | K148: OK | L148: OK | M148: OK | N148: OK | O148: OK | P148: OK | Q148: OK | R148: OK | S148: OK | T148: OK | U148: OK | V148: OK | W148: OK | X148: OK | Y148: OK | Z148: OK | AA148: OK | AB148: OK | AC148: OK | AD148: OK | AE148: OK | AF148: OK | AG148: OK | AH148: OK | AI148: OK | AJ148: OK | AK148: OK | AL148: OK
C149: [12.2] >= [12.2.1] | D149: Reguła logiczna: [12.2] >= [12.2.1] | E149: x | F149: x | G149: x | H149: x | I149: =IF(I78>=I79,"OK","BŁĄD") -> OK | J149: OK | K149: OK | L149: OK | M149: OK | N149: OK | O149: OK | P149: OK | Q149: OK | R149: OK | S149: OK | T149: OK | U149: OK | V149: OK | W149: OK | X149: OK | Y149: OK | Z149: OK | AA149: OK | AB149: OK | AC149: OK | AD149: OK | AE149: OK | AF149: OK | AG149: OK | AH149: OK | AI149: OK | AJ149: OK | AK149: OK | AL149: OK
C150: [12.2.1] >= [12.2.1.1] | D150: Reguła logiczna: [12.2.1] >= [12.2.1.1] | E150: x | F150: x | G150: x | H150: x | I150: =IF(I79>=I80,"OK","BŁĄD") -> OK | J150: OK | K150: OK | L150: OK | M150: OK | N150: OK | O150: OK | P150: OK | Q150: OK | R150: OK | S150: OK | T150: OK | U150: OK | V150: OK | W150: OK | X150: OK | Y150: OK | Z150: OK | AA150: OK | AB150: OK | AC150: OK | AD150: OK | AE150: OK | AF150: OK | AG150: OK | AH150: OK | AI150: OK | AJ150: OK | AK150: OK | AL150: OK
C151: [12.3] >= [12.3.1] | D151: Reguła logiczna: [12.3] >= [12.3.1] | E151: x | F151: x | G151: x | H151: x | I151: =IF(I81>=I82,"OK","BŁĄD") -> OK | J151: OK | K151: OK | L151: OK | M151: OK | N151: OK | O151: OK | P151: OK | Q151: OK | R151: OK | S151: OK | T151: OK | U151: OK | V151: OK | W151: OK | X151: OK | Y151: OK | Z151: OK | AA151: OK | AB151: OK | AC151: OK | AD151: OK | AE151: OK | AF151: OK | AG151: OK | AH151: OK | AI151: OK | AJ151: OK | AK151: OK | AL151: OK
C152: [12.3] >= [12.3.2] | D152: Reguła logiczna: [12.3] >= [12.3.2] | E152: x | F152: x | G152: x | H152: x | I152: =IF(I81>=I83,"OK","BŁĄD") -> OK | J152: OK | K152: OK | L152: OK | M152: OK | N152: OK | O152: OK | P152: OK | Q152: OK | R152: OK | S152: OK | T152: OK | U152: OK | V152: OK | W152: OK | X152: OK | Y152: OK | Z152: OK | AA152: OK | AB152: OK | AC152: OK | AD152: OK | AE152: OK | AF152: OK | AG152: OK | AH152: OK | AI152: OK | AJ152: OK | AK152: OK | AL152: OK
C153: [12.4] >= [12.4.1] | D153: Reguła logiczna: [12.4] >= [12.4.1] | E153: x | F153: x | G153: x | H153: x | I153: =IF(I84>=I85,"OK","BŁĄD") -> OK | J153: OK | K153: OK | L153: OK | M153: OK | N153: OK | O153: OK | P153: OK | Q153: OK | R153: OK | S153: OK | T153: OK | U153: OK | V153: OK | W153: OK | X153: OK | Y153: OK | Z153: OK | AA153: OK | AB153: OK | AC153: OK | AD153: OK | AE153: OK | AF153: OK | AG153: OK | AH153: OK | AI153: OK | AJ153: OK | AK153: OK | AL153: OK
C154: [12.4] >= [12.4.2] | D154: Reguła logiczna: [12.4] >= [12.4.2] | E154: x | F154: x | G154: x | H154: x | I154: =IF(I84>=I86,"OK","BŁĄD") -> OK | J154: OK | K154: OK | L154: OK | M154: OK | N154: OK | O154: OK | P154: OK | Q154: OK | R154: OK | S154: OK | T154: OK | U154: OK | V154: OK | W154: OK | X154: OK | Y154: OK | Z154: OK | AA154: OK | AB154: OK | AC154: OK | AD154: OK | AE154: OK | AF154: OK | AG154: OK | AH154: OK | AI154: OK | AJ154: OK | AK154: OK | AL154: OK
C155: [12.4] >= [12.4.1] | D155: Reguła logiczna: [12.5] >= [12.5.1] | E155: x | F155: x | G155: x | H155: x | I155: =IF(I87>=I88,"OK","BŁĄD") -> OK | J155: =IF(J87>=J88,"OK","BŁĄD") -> OK | K155: OK | L155: OK | M155: OK | N155: OK | O155: OK | P155: OK | Q155: OK | R155: OK | S155: OK | T155: OK | U155: OK | V155: OK | W155: OK | X155: OK | Y155: OK | Z155: OK | AA155: OK | AB155: OK | AC155: OK | AD155: OK | AE155: OK | AF155: OK | AG155: OK | AH155: OK | AI155: OK | AJ155: OK | AK155: OK | AL155: OK
C156: [12.4] >= [12.4.1] | D156: Reguła logiczna: [12.6] >= [12.6.1] | E156: x | F156: x | G156: x | H156: x | I156: =IF(I89>=I90,"OK","BŁĄD") -> OK | J156: =IF(J89>=J90,"OK","BŁĄD") -> OK | K156: OK | L156: OK | M156: OK | N156: OK | O156: OK | P156: OK | Q156: OK | R156: OK | S156: OK | T156: OK | U156: OK | V156: OK | W156: OK | X156: OK | Y156: OK | Z156: OK | AA156: OK | AB156: OK | AC156: OK | AD156: OK | AE156: OK | AF156: OK | AG156: OK | AH156: OK | AI156: OK | AJ156: OK | AK156: OK | AL156: OK
C157: [12.4] >= [12.4.1] | D157: Reguła logiczna: [12.7] >= [12.7.1] | E157: x | F157: x | G157: x | H157: x | I157: =IF(I91>=I92,"OK","BŁĄD") -> OK | J157: =IF(J91>=J92,"OK","BŁĄD") -> OK | K157: OK | L157: OK | M157: OK | N157: OK | O157: OK | P157: OK | Q157: OK | R157: OK | S157: OK | T157: OK | U157: OK | V157: OK | W157: OK | X157: OK | Y157: OK | Z157: OK | AA157: OK | AB157: OK | AC157: OK | AD157: OK | AE157: OK | AF157: OK | AG157: OK | AH157: OK | AI157: OK | AJ157: OK | AK157: OK | AL157: OK
C158: [12.4] >= [12.4.1] | D158: Reguła logiczna: [12.8] >= [12.8.1] | E158: x | F158: x | G158: x | H158: x | I158: =IF(I93>=I94,"OK","BŁĄD") -> OK | J158: =IF(J93>=J94,"OK","BŁĄD") -> OK | K158: OK | L158: OK | M158: OK | N158: OK | O158: OK | P158: OK | Q158: OK | R158: OK | S158: OK | T158: OK | U158: OK | V158: OK | W158: OK | X158: OK | Y158: OK | Z158: OK | AA158: OK | AB158: OK | AC158: OK | AD158: OK | AE158: OK | AF158: OK | AG158: OK | AH158: OK | AI158: OK | AJ158: OK | AK158: OK | AL158: OK
C159: [13.1] >= [13.3] | D159: Reguła logiczna: [13.1] >= [13.3] | E159: x | F159: x | G159: x | H159: x | I159: =IF(I96>=I98,"OK","BŁĄD") -> OK | J159: OK | K159: OK | L159: OK | M159: OK | N159: OK | O159: OK | P159: OK | Q159: OK | R159: OK | S159: OK | T159: OK | U159: OK | V159: OK | W159: OK | X159: OK | Y159: OK | Z159: OK | AA159: OK | AB159: OK | AC159: OK | AD159: OK | AE159: OK | AF159: OK | AG159: OK | AH159: OK | AI159: OK | AJ159: OK | AK159: OK | AL159: OK
C160: [13.4] >= [2.1.2] | D160: Reguła logiczna: [13.4] >= [2.1.2] | E160: x | F160: x | G160: x | H160: x | I160: =IF(I99>=I25,"OK","BŁĄD") -> OK | J160: OK | K160: OK | L160: OK | M160: OK | N160: OK | O160: OK | P160: OK | Q160: OK | R160: OK | S160: OK | T160: OK | U160: OK | V160: OK | W160: OK | X160: OK | Y160: OK | Z160: OK | AA160: OK | AB160: OK | AC160: OK | AD160: OK | AE160: OK | AF160: OK | AG160: OK | AH160: OK | AI160: OK | AJ160: OK | AK160: OK | AL160: OK
C161: [14.3] >= [14.3.1] + [14.3.2] + [14.3.3] | D161: Reguła logiczna: [14.3] >= [14.3.1] + [14.3.2] + [14.3.3] | E161: x | F161: x | G161: x | H161: x | I161: =IF(I106>=(I107+I108+I109),"OK","BŁĄD") -> OK | J161: OK | K161: OK | L161: OK | M161: OK | N161: OK | O161: OK | P161: OK | Q161: OK | R161: OK | S161: OK | T161: OK | U161: OK | V161: OK | W161: OK | X161: OK | Y161: OK | Z161: OK | AA161: OK | AB161: OK | AC161: OK | AD161: OK | AE161: OK | AF161: OK | AG161: OK | AH161: OK | AI161: OK | AJ161: OK | AK161: OK | AL161: OK
C162: [13.1] >= [13.3] | D162: Reguła logiczna: [15.1] >= [15.1.1] | E162: x | F162: x | G162: x | H162: x | I162: =IF(I112>=I113,"OK","BŁĄD") -> OK | J162: =IF(J112>=J113,"OK","BŁĄD") -> OK | K162: OK | L162: OK | M162: OK | N162: OK | O162: OK | P162: OK | Q162: OK | R162: OK | S162: OK | T162: OK | U162: OK | V162: OK | W162: OK | X162: OK | Y162: OK | Z162: OK | AA162: OK | AB162: OK | AC162: OK | AD162: OK | AE162: OK | AF162: OK | AG162: OK | AH162: OK | AI162: OK | AJ162: OK | AK162: OK | AL162: OK
C163: [2.1.1] >= [2.1.1.1] | D163: Reguła logiczna: [2.1.1] >= [2.1.1.1] | E163: x | F163: x | G163: x | H163: x | I163: =IF(I23>=I24,"OK","BŁĄD") -> OK | J163: OK | K163: OK | L163: OK | M163: OK | N163: OK | O163: OK | P163: OK | Q163: OK | R163: OK | S163: OK | T163: OK | U163: OK | V163: OK | W163: OK | X163: OK | Y163: OK | Z163: OK | AA163: OK | AB163: OK | AC163: OK | AD163: OK | AE163: OK | AF163: OK | AG163: OK | AH163: OK | AI163: OK | AJ163: OK | AK163: OK | AL163: OK
C164: [2.1.1] >= [14.3.3] | D164: Reguła logiczna: [2.1.1] >= [14.3.3] | E164: x | F164: x | G164: x | H164: x | I164: =IF(I23>=I109,"OK","BŁĄD") -> OK | J164: OK | K164: OK | L164: OK | M164: OK | N164: OK | O164: OK | P164: OK | Q164: OK | R164: OK | S164: OK | T164: OK | U164: OK | V164: OK | W164: OK | X164: OK | Y164: OK | Z164: OK | AA164: OK | AB164: OK | AC164: OK | AD164: OK | AE164: OK | AF164: OK | AG164: OK | AH164: OK | AI164: OK | AJ164: OK | AK164: OK | AL164: OK
C165: [2.1.3] >= [2.1.3.1] | D165: Reguła logiczna: [2.1.3] >= [2.1.3.1] | E165: x | F165: x | G165: x | H165: x | I165: =IF(I26>=I27,"OK","BŁĄD") -> OK | J165: OK | K165: OK | L165: OK | M165: OK | N165: OK | O165: OK | P165: OK | Q165: OK | R165: OK | S165: OK | T165: OK | U165: OK | V165: OK | W165: OK | X165: OK | Y165: OK | Z165: OK | AA165: OK | AB165: OK | AC165: OK | AD165: OK | AE165: OK | AF165: OK | AG165: OK | AH165: OK | AI165: OK | AJ165: OK | AK165: OK | AL165: OK
C166: [2.1.3] >= [2.1.3.1] | D166: Reguła logiczna: [2.1.3.1] >= [2.1.3.1.1]+[2.1.3.1.2] | E166: x | F166: x | G166: x | H166: x | I166: =IF(I27>=(I28+I29),"OK","BŁĄD") -> OK | J166: =IF(J27>=J28,"OK","BŁĄD") -> OK | K166: OK | L166: OK | M166: OK | N166: OK | O166: OK | P166: OK | Q166: OK | R166: OK | S166: OK | T166: OK | U166: OK | V166: OK | W166: OK | X166: OK | Y166: OK | Z166: OK | AA166: OK | AB166: OK | AC166: OK | AD166: OK | AE166: OK | AF166: OK | AG166: OK | AH166: OK | AI166: OK | AJ166: OK | AK166: OK | AL166: OK
C167: [2.1] >= ([2.1.1] + [2.1.2] + [2.1.3]) | D167: Reguła logiczna: [2.1] >= ([2.1.1] + [2.1.2] + [2.1.3]) | E167: x | F167: x | G167: x | H167: x | I167: =IF(I22>=(I23+I25+I26),"OK","BŁĄD") -> OK | J167: OK | K167: OK | L167: OK | M167: OK | N167: OK | O167: OK | P167: OK | Q167: OK | R167: OK | S167: OK | T167: OK | U167: OK | V167: OK | W167: OK | X167: OK | Y167: OK | Z167: OK | AA167: OK | AB167: OK | AC167: OK | AD167: OK | AE167: OK | AF167: OK | AG167: OK | AH167: OK | AI167: OK | AJ167: OK | AK167: OK | AL167: OK
C168: [2.1] >= [11.1] | D168: Reguła logiczna: [2.1] >= [11.1] | E168: x | F168: x | G168: x | H168: x | I168: =IF(I22>=I66,"OK","BŁĄD") -> OK | J168: OK | K168: OK | L168: OK | M168: OK | N168: OK | O168: OK | P168: OK | Q168: OK | R168: OK | S168: OK | T168: OK | U168: OK | V168: OK | W168: OK | X168: OK | Y168: OK | Z168: OK | AA168: OK | AB168: OK | AC168: OK | AD168: OK | AE168: OK | AF168: OK | AG168: OK | AH168: OK | AI168: OK | AJ168: OK | AK168: OK | AL168: OK
C169: [2.1] >= [11.3.1] | D169: Reguła logiczna: [2.1] >= [11.3.1] | E169: x | F169: x | G169: x | H169: x | I169: =IF(I22>=I69,"OK","BŁĄD") -> OK | J169: OK | K169: OK | L169: OK | M169: OK | N169: OK | O169: OK | P169: OK | Q169: OK | R169: OK | S169: OK | T169: OK | U169: OK | V169: OK | W169: OK | X169: OK | Y169: OK | Z169: OK | AA169: OK | AB169: OK | AC169: OK | AD169: OK | AE169: OK | AF169: OK | AG169: OK | AH169: OK | AI169: OK | AJ169: OK | AK169: OK | AL169: OK
C170: [2.1] >= [12.3] | D170: Reguła logiczna: [2.1] >= [12.3] | E170: x | F170: x | G170: x | H170: x | I170: =IF(I22>=I81,"OK","BŁĄD") -> OK | J170: OK | K170: OK | L170: OK | M170: OK | N170: OK | O170: OK | P170: OK | Q170: OK | R170: OK | S170: OK | T170: OK | U170: OK | V170: OK | W170: OK | X170: OK | Y170: OK | Z170: OK | AA170: OK | AB170: OK | AC170: OK | AD170: OK | AE170: OK | AF170: OK | AG170: OK | AH170: OK | AI170: OK | AJ170: OK | AK170: OK | AL170: OK
C171: [2.1] >= [13.7] | D171: Reguła logiczna: [2.1] >= [13.7] | E171: x | F171: x | G171: x | H171: x | I171: =IF(I22>=I102,"OK","BŁĄD") -> OK | J171: OK | K171: OK | L171: OK | M171: OK | N171: OK | O171: OK | P171: OK | Q171: OK | R171: OK | S171: OK | T171: OK | U171: OK | V171: OK | W171: OK | X171: OK | Y171: OK | Z171: OK | AA171: OK | AB171: OK | AC171: OK | AD171: OK | AE171: OK | AF171: OK | AG171: OK | AH171: OK | AI171: OK | AJ171: OK | AK171: OK | AL171: OK
C172: [2.2] >= [11.3.2] | D172: Reguła logiczna: [2.2] >= [11.3.2] | E172: x | F172: x | G172: x | H172: x | I172: =IF(I30>=I70,"OK","BŁĄD") -> OK | J172: OK | K172: OK | L172: OK | M172: OK | N172: OK | O172: OK | P172: OK | Q172: OK | R172: OK | S172: OK | T172: OK | U172: OK | V172: OK | W172: OK | X172: OK | Y172: OK | Z172: OK | AA172: OK | AB172: OK | AC172: OK | AD172: OK | AE172: OK | AF172: OK | AG172: OK | AH172: OK | AI172: OK | AJ172: OK | AK172: OK | AL172: OK
C173: [2.2] >= [11.4] + [11.5] | D173: Reguła logiczna: [2.2] >= [11.4] + [11.5] | E173: x | F173: x | G173: x | H173: x | I173: =IF(I30>=I71+I72,"OK","BŁĄD") -> OK | J173: OK | K173: OK | L173: OK | M173: OK | N173: OK | O173: OK | P173: OK | Q173: OK | R173: OK | S173: OK | T173: OK | U173: OK | V173: OK | W173: OK | X173: OK | Y173: OK | Z173: OK | AA173: OK | AB173: OK | AC173: OK | AD173: OK | AE173: OK | AF173: OK | AG173: OK | AH173: OK | AI173: OK | AJ173: OK | AK173: OK | AL173: OK
C174: [2.2] >= [11.6] | D174: Reguła logiczna: [2.2] >= [11.6] | E174: x | F174: x | G174: x | H174: x | I174: =IF(I30>=I73,"OK","BŁĄD") -> OK | J174: OK | K174: OK | L174: OK | M174: OK | N174: OK | O174: OK | P174: OK | Q174: OK | R174: OK | S174: OK | T174: OK | U174: OK | V174: OK | W174: OK | X174: OK | Y174: OK | Z174: OK | AA174: OK | AB174: OK | AC174: OK | AD174: OK | AE174: OK | AF174: OK | AG174: OK | AH174: OK | AI174: OK | AJ174: OK | AK174: OK | AL174: OK
C175: [2.2] >= [12.4] | D175: Reguła logiczna: [2.2] >= [12.4] | E175: x | F175: x | G175: x | H175: x | I175: =IF(I30>=I84,"OK","BŁĄD") -> OK | J175: OK | K175: OK | L175: OK | M175: OK | N175: OK | O175: OK | P175: OK | Q175: OK | R175: OK | S175: OK | T175: OK | U175: OK | V175: OK | W175: OK | X175: OK | Y175: OK | Z175: OK | AA175: OK | AB175: OK | AC175: OK | AD175: OK | AE175: OK | AF175: OK | AG175: OK | AH175: OK | AI175: OK | AJ175: OK | AK175: OK | AL175: OK
C176: [4.1] >= [4.1.1] | D176: Reguła logiczna: [4.1] >= [4.1.1] | E176: x | F176: x | G176: x | H176: x | I176: =IF(I33>=I34,"OK","BŁĄD") -> OK | J176: OK | K176: OK | L176: OK | M176: OK | N176: OK | O176: OK | P176: OK | Q176: OK | R176: OK | S176: OK | T176: OK | U176: OK | V176: OK | W176: OK | X176: OK | Y176: OK | Z176: OK | AA176: OK | AB176: OK | AC176: OK | AD176: OK | AE176: OK | AF176: OK | AG176: OK | AH176: OK | AI176: OK | AJ176: OK | AK176: OK | AL176: OK
C177: [4.2] >= [4.2.1] | D177: Reguła logiczna: [4.2] >= [4.2.1] | E177: x | F177: x | G177: x | H177: x | I177: =IF(I35>=I36,"OK","BŁĄD") -> OK | J177: OK | K177: OK | L177: OK | M177: OK | N177: OK | O177: OK | P177: OK | Q177: OK | R177: OK | S177: OK | T177: OK | U177: OK | V177: OK | W177: OK | X177: OK | Y177: OK | Z177: OK | AA177: OK | AB177: OK | AC177: OK | AD177: OK | AE177: OK | AF177: OK | AG177: OK | AH177: OK | AI177: OK | AJ177: OK | AK177: OK | AL177: OK
C178: [4.3] >= [4.3.1] | D178: Reguła logiczna: [4.3] >= [4.3.1] | E178: x | F178: x | G178: x | H178: x | I178: =IF(I37>=I38,"OK","BŁĄD") -> OK | J178: OK | K178: OK | L178: OK | M178: OK | N178: OK | O178: OK | P178: OK | Q178: OK | R178: OK | S178: OK | T178: OK | U178: OK | V178: OK | W178: OK | X178: OK | Y178: OK | Z178: OK | AA178: OK | AB178: OK | AC178: OK | AD178: OK | AE178: OK | AF178: OK | AG178: OK | AH178: OK | AI178: OK | AJ178: OK | AK178: OK | AL178: OK
C179: [4.4] >= [4.4.1] | D179: Reguła logiczna: [4.4] >= [4.4.1] | E179: x | F179: x | G179: x | H179: x | I179: =IF(I39>=I40,"OK","BŁĄD") -> OK | J179: OK | K179: OK | L179: OK | M179: OK | N179: OK | O179: OK | P179: OK | Q179: OK | R179: OK | S179: OK | T179: OK | U179: OK | V179: OK | W179: OK | X179: OK | Y179: OK | Z179: OK | AA179: OK | AB179: OK | AC179: OK | AD179: OK | AE179: OK | AF179: OK | AG179: OK | AH179: OK | AI179: OK | AJ179: OK | AK179: OK | AL179: OK
C180: [5.1] >= [5.1.1] | D180: Reguła logiczna: [5.1] >= [5.1.1] | E180: x | F180: x | G180: x | H180: x | I180: =IF(I42>=I43,"OK","BŁĄD") -> OK | J180: OK | K180: OK | L180: OK | M180: OK | N180: OK | O180: OK | P180: OK | Q180: OK | R180: OK | S180: OK | T180: OK | U180: OK | V180: OK | W180: OK | X180: OK | Y180: OK | Z180: OK | AA180: OK | AB180: OK | AC180: OK | AD180: OK | AE180: OK | AF180: OK | AG180: OK | AH180: OK | AI180: OK | AJ180: OK | AK180: OK | AL180: OK
C181: [5.1] >= [10.1] | D181: Reguła logiczna: [5.1] >= [10.1] | E181: x | F181: x | G181: x | H181: x | I181: =IF(I42>=I64,"OK","BŁĄD") -> OK | J181: OK | K181: OK | L181: OK | M181: OK | N181: OK | O181: OK | P181: OK | Q181: OK | R181: OK | S181: OK | T181: OK | U181: OK | V181: OK | W181: OK | X181: OK | Y181: OK | Z181: OK | AA181: OK | AB181: OK | AC181: OK | AD181: OK | AE181: OK | AF181: OK | AG181: OK | AH181: OK | AI181: OK | AJ181: OK | AK181: OK | AL181: OK
C182: [5.1] >= [14.1] | D182: Reguła logiczna: [5.1] >= [14.1] | E182: x | F182: x | G182: x | H182: x | I182: =IF(I42>=I104,"OK","BŁĄD") -> OK | J182: OK | K182: OK | L182: OK | M182: OK | N182: OK | O182: OK | P182: OK | Q182: OK | R182: OK | S182: OK | T182: OK | U182: OK | V182: OK | W182: OK | X182: OK | Y182: OK | Z182: OK | AA182: OK | AB182: OK | AC182: OK | AD182: OK | AE182: OK | AF182: OK | AG182: OK | AH182: OK | AI182: OK | AJ182: OK | AK182: OK | AL182: OK
C183: [6] >=[7] | D183: Reguła logiczna: [6] >=[7] | E183: x | F183: x | G183: x | H183: x | I183: =IF(I48>=I49,"OK","BŁĄD") -> OK | J183: OK | K183: OK | L183: OK | M183: OK | N183: OK | O183: OK | P183: OK | Q183: OK | R183: OK | S183: OK | T183: OK | U183: OK | V183: OK | W183: OK | X183: OK | Y183: OK | Z183: OK | AA183: OK | AB183: OK | AC183: OK | AD183: OK | AE183: OK | AF183: OK | AG183: OK | AH183: OK | AI183: OK | AJ183: OK | AK183: OK | AL183: OK
C184: [6] >= [14.2] | D184: Reguła logiczna: [6] >= [14.2] | E184: x | F184: x | G184: x | H184: x | I184: =IF(I48>=I105,"OK","BŁĄD") -> OK | J184: OK | K184: OK | L184: OK | M184: OK | N184: OK | O184: OK | P184: OK | Q184: OK | R184: OK | S184: OK | T184: OK | U184: OK | V184: OK | W184: OK | X184: OK | Y184: OK | Z184: OK | AA184: OK | AB184: OK | AC184: OK | AD184: OK | AE184: OK | AF184: OK | AG184: OK | AH184: OK | AI184: OK | AJ184: OK | AK184: OK | AL184: OK
C185: 7>=13.1 | D185: Reguła logiczna: 7>=13.1 | E185: x | F185: x | G185: x | H185: x | I185: =IF(I49>=I96,"OK","BŁĄD") -> OK | J185: OK | K185: OK | L185: OK | M185: OK | N185: OK | O185: OK | P185: OK | Q185: OK | R185: OK | S185: OK | T185: OK | U185: OK | V185: OK | W185: OK | X185: OK | Y185: OK | Z185: OK | AA185: OK | AB185: OK | AC185: OK | AD185: OK | AE185: OK | AF185: OK | AG185: OK | AH185: OK | AI185: OK | AJ185: OK | AK185: OK | AL185: OK
C186: jeżeli [2.1.3] <> 0 to [2.1.3.1] <> 0 | D186: Reguła logiczna: jeżeli [2.1.3] <> 0 to [2.1.3.1] <> 0 | E186: x | F186: x | G186: x | H186: x | I186: =IF(I26<>0,IF(I27<>0,"OK","BŁĄD"),"N/D") -> OK | J186: OK | K186: OK | L186: OK | M186: OK | N186: OK | O186: OK | P186: OK | Q186: OK | R186: OK | S186: N/D | T186: N/D | U186: N/D | V186: N/D | W186: N/D | X186: N/D | Y186: N/D | Z186: N/D | AA186: N/D | AB186: N/D | AC186: N/D | AD186: N/D | AE186: N/D | AF186: N/D | AG186: N/D | AH186: N/D | AI186: N/D | AJ186: N/D | AK186: N/D | AL186: N/D
D188: Kontrola poprawności podstawowych kwot
D189: Dochody ogółem = bieżące + majątkowe | E189: =E11+E18 -> 17973113.92 | F189: 17392993.42 | G189: 17678787.15 | H189: 17101682.73 | I189: 19443564.07 | J189: 21094929 | K189: 20445387 | L189: 20768748 | M189: 20707811 | N189: 20663045 | O189: 21134936 | P189: 21523984 | Q189: 21930704 | R189: 22555625 | S189: 0 | T189: 0 | U189: 0 | V189: 0 | W189: 0 | X189: 0 | Y189: 0 | Z189: 0 | AA189: 0 | AB189: 0 | AC189: 0 | AD189: 0 | AE189: 0 | AF189: 0 | AG189: 0 | AH189: 0 | AI189: 0 | AJ189: 0 | AK189: 0 | AL189: 0
D190: Wydatki ogółem = bieżące + majątkowe | E190: =E22+E30 -> 17877352.15 | F190: 17186267.02 | G190: 17646787.15 | H190: 16884782.78 | I190: 19043564.07 | J190: 20494929 | K190: 19845387 | L190: 19568748 | M190: 19407811 | N190: 19463045 | O190: 19804936 | P190: 20013984 | Q190: 20382704 | R190: 21812625 | S190: 0 | T190: 0 | U190: 0 | V190: 0 | W190: 0 | X190: 0 | Y190: 0 | Z190: 0 | AA190: 0 | AB190: 0 | AC190: 0 | AD190: 0 | AE190: 0 | AF190: 0 | AG190: 0 | AH190: 0 | AI190: 0 | AJ190: 0 | AK190: 0 | AL190: 0
D191: Wynik budżetu = dochody ogółem - wydatki ogółem | E191: =E10-E21 -> 95761.77 | F191: 206726.4 | G191: 32000 | H191: 216899.95 | I191: 400000 | J191: 600000 | K191: 600000 | L191: 1200000 | M191: 1300000 | N191: 1200000 | O191: 1330000 | P191: 1510000 | Q191: 1548000 | R191: 743000 | S191: 0 | T191: 0 | U191: 0 | V191: 0 | W191: 0 | X191: 0 | Y191: 0 | Z191: 0 | AA191: 0 | AB191: 0 | AC191: 0 | AD191: 0 | AE191: 0 | AF191: 0 | AG191: 0 | AH191: 0 | AI191: 0 | AJ191: 0 | AK191: 0 | AL191: 0
D192: Wyliczenie kwoty długu | E192: x | F192: =E48+F37-F42+(F105-E105)+F110 -> 10540850 | G192: x | H192: =F48+H37-H42+(H105-F105)+H110 -> 10431000 | I192: =H48+I37-I42+(I105-H105)+I110 -> 10719000 | J192: 9995000 | K192: 9275000 | L192: 7958000 | M192: 6545000 | N192: 5236000 | O192: 3801000 | P192: 2291000 | Q192: 743000 | R192: 0 | S192: 0 | T192: 0 | U192: 0 | V192: 0 | W192: 0 | X192: 0 | Y192: 0 | Z192: 0 | AA192: 0 | AB192: 0 | AC192: 0 | AD192: 0 | AE192: 0 | AF192: 0 | AG192: 0 | AH192: 0 | AI192: 0 | AJ192: 0 | AK192: 0 | AL192: 0
D193: Wyliczenie zobowiązań wynikających z przejęcia przez jst zobowiązań po likwidowanych i przekształcanych SZOZ | E193: x | F193: =E96-(F98+F99+F100+F101) -> 0 | G193: x | H193: =F96-(H98+H99+H100+H101) -> 0 | I193: =H96-(I98+I99+I100+I101) -> 0 | J193: 0 | K193: 0 | L193: 0 | M193: 0 | N193: 0 | O193: 0 | P193: 0 | Q193: 0 | R193: 0 | S193: 0 | T193: 0 | U193: 0 | V193: 0 | W193: 0 | X193: 0 | Y193: 0 | Z193: 0 | AA193: 0 | AB193: 0 | AC193: 0 | AD193: 0 | AE193: 0 | AF193: 0 | AG193: 0 | AH193: 0 | AI193: 0 | AJ193: 0 | AK193: 0 | AL193: 0
D195: Analiza ryzyka niespełnienia wskaźnika z art. 243
D196: Analiza składowych wzoru wskaźnika z art. 243
D197: 0 | E197: =+"różnica mniejsza od "&TEXT(D197*100,"0,0")&"%" -> różnica mniejsza od 0,0%
D198: 0.005 | E198: =+"różnica mniejsza od "&TEXT(D198*100,"0,0")&"%" -> różnica mniejsza od 0,5%
D199: 0.01 | E199: =+"różnica mniejsza od "&TEXT(D199*100,"0,0")&"%" -> różnica mniejsza od 1,0%
D200: max. limit spłat (planistyczny) - (R+O)/D (bez wyłączeń) | E200: x | F200: x | G200: x | H200: x | I200: =+IF(I10=0,"",I59-I54) -> 0.0072 | J200: 0.01673333333 | K200: 0.02463333333 | L200: 0.009 | M200: 0.0002 | N200: 0.01 | O200: 0.0085 | P200: 0.008333333333 | Q200: 0.01316666667 | R200: 0.05423333333
D201: max. limit spłat (planistyczny) - (R+O)/D (z wyłączeniami) | E201: x | F201: x | G201: x | H201: x | I201: =+IF(I10=0,"",I59-I55) -> 0.0127 | J201: 0.02123333333 | K201: 0.02823333333 | L201: 0.012 | M201: 0.0023 | N201: 0.0112 | O201: 0.0094 | P201: 0.009033333333 | Q201: 0.01376666667 | R201: 0.05483333333
D202: max. limit spłat (wg wykonania) - (R+O)/D (bez wyłączeń) | E202: x | F202: x | G202: x | H202: x | I202: =+IF(I10=0,"",I60-I54) -> 0.0068 | J202: 0.0163 | K202: 0.0242 | L202: 0.009 | M202: 0.0002 | N202: 0.01 | O202: 0.0085 | P202: 0.0083 | Q202: 0.0132 | R202: 0.0542
D203: max. limit spłat (wg wykonania) - (R+O)/D (z wyłączeniami) | E203: x | F203: x | G203: x | H203: x | I203: =+IF(I10=0,"",I60-I55) -> 0.0123 | J203: 0.0208 | K203: 0.0278 | L203: 0.012 | M203: 0.0023 | N203: 0.0112 | O203: 0.0094 | P203: 0.009 | Q203: 0.0138 | R203: 0.0548

Sheet definicja (hidden)
C2: dane z eWPF
C3: dane z Rb
B9: Lp. | C9: Wyszczególnienie | D9: 0 | E9: 0 | F9: =+E9+1 -> 1 | G9: =+F9+1 -> 2 | H9: 3 | I9: 4 | J9: 5 | K9: 6 | L9: 7 | M9: 8 | N9: 9 | O9: 10 | P9: =+O9+1 -> 11 | Q9: 12 | R9: 13 | S9: 14 | T9: 15 | U9: 16 | V9: 17 | W9: 18 | X9: 19 | Y9: 20 | Z9: 21 | AA9: 22 | AB9: 23 | AC9: 24 | AD9: 25 | AE9: 26 | AF9: 27 | AG9: =+AF9+1 -> 28 | AH9: =+AG9+1 -> 29
A10: 10 | B10: 1 | C10: Dochody ogółem | D10: =+"rokwzgl="&D$9&" i lp="&$A10 -> rokwzgl=0 i lp=10 | E10: rokwzgl=0 i lp=10 | F10: rokwzgl=1 i lp=10 | G10: rokwzgl=2 i lp=10 | H10: rokwzgl=3 i lp=10 | I10: rokwzgl=4 i lp=10 | J10: rokwzgl=5 i lp=10 | K10: rokwzgl=6 i lp=10 | L10: rokwzgl=7 i lp=10 | M10: rokwzgl=8 i lp=10 | N10: =+"rokwzgl="&N$9&" i lp="&$A10 -> rokwzgl=9 i lp=10 | O10: rokwzgl=10 i lp=10 | P10: rokwzgl=11 i lp=10 | Q10: rokwzgl=12 i lp=10 | R10: rokwzgl=13 i lp=10 | S10: rokwzgl=14 i lp=10 | T10: rokwzgl=15 i lp=10 | U10: rokwzgl=16 i lp=10 | V10: rokwzgl=17 i lp=10 | W10: rokwzgl=18 i lp=10 | X10: =+"rokwzgl="&X$9&" i lp="&$A10 -> rokwzgl=19 i lp=10 | Y10: rokwzgl=20 i lp=10 | Z10: rokwzgl=21 i lp=10 | AA10: rokwzgl=22 i lp=10 | AB10: rokwzgl=23 i lp=10 | AC10: rokwzgl=24 i lp=10 | AD10: rokwzgl=25 i lp=10 | AE10: rokwzgl=26 i lp=10 | AF10: rokwzgl=27 i lp=10 | AG10: rokwzgl=28 i lp=10 | AH10: rokwzgl=29 i lp=10
A11: 20 | B11: 1.1 | C11: Dochody bieżące | D11: rokwzgl=0 i lp=20 | E11: rokwzgl=0 i lp=20 | F11: rokwzgl=1 i lp=20 | G11: rokwzgl=2 i lp=20 | H11: rokwzgl=3 i lp=20 | I11: rokwzgl=4 i lp=20 | J11: rokwzgl=5 i lp=20 | K11: rokwzgl=6 i lp=20 | L11: rokwzgl=7 i lp=20 | M11: rokwzgl=8 i lp=20 | N11: rokwzgl=9 i lp=20 | O11: rokwzgl=10 i lp=20 | P11: rokwzgl=11 i lp=20 | Q11: rokwzgl=12 i lp=20 | R11: rokwzgl=13 i lp=20 | S11: rokwzgl=14 i lp=20 | T11: rokwzgl=15 i lp=20 | U11: rokwzgl=16 i lp=20 | V11: rokwzgl=17 i lp=20 | W11: rokwzgl=18 i lp=20 | X11: rokwzgl=19 i lp=20 | Y11: rokwzgl=20 i lp=20 | Z11: rokwzgl=21 i lp=20 | AA11: rokwzgl=22 i lp=20 | AB11: rokwzgl=23 i lp=20 | AC11: rokwzgl=24 i lp=20 | AD11: rokwzgl=25 i lp=20 | AE11: rokwzgl=26 i lp=20 | AF11: rokwzgl=27 i lp=20 | AG11: rokwzgl=28 i lp=20 | AH11: rokwzgl=29 i lp=20
A12: 30 | B12: 1.1.1 | C12: dochody z tytułu udziału we wpływach z podatku dochodowego od osób fizycznych | D12: rokwzgl=0 i lp=30 | E12: rokwzgl=0 i lp=30 | F12: rokwzgl=1 i lp=30 | G12: rokwzgl=2 i lp=30 | H12: rokwzgl=3 i lp=30 | I12: rokwzgl=4 i lp=30 | J12: rokwzgl=5 i lp=30 | K12: rokwzgl=6 i lp=30 | L12: rokwzgl=7 i lp=30 | M12: rokwzgl=8 i lp=30 | N12: rokwzgl=9 i lp=30 | O12: rokwzgl=10 i lp=30 | P12: rokwzgl=11 i lp=30 | Q12: rokwzgl=12 i lp=30 | R12: rokwzgl=13 i lp=30 | S12: rokwzgl=14 i lp=30 | T12: rokwzgl=15 i lp=30 | U12: rokwzgl=16 i lp=30 | V12: rokwzgl=17 i lp=30 | W12: rokwzgl=18 i lp=30 | X12: rokwzgl=19 i lp=30 | Y12: rokwzgl=20 i lp=30 | Z12: rokwzgl=21 i lp=30 | AA12: rokwzgl=22 i lp=30 | AB12: rokwzgl=23 i lp=30 | AC12: rokwzgl=24 i lp=30 | AD12: rokwzgl=25 i lp=30 | AE12: rokwzgl=26 i lp=30 | AF12: rokwzgl=27 i lp=30 | AG12: rokwzgl=28 i lp=30 | AH12: rokwzgl=29 i lp=30
A13: 40 | B13: 1.1.2 | C13: dochody z tytułu udziału we wpływach z podatku dochodowego od osób prawnych | D13: rokwzgl=0 i lp=40 | E13: rokwzgl=0 i lp=40 | F13: rokwzgl=1 i lp=40 | G13: rokwzgl=2 i lp=40 | H13: rokwzgl=3 i lp=40 | I13: rokwzgl=4 i lp=40 | J13: rokwzgl=5 i lp=40 | K13: rokwzgl=6 i lp=40 | L13: rokwzgl=7 i lp=40 | M13: rokwzgl=8 i lp=40 | N13: rokwzgl=9 i lp=40 | O13: rokwzgl=10 i lp=40 | P13: rokwzgl=11 i lp=40 | Q13: rokwzgl=12 i lp=40 | R13: rokwzgl=13 i lp=40 | S13: rokwzgl=14 i lp=40 | T13: rokwzgl=15 i lp=40 | U13: rokwzgl=16 i lp=40 | V13: rokwzgl=17 i lp=40 | W13: rokwzgl=18 i lp=40 | X13: rokwzgl=19 i lp=40 | Y13: rokwzgl=20 i lp=40 | Z13: rokwzgl=21 i lp=40 | AA13: rokwzgl=22 i lp=40 | AB13: rokwzgl=23 i lp=40 | AC13: rokwzgl=24 i lp=40 | AD13: rokwzgl=25 i lp=40 | AE13: rokwzgl=26 i lp=40 | AF13: rokwzgl=27 i lp=40 | AG13: rokwzgl=28 i lp=40 | AH13: rokwzgl=29 i lp=40
A14: 50 | B14: 1.1.3 | C14: podatki i opłaty | D14: rokwzgl=0 i lp=50 | E14: rokwzgl=0 i lp=50 | F14: rokwzgl=1 i lp=50 | G14: rokwzgl=2 i lp=50 | H14: rokwzgl=3 i lp=50 | I14: rokwzgl=4 i lp=50 | J14: rokwzgl=5 i lp=50 | K14: rokwzgl=6 i lp=50 | L14: rokwzgl=7 i lp=50 | M14: rokwzgl=8 i lp=50 | N14: rokwzgl=9 i lp=50 | O14: rokwzgl=10 i lp=50 | P14: rokwzgl=11 i lp=50 | Q14: rokwzgl=12 i lp=50 | R14: rokwzgl=13 i lp=50 | S14: rokwzgl=14 i lp=50 | T14: rokwzgl=15 i lp=50 | U14: rokwzgl=16 i lp=50 | V14: rokwzgl=17 i lp=50 | W14: rokwzgl=18 i lp=50 | X14: rokwzgl=19 i lp=50 | Y14: rokwzgl=20 i lp=50 | Z14: rokwzgl=21 i lp=50 | AA14: rokwzgl=22 i lp=50 | AB14: rokwzgl=23 i lp=50 | AC14: rokwzgl=24 i lp=50 | AD14: rokwzgl=25 i lp=50 | AE14: rokwzgl=26 i lp=50 | AF14: rokwzgl=27 i lp=50 | AG14: rokwzgl=28 i lp=50 | AH14: rokwzgl=29 i lp=50
A15: 60 | B15: 1.1.3.1 | C15: z podatku od nieruchomości | D15: rokwzgl=0 i lp=60 | E15: rokwzgl=0 i lp=60 | F15: rokwzgl=1 i lp=60 | G15: rokwzgl=2 i lp=60 | H15: rokwzgl=3 i lp=60 | I15: rokwzgl=4 i lp=60 | J15: rokwzgl=5 i lp=60 | K15: rokwzgl=6 i lp=60 | L15: rokwzgl=7 i lp=60 | M15: rokwzgl=8 i lp=60 | N15: rokwzgl=9 i lp=60 | O15: rokwzgl=10 i lp=60 | P15: rokwzgl=11 i lp=60 | Q15: rokwzgl=12 i lp=60 | R15: rokwzgl=13 i lp=60 | S15: rokwzgl=14 i lp=60 | T15: rokwzgl=15 i lp=60 | U15: rokwzgl=16 i lp=60 | V15: rokwzgl=17 i lp=60 | W15: rokwzgl=18 i lp=60 | X15: rokwzgl=19 i lp=60 | Y15: rokwzgl=20 i lp=60 | Z15: rokwzgl=21 i lp=60 | AA15: rokwzgl=22 i lp=60 | AB15: rokwzgl=23 i lp=60 | AC15: rokwzgl=24 i lp=60 | AD15: rokwzgl=25 i lp=60 | AE15: rokwzgl=26 i lp=60 | AF15: rokwzgl=27 i lp=60 | AG15: rokwzgl=28 i lp=60 | AH15: rokwzgl=29 i lp=60
A16: 70 | B16: 1.1.4 | C16: z subwencji ogólnej | D16: rokwzgl=0 i lp=70 | E16: rokwzgl=0 i lp=70 | F16: rokwzgl=1 i lp=70 | G16: rokwzgl=2 i lp=70 | H16: rokwzgl=3 i lp=70 | I16: rokwzgl=4 i lp=70 | J16: rokwzgl=5 i lp=70 | K16: rokwzgl=6 i lp=70 | L16: rokwzgl=7 i lp=70 | M16: rokwzgl=8 i lp=70 | N16: rokwzgl=9 i lp=70 | O16: rokwzgl=10 i lp=70 | P16: rokwzgl=11 i lp=70 | Q16: rokwzgl=12 i lp=70 | R16: rokwzgl=13 i lp=70 | S16: rokwzgl=14 i lp=70 | T16: rokwzgl=15 i lp=70 | U16: rokwzgl=16 i lp=70 | V16: rokwzgl=17 i lp=70 | W16: rokwzgl=18 i lp=70 | X16: rokwzgl=19 i lp=70 | Y16: rokwzgl=20 i lp=70 | Z16: rokwzgl=21 i lp=70 | AA16: rokwzgl=22 i lp=70 | AB16: rokwzgl=23 i lp=70 | AC16: rokwzgl=24 i lp=70 | AD16: rokwzgl=25 i lp=70 | AE16: rokwzgl=26 i lp=70 | AF16: rokwzgl=27 i lp=70 | AG16: rokwzgl=28 i lp=70 | AH16: rokwzgl=29 i lp=70
A17: 80 | B17: 1.1.5 | C17: z tytułu dotacji i środków przeznaczonych na cele bieżące | D17: rokwzgl=0 i lp=80 | E17: rokwzgl=0 i lp=80 | F17: rokwzgl=1 i lp=80 | G17: rokwzgl=2 i lp=80 | H17: rokwzgl=3 i lp=80 | I17: rokwzgl=4 i lp=80 | J17: rokwzgl=5 i lp=80 | K17: rokwzgl=6 i lp=80 | L17: rokwzgl=7 i lp=80 | M17: rokwzgl=8 i lp=80 | N17: rokwzgl=9 i lp=80 | O17: rokwzgl=10 i lp=80 | P17: rokwzgl=11 i lp=80 | Q17: rokwzgl=12 i lp=80 | R17: rokwzgl=13 i lp=80 | S17: rokwzgl=14 i lp=80 | T17: rokwzgl=15 i lp=80 | U17: rokwzgl=16 i lp=80 | V17: rokwzgl=17 i lp=80 | W17: rokwzgl=18 i lp=80 | X17: rokwzgl=19 i lp=80 | Y17: rokwzgl=20 i lp=80 | Z17: rokwzgl=21 i lp=80 | AA17: rokwzgl=22 i lp=80 | AB17: rokwzgl=23 i lp=80 | AC17: rokwzgl=24 i lp=80 | AD17: rokwzgl=25 i lp=80 | AE17: rokwzgl=26 i lp=80 | AF17: rokwzgl=27 i lp=80 | AG17: rokwzgl=28 i lp=80 | AH17: rokwzgl=29 i lp=80
A18: 90 | B18: 1.2 | C18: Dochody majątkowe, w tym | D18: rokwzgl=0 i lp=90 | E18: rokwzgl=0 i lp=90 | F18: rokwzgl=1 i lp=90 | G18: rokwzgl=2 i lp=90 | H18: rokwzgl=3 i lp=90 | I18: rokwzgl=4 i lp=90 | J18: rokwzgl=5 i lp=90 | K18: rokwzgl=6 i lp=90 | L18: rokwzgl=7 i lp=90 | M18: rokwzgl=8 i lp=90 | N18: rokwzgl=9 i lp=90 | O18: rokwzgl=10 i lp=90 | P18: rokwzgl=11 i lp=90 | Q18: rokwzgl=12 i lp=90 | R18: rokwzgl=13 i lp=90 | S18: rokwzgl=14 i lp=90 | T18: rokwzgl=15 i lp=90 | U18: rokwzgl=16 i lp=90 | V18: rokwzgl=17 i lp=90 | W18: rokwzgl=18 i lp=90 | X18: rokwzgl=19 i lp=90 | Y18: rokwzgl=20 i lp=90 | Z18: rokwzgl=21 i lp=90 | AA18: rokwzgl=22 i lp=90 | AB18: rokwzgl=23 i lp=90 | AC18: rokwzgl=24 i lp=90 | AD18: rokwzgl=25 i lp=90 | AE18: rokwzgl=26 i lp=90 | AF18: rokwzgl=27 i lp=90 | AG18: rokwzgl=28 i lp=90 | AH18: rokwzgl=29 i lp=90
A19: 100 | B19: 1.2.1 | C19: ze sprzedaży majątku | D19: rokwzgl=0 i lp=100 | E19: rokwzgl=0 i lp=100 | F19: rokwzgl=1 i lp=100 | G19: rokwzgl=2 i lp=100 | H19: rokwzgl=3 i lp=100 | I19: rokwzgl=4 i lp=100 | J19: rokwzgl=5 i lp=100 | K19: rokwzgl=6 i lp=100 | L19: rokwzgl=7 i lp=100 | M19: rokwzgl=8 i lp=100 | N19: rokwzgl=9 i lp=100 | O19: rokwzgl=10 i lp=100 | P19: rokwzgl=11 i lp=100 | Q19: rokwzgl=12 i lp=100 | R19: rokwzgl=13 i lp=100 | S19: rokwzgl=14 i lp=100 | T19: rokwzgl=15 i lp=100 | U19: rokwzgl=16 i lp=100 | V19: rokwzgl=17 i lp=100 | W19: rokwzgl=18 i lp=100 | X19: rokwzgl=19 i lp=100 | Y19: rokwzgl=20 i lp=100 | Z19: rokwzgl=21 i lp=100 | AA19: rokwzgl=22 i lp=100 | AB19: rokwzgl=23 i lp=100 | AC19: rokwzgl=24 i lp=100 | AD19: rokwzgl=25 i lp=100 | AE19: rokwzgl=26 i lp=100 | AF19: rokwzgl=27 i lp=100 | AG19: rokwzgl=28 i lp=100 | AH19: rokwzgl=29 i lp=100
A20: 110 | B20: 1.2.2 | C20: z tytułu dotacji oraz środków przeznaczonych na inwestycje | D20: =+"rokwzgl="&D$9&" i lp="&$A20 -> rokwzgl=0 i lp=110 | E20: rokwzgl=0 i lp=110 | F20: rokwzgl=1 i lp=110 | G20: rokwzgl=2 i lp=110 | H20: rokwzgl=3 i lp=110 | I20: rokwzgl=4 i lp=110 | J20: rokwzgl=5 i lp=110 | K20: rokwzgl=6 i lp=110 | L20: rokwzgl=7 i lp=110 | M20: rokwzgl=8 i lp=110 | N20: =+"rokwzgl="&N$9&" i lp="&$A20 -> rokwzgl=9 i lp=110 | O20: rokwzgl=10 i lp=110 | P20: rokwzgl=11 i lp=110 | Q20: rokwzgl=12 i lp=110 | R20: rokwzgl=13 i lp=110 | S20: rokwzgl=14 i lp=110 | T20: rokwzgl=15 i lp=110 | U20: rokwzgl=16 i lp=110 | V20: rokwzgl=17 i lp=110 | W20: rokwzgl=18 i lp=110 | X20: =+"rokwzgl="&X$9&" i lp="&$A20 -> rokwzgl=19 i lp=110 | Y20: rokwzgl=20 i lp=110 | Z20: rokwzgl=21 i lp=110 | AA20: rokwzgl=22 i lp=110 | AB20: rokwzgl=23 i lp=110 | AC20: rokwzgl=24 i lp=110 | AD20: rokwzgl=25 i lp=110 | AE20: rokwzgl=26 i lp=110 | AF20: rokwzgl=27 i lp=110 | AG20: rokwzgl=28 i lp=110 | AH20: rokwzgl=29 i lp=110
A21: 120 | B21: 2 | C21: Wydatki ogółem | D21: rokwzgl=0 i lp=120 | E21: rokwzgl=0 i lp=120 | F21: rokwzgl=1 i lp=120 | G21: rokwzgl=2 i lp=120 | H21: rokwzgl=3 i lp=120 | I21: rokwzgl=4 i lp=120 | J21: rokwzgl=5 i lp=120 | K21: rokwzgl=6 i lp=120 | L21: rokwzgl=7 i lp=120 | M21: rokwzgl=8 i lp=120 | N21: rokwzgl=9 i lp=120 | O21: rokwzgl=10 i lp=120 | P21: rokwzgl=11 i lp=120 | Q21: rokwzgl=12 i lp=120 | R21: rokwzgl=13 i lp=120 | S21: rokwzgl=14 i lp=120 | T21: rokwzgl=15 i lp=120 | U21: rokwzgl=16 i lp=120 | V21: rokwzgl=17 i lp=120 | W21: rokwzgl=18 i lp=120 | X21: rokwzgl=19 i lp=120 | Y21: rokwzgl=20 i lp=120 | Z21: rokwzgl=21 i lp=120 | AA21: rokwzgl=22 i lp=120 | AB21: rokwzgl=23 i lp=120 | AC21: rokwzgl=24 i lp=120 | AD21: rokwzgl=25 i lp=120 | AE21: rokwzgl=26 i lp=120 | AF21: rokwzgl=27 i lp=120 | AG21: rokwzgl=28 i lp=120 | AH21: rokwzgl=29 i lp=120
A22: 130 | B22: 2.1 | C22: Wydatki bieżące, w tym: | D22: rokwzgl=0 i lp=130 | E22: rokwzgl=0 i lp=130 | F22: rokwzgl=1 i lp=130 | G22: rokwzgl=2 i lp=130 | H22: rokwzgl=3 i lp=130 | I22: rokwzgl=4 i lp=130 | J22: rokwzgl=5 i lp=130 | K22: rokwzgl=6 i lp=130 | L22: rokwzgl=7 i lp=130 | M22: rokwzgl=8 i lp=130 | N22: rokwzgl=9 i lp=130 | O22: rokwzgl=10 i lp=130 | P22: rokwzgl=11 i lp=130 | Q22: rokwzgl=12 i lp=130 | R22: rokwzgl=13 i lp=130 | S22: rokwzgl=14 i lp=130 | T22: rokwzgl=15 i lp=130 | U22: rokwzgl=16 i lp=130 | V22: rokwzgl=17 i lp=130 | W22: rokwzgl=18 i lp=130 | X22: rokwzgl=19 i lp=130 | Y22: rokwzgl=20 i lp=130 | Z22: rokwzgl=21 i lp=130 | AA22: rokwzgl=22 i lp=130 | AB22: rokwzgl=23 i lp=130 | AC22: rokwzgl=24 i lp=130 | AD22: rokwzgl=25 i lp=130 | AE22: rokwzgl=26 i lp=130 | AF22: rokwzgl=27 i lp=130 | AG22: rokwzgl=28 i lp=130 | AH22: rokwzgl=29 i lp=130
A23: 140 | B23: 2.1.1 | C23: z tytułu poręczeń i gwarancji | D23: rokwzgl=0 i lp=140 | E23: rokwzgl=0 i lp=140 | F23: rokwzgl=1 i lp=140 | G23: rokwzgl=2 i lp=140 | H23: rokwzgl=3 i lp=140 | I23: rokwzgl=4 i lp=140 | J23: rokwzgl=5 i lp=140 | K23: rokwzgl=6 i lp=140 | L23: rokwzgl=7 i lp=140 | M23: rokwzgl=8 i lp=140 | N23: rokwzgl=9 i lp=140 | O23: rokwzgl=10 i lp=140 | P23: rokwzgl=11 i lp=140 | Q23: rokwzgl=12 i lp=140 | R23: rokwzgl=13 i lp=140 | S23: rokwzgl=14 i lp=140 | T23: rokwzgl=15 i lp=140 | U23: rokwzgl=16 i lp=140 | V23: rokwzgl=17 i lp=140 | W23: rokwzgl=18 i lp=140 | X23: rokwzgl=19 i lp=140 | Y23: rokwzgl=20 i lp=140 | Z23: rokwzgl=21 i lp=140 | AA23: rokwzgl=22 i lp=140 | AB23: rokwzgl=23 i lp=140 | AC23: rokwzgl=24 i lp=140 | AD23: rokwzgl=25 i lp=140 | AE23: rokwzgl=26 i lp=140 | AF23: rokwzgl=27 i lp=140 | AG23: rokwzgl=28 i lp=140 | AH23: rokwzgl=29 i lp=140
A24: 150 | B24: 2.1.1.1 | C24: w tym: gwarancje i poręczenia podlegające wyłączeniu z limitu spłaty zobowiązań, o którym mowa w art. 243 ustawy | D24: rokwzgl=0 i lp=150 | E24: rokwzgl=0 i lp=150 | F24: rokwzgl=1 i lp=150 | G24: rokwzgl=2 i lp=150 | H24: rokwzgl=3 i lp=150 | I24: rokwzgl=4 i lp=150 | J24: rokwzgl=5 i lp=150 | K24: rokwzgl=6 i lp=150 | L24: rokwzgl=7 i lp=150 | M24: rokwzgl=8 i lp=150 | N24: rokwzgl=9 i lp=150 | O24: rokwzgl=10 i lp=150 | P24: rokwzgl=11 i lp=150 | Q24: rokwzgl=12 i lp=150 | R24: rokwzgl=13 i lp=150 | S24: rokwzgl=14 i lp=150 | T24: rokwzgl=15 i lp=150 | U24: rokwzgl=16 i lp=150 | V24: rokwzgl=17 i lp=150 | W24: rokwzgl=18 i lp=150 | X24: rokwzgl=19 i lp=150 | Y24: rokwzgl=20 i lp=150 | Z24: rokwzgl=21 i lp=150 | AA24: rokwzgl=22 i lp=150 | AB24: rokwzgl=23 i lp=150 | AC24: rokwzgl=24 i lp=150 | AD24: rokwzgl=25 i lp=150 | AE24: rokwzgl=26 i lp=150 | AF24: rokwzgl=27 i lp=150 | AG24: rokwzgl=28 i lp=150 | AH24: rokwzgl=29 i lp=150
A25: 160 | B25: 2.1.2 | C25: na spłatę przejętych zobowiązań samodzielnego publicznego zakładu opieki zdrowotnej przekształconego na zasadach określonych w przepisach o działalności leczniczej, w wysokości w jakiej nie podlegają sfinansowaniu dotacją z budżetu państwa | D25: rokwzgl=0 i lp=160 | E25: rokwzgl=0 i lp=160 | F25: rokwzgl=1 i lp=160 | G25: rokwzgl=2 i lp=160 | H25: rokwzgl=3 i lp=160 | I25: rokwzgl=4 i lp=160 | J25: rokwzgl=5 i lp=160 | K25: rokwzgl=6 i lp=160 | L25: rokwzgl=7 i lp=160 | M25: rokwzgl=8 i lp=160 | N25: rokwzgl=9 i lp=160 | O25: rokwzgl=10 i lp=160 | P25: rokwzgl=11 i lp=160 | Q25: rokwzgl=12 i lp=160 | R25: rokwzgl=13 i lp=160 | S25: rokwzgl=14 i lp=160 | T25: rokwzgl=15 i lp=160 | U25: rokwzgl=16 i lp=160 | V25: rokwzgl=17 i lp=160 | W25: rokwzgl=18 i lp=160 | X25: rokwzgl=19 i lp=160 | Y25: rokwzgl=20 i lp=160 | Z25: rokwzgl=21 i lp=160 | AA25: rokwzgl=22 i lp=160 | AB25: rokwzgl=23 i lp=160 | AC25: rokwzgl=24 i lp=160 | AD25: rokwzgl=25 i lp=160 | AE25: rokwzgl=26 i lp=160 | AF25: rokwzgl=27 i lp=160 | AG25: rokwzgl=28 i lp=160 | AH25: rokwzgl=29 i lp=160
A26: 170 | B26: 2.1.3 | C26: wydatki na obsługę długu, w tym: | D26: rokwzgl=0 i lp=170 | E26: rokwzgl=0 i lp=170 | F26: rokwzgl=1 i lp=170 | G26: rokwzgl=2 i lp=170 | H26: rokwzgl=3 i lp=170 | I26: rokwzgl=4 i lp=170 | J26: rokwzgl=5 i lp=170 | K26: rokwzgl=6 i lp=170 | L26: rokwzgl=7 i lp=170 | M26: rokwzgl=8 i lp=170 | N26: rokwzgl=9 i lp=170 | O26: rokwzgl=10 i lp=170 | P26: rokwzgl=11 i lp=170 | Q26: rokwzgl=12 i lp=170 | R26: rokwzgl=13 i lp=170 | S26: rokwzgl=14 i lp=170 | T26: rokwzgl=15 i lp=170 | U26: rokwzgl=16 i lp=170 | V26: rokwzgl=17 i lp=170 | W26: rokwzgl=18 i lp=170 | X26: rokwzgl=19 i lp=170 | Y26: rokwzgl=20 i lp=170 | Z26: rokwzgl=21 i lp=170 | AA26: rokwzgl=22 i lp=170 | AB26: rokwzgl=23 i lp=170 | AC26: rokwzgl=24 i lp=170 | AD26: rokwzgl=25 i lp=170 | AE26: rokwzgl=26 i lp=170 | AF26: rokwzgl=27 i lp=170 | AG26: rokwzgl=28 i lp=170 | AH26: rokwzgl=29 i lp=170
A27: 180 | B27: 2.1.3.1 | C27: odsetki i dyskonto określone w art. 243 ust. 1 ustawy, w tym: | D27: rokwzgl=0 i lp=180 | E27: rokwzgl=0 i lp=180 | F27: rokwzgl=1 i lp=180 | G27: rokwzgl=2 i lp=180 | H27: rokwzgl=3 i lp=180 | I27: rokwzgl=4 i lp=180 | J27: rokwzgl=5 i lp=180 | K27: rokwzgl=6 i lp=180 | L27: rokwzgl=7 i lp=180 | M27: rokwzgl=8 i lp=180 | N27: rokwzgl=9 i lp=180 | O27: rokwzgl=10 i lp=180 | P27: rokwzgl=11 i lp=180 | Q27: rokwzgl=12 i lp=180 | R27: rokwzgl=13 i lp=180 | S27: rokwzgl=14 i lp=180 | T27: rokwzgl=15 i lp=180 | U27: rokwzgl=16 i lp=180 | V27: rokwzgl=17 i lp=180 | W27: rokwzgl=18 i lp=180 | X27: rokwzgl=19 i lp=180 | Y27: rokwzgl=20 i lp=180 | Z27: rokwzgl=21 i lp=180 | AA27: rokwzgl=22 i lp=180 | AB27: rokwzgl=23 i lp=180 | AC27: rokwzgl=24 i lp=180 | AD27: rokwzgl=25 i lp=180 | AE27: rokwzgl=26 i lp=180 | AF27: rokwzgl=27 i lp=180 | AG27: rokwzgl=28 i lp=180 | AH27: rokwzgl=29 i lp=180
